{"text_format":"1","workbook":"xlsx","n_sheets":5,"sheets":["🏠","Resumo","Graph Data","Tags","Transações"],"not_rendered":{"charts":2,"images":4,"macros":1,"external_links":0,"defined_names":3,"comments":0,"pivot_tables":0},"unopened":[],"bounds":{"document_bytes":16777216,"sheet_cells":100000,"rows_first":2000,"rows_last":500,"rows_between":2000,"halvings":0,"cell_chars":16384,"cell_head_chars":4096},"cells_cut":0,"cells_raw":0,"read":"whole","date_system":"1900"}

{"sheet":"🏠","index":0,"n_rows":11,"n_cols":3,"rows_kept":11,"cut":false,"hidden":false,"merged":[]}
[null,null,"Planilha de Gastos"]
[]
[null,"1.","Comece registrando sua transação de entrada ou saída"]
[]
[null,"2.","Você pode cadastrar as categorias mais frequentes de transações. Já colocamos as mais comuns como \"salário\" e \"mercado\" por exemplo! :)"]
[]
[null,"3.","Você pode consultar e editar todas as transações!"]
[]
[null,"4.","A qualquer momento você pode clicar no botão para desfazer a transação mais recente ou reiniciar a planilha (cuidado para não perder seus dados!)"]
[]
[null,"5.","A planilha roda com macros, não se esqueça de habilitá-las para poder utilizá-la corretamente! Basta clicar no botão \"Habilitar Edição\" e logo em seguida no botão \"Habilitar Conteúdo\""]

{"sheet":"Resumo","index":1,"n_rows":8,"n_cols":7,"rows_kept":8,"cut":false,"hidden":false,"merged":[[4,8,4,9]]}
[]
[null,null,null,null,null,"Ano ",2022]
[null,null,null,null,null,"Mês","Fevereiro"]
[null,null,null,null,null,"Resumo","Valor (R$)"]
[null,null,null,null,null,"🟢  Entrou",{"$f":"'Graph Data'!G3","v":2500}]
[null,null,null,null,null,"🔴  Saiu",{"$f":"'Graph Data'!G4","v":1600.5}]
[null,null,null,null,null,"Sobrou",{"$f":"'Graph Data'!G5","v":899.5}]
[null,null,null,null,null,"Acumulado",{"$f":"SUM(Transações!E2:E1048576)-SUM(Transações!D2:D1048576)","v":7948.75}]

{"sheet":"Graph Data","index":2,"n_rows":1000,"n_cols":22,"rows_kept":1000,"cut":false,"hidden":true,"merged":[[1,5,1,6],[1,0,1,1]]}
["Mês",{"$f":"MATCH(Resumo!$G$3,'Graph Data'!C3:C14,0)","v":2},null,null,null,null,null,null,{"$f":"D2","v":"INICIO"},null,{"$f":"DATE(J3,1,1)","v":"2022-01-01"},{"$f":"DATE($J$3,2,1)","v":"2022-02-01"},{"$f":"DATE($J$3,3,1)","v":"2022-03-01"},{"$f":"DATE($J$3,4,1)","v":"2022-04-01"},{"$f":"DATE($J$3,5,1)","v":"2022-05-01"},{"$f":"DATE($J$3,6,1)","v":"2022-06-01"},{"$f":"DATE($J$3,7,1)","v":"2022-07-01"},{"$f":"DATE($J$3,8,1)","v":"2022-08-01"},{"$f":"DATE($J$3,9,1)","v":"2022-09-01"},{"$f":"DATE($J$3,10,1)","v":"2022-10-01"},{"$f":"DATE($J$3,11,1)","v":"2022-11-01"},{"$f":"DATE($J$3,12,1)","v":"2022-12-01"}]
["Graph Data",null,"Mês","INICIO",{"$f":"DATE(Resumo!G2,'Graph Data'!B1,1)","v":"2022-02-01"},"Table Data",null,"Ano",{"$f":"D3","v":"TÉRMINO"},null,{"$f":"EOMONTH(K1,0)","v":"2022-01-31"},{"$f":"EOMONTH(L1,0)","v":"2022-02-28"},"2022-03-31","2022-04-30","2022-05-31","2022-06-30","2022-07-31","2022-08-31","2022-09-30","2022-10-31","2022-11-30","2022-12-31"]
["Mercado",{"$f":"IF(SUMIFS(Transações!D:D,Transações!A:A,\">=\"&'Graph Data'!$E$2,Transações!A:A,\"<=\"&'Graph Data'!$E$3,Transações!C:C,'Graph Data'!A3)=0,NA(),SUMIFS(Transações!D:D,Transações!A:A,\">=\"&'Graph Data'!$E$2,Transações!A:A,\"<=\"&'Graph Data'!$E$3,Transações!C:C,'Graph Data'!A3))","v":{"$error":"#N/A"}},"Janeiro","TÉRMINO",{"$f":"EOMONTH(E2,0)","v":"2022-02-28"},"Entrou",{"$f":"SUMIFS(Transações!E:E,Transações!A:A,\">=\"&'Graph Data'!$E$2,Transações!A:A,\"<=\"&'Graph Data'!$E$3,Transações!B:B,\"Entrada\")","v":2500},{"$f":"IF(_xlfn._xlws.SORT(_xlfn.UNIQUE(Transações!G2:G1048576))=0,\"\",_xlfn._xlws.SORT(_xlfn.UNIQUE(Transações!G2:G1048576)))","v":2021},"Chart Data",{"$f":"Resumo!G2","v":2022},"Janeiro","Fevereiro","Março","Abril","Maio","Junho","Julho","Agosto","Setembro","Outubro","Novembro","Dezembro"]
["Aluguel",{"$f":"IF(SUMIFS(Transações!D:D,Transações!A:A,\">=\"&'Graph Data'!$E$2,Transações!A:A,\"<=\"&'Graph Data'!$E$3,Transações!C:C,'Graph Data'!A4)=0,NA(),SUMIFS(Transações!D:D,Transações!A:A,\">=\"&'Graph Data'!$E$2,Transações!A:A,\"<=\"&'Graph Data'!$E$3,Transações!C:C,'Graph Data'!A4))","v":1150.5},"Fevereiro",null,null,"Saiu",{"$f":"SUMIFS(Transações!D:D,Transações!A:A,\">=\"&'Graph Data'!$E$2,Transações!A:A,\"<=\"&'Graph Data'!$E$3,Transações!B:B,\"Saída\")","v":1600.5},2022,null,"Entrou",{"$f":"SUMIFS(Transações!$E$2:$E$1048576,Transações!$A$2:$A$1048576,\">=\"&K1,Transações!$A$2:$A$1048576,\"<=\"&K2,Transações!$B$2:$B$1048576,\"Entrada\")","v":12000},{"$f":"SUMIFS(Transações!$E$2:$E$1048576,Transações!$A$2:$A$1048576,\">=\"&L1,Transações!$A$2:$A$1048576,\"<=\"&L2,Transações!$B$2:$B$1048576,\"Entrada\")","v":2500},{"$f":"SUMIFS(Transações!$E$2:$E$1048576,Transações!$A$2:$A$1048576,\">=\"&M1,Transações!$A$2:$A$1048576,\"<=\"&M2,Transações!$B$2:$B$1048576,\"Entrada\")","v":0},{"$f":"SUMIFS(Transações!$E$2:$E$1048576,Transações!$A$2:$A$1048576,\">=\"&N1,Transações!$A$2:$A$1048576,\"<=\"&N2,Transações!$B$2:$B$1048576,\"Entrada\")","v":1000},{"$f":"SUMIFS(Transações!$E$2:$E$1048576,Transações!$A$2:$A$1048576,\">=\"&O1,Transações!$A$2:$A$1048576,\"<=\"&O2,Transações!$B$2:$B$1048576,\"Entrada\")","v":0},{"$f":"SUMIFS(Transações!$E$2:$E$1048576,Transações!$A$2:$A$1048576,\">=\"&P1,Transações!$A$2:$A$1048576,\"<=\"&P2,Transações!$B$2:$B$1048576,\"Entrada\")","v":0},{"$f":"SUMIFS(Transações!$E$2:$E$1048576,Transações!$A$2:$A$1048576,\">=\"&Q1,Transações!$A$2:$A$1048576,\"<=\"&Q2,Transações!$B$2:$B$1048576,\"Entrada\")","v":0},{"$f":"SUMIFS(Transações!$E$2:$E$1048576,Transações!$A$2:$A$1048576,\">=\"&R1,Transações!$A$2:$A$1048576,\"<=\"&R2,Transações!$B$2:$B$1048576,\"Entrada\")","v":0},{"$f":"SUMIFS(Transações!$E$2:$E$1048576,Transações!$A$2:$A$1048576,\">=\"&S1,Transações!$A$2:$A$1048576,\"<=\"&S2,Transações!$B$2:$B$1048576,\"Entrada\")","v":0},{"$f":"SUMIFS(Transações!$E$2:$E$1048576,Transações!$A$2:$A$1048576,\">=\"&T1,Transações!$A$2:$A$1048576,\"<=\"&T2,Transações!$B$2:$B$1048576,\"Entrada\")","v":0},{"$f":"SUMIFS(Transações!$E$2:$E$1048576,Transações!$A$2:$A$1048576,\">=\"&U1,Transações!$A$2:$A$1048576,\"<=\"&U2,Transações!$B$2:$B$1048576,\"Entrada\")","v":0},{"$f":"SUMIFS(Transações!$E$2:$E$1048576,Transações!$A$2:$A$1048576,\">=\"&V1,Transações!$A$2:$A$1048576,\"<=\"&V2,Transações!$B$2:$B$1048576,\"Entrada\")","v":0}]
["Salário",{"$f":"IF(SUMIFS(Transações!D:D,Transações!A:A,\">=\"&'Graph Data'!$E$2,Transações!A:A,\"<=\"&'Graph Data'!$E$3,Transações!C:C,'Graph Data'!A5)=0,NA(),SUMIFS(Transações!D:D,Transações!A:A,\">=\"&'Graph Data'!$E$2,Transações!A:A,\"<=\"&'Graph Data'!$E$3,Transações!C:C,'Graph Data'!A5))","v":{"$error":"#N/A"}},"Março ",null,null,"Sobrou",{"$f":"G3-G4","v":899.5},"",null,"Saiu",{"$f":"SUMIFS(Transações!$D$2:$D$1048576,Transações!$A$2:$A$1048576,\">=\"&K1,Transações!$A$2:$A$1048576,\"<=\"&K2,Transações!$B$2:$B$1048576,\"Saída\")","v":6750.75},{"$f":"SUMIFS(Transações!$D$2:$D$1048576,Transações!$A$2:$A$1048576,\">=\"&L1,Transações!$A$2:$A$1048576,\"<=\"&L2,Transações!$B$2:$B$1048576,\"Saída\")","v":1600.5},{"$f":"SUMIFS(Transações!$D$2:$D$1048576,Transações!$A$2:$A$1048576,\">=\"&M1,Transações!$A$2:$A$1048576,\"<=\"&M2,Transações!$B$2:$B$1048576,\"Saída\")","v":0},{"$f":"SUMIFS(Transações!$D$2:$D$1048576,Transações!$A$2:$A$1048576,\">=\"&N1,Transações!$A$2:$A$1048576,\"<=\"&N2,Transações!$B$2:$B$1048576,\"Saída\")","v":200},{"$f":"SUMIFS(Transações!$D$2:$D$1048576,Transações!$A$2:$A$1048576,\">=\"&O1,Transações!$A$2:$A$1048576,\"<=\"&O2,Transações!$B$2:$B$1048576,\"Saída\")","v":0},{"$f":"SUMIFS(Transações!$D$2:$D$1048576,Transações!$A$2:$A$1048576,\">=\"&P1,Transações!$A$2:$A$1048576,\"<=\"&P2,Transações!$B$2:$B$1048576,\"Saída\")","v":0},{"$f":"SUMIFS(Transações!$D$2:$D$1048576,Transações!$A$2:$A$1048576,\">=\"&Q1,Transações!$A$2:$A$1048576,\"<=\"&Q2,Transações!$B$2:$B$1048576,\"Saída\")","v":0},{"$f":"SUMIFS(Transações!$D$2:$D$1048576,Transações!$A$2:$A$1048576,\">=\"&R1,Transações!$A$2:$A$1048576,\"<=\"&R2,Transações!$B$2:$B$1048576,\"Saída\")","v":0},{"$f":"SUMIFS(Transações!$D$2:$D$1048576,Transações!$A$2:$A$1048576,\">=\"&S1,Transações!$A$2:$A$1048576,\"<=\"&S2,Transações!$B$2:$B$1048576,\"Saída\")","v":0},{"$f":"SUMIFS(Transações!$D$2:$D$1048576,Transações!$A$2:$A$1048576,\">=\"&T1,Transações!$A$2:$A$1048576,\"<=\"&T2,Transações!$B$2:$B$1048576,\"Saída\")","v":0},{"$f":"SUMIFS(Transações!$D$2:$D$1048576,Transações!$A$2:$A$1048576,\">=\"&U1,Transações!$A$2:$A$1048576,\"<=\"&U2,Transações!$B$2:$B$1048576,\"Saída\")","v":0},{"$f":"SUMIFS(Transações!$D$2:$D$1048576,Transações!$A$2:$A$1048576,\">=\"&V1,Transações!$A$2:$A$1048576,\"<=\"&V2,Transações!$B$2:$B$1048576,\"Saída\")","v":0}]
["Viagem",{"$f":"IF(SUMIFS(Transações!D:D,Transações!A:A,\">=\"&'Graph Data'!$E$2,Transações!A:A,\"<=\"&'Graph Data'!$E$3,Transações!C:C,'Graph Data'!A6)=0,NA(),SUMIFS(Transações!D:D,Transações!A:A,\">=\"&'Graph Data'!$E$2,Transações!A:A,\"<=\"&'Graph Data'!$E$3,Transações!C:C,'Graph Data'!A6))","v":{"$error":"#N/A"}},"Abril",null,null,null,null,null,null,"Sobrou",{"$f":"K4-K5","v":5249.25},{"$f":"L4-L5","v":899.5},{"$f":"M4-M5","v":0},800,0,0,0,0,0,0,0,0]
["Lazer",{"$f":"IF(SUMIFS(Transações!D:D,Transações!A:A,\">=\"&'Graph Data'!$E$2,Transações!A:A,\"<=\"&'Graph Data'!$E$3,Transações!C:C,'Graph Data'!A7)=0,NA(),SUMIFS(Transações!D:D,Transações!A:A,\">=\"&'Graph Data'!$E$2,Transações!A:A,\"<=\"&'Graph Data'!$E$3,Transações!C:C,'Graph Data'!A7))","v":{"$error":"#N/A"}},"Maio"]
["Transporte",{"$f":"IF(SUMIFS(Transações!D:D,Transações!A:A,\">=\"&'Graph Data'!$E$2,Transações!A:A,\"<=\"&'Graph Data'!$E$3,Transações!C:C,'Graph Data'!A8)=0,NA(),SUMIFS(Transações!D:D,Transações!A:A,\">=\"&'Graph Data'!$E$2,Transações!A:A,\"<=\"&'Graph Data'!$E$3,Transações!C:C,'Graph Data'!A8))","v":450},"Junho"]
[null,{"$f":"IF(SUMIFS(Transações!D:D,Transações!A:A,\">=\"&'Graph Data'!$E$2,Transações!A:A,\"<=\"&'Graph Data'!$E$3,Transações!C:C,'Graph Data'!A9)=0,NA(),SUMIFS(Transações!D:D,Transações!A:A,\">=\"&'Graph Data'!$E$2,Transações!A:A,\"<=\"&'Graph Data'!$E$3,Transações!C:C,'Graph Data'!A9))","v":{"$error":"#N/A"}},"Julho"]
[null,{"$f":"IF(SUMIFS(Transações!D:D,Transações!A:A,\">=\"&'Graph Data'!$E$2,Transações!A:A,\"<=\"&'Graph Data'!$E$3,Transações!C:C,'Graph Data'!A10)=0,NA(),SUMIFS(Transações!D:D,Transações!A:A,\">=\"&'Graph Data'!$E$2,Transações!A:A,\"<=\"&'Graph Data'!$E$3,Transações!C:C,'Graph Data'!A10))","v":{"$error":"#N/A"}},"Agosto"]
[null,{"$f":"IF(SUMIFS(Transações!D:D,Transações!A:A,\">=\"&'Graph Data'!$E$2,Transações!A:A,\"<=\"&'Graph Data'!$E$3,Transações!C:C,'Graph Data'!A11)=0,NA(),SUMIFS(Transações!D:D,Transações!A:A,\">=\"&'Graph Data'!$E$2,Transações!A:A,\"<=\"&'Graph Data'!$E$3,Transações!C:C,'Graph Data'!A11))","v":{"$error":"#N/A"}},"Setembro"]
[null,{"$f":"IF(SUMIFS(Transações!D:D,Transações!A:A,\">=\"&'Graph Data'!$E$2,Transações!A:A,\"<=\"&'Graph Data'!$E$3,Transações!C:C,'Graph Data'!A12)=0,NA(),SUMIFS(Transações!D:D,Transações!A:A,\">=\"&'Graph Data'!$E$2,Transações!A:A,\"<=\"&'Graph Data'!$E$3,Transações!C:C,'Graph Data'!A12))","v":{"$error":"#N/A"}},"Outubro"]
[null,{"$f":"IF(SUMIFS(Transações!D:D,Transações!A:A,\">=\"&'Graph Data'!$E$2,Transações!A:A,\"<=\"&'Graph Data'!$E$3,Transações!C:C,'Graph Data'!A13)=0,NA(),SUMIFS(Transações!D:D,Transações!A:A,\">=\"&'Graph Data'!$E$2,Transações!A:A,\"<=\"&'Graph Data'!$E$3,Transações!C:C,'Graph Data'!A13))","v":{"$error":"#N/A"}},"Novembro"]
[null,{"$f":"IF(SUMIFS(Transações!D:D,Transações!A:A,\">=\"&'Graph Data'!$E$2,Transações!A:A,\"<=\"&'Graph Data'!$E$3,Transações!C:C,'Graph Data'!A14)=0,NA(),SUMIFS(Transações!D:D,Transações!A:A,\">=\"&'Graph Data'!$E$2,Transações!A:A,\"<=\"&'Graph Data'!$E$3,Transações!C:C,'Graph Data'!A14))","v":{"$error":"#N/A"}},"Dezembro"]
[null,{"$f":"IF(SUMIFS(Transações!D:D,Transações!A:A,\">=\"&'Graph Data'!$E$2,Transações!A:A,\"<=\"&'Graph Data'!$E$3,Transações!C:C,'Graph Data'!A15)=0,NA(),SUMIFS(Transações!D:D,Transações!A:A,\">=\"&'Graph Data'!$E$2,Transações!A:A,\"<=\"&'Graph Data'!$E$3,Transações!C:C,'Graph Data'!A15))","v":{"$error":"#N/A"}}]
[null,{"$f":"IF(SUMIFS(Transações!D:D,Transações!A:A,\">=\"&'Graph Data'!$E$2,Transações!A:A,\"<=\"&'Graph Data'!$E$3,Transações!C:C,'Graph Data'!A16)=0,NA(),SUMIFS(Transações!D:D,Transações!A:A,\">=\"&'Graph Data'!$E$2,Transações!A:A,\"<=\"&'Graph Data'!$E$3,Transações!C:C,'Graph Data'!A16))","v":{"$error":"#N/A"}}]
[null,{"$f":"IF(SUMIFS(Transações!D:D,Transações!A:A,\">=\"&'Graph Data'!$E$2,Transações!A:A,\"<=\"&'Graph Data'!$E$3,Transações!C:C,'Graph Data'!A17)=0,NA(),SUMIFS(Transações!D:D,Transações!A:A,\">=\"&'Graph Data'!$E$2,Transações!A:A,\"<=\"&'Graph Data'!$E$3,Transações!C:C,'Graph Data'!A17))","v":{"$error":"#N/A"}}]
[null,{"$f":"IF(SUMIFS(Transações!D:D,Transações!A:A,\">=\"&'Graph Data'!$E$2,Transações!A:A,\"<=\"&'Graph Data'!$E$3,Transações!C:C,'Graph Data'!A18)=0,NA(),SUMIFS(Transações!D:D,Transações!A:A,\">=\"&'Graph Data'!$E$2,Transações!A:A,\"<=\"&'Graph Data'!$E$3,Transações!C:C,'Graph Data'!A18))","v":{"$error":"#N/A"}}]
[null,{"$f":"IF(SUMIFS(Transações!D:D,Transações!A:A,\">=\"&'Graph Data'!$E$2,Transações!A:A,\"<=\"&'Graph Data'!$E$3,Transações!C:C,'Graph Data'!A19)=0,NA(),SUMIFS(Transações!D:D,Transações!A:A,\">=\"&'Graph Data'!$E$2,Transações!A:A,\"<=\"&'Graph Data'!$E$3,Transações!C:C,'Graph Data'!A19))","v":{"$error":"#N/A"}}]
[null,{"$f":"IF(SUMIFS(Transações!D:D,Transações!A:A,\">=\"&'Graph Data'!$E$2,Transações!A:A,\"<=\"&'Graph Data'!$E$3,Transações!C:C,'Graph Data'!A20)=0,NA(),SUMIFS(Transações!D:D,Transações!A:A,\">=\"&'Graph Data'!$E$2,Transações!A:A,\"<=\"&'Graph Data'!$E$3,Transações!C:C,'Graph Data'!A20))","v":{"$error":"#N/A"}}]
[null,{"$f":"IF(SUMIFS(Transações!D:D,Transações!A:A,\">=\"&'Graph Data'!$E$2,Transações!A:A,\"<=\"&'Graph Data'!$E$3,Transações!C:C,'Graph Data'!A21)=0,NA(),SUMIFS(Transações!D:D,Transações!A:A,\">=\"&'Graph Data'!$E$2,Transações!A:A,\"<=\"&'Graph Data'!$E$3,Transações!C:C,'Graph Data'!A21))","v":{"$error":"#N/A"}}]
[null,{"$f":"IF(SUMIFS(Transações!D:D,Transações!A:A,\">=\"&'Graph Data'!$E$2,Transações!A:A,\"<=\"&'Graph Data'!$E$3,Transações!C:C,'Graph Data'!A22)=0,NA(),SUMIFS(Transações!D:D,Transações!A:A,\">=\"&'Graph Data'!$E$2,Transações!A:A,\"<=\"&'Graph Data'!$E$3,Transações!C:C,'Graph Data'!A22))","v":{"$error":"#N/A"}}]
[null,{"$f":"IF(SUMIFS(Transações!D:D,Transações!A:A,\">=\"&'Graph Data'!$E$2,Transações!A:A,\"<=\"&'Graph Data'!$E$3,Transações!C:C,'Graph Data'!A23)=0,NA(),SUMIFS(Transações!D:D,Transações!A:A,\">=\"&'Graph Data'!$E$2,Transações!A:A,\"<=\"&'Graph Data'!$E$3,Transações!C:C,'Graph Data'!A23))","v":{"$error":"#N/A"}}]
[null,{"$f":"IF(SUMIFS(Transações!D:D,Transações!A:A,\">=\"&'Graph Data'!$E$2,Transações!A:A,\"<=\"&'Graph Data'!$E$3,Transações!C:C,'Graph Data'!A24)=0,NA(),SUMIFS(Transações!D:D,Transações!A:A,\">=\"&'Graph Data'!$E$2,Transações!A:A,\"<=\"&'Graph Data'!$E$3,Transações!C:C,'Graph Data'!A24))","v":{"$error":"#N/A"}}]
[null,{"$f":"IF(SUMIFS(Transações!D:D,Transações!A:A,\">=\"&'Graph Data'!$E$2,Transações!A:A,\"<=\"&'Graph Data'!$E$3,Transações!C:C,'Graph Data'!A25)=0,NA(),SUMIFS(Transações!D:D,Transações!A:A,\">=\"&'Graph Data'!$E$2,Transações!A:A,\"<=\"&'Graph Data'!$E$3,Transações!C:C,'Graph Data'!A25))","v":{"$error":"#N/A"}}]
[null,{"$f":"IF(SUMIFS(Transações!D:D,Transações!A:A,\">=\"&'Graph Data'!$E$2,Transações!A:A,\"<=\"&'Graph Data'!$E$3,Transações!C:C,'Graph Data'!A26)=0,NA(),SUMIFS(Transações!D:D,Transações!A:A,\">=\"&'Graph Data'!$E$2,Transações!A:A,\"<=\"&'Graph Data'!$E$3,Transações!C:C,'Graph Data'!A26))","v":{"$error":"#N/A"}}]
[null,{"$f":"IF(SUMIFS(Transações!D:D,Transações!A:A,\">=\"&'Graph Data'!$E$2,Transações!A:A,\"<=\"&'Graph Data'!$E$3,Transações!C:C,'Graph Data'!A27)=0,NA(),SUMIFS(Transações!D:D,Transações!A:A,\">=\"&'Graph Data'!$E$2,Transações!A:A,\"<=\"&'Graph Data'!$E$3,Transações!C:C,'Graph Data'!A27))","v":{"$error":"#N/A"}}]
[null,{"$f":"IF(SUMIFS(Transações!D:D,Transações!A:A,\">=\"&'Graph Data'!$E$2,Transações!A:A,\"<=\"&'Graph Data'!$E$3,Transações!C:C,'Graph Data'!A28)=0,NA(),SUMIFS(Transações!D:D,Transações!A:A,\">=\"&'Graph Data'!$E$2,Transações!A:A,\"<=\"&'Graph Data'!$E$3,Transações!C:C,'Graph Data'!A28))","v":{"$error":"#N/A"}}]
[null,{"$f":"IF(SUMIFS(Transações!D:D,Transações!A:A,\">=\"&'Graph Data'!$E$2,Transações!A:A,\"<=\"&'Graph Data'!$E$3,Transações!C:C,'Graph Data'!A29)=0,NA(),SUMIFS(Transações!D:D,Transações!A:A,\">=\"&'Graph Data'!$E$2,Transações!A:A,\"<=\"&'Graph Data'!$E$3,Transações!C:C,'Graph Data'!A29))","v":{"$error":"#N/A"}}]
[null,{"$f":"IF(SUMIFS(Transações!D:D,Transações!A:A,\">=\"&'Graph Data'!$E$2,Transações!A:A,\"<=\"&'Graph Data'!$E$3,Transações!C:C,'Graph Data'!A30)=0,NA(),SUMIFS(Transações!D:D,Transações!A:A,\">=\"&'Graph Data'!$E$2,Transações!A:A,\"<=\"&'Graph Data'!$E$3,Transações!C:C,'Graph Data'!A30))","v":{"$error":"#N/A"}}]
[null,{"$f":"IF(SUMIFS(Transações!D:D,Transações!A:A,\">=\"&'Graph Data'!$E$2,Transações!A:A,\"<=\"&'Graph Data'!$E$3,Transações!C:C,'Graph Data'!A31)=0,NA(),SUMIFS(Transações!D:D,Transações!A:A,\">=\"&'Graph Data'!$E$2,Transações!A:A,\"<=\"&'Graph Data'!$E$3,Transações!C:C,'Graph Data'!A31))","v":{"$error":"#N/A"}}]
[null,{"$f":"IF(SUMIFS(Transações!D:D,Transações!A:A,\">=\"&'Graph Data'!$E$2,Transações!A:A,\"<=\"&'Graph Data'!$E$3,Transações!C:C,'Graph Data'!A32)=0,NA(),SUMIFS(Transações!D:D,Transações!A:A,\">=\"&'Graph Data'!$E$2,Transações!A:A,\"<=\"&'Graph Data'!$E$3,Transações!C:C,'Graph Data'!A32))","v":{"$error":"#N/A"}}]
[null,{"$f":"IF(SUMIFS(Transações!D:D,Transações!A:A,\">=\"&'Graph Data'!$E$2,Transações!A:A,\"<=\"&'Graph Data'!$E$3,Transações!C:C,'Graph Data'!A33)=0,NA(),SUMIFS(Transações!D:D,Transações!A:A,\">=\"&'Graph Data'!$E$2,Transações!A:A,\"<=\"&'Graph Data'!$E$3,Transações!C:C,'Graph Data'!A33))","v":{"$error":"#N/A"}}]
[null,{"$f":"IF(SUMIFS(Transações!D:D,Transações!A:A,\">=\"&'Graph Data'!$E$2,Transações!A:A,\"<=\"&'Graph Data'!$E$3,Transações!C:C,'Graph Data'!A34)=0,NA(),SUMIFS(Transações!D:D,Transações!A:A,\">=\"&'Graph Data'!$E$2,Transações!A:A,\"<=\"&'Graph Data'!$E$3,Transações!C:C,'Graph Data'!A34))","v":{"$error":"#N/A"}}]
[null,{"$f":"IF(SUMIFS(Transações!D:D,Transações!A:A,\">=\"&'Graph Data'!$E$2,Transações!A:A,\"<=\"&'Graph Data'!$E$3,Transações!C:C,'Graph Data'!A35)=0,NA(),SUMIFS(Transações!D:D,Transações!A:A,\">=\"&'Graph Data'!$E$2,Transações!A:A,\"<=\"&'Graph Data'!$E$3,Transações!C:C,'Graph Data'!A35))","v":{"$error":"#N/A"}}]
[null,{"$f":"IF(SUMIFS(Transações!D:D,Transações!A:A,\">=\"&'Graph Data'!$E$2,Transações!A:A,\"<=\"&'Graph Data'!$E$3,Transações!C:C,'Graph Data'!A36)=0,NA(),SUMIFS(Transações!D:D,Transações!A:A,\">=\"&'Graph Data'!$E$2,Transações!A:A,\"<=\"&'Graph Data'!$E$3,Transações!C:C,'Graph Data'!A36))","v":{"$error":"#N/A"}}]
[null,{"$f":"IF(SUMIFS(Transações!D:D,Transações!A:A,\">=\"&'Graph Data'!$E$2,Transações!A:A,\"<=\"&'Graph Data'!$E$3,Transações!C:C,'Graph Data'!A37)=0,NA(),SUMIFS(Transações!D:D,Transações!A:A,\">=\"&'Graph Data'!$E$2,Transações!A:A,\"<=\"&'Graph Data'!$E$3,Transações!C:C,'Graph Data'!A37))","v":{"$error":"#N/A"}}]
[null,{"$f":"IF(SUMIFS(Transações!D:D,Transações!A:A,\">=\"&'Graph Data'!$E$2,Transações!A:A,\"<=\"&'Graph Data'!$E$3,Transações!C:C,'Graph Data'!A38)=0,NA(),SUMIFS(Transações!D:D,Transações!A:A,\">=\"&'Graph Data'!$E$2,Transações!A:A,\"<=\"&'Graph Data'!$E$3,Transações!C:C,'Graph Data'!A38))","v":{"$error":"#N/A"}}]
[null,{"$f":"IF(SUMIFS(Transações!D:D,Transações!A:A,\">=\"&'Graph Data'!$E$2,Transações!A:A,\"<=\"&'Graph Data'!$E$3,Transações!C:C,'Graph Data'!A39)=0,NA(),SUMIFS(Transações!D:D,Transações!A:A,\">=\"&'Graph Data'!$E$2,Transações!A:A,\"<=\"&'Graph Data'!$E$3,Transações!C:C,'Graph Data'!A39))","v":{"$error":"#N/A"}}]
[null,{"$f":"IF(SUMIFS(Transações!D:D,Transações!A:A,\">=\"&'Graph Data'!$E$2,Transações!A:A,\"<=\"&'Graph Data'!$E$3,Transações!C:C,'Graph Data'!A40)=0,NA(),SUMIFS(Transações!D:D,Transações!A:A,\">=\"&'Graph Data'!$E$2,Transações!A:A,\"<=\"&'Graph Data'!$E$3,Transações!C:C,'Graph Data'!A40))","v":{"$error":"#N/A"}}]
[null,{"$f":"IF(SUMIFS(Transações!D:D,Transações!A:A,\">=\"&'Graph Data'!$E$2,Transações!A:A,\"<=\"&'Graph Data'!$E$3,Transações!C:C,'Graph Data'!A41)=0,NA(),SUMIFS(Transações!D:D,Transações!A:A,\">=\"&'Graph Data'!$E$2,Transações!A:A,\"<=\"&'Graph Data'!$E$3,Transações!C:C,'Graph Data'!A41))","v":{"$error":"#N/A"}}]
[null,{"$f":"IF(SUMIFS(Transações!D:D,Transações!A:A,\">=\"&'Graph Data'!$E$2,Transações!A:A,\"<=\"&'Graph Data'!$E$3,Transações!C:C,'Graph Data'!A42)=0,NA(),SUMIFS(Transações!D:D,Transações!A:A,\">=\"&'Graph Data'!$E$2,Transações!A:A,\"<=\"&'Graph Data'!$E$3,Transações!C:C,'Graph Data'!A42))","v":{"$error":"#N/A"}}]
[null,{"$f":"IF(SUMIFS(Transações!D:D,Transações!A:A,\">=\"&'Graph Data'!$E$2,Transações!A:A,\"<=\"&'Graph Data'!$E$3,Transações!C:C,'Graph Data'!A43)=0,NA(),SUMIFS(Transações!D:D,Transações!A:A,\">=\"&'Graph Data'!$E$2,Transações!A:A,\"<=\"&'Graph Data'!$E$3,Transações!C:C,'Graph Data'!A43))","v":{"$error":"#N/A"}}]
[null,{"$f":"IF(SUMIFS(Transações!D:D,Transações!A:A,\">=\"&'Graph Data'!$E$2,Transações!A:A,\"<=\"&'Graph Data'!$E$3,Transações!C:C,'Graph Data'!A44)=0,NA(),SUMIFS(Transações!D:D,Transações!A:A,\">=\"&'Graph Data'!$E$2,Transações!A:A,\"<=\"&'Graph Data'!$E$3,Transações!C:C,'Graph Data'!A44))","v":{"$error":"#N/A"}}]
[null,{"$f":"IF(SUMIFS(Transações!D:D,Transações!A:A,\">=\"&'Graph Data'!$E$2,Transações!A:A,\"<=\"&'Graph Data'!$E$3,Transações!C:C,'Graph Data'!A45)=0,NA(),SUMIFS(Transações!D:D,Transações!A:A,\">=\"&'Graph Data'!$E$2,Transações!A:A,\"<=\"&'Graph Data'!$E$3,Transações!C:C,'Graph Data'!A45))","v":{"$error":"#N/A"}}]
[null,{"$f":"IF(SUMIFS(Transações!D:D,Transações!A:A,\">=\"&'Graph Data'!$E$2,Transações!A:A,\"<=\"&'Graph Data'!$E$3,Transações!C:C,'Graph Data'!A46)=0,NA(),SUMIFS(Transações!D:D,Transações!A:A,\">=\"&'Graph Data'!$E$2,Transações!A:A,\"<=\"&'Graph Data'!$E$3,Transações!C:C,'Graph Data'!A46))","v":{"$error":"#N/A"}}]
[null,{"$f":"IF(SUMIFS(Transações!D:D,Transações!A:A,\">=\"&'Graph Data'!$E$2,Transações!A:A,\"<=\"&'Graph Data'!$E$3,Transações!C:C,'Graph Data'!A47)=0,NA(),SUMIFS(Transações!D:D,Transações!A:A,\">=\"&'Graph Data'!$E$2,Transações!A:A,\"<=\"&'Graph Data'!$E$3,Transações!C:C,'Graph Data'!A47))","v":{"$error":"#N/A"}}]
[null,{"$f":"IF(SUMIFS(Transações!D:D,Transações!A:A,\">=\"&'Graph Data'!$E$2,Transações!A:A,\"<=\"&'Graph Data'!$E$3,Transações!C:C,'Graph Data'!A48)=0,NA(),SUMIFS(Transações!D:D,Transações!A:A,\">=\"&'Graph Data'!$E$2,Transações!A:A,\"<=\"&'Graph Data'!$E$3,Transações!C:C,'Graph Data'!A48))","v":{"$error":"#N/A"}}]
[null,{"$f":"IF(SUMIFS(Transações!D:D,Transações!A:A,\">=\"&'Graph Data'!$E$2,Transações!A:A,\"<=\"&'Graph Data'!$E$3,Transações!C:C,'Graph Data'!A49)=0,NA(),SUMIFS(Transações!D:D,Transações!A:A,\">=\"&'Graph Data'!$E$2,Transações!A:A,\"<=\"&'Graph Data'!$E$3,Transações!C:C,'Graph Data'!A49))","v":{"$error":"#N/A"}}]
[null,{"$f":"IF(SUMIFS(Transações!D:D,Transações!A:A,\">=\"&'Graph Data'!$E$2,Transações!A:A,\"<=\"&'Graph Data'!$E$3,Transações!C:C,'Graph Data'!A50)=0,NA(),SUMIFS(Transações!D:D,Transações!A:A,\">=\"&'Graph Data'!$E$2,Transações!A:A,\"<=\"&'Graph Data'!$E$3,Transações!C:C,'Graph Data'!A50))","v":{"$error":"#N/A"}}]
[null,{"$f":"IF(SUMIFS(Transações!D:D,Transações!A:A,\">=\"&'Graph Data'!$E$2,Transações!A:A,\"<=\"&'Graph Data'!$E$3,Transações!C:C,'Graph Data'!A51)=0,NA(),SUMIFS(Transações!D:D,Transações!A:A,\">=\"&'Graph Data'!$E$2,Transações!A:A,\"<=\"&'Graph Data'!$E$3,Transações!C:C,'Graph Data'!A51))","v":{"$error":"#N/A"}}]
[null,{"$f":"IF(SUMIFS(Transações!D:D,Transações!A:A,\">=\"&'Graph Data'!$E$2,Transações!A:A,\"<=\"&'Graph Data'!$E$3,Transações!C:C,'Graph Data'!A52)=0,NA(),SUMIFS(Transações!D:D,Transações!A:A,\">=\"&'Graph Data'!$E$2,Transações!A:A,\"<=\"&'Graph Data'!$E$3,Transações!C:C,'Graph Data'!A52))","v":{"$error":"#N/A"}}]
[null,{"$f":"IF(SUMIFS(Transações!D:D,Transações!A:A,\">=\"&'Graph Data'!$E$2,Transações!A:A,\"<=\"&'Graph Data'!$E$3,Transações!C:C,'Graph Data'!A53)=0,NA(),SUMIFS(Transações!D:D,Transações!A:A,\">=\"&'Graph Data'!$E$2,Transações!A:A,\"<=\"&'Graph Data'!$E$3,Transações!C:C,'Graph Data'!A53))","v":{"$error":"#N/A"}}]
[null,{"$f":"IF(SUMIFS(Transações!D:D,Transações!A:A,\">=\"&'Graph Data'!$E$2,Transações!A:A,\"<=\"&'Graph Data'!$E$3,Transações!C:C,'Graph Data'!A54)=0,NA(),SUMIFS(Transações!D:D,Transações!A:A,\">=\"&'Graph Data'!$E$2,Transações!A:A,\"<=\"&'Graph Data'!$E$3,Transações!C:C,'Graph Data'!A54))","v":{"$error":"#N/A"}}]
[null,{"$f":"IF(SUMIFS(Transações!D:D,Transações!A:A,\">=\"&'Graph Data'!$E$2,Transações!A:A,\"<=\"&'Graph Data'!$E$3,Transações!C:C,'Graph Data'!A55)=0,NA(),SUMIFS(Transações!D:D,Transações!A:A,\">=\"&'Graph Data'!$E$2,Transações!A:A,\"<=\"&'Graph Data'!$E$3,Transações!C:C,'Graph Data'!A55))","v":{"$error":"#N/A"}}]
[null,{"$f":"IF(SUMIFS(Transações!D:D,Transações!A:A,\">=\"&'Graph Data'!$E$2,Transações!A:A,\"<=\"&'Graph Data'!$E$3,Transações!C:C,'Graph Data'!A56)=0,NA(),SUMIFS(Transações!D:D,Transações!A:A,\">=\"&'Graph Data'!$E$2,Transações!A:A,\"<=\"&'Graph Data'!$E$3,Transações!C:C,'Graph Data'!A56))","v":{"$error":"#N/A"}}]
[null,{"$f":"IF(SUMIFS(Transações!D:D,Transações!A:A,\">=\"&'Graph Data'!$E$2,Transações!A:A,\"<=\"&'Graph Data'!$E$3,Transações!C:C,'Graph Data'!A57)=0,NA(),SUMIFS(Transações!D:D,Transações!A:A,\">=\"&'Graph Data'!$E$2,Transações!A:A,\"<=\"&'Graph Data'!$E$3,Transações!C:C,'Graph Data'!A57))","v":{"$error":"#N/A"}}]
[null,{"$f":"IF(SUMIFS(Transações!D:D,Transações!A:A,\">=\"&'Graph Data'!$E$2,Transações!A:A,\"<=\"&'Graph Data'!$E$3,Transações!C:C,'Graph Data'!A58)=0,NA(),SUMIFS(Transações!D:D,Transações!A:A,\">=\"&'Graph Data'!$E$2,Transações!A:A,\"<=\"&'Graph Data'!$E$3,Transações!C:C,'Graph Data'!A58))","v":{"$error":"#N/A"}}]
[null,{"$f":"IF(SUMIFS(Transações!D:D,Transações!A:A,\">=\"&'Graph Data'!$E$2,Transações!A:A,\"<=\"&'Graph Data'!$E$3,Transações!C:C,'Graph Data'!A59)=0,NA(),SUMIFS(Transações!D:D,Transações!A:A,\">=\"&'Graph Data'!$E$2,Transações!A:A,\"<=\"&'Graph Data'!$E$3,Transações!C:C,'Graph Data'!A59))","v":{"$error":"#N/A"}}]
[null,{"$f":"IF(SUMIFS(Transações!D:D,Transações!A:A,\">=\"&'Graph Data'!$E$2,Transações!A:A,\"<=\"&'Graph Data'!$E$3,Transações!C:C,'Graph Data'!A60)=0,NA(),SUMIFS(Transações!D:D,Transações!A:A,\">=\"&'Graph Data'!$E$2,Transações!A:A,\"<=\"&'Graph Data'!$E$3,Transações!C:C,'Graph Data'!A60))","v":{"$error":"#N/A"}}]
[null,{"$f":"IF(SUMIFS(Transações!D:D,Transações!A:A,\">=\"&'Graph Data'!$E$2,Transações!A:A,\"<=\"&'Graph Data'!$E$3,Transações!C:C,'Graph Data'!A61)=0,NA(),SUMIFS(Transações!D:D,Transações!A:A,\">=\"&'Graph Data'!$E$2,Transações!A:A,\"<=\"&'Graph Data'!$E$3,Transações!C:C,'Graph Data'!A61))","v":{"$error":"#N/A"}}]
[null,{"$f":"IF(SUMIFS(Transações!D:D,Transações!A:A,\">=\"&'Graph Data'!$E$2,Transações!A:A,\"<=\"&'Graph Data'!$E$3,Transações!C:C,'Graph Data'!A62)=0,NA(),SUMIFS(Transações!D:D,Transações!A:A,\">=\"&'Graph Data'!$E$2,Transações!A:A,\"<=\"&'Graph Data'!$E$3,Transações!C:C,'Graph Data'!A62))","v":{"$error":"#N/A"}}]
[null,{"$f":"IF(SUMIFS(Transações!D:D,Transações!A:A,\">=\"&'Graph Data'!$E$2,Transações!A:A,\"<=\"&'Graph Data'!$E$3,Transações!C:C,'Graph Data'!A63)=0,NA(),SUMIFS(Transações!D:D,Transações!A:A,\">=\"&'Graph Data'!$E$2,Transações!A:A,\"<=\"&'Graph Data'!$E$3,Transações!C:C,'Graph Data'!A63))","v":{"$error":"#N/A"}}]
[null,{"$f":"IF(SUMIFS(Transações!D:D,Transações!A:A,\">=\"&'Graph Data'!$E$2,Transações!A:A,\"<=\"&'Graph Data'!$E$3,Transações!C:C,'Graph Data'!A64)=0,NA(),SUMIFS(Transações!D:D,Transações!A:A,\">=\"&'Graph Data'!$E$2,Transações!A:A,\"<=\"&'Graph Data'!$E$3,Transações!C:C,'Graph Data'!A64))","v":{"$error":"#N/A"}}]
[null,{"$f":"IF(SUMIFS(Transações!D:D,Transações!A:A,\">=\"&'Graph Data'!$E$2,Transações!A:A,\"<=\"&'Graph Data'!$E$3,Transações!C:C,'Graph Data'!A65)=0,NA(),SUMIFS(Transações!D:D,Transações!A:A,\">=\"&'Graph Data'!$E$2,Transações!A:A,\"<=\"&'Graph Data'!$E$3,Transações!C:C,'Graph Data'!A65))","v":{"$error":"#N/A"}}]
[null,{"$f":"IF(SUMIFS(Transações!D:D,Transações!A:A,\">=\"&'Graph Data'!$E$2,Transações!A:A,\"<=\"&'Graph Data'!$E$3,Transações!C:C,'Graph Data'!A66)=0,NA(),SUMIFS(Transações!D:D,Transações!A:A,\">=\"&'Graph Data'!$E$2,Transações!A:A,\"<=\"&'Graph Data'!$E$3,Transações!C:C,'Graph Data'!A66))","v":{"$error":"#N/A"}}]
[null,{"$f":"IF(SUMIFS(Transações!D:D,Transações!A:A,\">=\"&'Graph Data'!$E$2,Transações!A:A,\"<=\"&'Graph Data'!$E$3,Transações!C:C,'Graph Data'!A67)=0,NA(),SUMIFS(Transações!D:D,Transações!A:A,\">=\"&'Graph Data'!$E$2,Transações!A:A,\"<=\"&'Graph Data'!$E$3,Transações!C:C,'Graph Data'!A67))","v":{"$error":"#N/A"}}]
[null,{"$f":"IF(SUMIFS(Transações!D:D,Transações!A:A,\">=\"&'Graph Data'!$E$2,Transações!A:A,\"<=\"&'Graph Data'!$E$3,Transações!C:C,'Graph Data'!A68)=0,NA(),SUMIFS(Transações!D:D,Transações!A:A,\">=\"&'Graph Data'!$E$2,Transações!A:A,\"<=\"&'Graph Data'!$E$3,Transações!C:C,'Graph Data'!A68))","v":{"$error":"#N/A"}}]
[null,{"$f":"IF(SUMIFS(Transações!D:D,Transações!A:A,\">=\"&'Graph Data'!$E$2,Transações!A:A,\"<=\"&'Graph Data'!$E$3,Transações!C:C,'Graph Data'!A69)=0,NA(),SUMIFS(Transações!D:D,Transações!A:A,\">=\"&'Graph Data'!$E$2,Transações!A:A,\"<=\"&'Graph Data'!$E$3,Transações!C:C,'Graph Data'!A69))","v":{"$error":"#N/A"}}]
[null,{"$f":"IF(SUMIFS(Transações!D:D,Transações!A:A,\">=\"&'Graph Data'!$E$2,Transações!A:A,\"<=\"&'Graph Data'!$E$3,Transações!C:C,'Graph Data'!A70)=0,NA(),SUMIFS(Transações!D:D,Transações!A:A,\">=\"&'Graph Data'!$E$2,Transações!A:A,\"<=\"&'Graph Data'!$E$3,Transações!C:C,'Graph Data'!A70))","v":{"$error":"#N/A"}}]
[null,{"$f":"IF(SUMIFS(Transações!D:D,Transações!A:A,\">=\"&'Graph Data'!$E$2,Transações!A:A,\"<=\"&'Graph Data'!$E$3,Transações!C:C,'Graph Data'!A71)=0,NA(),SUMIFS(Transações!D:D,Transações!A:A,\">=\"&'Graph Data'!$E$2,Transações!A:A,\"<=\"&'Graph Data'!$E$3,Transações!C:C,'Graph Data'!A71))","v":{"$error":"#N/A"}}]
[null,{"$f":"IF(SUMIFS(Transações!D:D,Transações!A:A,\">=\"&'Graph Data'!$E$2,Transações!A:A,\"<=\"&'Graph Data'!$E$3,Transações!C:C,'Graph Data'!A72)=0,NA(),SUMIFS(Transações!D:D,Transações!A:A,\">=\"&'Graph Data'!$E$2,Transações!A:A,\"<=\"&'Graph Data'!$E$3,Transações!C:C,'Graph Data'!A72))","v":{"$error":"#N/A"}}]
[null,{"$f":"IF(SUMIFS(Transações!D:D,Transações!A:A,\">=\"&'Graph Data'!$E$2,Transações!A:A,\"<=\"&'Graph Data'!$E$3,Transações!C:C,'Graph Data'!A73)=0,NA(),SUMIFS(Transações!D:D,Transações!A:A,\">=\"&'Graph Data'!$E$2,Transações!A:A,\"<=\"&'Graph Data'!$E$3,Transações!C:C,'Graph Data'!A73))","v":{"$error":"#N/A"}}]
[null,{"$f":"IF(SUMIFS(Transações!D:D,Transações!A:A,\">=\"&'Graph Data'!$E$2,Transações!A:A,\"<=\"&'Graph Data'!$E$3,Transações!C:C,'Graph Data'!A74)=0,NA(),SUMIFS(Transações!D:D,Transações!A:A,\">=\"&'Graph Data'!$E$2,Transações!A:A,\"<=\"&'Graph Data'!$E$3,Transações!C:C,'Graph Data'!A74))","v":{"$error":"#N/A"}}]
[null,{"$f":"IF(SUMIFS(Transações!D:D,Transações!A:A,\">=\"&'Graph Data'!$E$2,Transações!A:A,\"<=\"&'Graph Data'!$E$3,Transações!C:C,'Graph Data'!A75)=0,NA(),SUMIFS(Transações!D:D,Transações!A:A,\">=\"&'Graph Data'!$E$2,Transações!A:A,\"<=\"&'Graph Data'!$E$3,Transações!C:C,'Graph Data'!A75))","v":{"$error":"#N/A"}}]
[null,{"$f":"IF(SUMIFS(Transações!D:D,Transações!A:A,\">=\"&'Graph Data'!$E$2,Transações!A:A,\"<=\"&'Graph Data'!$E$3,Transações!C:C,'Graph Data'!A76)=0,NA(),SUMIFS(Transações!D:D,Transações!A:A,\">=\"&'Graph Data'!$E$2,Transações!A:A,\"<=\"&'Graph Data'!$E$3,Transações!C:C,'Graph Data'!A76))","v":{"$error":"#N/A"}}]
[null,{"$f":"IF(SUMIFS(Transações!D:D,Transações!A:A,\">=\"&'Graph Data'!$E$2,Transações!A:A,\"<=\"&'Graph Data'!$E$3,Transações!C:C,'Graph Data'!A77)=0,NA(),SUMIFS(Transações!D:D,Transações!A:A,\">=\"&'Graph Data'!$E$2,Transações!A:A,\"<=\"&'Graph Data'!$E$3,Transações!C:C,'Graph Data'!A77))","v":{"$error":"#N/A"}}]
[null,{"$f":"IF(SUMIFS(Transações!D:D,Transações!A:A,\">=\"&'Graph Data'!$E$2,Transações!A:A,\"<=\"&'Graph Data'!$E$3,Transações!C:C,'Graph Data'!A78)=0,NA(),SUMIFS(Transações!D:D,Transações!A:A,\">=\"&'Graph Data'!$E$2,Transações!A:A,\"<=\"&'Graph Data'!$E$3,Transações!C:C,'Graph Data'!A78))","v":{"$error":"#N/A"}}]
[null,{"$f":"IF(SUMIFS(Transações!D:D,Transações!A:A,\">=\"&'Graph Data'!$E$2,Transações!A:A,\"<=\"&'Graph Data'!$E$3,Transações!C:C,'Graph Data'!A79)=0,NA(),SUMIFS(Transações!D:D,Transações!A:A,\">=\"&'Graph Data'!$E$2,Transações!A:A,\"<=\"&'Graph Data'!$E$3,Transações!C:C,'Graph Data'!A79))","v":{"$error":"#N/A"}}]
[null,{"$f":"IF(SUMIFS(Transações!D:D,Transações!A:A,\">=\"&'Graph Data'!$E$2,Transações!A:A,\"<=\"&'Graph Data'!$E$3,Transações!C:C,'Graph Data'!A80)=0,NA(),SUMIFS(Transações!D:D,Transações!A:A,\">=\"&'Graph Data'!$E$2,Transações!A:A,\"<=\"&'Graph Data'!$E$3,Transações!C:C,'Graph Data'!A80))","v":{"$error":"#N/A"}}]
[null,{"$f":"IF(SUMIFS(Transações!D:D,Transações!A:A,\">=\"&'Graph Data'!$E$2,Transações!A:A,\"<=\"&'Graph Data'!$E$3,Transações!C:C,'Graph Data'!A81)=0,NA(),SUMIFS(Transações!D:D,Transações!A:A,\">=\"&'Graph Data'!$E$2,Transações!A:A,\"<=\"&'Graph Data'!$E$3,Transações!C:C,'Graph Data'!A81))","v":{"$error":"#N/A"}}]
[null,{"$f":"IF(SUMIFS(Transações!D:D,Transações!A:A,\">=\"&'Graph Data'!$E$2,Transações!A:A,\"<=\"&'Graph Data'!$E$3,Transações!C:C,'Graph Data'!A82)=0,NA(),SUMIFS(Transações!D:D,Transações!A:A,\">=\"&'Graph Data'!$E$2,Transações!A:A,\"<=\"&'Graph Data'!$E$3,Transações!C:C,'Graph Data'!A82))","v":{"$error":"#N/A"}}]
[null,{"$f":"IF(SUMIFS(Transações!D:D,Transações!A:A,\">=\"&'Graph Data'!$E$2,Transações!A:A,\"<=\"&'Graph Data'!$E$3,Transações!C:C,'Graph Data'!A83)=0,NA(),SUMIFS(Transações!D:D,Transações!A:A,\">=\"&'Graph Data'!$E$2,Transações!A:A,\"<=\"&'Graph Data'!$E$3,Transações!C:C,'Graph Data'!A83))","v":{"$error":"#N/A"}}]
[null,{"$f":"IF(SUMIFS(Transações!D:D,Transações!A:A,\">=\"&'Graph Data'!$E$2,Transações!A:A,\"<=\"&'Graph Data'!$E$3,Transações!C:C,'Graph Data'!A84)=0,NA(),SUMIFS(Transações!D:D,Transações!A:A,\">=\"&'Graph Data'!$E$2,Transações!A:A,\"<=\"&'Graph Data'!$E$3,Transações!C:C,'Graph Data'!A84))","v":{"$error":"#N/A"}}]
[null,{"$f":"IF(SUMIFS(Transações!D:D,Transações!A:A,\">=\"&'Graph Data'!$E$2,Transações!A:A,\"<=\"&'Graph Data'!$E$3,Transações!C:C,'Graph Data'!A85)=0,NA(),SUMIFS(Transações!D:D,Transações!A:A,\">=\"&'Graph Data'!$E$2,Transações!A:A,\"<=\"&'Graph Data'!$E$3,Transações!C:C,'Graph Data'!A85))","v":{"$error":"#N/A"}}]
[null,{"$f":"IF(SUMIFS(Transações!D:D,Transações!A:A,\">=\"&'Graph Data'!$E$2,Transações!A:A,\"<=\"&'Graph Data'!$E$3,Transações!C:C,'Graph Data'!A86)=0,NA(),SUMIFS(Transações!D:D,Transações!A:A,\">=\"&'Graph Data'!$E$2,Transações!A:A,\"<=\"&'Graph Data'!$E$3,Transações!C:C,'Graph Data'!A86))","v":{"$error":"#N/A"}}]
[null,{"$f":"IF(SUMIFS(Transações!D:D,Transações!A:A,\">=\"&'Graph Data'!$E$2,Transações!A:A,\"<=\"&'Graph Data'!$E$3,Transações!C:C,'Graph Data'!A87)=0,NA(),SUMIFS(Transações!D:D,Transações!A:A,\">=\"&'Graph Data'!$E$2,Transações!A:A,\"<=\"&'Graph Data'!$E$3,Transações!C:C,'Graph Data'!A87))","v":{"$error":"#N/A"}}]
[null,{"$f":"IF(SUMIFS(Transações!D:D,Transações!A:A,\">=\"&'Graph Data'!$E$2,Transações!A:A,\"<=\"&'Graph Data'!$E$3,Transações!C:C,'Graph Data'!A88)=0,NA(),SUMIFS(Transações!D:D,Transações!A:A,\">=\"&'Graph Data'!$E$2,Transações!A:A,\"<=\"&'Graph Data'!$E$3,Transações!C:C,'Graph Data'!A88))","v":{"$error":"#N/A"}}]
[null,{"$f":"IF(SUMIFS(Transações!D:D,Transações!A:A,\">=\"&'Graph Data'!$E$2,Transações!A:A,\"<=\"&'Graph Data'!$E$3,Transações!C:C,'Graph Data'!A89)=0,NA(),SUMIFS(Transações!D:D,Transações!A:A,\">=\"&'Graph Data'!$E$2,Transações!A:A,\"<=\"&'Graph Data'!$E$3,Transações!C:C,'Graph Data'!A89))","v":{"$error":"#N/A"}}]
[null,{"$f":"IF(SUMIFS(Transações!D:D,Transações!A:A,\">=\"&'Graph Data'!$E$2,Transações!A:A,\"<=\"&'Graph Data'!$E$3,Transações!C:C,'Graph Data'!A90)=0,NA(),SUMIFS(Transações!D:D,Transações!A:A,\">=\"&'Graph Data'!$E$2,Transações!A:A,\"<=\"&'Graph Data'!$E$3,Transações!C:C,'Graph Data'!A90))","v":{"$error":"#N/A"}}]
[null,{"$f":"IF(SUMIFS(Transações!D:D,Transações!A:A,\">=\"&'Graph Data'!$E$2,Transações!A:A,\"<=\"&'Graph Data'!$E$3,Transações!C:C,'Graph Data'!A91)=0,NA(),SUMIFS(Transações!D:D,Transações!A:A,\">=\"&'Graph Data'!$E$2,Transações!A:A,\"<=\"&'Graph Data'!$E$3,Transações!C:C,'Graph Data'!A91))","v":{"$error":"#N/A"}}]
[null,{"$f":"IF(SUMIFS(Transações!D:D,Transações!A:A,\">=\"&'Graph Data'!$E$2,Transações!A:A,\"<=\"&'Graph Data'!$E$3,Transações!C:C,'Graph Data'!A92)=0,NA(),SUMIFS(Transações!D:D,Transações!A:A,\">=\"&'Graph Data'!$E$2,Transações!A:A,\"<=\"&'Graph Data'!$E$3,Transações!C:C,'Graph Data'!A92))","v":{"$error":"#N/A"}}]
[null,{"$f":"IF(SUMIFS(Transações!D:D,Transações!A:A,\">=\"&'Graph Data'!$E$2,Transações!A:A,\"<=\"&'Graph Data'!$E$3,Transações!C:C,'Graph Data'!A93)=0,NA(),SUMIFS(Transações!D:D,Transações!A:A,\">=\"&'Graph Data'!$E$2,Transações!A:A,\"<=\"&'Graph Data'!$E$3,Transações!C:C,'Graph Data'!A93))","v":{"$error":"#N/A"}}]
[null,{"$f":"IF(SUMIFS(Transações!D:D,Transações!A:A,\">=\"&'Graph Data'!$E$2,Transações!A:A,\"<=\"&'Graph Data'!$E$3,Transações!C:C,'Graph Data'!A94)=0,NA(),SUMIFS(Transações!D:D,Transações!A:A,\">=\"&'Graph Data'!$E$2,Transações!A:A,\"<=\"&'Graph Data'!$E$3,Transações!C:C,'Graph Data'!A94))","v":{"$error":"#N/A"}}]
[null,{"$f":"IF(SUMIFS(Transações!D:D,Transações!A:A,\">=\"&'Graph Data'!$E$2,Transações!A:A,\"<=\"&'Graph Data'!$E$3,Transações!C:C,'Graph Data'!A95)=0,NA(),SUMIFS(Transações!D:D,Transações!A:A,\">=\"&'Graph Data'!$E$2,Transações!A:A,\"<=\"&'Graph Data'!$E$3,Transações!C:C,'Graph Data'!A95))","v":{"$error":"#N/A"}}]
[null,{"$f":"IF(SUMIFS(Transações!D:D,Transações!A:A,\">=\"&'Graph Data'!$E$2,Transações!A:A,\"<=\"&'Graph Data'!$E$3,Transações!C:C,'Graph Data'!A96)=0,NA(),SUMIFS(Transações!D:D,Transações!A:A,\">=\"&'Graph Data'!$E$2,Transações!A:A,\"<=\"&'Graph Data'!$E$3,Transações!C:C,'Graph Data'!A96))","v":{"$error":"#N/A"}}]
[null,{"$f":"IF(SUMIFS(Transações!D:D,Transações!A:A,\">=\"&'Graph Data'!$E$2,Transações!A:A,\"<=\"&'Graph Data'!$E$3,Transações!C:C,'Graph Data'!A97)=0,NA(),SUMIFS(Transações!D:D,Transações!A:A,\">=\"&'Graph Data'!$E$2,Transações!A:A,\"<=\"&'Graph Data'!$E$3,Transações!C:C,'Graph Data'!A97))","v":{"$error":"#N/A"}}]
[null,{"$f":"IF(SUMIFS(Transações!D:D,Transações!A:A,\">=\"&'Graph Data'!$E$2,Transações!A:A,\"<=\"&'Graph Data'!$E$3,Transações!C:C,'Graph Data'!A98)=0,NA(),SUMIFS(Transações!D:D,Transações!A:A,\">=\"&'Graph Data'!$E$2,Transações!A:A,\"<=\"&'Graph Data'!$E$3,Transações!C:C,'Graph Data'!A98))","v":{"$error":"#N/A"}}]
[null,{"$f":"IF(SUMIFS(Transações!D:D,Transações!A:A,\">=\"&'Graph Data'!$E$2,Transações!A:A,\"<=\"&'Graph Data'!$E$3,Transações!C:C,'Graph Data'!A99)=0,NA(),SUMIFS(Transações!D:D,Transações!A:A,\">=\"&'Graph Data'!$E$2,Transações!A:A,\"<=\"&'Graph Data'!$E$3,Transações!C:C,'Graph Data'!A99))","v":{"$error":"#N/A"}}]
[null,{"$f":"IF(SUMIFS(Transações!D:D,Transações!A:A,\">=\"&'Graph Data'!$E$2,Transações!A:A,\"<=\"&'Graph Data'!$E$3,Transações!C:C,'Graph Data'!A100)=0,NA(),SUMIFS(Transações!D:D,Transações!A:A,\">=\"&'Graph Data'!$E$2,Transações!A:A,\"<=\"&'Graph Data'!$E$3,Transações!C:C,'Graph Data'!A100))","v":{"$error":"#N/A"}}]
[null,{"$f":"IF(SUMIFS(Transações!D:D,Transações!A:A,\">=\"&'Graph Data'!$E$2,Transações!A:A,\"<=\"&'Graph Data'!$E$3,Transações!C:C,'Graph Data'!A101)=0,NA(),SUMIFS(Transações!D:D,Transações!A:A,\">=\"&'Graph Data'!$E$2,Transações!A:A,\"<=\"&'Graph Data'!$E$3,Transações!C:C,'Graph Data'!A101))","v":{"$error":"#N/A"}}]
[null,{"$f":"IF(SUMIFS(Transações!D:D,Transações!A:A,\">=\"&'Graph Data'!$E$2,Transações!A:A,\"<=\"&'Graph Data'!$E$3,Transações!C:C,'Graph Data'!A102)=0,NA(),SUMIFS(Transações!D:D,Transações!A:A,\">=\"&'Graph Data'!$E$2,Transações!A:A,\"<=\"&'Graph Data'!$E$3,Transações!C:C,'Graph Data'!A102))","v":{"$error":"#N/A"}}]
[null,{"$f":"IF(SUMIFS(Transações!D:D,Transações!A:A,\">=\"&'Graph Data'!$E$2,Transações!A:A,\"<=\"&'Graph Data'!$E$3,Transações!C:C,'Graph Data'!A103)=0,NA(),SUMIFS(Transações!D:D,Transações!A:A,\">=\"&'Graph Data'!$E$2,Transações!A:A,\"<=\"&'Graph Data'!$E$3,Transações!C:C,'Graph Data'!A103))","v":{"$error":"#N/A"}}]
[null,{"$f":"IF(SUMIFS(Transações!D:D,Transações!A:A,\">=\"&'Graph Data'!$E$2,Transações!A:A,\"<=\"&'Graph Data'!$E$3,Transações!C:C,'Graph Data'!A104)=0,NA(),SUMIFS(Transações!D:D,Transações!A:A,\">=\"&'Graph Data'!$E$2,Transações!A:A,\"<=\"&'Graph Data'!$E$3,Transações!C:C,'Graph Data'!A104))","v":{"$error":"#N/A"}}]
[null,{"$f":"IF(SUMIFS(Transações!D:D,Transações!A:A,\">=\"&'Graph Data'!$E$2,Transações!A:A,\"<=\"&'Graph Data'!$E$3,Transações!C:C,'Graph Data'!A105)=0,NA(),SUMIFS(Transações!D:D,Transações!A:A,\">=\"&'Graph Data'!$E$2,Transações!A:A,\"<=\"&'Graph Data'!$E$3,Transações!C:C,'Graph Data'!A105))","v":{"$error":"#N/A"}}]
[null,{"$f":"IF(SUMIFS(Transações!D:D,Transações!A:A,\">=\"&'Graph Data'!$E$2,Transações!A:A,\"<=\"&'Graph Data'!$E$3,Transações!C:C,'Graph Data'!A106)=0,NA(),SUMIFS(Transações!D:D,Transações!A:A,\">=\"&'Graph Data'!$E$2,Transações!A:A,\"<=\"&'Graph Data'!$E$3,Transações!C:C,'Graph Data'!A106))","v":{"$error":"#N/A"}}]
[null,{"$f":"IF(SUMIFS(Transações!D:D,Transações!A:A,\">=\"&'Graph Data'!$E$2,Transações!A:A,\"<=\"&'Graph Data'!$E$3,Transações!C:C,'Graph Data'!A107)=0,NA(),SUMIFS(Transações!D:D,Transações!A:A,\">=\"&'Graph Data'!$E$2,Transações!A:A,\"<=\"&'Graph Data'!$E$3,Transações!C:C,'Graph Data'!A107))","v":{"$error":"#N/A"}}]
[null,{"$f":"IF(SUMIFS(Transações!D:D,Transações!A:A,\">=\"&'Graph Data'!$E$2,Transações!A:A,\"<=\"&'Graph Data'!$E$3,Transações!C:C,'Graph Data'!A108)=0,NA(),SUMIFS(Transações!D:D,Transações!A:A,\">=\"&'Graph Data'!$E$2,Transações!A:A,\"<=\"&'Graph Data'!$E$3,Transações!C:C,'Graph Data'!A108))","v":{"$error":"#N/A"}}]
[null,{"$f":"IF(SUMIFS(Transações!D:D,Transações!A:A,\">=\"&'Graph Data'!$E$2,Transações!A:A,\"<=\"&'Graph Data'!$E$3,Transações!C:C,'Graph Data'!A109)=0,NA(),SUMIFS(Transações!D:D,Transações!A:A,\">=\"&'Graph Data'!$E$2,Transações!A:A,\"<=\"&'Graph Data'!$E$3,Transações!C:C,'Graph Data'!A109))","v":{"$error":"#N/A"}}]
[null,{"$f":"IF(SUMIFS(Transações!D:D,Transações!A:A,\">=\"&'Graph Data'!$E$2,Transações!A:A,\"<=\"&'Graph Data'!$E$3,Transações!C:C,'Graph Data'!A110)=0,NA(),SUMIFS(Transações!D:D,Transações!A:A,\">=\"&'Graph Data'!$E$2,Transações!A:A,\"<=\"&'Graph Data'!$E$3,Transações!C:C,'Graph Data'!A110))","v":{"$error":"#N/A"}}]
[null,{"$f":"IF(SUMIFS(Transações!D:D,Transações!A:A,\">=\"&'Graph Data'!$E$2,Transações!A:A,\"<=\"&'Graph Data'!$E$3,Transações!C:C,'Graph Data'!A111)=0,NA(),SUMIFS(Transações!D:D,Transações!A:A,\">=\"&'Graph Data'!$E$2,Transações!A:A,\"<=\"&'Graph Data'!$E$3,Transações!C:C,'Graph Data'!A111))","v":{"$error":"#N/A"}}]
[null,{"$f":"IF(SUMIFS(Transações!D:D,Transações!A:A,\">=\"&'Graph Data'!$E$2,Transações!A:A,\"<=\"&'Graph Data'!$E$3,Transações!C:C,'Graph Data'!A112)=0,NA(),SUMIFS(Transações!D:D,Transações!A:A,\">=\"&'Graph Data'!$E$2,Transações!A:A,\"<=\"&'Graph Data'!$E$3,Transações!C:C,'Graph Data'!A112))","v":{"$error":"#N/A"}}]
[null,{"$f":"IF(SUMIFS(Transações!D:D,Transações!A:A,\">=\"&'Graph Data'!$E$2,Transações!A:A,\"<=\"&'Graph Data'!$E$3,Transações!C:C,'Graph Data'!A113)=0,NA(),SUMIFS(Transações!D:D,Transações!A:A,\">=\"&'Graph Data'!$E$2,Transações!A:A,\"<=\"&'Graph Data'!$E$3,Transações!C:C,'Graph Data'!A113))","v":{"$error":"#N/A"}}]
[null,{"$f":"IF(SUMIFS(Transações!D:D,Transações!A:A,\">=\"&'Graph Data'!$E$2,Transações!A:A,\"<=\"&'Graph Data'!$E$3,Transações!C:C,'Graph Data'!A114)=0,NA(),SUMIFS(Transações!D:D,Transações!A:A,\">=\"&'Graph Data'!$E$2,Transações!A:A,\"<=\"&'Graph Data'!$E$3,Transações!C:C,'Graph Data'!A114))","v":{"$error":"#N/A"}}]
[null,{"$f":"IF(SUMIFS(Transações!D:D,Transações!A:A,\">=\"&'Graph Data'!$E$2,Transações!A:A,\"<=\"&'Graph Data'!$E$3,Transações!C:C,'Graph Data'!A115)=0,NA(),SUMIFS(Transações!D:D,Transações!A:A,\">=\"&'Graph Data'!$E$2,Transações!A:A,\"<=\"&'Graph Data'!$E$3,Transações!C:C,'Graph Data'!A115))","v":{"$error":"#N/A"}}]
[null,{"$f":"IF(SUMIFS(Transações!D:D,Transações!A:A,\">=\"&'Graph Data'!$E$2,Transações!A:A,\"<=\"&'Graph Data'!$E$3,Transações!C:C,'Graph Data'!A116)=0,NA(),SUMIFS(Transações!D:D,Transações!A:A,\">=\"&'Graph Data'!$E$2,Transações!A:A,\"<=\"&'Graph Data'!$E$3,Transações!C:C,'Graph Data'!A116))","v":{"$error":"#N/A"}}]
[null,{"$f":"IF(SUMIFS(Transações!D:D,Transações!A:A,\">=\"&'Graph Data'!$E$2,Transações!A:A,\"<=\"&'Graph Data'!$E$3,Transações!C:C,'Graph Data'!A117)=0,NA(),SUMIFS(Transações!D:D,Transações!A:A,\">=\"&'Graph Data'!$E$2,Transações!A:A,\"<=\"&'Graph Data'!$E$3,Transações!C:C,'Graph Data'!A117))","v":{"$error":"#N/A"}}]
[null,{"$f":"IF(SUMIFS(Transações!D:D,Transações!A:A,\">=\"&'Graph Data'!$E$2,Transações!A:A,\"<=\"&'Graph Data'!$E$3,Transações!C:C,'Graph Data'!A118)=0,NA(),SUMIFS(Transações!D:D,Transações!A:A,\">=\"&'Graph Data'!$E$2,Transações!A:A,\"<=\"&'Graph Data'!$E$3,Transações!C:C,'Graph Data'!A118))","v":{"$error":"#N/A"}}]
[null,{"$f":"IF(SUMIFS(Transações!D:D,Transações!A:A,\">=\"&'Graph Data'!$E$2,Transações!A:A,\"<=\"&'Graph Data'!$E$3,Transações!C:C,'Graph Data'!A119)=0,NA(),SUMIFS(Transações!D:D,Transações!A:A,\">=\"&'Graph Data'!$E$2,Transações!A:A,\"<=\"&'Graph Data'!$E$3,Transações!C:C,'Graph Data'!A119))","v":{"$error":"#N/A"}}]
[null,{"$f":"IF(SUMIFS(Transações!D:D,Transações!A:A,\">=\"&'Graph Data'!$E$2,Transações!A:A,\"<=\"&'Graph Data'!$E$3,Transações!C:C,'Graph Data'!A120)=0,NA(),SUMIFS(Transações!D:D,Transações!A:A,\">=\"&'Graph Data'!$E$2,Transações!A:A,\"<=\"&'Graph Data'!$E$3,Transações!C:C,'Graph Data'!A120))","v":{"$error":"#N/A"}}]
[null,{"$f":"IF(SUMIFS(Transações!D:D,Transações!A:A,\">=\"&'Graph Data'!$E$2,Transações!A:A,\"<=\"&'Graph Data'!$E$3,Transações!C:C,'Graph Data'!A121)=0,NA(),SUMIFS(Transações!D:D,Transações!A:A,\">=\"&'Graph Data'!$E$2,Transações!A:A,\"<=\"&'Graph Data'!$E$3,Transações!C:C,'Graph Data'!A121))","v":{"$error":"#N/A"}}]
[null,{"$f":"IF(SUMIFS(Transações!D:D,Transações!A:A,\">=\"&'Graph Data'!$E$2,Transações!A:A,\"<=\"&'Graph Data'!$E$3,Transações!C:C,'Graph Data'!A122)=0,NA(),SUMIFS(Transações!D:D,Transações!A:A,\">=\"&'Graph Data'!$E$2,Transações!A:A,\"<=\"&'Graph Data'!$E$3,Transações!C:C,'Graph Data'!A122))","v":{"$error":"#N/A"}}]
[null,{"$f":"IF(SUMIFS(Transações!D:D,Transações!A:A,\">=\"&'Graph Data'!$E$2,Transações!A:A,\"<=\"&'Graph Data'!$E$3,Transações!C:C,'Graph Data'!A123)=0,NA(),SUMIFS(Transações!D:D,Transações!A:A,\">=\"&'Graph Data'!$E$2,Transações!A:A,\"<=\"&'Graph Data'!$E$3,Transações!C:C,'Graph Data'!A123))","v":{"$error":"#N/A"}}]
[null,{"$f":"IF(SUMIFS(Transações!D:D,Transações!A:A,\">=\"&'Graph Data'!$E$2,Transações!A:A,\"<=\"&'Graph Data'!$E$3,Transações!C:C,'Graph Data'!A124)=0,NA(),SUMIFS(Transações!D:D,Transações!A:A,\">=\"&'Graph Data'!$E$2,Transações!A:A,\"<=\"&'Graph Data'!$E$3,Transações!C:C,'Graph Data'!A124))","v":{"$error":"#N/A"}}]
[null,{"$f":"IF(SUMIFS(Transações!D:D,Transações!A:A,\">=\"&'Graph Data'!$E$2,Transações!A:A,\"<=\"&'Graph Data'!$E$3,Transações!C:C,'Graph Data'!A125)=0,NA(),SUMIFS(Transações!D:D,Transações!A:A,\">=\"&'Graph Data'!$E$2,Transações!A:A,\"<=\"&'Graph Data'!$E$3,Transações!C:C,'Graph Data'!A125))","v":{"$error":"#N/A"}}]
[null,{"$f":"IF(SUMIFS(Transações!D:D,Transações!A:A,\">=\"&'Graph Data'!$E$2,Transações!A:A,\"<=\"&'Graph Data'!$E$3,Transações!C:C,'Graph Data'!A126)=0,NA(),SUMIFS(Transações!D:D,Transações!A:A,\">=\"&'Graph Data'!$E$2,Transações!A:A,\"<=\"&'Graph Data'!$E$3,Transações!C:C,'Graph Data'!A126))","v":{"$error":"#N/A"}}]
[null,{"$f":"IF(SUMIFS(Transações!D:D,Transações!A:A,\">=\"&'Graph Data'!$E$2,Transações!A:A,\"<=\"&'Graph Data'!$E$3,Transações!C:C,'Graph Data'!A127)=0,NA(),SUMIFS(Transações!D:D,Transações!A:A,\">=\"&'Graph Data'!$E$2,Transações!A:A,\"<=\"&'Graph Data'!$E$3,Transações!C:C,'Graph Data'!A127))","v":{"$error":"#N/A"}}]
[null,{"$f":"IF(SUMIFS(Transações!D:D,Transações!A:A,\">=\"&'Graph Data'!$E$2,Transações!A:A,\"<=\"&'Graph Data'!$E$3,Transações!C:C,'Graph Data'!A128)=0,NA(),SUMIFS(Transações!D:D,Transações!A:A,\">=\"&'Graph Data'!$E$2,Transações!A:A,\"<=\"&'Graph Data'!$E$3,Transações!C:C,'Graph Data'!A128))","v":{"$error":"#N/A"}}]
[null,{"$f":"IF(SUMIFS(Transações!D:D,Transações!A:A,\">=\"&'Graph Data'!$E$2,Transações!A:A,\"<=\"&'Graph Data'!$E$3,Transações!C:C,'Graph Data'!A129)=0,NA(),SUMIFS(Transações!D:D,Transações!A:A,\">=\"&'Graph Data'!$E$2,Transações!A:A,\"<=\"&'Graph Data'!$E$3,Transações!C:C,'Graph Data'!A129))","v":{"$error":"#N/A"}}]
[null,{"$f":"IF(SUMIFS(Transações!D:D,Transações!A:A,\">=\"&'Graph Data'!$E$2,Transações!A:A,\"<=\"&'Graph Data'!$E$3,Transações!C:C,'Graph Data'!A130)=0,NA(),SUMIFS(Transações!D:D,Transações!A:A,\">=\"&'Graph Data'!$E$2,Transações!A:A,\"<=\"&'Graph Data'!$E$3,Transações!C:C,'Graph Data'!A130))","v":{"$error":"#N/A"}}]
[null,{"$f":"IF(SUMIFS(Transações!D:D,Transações!A:A,\">=\"&'Graph Data'!$E$2,Transações!A:A,\"<=\"&'Graph Data'!$E$3,Transações!C:C,'Graph Data'!A131)=0,NA(),SUMIFS(Transações!D:D,Transações!A:A,\">=\"&'Graph Data'!$E$2,Transações!A:A,\"<=\"&'Graph Data'!$E$3,Transações!C:C,'Graph Data'!A131))","v":{"$error":"#N/A"}}]
[null,{"$f":"IF(SUMIFS(Transações!D:D,Transações!A:A,\">=\"&'Graph Data'!$E$2,Transações!A:A,\"<=\"&'Graph Data'!$E$3,Transações!C:C,'Graph Data'!A132)=0,NA(),SUMIFS(Transações!D:D,Transações!A:A,\">=\"&'Graph Data'!$E$2,Transações!A:A,\"<=\"&'Graph Data'!$E$3,Transações!C:C,'Graph Data'!A132))","v":{"$error":"#N/A"}}]
[null,{"$f":"IF(SUMIFS(Transações!D:D,Transações!A:A,\">=\"&'Graph Data'!$E$2,Transações!A:A,\"<=\"&'Graph Data'!$E$3,Transações!C:C,'Graph Data'!A133)=0,NA(),SUMIFS(Transações!D:D,Transações!A:A,\">=\"&'Graph Data'!$E$2,Transações!A:A,\"<=\"&'Graph Data'!$E$3,Transações!C:C,'Graph Data'!A133))","v":{"$error":"#N/A"}}]
[null,{"$f":"IF(SUMIFS(Transações!D:D,Transações!A:A,\">=\"&'Graph Data'!$E$2,Transações!A:A,\"<=\"&'Graph Data'!$E$3,Transações!C:C,'Graph Data'!A134)=0,NA(),SUMIFS(Transações!D:D,Transações!A:A,\">=\"&'Graph Data'!$E$2,Transações!A:A,\"<=\"&'Graph Data'!$E$3,Transações!C:C,'Graph Data'!A134))","v":{"$error":"#N/A"}}]
[null,{"$f":"IF(SUMIFS(Transações!D:D,Transações!A:A,\">=\"&'Graph Data'!$E$2,Transações!A:A,\"<=\"&'Graph Data'!$E$3,Transações!C:C,'Graph Data'!A135)=0,NA(),SUMIFS(Transações!D:D,Transações!A:A,\">=\"&'Graph Data'!$E$2,Transações!A:A,\"<=\"&'Graph Data'!$E$3,Transações!C:C,'Graph Data'!A135))","v":{"$error":"#N/A"}}]
[null,{"$f":"IF(SUMIFS(Transações!D:D,Transações!A:A,\">=\"&'Graph Data'!$E$2,Transações!A:A,\"<=\"&'Graph Data'!$E$3,Transações!C:C,'Graph Data'!A136)=0,NA(),SUMIFS(Transações!D:D,Transações!A:A,\">=\"&'Graph Data'!$E$2,Transações!A:A,\"<=\"&'Graph Data'!$E$3,Transações!C:C,'Graph Data'!A136))","v":{"$error":"#N/A"}}]
[null,{"$f":"IF(SUMIFS(Transações!D:D,Transações!A:A,\">=\"&'Graph Data'!$E$2,Transações!A:A,\"<=\"&'Graph Data'!$E$3,Transações!C:C,'Graph Data'!A137)=0,NA(),SUMIFS(Transações!D:D,Transações!A:A,\">=\"&'Graph Data'!$E$2,Transações!A:A,\"<=\"&'Graph Data'!$E$3,Transações!C:C,'Graph Data'!A137))","v":{"$error":"#N/A"}}]
[null,{"$f":"IF(SUMIFS(Transações!D:D,Transações!A:A,\">=\"&'Graph Data'!$E$2,Transações!A:A,\"<=\"&'Graph Data'!$E$3,Transações!C:C,'Graph Data'!A138)=0,NA(),SUMIFS(Transações!D:D,Transações!A:A,\">=\"&'Graph Data'!$E$2,Transações!A:A,\"<=\"&'Graph Data'!$E$3,Transações!C:C,'Graph Data'!A138))","v":{"$error":"#N/A"}}]
[null,{"$f":"IF(SUMIFS(Transações!D:D,Transações!A:A,\">=\"&'Graph Data'!$E$2,Transações!A:A,\"<=\"&'Graph Data'!$E$3,Transações!C:C,'Graph Data'!A139)=0,NA(),SUMIFS(Transações!D:D,Transações!A:A,\">=\"&'Graph Data'!$E$2,Transações!A:A,\"<=\"&'Graph Data'!$E$3,Transações!C:C,'Graph Data'!A139))","v":{"$error":"#N/A"}}]
[null,{"$f":"IF(SUMIFS(Transações!D:D,Transações!A:A,\">=\"&'Graph Data'!$E$2,Transações!A:A,\"<=\"&'Graph Data'!$E$3,Transações!C:C,'Graph Data'!A140)=0,NA(),SUMIFS(Transações!D:D,Transações!A:A,\">=\"&'Graph Data'!$E$2,Transações!A:A,\"<=\"&'Graph Data'!$E$3,Transações!C:C,'Graph Data'!A140))","v":{"$error":"#N/A"}}]
[null,{"$f":"IF(SUMIFS(Transações!D:D,Transações!A:A,\">=\"&'Graph Data'!$E$2,Transações!A:A,\"<=\"&'Graph Data'!$E$3,Transações!C:C,'Graph Data'!A141)=0,NA(),SUMIFS(Transações!D:D,Transações!A:A,\">=\"&'Graph Data'!$E$2,Transações!A:A,\"<=\"&'Graph Data'!$E$3,Transações!C:C,'Graph Data'!A141))","v":{"$error":"#N/A"}}]
[null,{"$f":"IF(SUMIFS(Transações!D:D,Transações!A:A,\">=\"&'Graph Data'!$E$2,Transações!A:A,\"<=\"&'Graph Data'!$E$3,Transações!C:C,'Graph Data'!A142)=0,NA(),SUMIFS(Transações!D:D,Transações!A:A,\">=\"&'Graph Data'!$E$2,Transações!A:A,\"<=\"&'Graph Data'!$E$3,Transações!C:C,'Graph Data'!A142))","v":{"$error":"#N/A"}}]
[null,{"$f":"IF(SUMIFS(Transações!D:D,Transações!A:A,\">=\"&'Graph Data'!$E$2,Transações!A:A,\"<=\"&'Graph Data'!$E$3,Transações!C:C,'Graph Data'!A143)=0,NA(),SUMIFS(Transações!D:D,Transações!A:A,\">=\"&'Graph Data'!$E$2,Transações!A:A,\"<=\"&'Graph Data'!$E$3,Transações!C:C,'Graph Data'!A143))","v":{"$error":"#N/A"}}]
[null,{"$f":"IF(SUMIFS(Transações!D:D,Transações!A:A,\">=\"&'Graph Data'!$E$2,Transações!A:A,\"<=\"&'Graph Data'!$E$3,Transações!C:C,'Graph Data'!A144)=0,NA(),SUMIFS(Transações!D:D,Transações!A:A,\">=\"&'Graph Data'!$E$2,Transações!A:A,\"<=\"&'Graph Data'!$E$3,Transações!C:C,'Graph Data'!A144))","v":{"$error":"#N/A"}}]
[null,{"$f":"IF(SUMIFS(Transações!D:D,Transações!A:A,\">=\"&'Graph Data'!$E$2,Transações!A:A,\"<=\"&'Graph Data'!$E$3,Transações!C:C,'Graph Data'!A145)=0,NA(),SUMIFS(Transações!D:D,Transações!A:A,\">=\"&'Graph Data'!$E$2,Transações!A:A,\"<=\"&'Graph Data'!$E$3,Transações!C:C,'Graph Data'!A145))","v":{"$error":"#N/A"}}]
[null,{"$f":"IF(SUMIFS(Transações!D:D,Transações!A:A,\">=\"&'Graph Data'!$E$2,Transações!A:A,\"<=\"&'Graph Data'!$E$3,Transações!C:C,'Graph Data'!A146)=0,NA(),SUMIFS(Transações!D:D,Transações!A:A,\">=\"&'Graph Data'!$E$2,Transações!A:A,\"<=\"&'Graph Data'!$E$3,Transações!C:C,'Graph Data'!A146))","v":{"$error":"#N/A"}}]
[null,{"$f":"IF(SUMIFS(Transações!D:D,Transações!A:A,\">=\"&'Graph Data'!$E$2,Transações!A:A,\"<=\"&'Graph Data'!$E$3,Transações!C:C,'Graph Data'!A147)=0,NA(),SUMIFS(Transações!D:D,Transações!A:A,\">=\"&'Graph Data'!$E$2,Transações!A:A,\"<=\"&'Graph Data'!$E$3,Transações!C:C,'Graph Data'!A147))","v":{"$error":"#N/A"}}]
[null,{"$f":"IF(SUMIFS(Transações!D:D,Transações!A:A,\">=\"&'Graph Data'!$E$2,Transações!A:A,\"<=\"&'Graph Data'!$E$3,Transações!C:C,'Graph Data'!A148)=0,NA(),SUMIFS(Transações!D:D,Transações!A:A,\">=\"&'Graph Data'!$E$2,Transações!A:A,\"<=\"&'Graph Data'!$E$3,Transações!C:C,'Graph Data'!A148))","v":{"$error":"#N/A"}}]
[null,{"$f":"IF(SUMIFS(Transações!D:D,Transações!A:A,\">=\"&'Graph Data'!$E$2,Transações!A:A,\"<=\"&'Graph Data'!$E$3,Transações!C:C,'Graph Data'!A149)=0,NA(),SUMIFS(Transações!D:D,Transações!A:A,\">=\"&'Graph Data'!$E$2,Transações!A:A,\"<=\"&'Graph Data'!$E$3,Transações!C:C,'Graph Data'!A149))","v":{"$error":"#N/A"}}]
[null,{"$f":"IF(SUMIFS(Transações!D:D,Transações!A:A,\">=\"&'Graph Data'!$E$2,Transações!A:A,\"<=\"&'Graph Data'!$E$3,Transações!C:C,'Graph Data'!A150)=0,NA(),SUMIFS(Transações!D:D,Transações!A:A,\">=\"&'Graph Data'!$E$2,Transações!A:A,\"<=\"&'Graph Data'!$E$3,Transações!C:C,'Graph Data'!A150))","v":{"$error":"#N/A"}}]
[null,{"$f":"IF(SUMIFS(Transações!D:D,Transações!A:A,\">=\"&'Graph Data'!$E$2,Transações!A:A,\"<=\"&'Graph Data'!$E$3,Transações!C:C,'Graph Data'!A151)=0,NA(),SUMIFS(Transações!D:D,Transações!A:A,\">=\"&'Graph Data'!$E$2,Transações!A:A,\"<=\"&'Graph Data'!$E$3,Transações!C:C,'Graph Data'!A151))","v":{"$error":"#N/A"}}]
[null,{"$f":"IF(SUMIFS(Transações!D:D,Transações!A:A,\">=\"&'Graph Data'!$E$2,Transações!A:A,\"<=\"&'Graph Data'!$E$3,Transações!C:C,'Graph Data'!A152)=0,NA(),SUMIFS(Transações!D:D,Transações!A:A,\">=\"&'Graph Data'!$E$2,Transações!A:A,\"<=\"&'Graph Data'!$E$3,Transações!C:C,'Graph Data'!A152))","v":{"$error":"#N/A"}}]
[null,{"$f":"IF(SUMIFS(Transações!D:D,Transações!A:A,\">=\"&'Graph Data'!$E$2,Transações!A:A,\"<=\"&'Graph Data'!$E$3,Transações!C:C,'Graph Data'!A153)=0,NA(),SUMIFS(Transações!D:D,Transações!A:A,\">=\"&'Graph Data'!$E$2,Transações!A:A,\"<=\"&'Graph Data'!$E$3,Transações!C:C,'Graph Data'!A153))","v":{"$error":"#N/A"}}]
[null,{"$f":"IF(SUMIFS(Transações!D:D,Transações!A:A,\">=\"&'Graph Data'!$E$2,Transações!A:A,\"<=\"&'Graph Data'!$E$3,Transações!C:C,'Graph Data'!A154)=0,NA(),SUMIFS(Transações!D:D,Transações!A:A,\">=\"&'Graph Data'!$E$2,Transações!A:A,\"<=\"&'Graph Data'!$E$3,Transações!C:C,'Graph Data'!A154))","v":{"$error":"#N/A"}}]
[null,{"$f":"IF(SUMIFS(Transações!D:D,Transações!A:A,\">=\"&'Graph Data'!$E$2,Transações!A:A,\"<=\"&'Graph Data'!$E$3,Transações!C:C,'Graph Data'!A155)=0,NA(),SUMIFS(Transações!D:D,Transações!A:A,\">=\"&'Graph Data'!$E$2,Transações!A:A,\"<=\"&'Graph Data'!$E$3,Transações!C:C,'Graph Data'!A155))","v":{"$error":"#N/A"}}]
[null,{"$f":"IF(SUMIFS(Transações!D:D,Transações!A:A,\">=\"&'Graph Data'!$E$2,Transações!A:A,\"<=\"&'Graph Data'!$E$3,Transações!C:C,'Graph Data'!A156)=0,NA(),SUMIFS(Transações!D:D,Transações!A:A,\">=\"&'Graph Data'!$E$2,Transações!A:A,\"<=\"&'Graph Data'!$E$3,Transações!C:C,'Graph Data'!A156))","v":{"$error":"#N/A"}}]
[null,{"$f":"IF(SUMIFS(Transações!D:D,Transações!A:A,\">=\"&'Graph Data'!$E$2,Transações!A:A,\"<=\"&'Graph Data'!$E$3,Transações!C:C,'Graph Data'!A157)=0,NA(),SUMIFS(Transações!D:D,Transações!A:A,\">=\"&'Graph Data'!$E$2,Transações!A:A,\"<=\"&'Graph Data'!$E$3,Transações!C:C,'Graph Data'!A157))","v":{"$error":"#N/A"}}]
[null,{"$f":"IF(SUMIFS(Transações!D:D,Transações!A:A,\">=\"&'Graph Data'!$E$2,Transações!A:A,\"<=\"&'Graph Data'!$E$3,Transações!C:C,'Graph Data'!A158)=0,NA(),SUMIFS(Transações!D:D,Transações!A:A,\">=\"&'Graph Data'!$E$2,Transações!A:A,\"<=\"&'Graph Data'!$E$3,Transações!C:C,'Graph Data'!A158))","v":{"$error":"#N/A"}}]
[null,{"$f":"IF(SUMIFS(Transações!D:D,Transações!A:A,\">=\"&'Graph Data'!$E$2,Transações!A:A,\"<=\"&'Graph Data'!$E$3,Transações!C:C,'Graph Data'!A159)=0,NA(),SUMIFS(Transações!D:D,Transações!A:A,\">=\"&'Graph Data'!$E$2,Transações!A:A,\"<=\"&'Graph Data'!$E$3,Transações!C:C,'Graph Data'!A159))","v":{"$error":"#N/A"}}]
[null,{"$f":"IF(SUMIFS(Transações!D:D,Transações!A:A,\">=\"&'Graph Data'!$E$2,Transações!A:A,\"<=\"&'Graph Data'!$E$3,Transações!C:C,'Graph Data'!A160)=0,NA(),SUMIFS(Transações!D:D,Transações!A:A,\">=\"&'Graph Data'!$E$2,Transações!A:A,\"<=\"&'Graph Data'!$E$3,Transações!C:C,'Graph Data'!A160))","v":{"$error":"#N/A"}}]
[null,{"$f":"IF(SUMIFS(Transações!D:D,Transações!A:A,\">=\"&'Graph Data'!$E$2,Transações!A:A,\"<=\"&'Graph Data'!$E$3,Transações!C:C,'Graph Data'!A161)=0,NA(),SUMIFS(Transações!D:D,Transações!A:A,\">=\"&'Graph Data'!$E$2,Transações!A:A,\"<=\"&'Graph Data'!$E$3,Transações!C:C,'Graph Data'!A161))","v":{"$error":"#N/A"}}]
[null,{"$f":"IF(SUMIFS(Transações!D:D,Transações!A:A,\">=\"&'Graph Data'!$E$2,Transações!A:A,\"<=\"&'Graph Data'!$E$3,Transações!C:C,'Graph Data'!A162)=0,NA(),SUMIFS(Transações!D:D,Transações!A:A,\">=\"&'Graph Data'!$E$2,Transações!A:A,\"<=\"&'Graph Data'!$E$3,Transações!C:C,'Graph Data'!A162))","v":{"$error":"#N/A"}}]
[null,{"$f":"IF(SUMIFS(Transações!D:D,Transações!A:A,\">=\"&'Graph Data'!$E$2,Transações!A:A,\"<=\"&'Graph Data'!$E$3,Transações!C:C,'Graph Data'!A163)=0,NA(),SUMIFS(Transações!D:D,Transações!A:A,\">=\"&'Graph Data'!$E$2,Transações!A:A,\"<=\"&'Graph Data'!$E$3,Transações!C:C,'Graph Data'!A163))","v":{"$error":"#N/A"}}]
[null,{"$f":"IF(SUMIFS(Transações!D:D,Transações!A:A,\">=\"&'Graph Data'!$E$2,Transações!A:A,\"<=\"&'Graph Data'!$E$3,Transações!C:C,'Graph Data'!A164)=0,NA(),SUMIFS(Transações!D:D,Transações!A:A,\">=\"&'Graph Data'!$E$2,Transações!A:A,\"<=\"&'Graph Data'!$E$3,Transações!C:C,'Graph Data'!A164))","v":{"$error":"#N/A"}}]
[null,{"$f":"IF(SUMIFS(Transações!D:D,Transações!A:A,\">=\"&'Graph Data'!$E$2,Transações!A:A,\"<=\"&'Graph Data'!$E$3,Transações!C:C,'Graph Data'!A165)=0,NA(),SUMIFS(Transações!D:D,Transações!A:A,\">=\"&'Graph Data'!$E$2,Transações!A:A,\"<=\"&'Graph Data'!$E$3,Transações!C:C,'Graph Data'!A165))","v":{"$error":"#N/A"}}]
[null,{"$f":"IF(SUMIFS(Transações!D:D,Transações!A:A,\">=\"&'Graph Data'!$E$2,Transações!A:A,\"<=\"&'Graph Data'!$E$3,Transações!C:C,'Graph Data'!A166)=0,NA(),SUMIFS(Transações!D:D,Transações!A:A,\">=\"&'Graph Data'!$E$2,Transações!A:A,\"<=\"&'Graph Data'!$E$3,Transações!C:C,'Graph Data'!A166))","v":{"$error":"#N/A"}}]
[null,{"$f":"IF(SUMIFS(Transações!D:D,Transações!A:A,\">=\"&'Graph Data'!$E$2,Transações!A:A,\"<=\"&'Graph Data'!$E$3,Transações!C:C,'Graph Data'!A167)=0,NA(),SUMIFS(Transações!D:D,Transações!A:A,\">=\"&'Graph Data'!$E$2,Transações!A:A,\"<=\"&'Graph Data'!$E$3,Transações!C:C,'Graph Data'!A167))","v":{"$error":"#N/A"}}]
[null,{"$f":"IF(SUMIFS(Transações!D:D,Transações!A:A,\">=\"&'Graph Data'!$E$2,Transações!A:A,\"<=\"&'Graph Data'!$E$3,Transações!C:C,'Graph Data'!A168)=0,NA(),SUMIFS(Transações!D:D,Transações!A:A,\">=\"&'Graph Data'!$E$2,Transações!A:A,\"<=\"&'Graph Data'!$E$3,Transações!C:C,'Graph Data'!A168))","v":{"$error":"#N/A"}}]
[null,{"$f":"IF(SUMIFS(Transações!D:D,Transações!A:A,\">=\"&'Graph Data'!$E$2,Transações!A:A,\"<=\"&'Graph Data'!$E$3,Transações!C:C,'Graph Data'!A169)=0,NA(),SUMIFS(Transações!D:D,Transações!A:A,\">=\"&'Graph Data'!$E$2,Transações!A:A,\"<=\"&'Graph Data'!$E$3,Transações!C:C,'Graph Data'!A169))","v":{"$error":"#N/A"}}]
[null,{"$f":"IF(SUMIFS(Transações!D:D,Transações!A:A,\">=\"&'Graph Data'!$E$2,Transações!A:A,\"<=\"&'Graph Data'!$E$3,Transações!C:C,'Graph Data'!A170)=0,NA(),SUMIFS(Transações!D:D,Transações!A:A,\">=\"&'Graph Data'!$E$2,Transações!A:A,\"<=\"&'Graph Data'!$E$3,Transações!C:C,'Graph Data'!A170))","v":{"$error":"#N/A"}}]
[null,{"$f":"IF(SUMIFS(Transações!D:D,Transações!A:A,\">=\"&'Graph Data'!$E$2,Transações!A:A,\"<=\"&'Graph Data'!$E$3,Transações!C:C,'Graph Data'!A171)=0,NA(),SUMIFS(Transações!D:D,Transações!A:A,\">=\"&'Graph Data'!$E$2,Transações!A:A,\"<=\"&'Graph Data'!$E$3,Transações!C:C,'Graph Data'!A171))","v":{"$error":"#N/A"}}]
[null,{"$f":"IF(SUMIFS(Transações!D:D,Transações!A:A,\">=\"&'Graph Data'!$E$2,Transações!A:A,\"<=\"&'Graph Data'!$E$3,Transações!C:C,'Graph Data'!A172)=0,NA(),SUMIFS(Transações!D:D,Transações!A:A,\">=\"&'Graph Data'!$E$2,Transações!A:A,\"<=\"&'Graph Data'!$E$3,Transações!C:C,'Graph Data'!A172))","v":{"$error":"#N/A"}}]
[null,{"$f":"IF(SUMIFS(Transações!D:D,Transações!A:A,\">=\"&'Graph Data'!$E$2,Transações!A:A,\"<=\"&'Graph Data'!$E$3,Transações!C:C,'Graph Data'!A173)=0,NA(),SUMIFS(Transações!D:D,Transações!A:A,\">=\"&'Graph Data'!$E$2,Transações!A:A,\"<=\"&'Graph Data'!$E$3,Transações!C:C,'Graph Data'!A173))","v":{"$error":"#N/A"}}]
[null,{"$f":"IF(SUMIFS(Transações!D:D,Transações!A:A,\">=\"&'Graph Data'!$E$2,Transações!A:A,\"<=\"&'Graph Data'!$E$3,Transações!C:C,'Graph Data'!A174)=0,NA(),SUMIFS(Transações!D:D,Transações!A:A,\">=\"&'Graph Data'!$E$2,Transações!A:A,\"<=\"&'Graph Data'!$E$3,Transações!C:C,'Graph Data'!A174))","v":{"$error":"#N/A"}}]
[null,{"$f":"IF(SUMIFS(Transações!D:D,Transações!A:A,\">=\"&'Graph Data'!$E$2,Transações!A:A,\"<=\"&'Graph Data'!$E$3,Transações!C:C,'Graph Data'!A175)=0,NA(),SUMIFS(Transações!D:D,Transações!A:A,\">=\"&'Graph Data'!$E$2,Transações!A:A,\"<=\"&'Graph Data'!$E$3,Transações!C:C,'Graph Data'!A175))","v":{"$error":"#N/A"}}]
[null,{"$f":"IF(SUMIFS(Transações!D:D,Transações!A:A,\">=\"&'Graph Data'!$E$2,Transações!A:A,\"<=\"&'Graph Data'!$E$3,Transações!C:C,'Graph Data'!A176)=0,NA(),SUMIFS(Transações!D:D,Transações!A:A,\">=\"&'Graph Data'!$E$2,Transações!A:A,\"<=\"&'Graph Data'!$E$3,Transações!C:C,'Graph Data'!A176))","v":{"$error":"#N/A"}}]
[null,{"$f":"IF(SUMIFS(Transações!D:D,Transações!A:A,\">=\"&'Graph Data'!$E$2,Transações!A:A,\"<=\"&'Graph Data'!$E$3,Transações!C:C,'Graph Data'!A177)=0,NA(),SUMIFS(Transações!D:D,Transações!A:A,\">=\"&'Graph Data'!$E$2,Transações!A:A,\"<=\"&'Graph Data'!$E$3,Transações!C:C,'Graph Data'!A177))","v":{"$error":"#N/A"}}]
[null,{"$f":"IF(SUMIFS(Transações!D:D,Transações!A:A,\">=\"&'Graph Data'!$E$2,Transações!A:A,\"<=\"&'Graph Data'!$E$3,Transações!C:C,'Graph Data'!A178)=0,NA(),SUMIFS(Transações!D:D,Transações!A:A,\">=\"&'Graph Data'!$E$2,Transações!A:A,\"<=\"&'Graph Data'!$E$3,Transações!C:C,'Graph Data'!A178))","v":{"$error":"#N/A"}}]
[null,{"$f":"IF(SUMIFS(Transações!D:D,Transações!A:A,\">=\"&'Graph Data'!$E$2,Transações!A:A,\"<=\"&'Graph Data'!$E$3,Transações!C:C,'Graph Data'!A179)=0,NA(),SUMIFS(Transações!D:D,Transações!A:A,\">=\"&'Graph Data'!$E$2,Transações!A:A,\"<=\"&'Graph Data'!$E$3,Transações!C:C,'Graph Data'!A179))","v":{"$error":"#N/A"}}]
[null,{"$f":"IF(SUMIFS(Transações!D:D,Transações!A:A,\">=\"&'Graph Data'!$E$2,Transações!A:A,\"<=\"&'Graph Data'!$E$3,Transações!C:C,'Graph Data'!A180)=0,NA(),SUMIFS(Transações!D:D,Transações!A:A,\">=\"&'Graph Data'!$E$2,Transações!A:A,\"<=\"&'Graph Data'!$E$3,Transações!C:C,'Graph Data'!A180))","v":{"$error":"#N/A"}}]
[null,{"$f":"IF(SUMIFS(Transações!D:D,Transações!A:A,\">=\"&'Graph Data'!$E$2,Transações!A:A,\"<=\"&'Graph Data'!$E$3,Transações!C:C,'Graph Data'!A181)=0,NA(),SUMIFS(Transações!D:D,Transações!A:A,\">=\"&'Graph Data'!$E$2,Transações!A:A,\"<=\"&'Graph Data'!$E$3,Transações!C:C,'Graph Data'!A181))","v":{"$error":"#N/A"}}]
[null,{"$f":"IF(SUMIFS(Transações!D:D,Transações!A:A,\">=\"&'Graph Data'!$E$2,Transações!A:A,\"<=\"&'Graph Data'!$E$3,Transações!C:C,'Graph Data'!A182)=0,NA(),SUMIFS(Transações!D:D,Transações!A:A,\">=\"&'Graph Data'!$E$2,Transações!A:A,\"<=\"&'Graph Data'!$E$3,Transações!C:C,'Graph Data'!A182))","v":{"$error":"#N/A"}}]
[null,{"$f":"IF(SUMIFS(Transações!D:D,Transações!A:A,\">=\"&'Graph Data'!$E$2,Transações!A:A,\"<=\"&'Graph Data'!$E$3,Transações!C:C,'Graph Data'!A183)=0,NA(),SUMIFS(Transações!D:D,Transações!A:A,\">=\"&'Graph Data'!$E$2,Transações!A:A,\"<=\"&'Graph Data'!$E$3,Transações!C:C,'Graph Data'!A183))","v":{"$error":"#N/A"}}]
[null,{"$f":"IF(SUMIFS(Transações!D:D,Transações!A:A,\">=\"&'Graph Data'!$E$2,Transações!A:A,\"<=\"&'Graph Data'!$E$3,Transações!C:C,'Graph Data'!A184)=0,NA(),SUMIFS(Transações!D:D,Transações!A:A,\">=\"&'Graph Data'!$E$2,Transações!A:A,\"<=\"&'Graph Data'!$E$3,Transações!C:C,'Graph Data'!A184))","v":{"$error":"#N/A"}}]
[null,{"$f":"IF(SUMIFS(Transações!D:D,Transações!A:A,\">=\"&'Graph Data'!$E$2,Transações!A:A,\"<=\"&'Graph Data'!$E$3,Transações!C:C,'Graph Data'!A185)=0,NA(),SUMIFS(Transações!D:D,Transações!A:A,\">=\"&'Graph Data'!$E$2,Transações!A:A,\"<=\"&'Graph Data'!$E$3,Transações!C:C,'Graph Data'!A185))","v":{"$error":"#N/A"}}]
[null,{"$f":"IF(SUMIFS(Transações!D:D,Transações!A:A,\">=\"&'Graph Data'!$E$2,Transações!A:A,\"<=\"&'Graph Data'!$E$3,Transações!C:C,'Graph Data'!A186)=0,NA(),SUMIFS(Transações!D:D,Transações!A:A,\">=\"&'Graph Data'!$E$2,Transações!A:A,\"<=\"&'Graph Data'!$E$3,Transações!C:C,'Graph Data'!A186))","v":{"$error":"#N/A"}}]
[null,{"$f":"IF(SUMIFS(Transações!D:D,Transações!A:A,\">=\"&'Graph Data'!$E$2,Transações!A:A,\"<=\"&'Graph Data'!$E$3,Transações!C:C,'Graph Data'!A187)=0,NA(),SUMIFS(Transações!D:D,Transações!A:A,\">=\"&'Graph Data'!$E$2,Transações!A:A,\"<=\"&'Graph Data'!$E$3,Transações!C:C,'Graph Data'!A187))","v":{"$error":"#N/A"}}]
[null,{"$f":"IF(SUMIFS(Transações!D:D,Transações!A:A,\">=\"&'Graph Data'!$E$2,Transações!A:A,\"<=\"&'Graph Data'!$E$3,Transações!C:C,'Graph Data'!A188)=0,NA(),SUMIFS(Transações!D:D,Transações!A:A,\">=\"&'Graph Data'!$E$2,Transações!A:A,\"<=\"&'Graph Data'!$E$3,Transações!C:C,'Graph Data'!A188))","v":{"$error":"#N/A"}}]
[null,{"$f":"IF(SUMIFS(Transações!D:D,Transações!A:A,\">=\"&'Graph Data'!$E$2,Transações!A:A,\"<=\"&'Graph Data'!$E$3,Transações!C:C,'Graph Data'!A189)=0,NA(),SUMIFS(Transações!D:D,Transações!A:A,\">=\"&'Graph Data'!$E$2,Transações!A:A,\"<=\"&'Graph Data'!$E$3,Transações!C:C,'Graph Data'!A189))","v":{"$error":"#N/A"}}]
[null,{"$f":"IF(SUMIFS(Transações!D:D,Transações!A:A,\">=\"&'Graph Data'!$E$2,Transações!A:A,\"<=\"&'Graph Data'!$E$3,Transações!C:C,'Graph Data'!A190)=0,NA(),SUMIFS(Transações!D:D,Transações!A:A,\">=\"&'Graph Data'!$E$2,Transações!A:A,\"<=\"&'Graph Data'!$E$3,Transações!C:C,'Graph Data'!A190))","v":{"$error":"#N/A"}}]
[null,{"$f":"IF(SUMIFS(Transações!D:D,Transações!A:A,\">=\"&'Graph Data'!$E$2,Transações!A:A,\"<=\"&'Graph Data'!$E$3,Transações!C:C,'Graph Data'!A191)=0,NA(),SUMIFS(Transações!D:D,Transações!A:A,\">=\"&'Graph Data'!$E$2,Transações!A:A,\"<=\"&'Graph Data'!$E$3,Transações!C:C,'Graph Data'!A191))","v":{"$error":"#N/A"}}]
[null,{"$f":"IF(SUMIFS(Transações!D:D,Transações!A:A,\">=\"&'Graph Data'!$E$2,Transações!A:A,\"<=\"&'Graph Data'!$E$3,Transações!C:C,'Graph Data'!A192)=0,NA(),SUMIFS(Transações!D:D,Transações!A:A,\">=\"&'Graph Data'!$E$2,Transações!A:A,\"<=\"&'Graph Data'!$E$3,Transações!C:C,'Graph Data'!A192))","v":{"$error":"#N/A"}}]
[null,{"$f":"IF(SUMIFS(Transações!D:D,Transações!A:A,\">=\"&'Graph Data'!$E$2,Transações!A:A,\"<=\"&'Graph Data'!$E$3,Transações!C:C,'Graph Data'!A193)=0,NA(),SUMIFS(Transações!D:D,Transações!A:A,\">=\"&'Graph Data'!$E$2,Transações!A:A,\"<=\"&'Graph Data'!$E$3,Transações!C:C,'Graph Data'!A193))","v":{"$error":"#N/A"}}]
[null,{"$f":"IF(SUMIFS(Transações!D:D,Transações!A:A,\">=\"&'Graph Data'!$E$2,Transações!A:A,\"<=\"&'Graph Data'!$E$3,Transações!C:C,'Graph Data'!A194)=0,NA(),SUMIFS(Transações!D:D,Transações!A:A,\">=\"&'Graph Data'!$E$2,Transações!A:A,\"<=\"&'Graph Data'!$E$3,Transações!C:C,'Graph Data'!A194))","v":{"$error":"#N/A"}}]
[null,{"$f":"IF(SUMIFS(Transações!D:D,Transações!A:A,\">=\"&'Graph Data'!$E$2,Transações!A:A,\"<=\"&'Graph Data'!$E$3,Transações!C:C,'Graph Data'!A195)=0,NA(),SUMIFS(Transações!D:D,Transações!A:A,\">=\"&'Graph Data'!$E$2,Transações!A:A,\"<=\"&'Graph Data'!$E$3,Transações!C:C,'Graph Data'!A195))","v":{"$error":"#N/A"}}]
[null,{"$f":"IF(SUMIFS(Transações!D:D,Transações!A:A,\">=\"&'Graph Data'!$E$2,Transações!A:A,\"<=\"&'Graph Data'!$E$3,Transações!C:C,'Graph Data'!A196)=0,NA(),SUMIFS(Transações!D:D,Transações!A:A,\">=\"&'Graph Data'!$E$2,Transações!A:A,\"<=\"&'Graph Data'!$E$3,Transações!C:C,'Graph Data'!A196))","v":{"$error":"#N/A"}}]
[null,{"$f":"IF(SUMIFS(Transações!D:D,Transações!A:A,\">=\"&'Graph Data'!$E$2,Transações!A:A,\"<=\"&'Graph Data'!$E$3,Transações!C:C,'Graph Data'!A197)=0,NA(),SUMIFS(Transações!D:D,Transações!A:A,\">=\"&'Graph Data'!$E$2,Transações!A:A,\"<=\"&'Graph Data'!$E$3,Transações!C:C,'Graph Data'!A197))","v":{"$error":"#N/A"}}]
[null,{"$f":"IF(SUMIFS(Transações!D:D,Transações!A:A,\">=\"&'Graph Data'!$E$2,Transações!A:A,\"<=\"&'Graph Data'!$E$3,Transações!C:C,'Graph Data'!A198)=0,NA(),SUMIFS(Transações!D:D,Transações!A:A,\">=\"&'Graph Data'!$E$2,Transações!A:A,\"<=\"&'Graph Data'!$E$3,Transações!C:C,'Graph Data'!A198))","v":{"$error":"#N/A"}}]
[null,{"$f":"IF(SUMIFS(Transações!D:D,Transações!A:A,\">=\"&'Graph Data'!$E$2,Transações!A:A,\"<=\"&'Graph Data'!$E$3,Transações!C:C,'Graph Data'!A199)=0,NA(),SUMIFS(Transações!D:D,Transações!A:A,\">=\"&'Graph Data'!$E$2,Transações!A:A,\"<=\"&'Graph Data'!$E$3,Transações!C:C,'Graph Data'!A199))","v":{"$error":"#N/A"}}]
[null,{"$f":"IF(SUMIFS(Transações!D:D,Transações!A:A,\">=\"&'Graph Data'!$E$2,Transações!A:A,\"<=\"&'Graph Data'!$E$3,Transações!C:C,'Graph Data'!A200)=0,NA(),SUMIFS(Transações!D:D,Transações!A:A,\">=\"&'Graph Data'!$E$2,Transações!A:A,\"<=\"&'Graph Data'!$E$3,Transações!C:C,'Graph Data'!A200))","v":{"$error":"#N/A"}}]
[null,{"$f":"IF(SUMIFS(Transações!D:D,Transações!A:A,\">=\"&'Graph Data'!$E$2,Transações!A:A,\"<=\"&'Graph Data'!$E$3,Transações!C:C,'Graph Data'!A201)=0,NA(),SUMIFS(Transações!D:D,Transações!A:A,\">=\"&'Graph Data'!$E$2,Transações!A:A,\"<=\"&'Graph Data'!$E$3,Transações!C:C,'Graph Data'!A201))","v":{"$error":"#N/A"}}]
[null,{"$f":"IF(SUMIFS(Transações!D:D,Transações!A:A,\">=\"&'Graph Data'!$E$2,Transações!A:A,\"<=\"&'Graph Data'!$E$3,Transações!C:C,'Graph Data'!A202)=0,NA(),SUMIFS(Transações!D:D,Transações!A:A,\">=\"&'Graph Data'!$E$2,Transações!A:A,\"<=\"&'Graph Data'!$E$3,Transações!C:C,'Graph Data'!A202))","v":{"$error":"#N/A"}}]
[null,{"$f":"IF(SUMIFS(Transações!D:D,Transações!A:A,\">=\"&'Graph Data'!$E$2,Transações!A:A,\"<=\"&'Graph Data'!$E$3,Transações!C:C,'Graph Data'!A203)=0,NA(),SUMIFS(Transações!D:D,Transações!A:A,\">=\"&'Graph Data'!$E$2,Transações!A:A,\"<=\"&'Graph Data'!$E$3,Transações!C:C,'Graph Data'!A203))","v":{"$error":"#N/A"}}]
[null,{"$f":"IF(SUMIFS(Transações!D:D,Transações!A:A,\">=\"&'Graph Data'!$E$2,Transações!A:A,\"<=\"&'Graph Data'!$E$3,Transações!C:C,'Graph Data'!A204)=0,NA(),SUMIFS(Transações!D:D,Transações!A:A,\">=\"&'Graph Data'!$E$2,Transações!A:A,\"<=\"&'Graph Data'!$E$3,Transações!C:C,'Graph Data'!A204))","v":{"$error":"#N/A"}}]
[null,{"$f":"IF(SUMIFS(Transações!D:D,Transações!A:A,\">=\"&'Graph Data'!$E$2,Transações!A:A,\"<=\"&'Graph Data'!$E$3,Transações!C:C,'Graph Data'!A205)=0,NA(),SUMIFS(Transações!D:D,Transações!A:A,\">=\"&'Graph Data'!$E$2,Transações!A:A,\"<=\"&'Graph Data'!$E$3,Transações!C:C,'Graph Data'!A205))","v":{"$error":"#N/A"}}]
[null,{"$f":"IF(SUMIFS(Transações!D:D,Transações!A:A,\">=\"&'Graph Data'!$E$2,Transações!A:A,\"<=\"&'Graph Data'!$E$3,Transações!C:C,'Graph Data'!A206)=0,NA(),SUMIFS(Transações!D:D,Transações!A:A,\">=\"&'Graph Data'!$E$2,Transações!A:A,\"<=\"&'Graph Data'!$E$3,Transações!C:C,'Graph Data'!A206))","v":{"$error":"#N/A"}}]
[null,{"$f":"IF(SUMIFS(Transações!D:D,Transações!A:A,\">=\"&'Graph Data'!$E$2,Transações!A:A,\"<=\"&'Graph Data'!$E$3,Transações!C:C,'Graph Data'!A207)=0,NA(),SUMIFS(Transações!D:D,Transações!A:A,\">=\"&'Graph Data'!$E$2,Transações!A:A,\"<=\"&'Graph Data'!$E$3,Transações!C:C,'Graph Data'!A207))","v":{"$error":"#N/A"}}]
[null,{"$f":"IF(SUMIFS(Transações!D:D,Transações!A:A,\">=\"&'Graph Data'!$E$2,Transações!A:A,\"<=\"&'Graph Data'!$E$3,Transações!C:C,'Graph Data'!A208)=0,NA(),SUMIFS(Transações!D:D,Transações!A:A,\">=\"&'Graph Data'!$E$2,Transações!A:A,\"<=\"&'Graph Data'!$E$3,Transações!C:C,'Graph Data'!A208))","v":{"$error":"#N/A"}}]
[null,{"$f":"IF(SUMIFS(Transações!D:D,Transações!A:A,\">=\"&'Graph Data'!$E$2,Transações!A:A,\"<=\"&'Graph Data'!$E$3,Transações!C:C,'Graph Data'!A209)=0,NA(),SUMIFS(Transações!D:D,Transações!A:A,\">=\"&'Graph Data'!$E$2,Transações!A:A,\"<=\"&'Graph Data'!$E$3,Transações!C:C,'Graph Data'!A209))","v":{"$error":"#N/A"}}]
[null,{"$f":"IF(SUMIFS(Transações!D:D,Transações!A:A,\">=\"&'Graph Data'!$E$2,Transações!A:A,\"<=\"&'Graph Data'!$E$3,Transações!C:C,'Graph Data'!A210)=0,NA(),SUMIFS(Transações!D:D,Transações!A:A,\">=\"&'Graph Data'!$E$2,Transações!A:A,\"<=\"&'Graph Data'!$E$3,Transações!C:C,'Graph Data'!A210))","v":{"$error":"#N/A"}}]
[null,{"$f":"IF(SUMIFS(Transações!D:D,Transações!A:A,\">=\"&'Graph Data'!$E$2,Transações!A:A,\"<=\"&'Graph Data'!$E$3,Transações!C:C,'Graph Data'!A211)=0,NA(),SUMIFS(Transações!D:D,Transações!A:A,\">=\"&'Graph Data'!$E$2,Transações!A:A,\"<=\"&'Graph Data'!$E$3,Transações!C:C,'Graph Data'!A211))","v":{"$error":"#N/A"}}]
[null,{"$f":"IF(SUMIFS(Transações!D:D,Transações!A:A,\">=\"&'Graph Data'!$E$2,Transações!A:A,\"<=\"&'Graph Data'!$E$3,Transações!C:C,'Graph Data'!A212)=0,NA(),SUMIFS(Transações!D:D,Transações!A:A,\">=\"&'Graph Data'!$E$2,Transações!A:A,\"<=\"&'Graph Data'!$E$3,Transações!C:C,'Graph Data'!A212))","v":{"$error":"#N/A"}}]
[null,{"$f":"IF(SUMIFS(Transações!D:D,Transações!A:A,\">=\"&'Graph Data'!$E$2,Transações!A:A,\"<=\"&'Graph Data'!$E$3,Transações!C:C,'Graph Data'!A213)=0,NA(),SUMIFS(Transações!D:D,Transações!A:A,\">=\"&'Graph Data'!$E$2,Transações!A:A,\"<=\"&'Graph Data'!$E$3,Transações!C:C,'Graph Data'!A213))","v":{"$error":"#N/A"}}]
[null,{"$f":"IF(SUMIFS(Transações!D:D,Transações!A:A,\">=\"&'Graph Data'!$E$2,Transações!A:A,\"<=\"&'Graph Data'!$E$3,Transações!C:C,'Graph Data'!A214)=0,NA(),SUMIFS(Transações!D:D,Transações!A:A,\">=\"&'Graph Data'!$E$2,Transações!A:A,\"<=\"&'Graph Data'!$E$3,Transações!C:C,'Graph Data'!A214))","v":{"$error":"#N/A"}}]
[null,{"$f":"IF(SUMIFS(Transações!D:D,Transações!A:A,\">=\"&'Graph Data'!$E$2,Transações!A:A,\"<=\"&'Graph Data'!$E$3,Transações!C:C,'Graph Data'!A215)=0,NA(),SUMIFS(Transações!D:D,Transações!A:A,\">=\"&'Graph Data'!$E$2,Transações!A:A,\"<=\"&'Graph Data'!$E$3,Transações!C:C,'Graph Data'!A215))","v":{"$error":"#N/A"}}]
[null,{"$f":"IF(SUMIFS(Transações!D:D,Transações!A:A,\">=\"&'Graph Data'!$E$2,Transações!A:A,\"<=\"&'Graph Data'!$E$3,Transações!C:C,'Graph Data'!A216)=0,NA(),SUMIFS(Transações!D:D,Transações!A:A,\">=\"&'Graph Data'!$E$2,Transações!A:A,\"<=\"&'Graph Data'!$E$3,Transações!C:C,'Graph Data'!A216))","v":{"$error":"#N/A"}}]
[null,{"$f":"IF(SUMIFS(Transações!D:D,Transações!A:A,\">=\"&'Graph Data'!$E$2,Transações!A:A,\"<=\"&'Graph Data'!$E$3,Transações!C:C,'Graph Data'!A217)=0,NA(),SUMIFS(Transações!D:D,Transações!A:A,\">=\"&'Graph Data'!$E$2,Transações!A:A,\"<=\"&'Graph Data'!$E$3,Transações!C:C,'Graph Data'!A217))","v":{"$error":"#N/A"}}]
[null,{"$f":"IF(SUMIFS(Transações!D:D,Transações!A:A,\">=\"&'Graph Data'!$E$2,Transações!A:A,\"<=\"&'Graph Data'!$E$3,Transações!C:C,'Graph Data'!A218)=0,NA(),SUMIFS(Transações!D:D,Transações!A:A,\">=\"&'Graph Data'!$E$2,Transações!A:A,\"<=\"&'Graph Data'!$E$3,Transações!C:C,'Graph Data'!A218))","v":{"$error":"#N/A"}}]
[null,{"$f":"IF(SUMIFS(Transações!D:D,Transações!A:A,\">=\"&'Graph Data'!$E$2,Transações!A:A,\"<=\"&'Graph Data'!$E$3,Transações!C:C,'Graph Data'!A219)=0,NA(),SUMIFS(Transações!D:D,Transações!A:A,\">=\"&'Graph Data'!$E$2,Transações!A:A,\"<=\"&'Graph Data'!$E$3,Transações!C:C,'Graph Data'!A219))","v":{"$error":"#N/A"}}]
[null,{"$f":"IF(SUMIFS(Transações!D:D,Transações!A:A,\">=\"&'Graph Data'!$E$2,Transações!A:A,\"<=\"&'Graph Data'!$E$3,Transações!C:C,'Graph Data'!A220)=0,NA(),SUMIFS(Transações!D:D,Transações!A:A,\">=\"&'Graph Data'!$E$2,Transações!A:A,\"<=\"&'Graph Data'!$E$3,Transações!C:C,'Graph Data'!A220))","v":{"$error":"#N/A"}}]
[null,{"$f":"IF(SUMIFS(Transações!D:D,Transações!A:A,\">=\"&'Graph Data'!$E$2,Transações!A:A,\"<=\"&'Graph Data'!$E$3,Transações!C:C,'Graph Data'!A221)=0,NA(),SUMIFS(Transações!D:D,Transações!A:A,\">=\"&'Graph Data'!$E$2,Transações!A:A,\"<=\"&'Graph Data'!$E$3,Transações!C:C,'Graph Data'!A221))","v":{"$error":"#N/A"}}]
[null,{"$f":"IF(SUMIFS(Transações!D:D,Transações!A:A,\">=\"&'Graph Data'!$E$2,Transações!A:A,\"<=\"&'Graph Data'!$E$3,Transações!C:C,'Graph Data'!A222)=0,NA(),SUMIFS(Transações!D:D,Transações!A:A,\">=\"&'Graph Data'!$E$2,Transações!A:A,\"<=\"&'Graph Data'!$E$3,Transações!C:C,'Graph Data'!A222))","v":{"$error":"#N/A"}}]
[null,{"$f":"IF(SUMIFS(Transações!D:D,Transações!A:A,\">=\"&'Graph Data'!$E$2,Transações!A:A,\"<=\"&'Graph Data'!$E$3,Transações!C:C,'Graph Data'!A223)=0,NA(),SUMIFS(Transações!D:D,Transações!A:A,\">=\"&'Graph Data'!$E$2,Transações!A:A,\"<=\"&'Graph Data'!$E$3,Transações!C:C,'Graph Data'!A223))","v":{"$error":"#N/A"}}]
[null,{"$f":"IF(SUMIFS(Transações!D:D,Transações!A:A,\">=\"&'Graph Data'!$E$2,Transações!A:A,\"<=\"&'Graph Data'!$E$3,Transações!C:C,'Graph Data'!A224)=0,NA(),SUMIFS(Transações!D:D,Transações!A:A,\">=\"&'Graph Data'!$E$2,Transações!A:A,\"<=\"&'Graph Data'!$E$3,Transações!C:C,'Graph Data'!A224))","v":{"$error":"#N/A"}}]
[null,{"$f":"IF(SUMIFS(Transações!D:D,Transações!A:A,\">=\"&'Graph Data'!$E$2,Transações!A:A,\"<=\"&'Graph Data'!$E$3,Transações!C:C,'Graph Data'!A225)=0,NA(),SUMIFS(Transações!D:D,Transações!A:A,\">=\"&'Graph Data'!$E$2,Transações!A:A,\"<=\"&'Graph Data'!$E$3,Transações!C:C,'Graph Data'!A225))","v":{"$error":"#N/A"}}]
[null,{"$f":"IF(SUMIFS(Transações!D:D,Transações!A:A,\">=\"&'Graph Data'!$E$2,Transações!A:A,\"<=\"&'Graph Data'!$E$3,Transações!C:C,'Graph Data'!A226)=0,NA(),SUMIFS(Transações!D:D,Transações!A:A,\">=\"&'Graph Data'!$E$2,Transações!A:A,\"<=\"&'Graph Data'!$E$3,Transações!C:C,'Graph Data'!A226))","v":{"$error":"#N/A"}}]
[null,{"$f":"IF(SUMIFS(Transações!D:D,Transações!A:A,\">=\"&'Graph Data'!$E$2,Transações!A:A,\"<=\"&'Graph Data'!$E$3,Transações!C:C,'Graph Data'!A227)=0,NA(),SUMIFS(Transações!D:D,Transações!A:A,\">=\"&'Graph Data'!$E$2,Transações!A:A,\"<=\"&'Graph Data'!$E$3,Transações!C:C,'Graph Data'!A227))","v":{"$error":"#N/A"}}]
[null,{"$f":"IF(SUMIFS(Transações!D:D,Transações!A:A,\">=\"&'Graph Data'!$E$2,Transações!A:A,\"<=\"&'Graph Data'!$E$3,Transações!C:C,'Graph Data'!A228)=0,NA(),SUMIFS(Transações!D:D,Transações!A:A,\">=\"&'Graph Data'!$E$2,Transações!A:A,\"<=\"&'Graph Data'!$E$3,Transações!C:C,'Graph Data'!A228))","v":{"$error":"#N/A"}}]
[null,{"$f":"IF(SUMIFS(Transações!D:D,Transações!A:A,\">=\"&'Graph Data'!$E$2,Transações!A:A,\"<=\"&'Graph Data'!$E$3,Transações!C:C,'Graph Data'!A229)=0,NA(),SUMIFS(Transações!D:D,Transações!A:A,\">=\"&'Graph Data'!$E$2,Transações!A:A,\"<=\"&'Graph Data'!$E$3,Transações!C:C,'Graph Data'!A229))","v":{"$error":"#N/A"}}]
[null,{"$f":"IF(SUMIFS(Transações!D:D,Transações!A:A,\">=\"&'Graph Data'!$E$2,Transações!A:A,\"<=\"&'Graph Data'!$E$3,Transações!C:C,'Graph Data'!A230)=0,NA(),SUMIFS(Transações!D:D,Transações!A:A,\">=\"&'Graph Data'!$E$2,Transações!A:A,\"<=\"&'Graph Data'!$E$3,Transações!C:C,'Graph Data'!A230))","v":{"$error":"#N/A"}}]
[null,{"$f":"IF(SUMIFS(Transações!D:D,Transações!A:A,\">=\"&'Graph Data'!$E$2,Transações!A:A,\"<=\"&'Graph Data'!$E$3,Transações!C:C,'Graph Data'!A231)=0,NA(),SUMIFS(Transações!D:D,Transações!A:A,\">=\"&'Graph Data'!$E$2,Transações!A:A,\"<=\"&'Graph Data'!$E$3,Transações!C:C,'Graph Data'!A231))","v":{"$error":"#N/A"}}]
[null,{"$f":"IF(SUMIFS(Transações!D:D,Transações!A:A,\">=\"&'Graph Data'!$E$2,Transações!A:A,\"<=\"&'Graph Data'!$E$3,Transações!C:C,'Graph Data'!A232)=0,NA(),SUMIFS(Transações!D:D,Transações!A:A,\">=\"&'Graph Data'!$E$2,Transações!A:A,\"<=\"&'Graph Data'!$E$3,Transações!C:C,'Graph Data'!A232))","v":{"$error":"#N/A"}}]
[null,{"$f":"IF(SUMIFS(Transações!D:D,Transações!A:A,\">=\"&'Graph Data'!$E$2,Transações!A:A,\"<=\"&'Graph Data'!$E$3,Transações!C:C,'Graph Data'!A233)=0,NA(),SUMIFS(Transações!D:D,Transações!A:A,\">=\"&'Graph Data'!$E$2,Transações!A:A,\"<=\"&'Graph Data'!$E$3,Transações!C:C,'Graph Data'!A233))","v":{"$error":"#N/A"}}]
[null,{"$f":"IF(SUMIFS(Transações!D:D,Transações!A:A,\">=\"&'Graph Data'!$E$2,Transações!A:A,\"<=\"&'Graph Data'!$E$3,Transações!C:C,'Graph Data'!A234)=0,NA(),SUMIFS(Transações!D:D,Transações!A:A,\">=\"&'Graph Data'!$E$2,Transações!A:A,\"<=\"&'Graph Data'!$E$3,Transações!C:C,'Graph Data'!A234))","v":{"$error":"#N/A"}}]
[null,{"$f":"IF(SUMIFS(Transações!D:D,Transações!A:A,\">=\"&'Graph Data'!$E$2,Transações!A:A,\"<=\"&'Graph Data'!$E$3,Transações!C:C,'Graph Data'!A235)=0,NA(),SUMIFS(Transações!D:D,Transações!A:A,\">=\"&'Graph Data'!$E$2,Transações!A:A,\"<=\"&'Graph Data'!$E$3,Transações!C:C,'Graph Data'!A235))","v":{"$error":"#N/A"}}]
[null,{"$f":"IF(SUMIFS(Transações!D:D,Transações!A:A,\">=\"&'Graph Data'!$E$2,Transações!A:A,\"<=\"&'Graph Data'!$E$3,Transações!C:C,'Graph Data'!A236)=0,NA(),SUMIFS(Transações!D:D,Transações!A:A,\">=\"&'Graph Data'!$E$2,Transações!A:A,\"<=\"&'Graph Data'!$E$3,Transações!C:C,'Graph Data'!A236))","v":{"$error":"#N/A"}}]
[null,{"$f":"IF(SUMIFS(Transações!D:D,Transações!A:A,\">=\"&'Graph Data'!$E$2,Transações!A:A,\"<=\"&'Graph Data'!$E$3,Transações!C:C,'Graph Data'!A237)=0,NA(),SUMIFS(Transações!D:D,Transações!A:A,\">=\"&'Graph Data'!$E$2,Transações!A:A,\"<=\"&'Graph Data'!$E$3,Transações!C:C,'Graph Data'!A237))","v":{"$error":"#N/A"}}]
[null,{"$f":"IF(SUMIFS(Transações!D:D,Transações!A:A,\">=\"&'Graph Data'!$E$2,Transações!A:A,\"<=\"&'Graph Data'!$E$3,Transações!C:C,'Graph Data'!A238)=0,NA(),SUMIFS(Transações!D:D,Transações!A:A,\">=\"&'Graph Data'!$E$2,Transações!A:A,\"<=\"&'Graph Data'!$E$3,Transações!C:C,'Graph Data'!A238))","v":{"$error":"#N/A"}}]
[null,{"$f":"IF(SUMIFS(Transações!D:D,Transações!A:A,\">=\"&'Graph Data'!$E$2,Transações!A:A,\"<=\"&'Graph Data'!$E$3,Transações!C:C,'Graph Data'!A239)=0,NA(),SUMIFS(Transações!D:D,Transações!A:A,\">=\"&'Graph Data'!$E$2,Transações!A:A,\"<=\"&'Graph Data'!$E$3,Transações!C:C,'Graph Data'!A239))","v":{"$error":"#N/A"}}]
[null,{"$f":"IF(SUMIFS(Transações!D:D,Transações!A:A,\">=\"&'Graph Data'!$E$2,Transações!A:A,\"<=\"&'Graph Data'!$E$3,Transações!C:C,'Graph Data'!A240)=0,NA(),SUMIFS(Transações!D:D,Transações!A:A,\">=\"&'Graph Data'!$E$2,Transações!A:A,\"<=\"&'Graph Data'!$E$3,Transações!C:C,'Graph Data'!A240))","v":{"$error":"#N/A"}}]
[null,{"$f":"IF(SUMIFS(Transações!D:D,Transações!A:A,\">=\"&'Graph Data'!$E$2,Transações!A:A,\"<=\"&'Graph Data'!$E$3,Transações!C:C,'Graph Data'!A241)=0,NA(),SUMIFS(Transações!D:D,Transações!A:A,\">=\"&'Graph Data'!$E$2,Transações!A:A,\"<=\"&'Graph Data'!$E$3,Transações!C:C,'Graph Data'!A241))","v":{"$error":"#N/A"}}]
[null,{"$f":"IF(SUMIFS(Transações!D:D,Transações!A:A,\">=\"&'Graph Data'!$E$2,Transações!A:A,\"<=\"&'Graph Data'!$E$3,Transações!C:C,'Graph Data'!A242)=0,NA(),SUMIFS(Transações!D:D,Transações!A:A,\">=\"&'Graph Data'!$E$2,Transações!A:A,\"<=\"&'Graph Data'!$E$3,Transações!C:C,'Graph Data'!A242))","v":{"$error":"#N/A"}}]
[null,{"$f":"IF(SUMIFS(Transações!D:D,Transações!A:A,\">=\"&'Graph Data'!$E$2,Transações!A:A,\"<=\"&'Graph Data'!$E$3,Transações!C:C,'Graph Data'!A243)=0,NA(),SUMIFS(Transações!D:D,Transações!A:A,\">=\"&'Graph Data'!$E$2,Transações!A:A,\"<=\"&'Graph Data'!$E$3,Transações!C:C,'Graph Data'!A243))","v":{"$error":"#N/A"}}]
[null,{"$f":"IF(SUMIFS(Transações!D:D,Transações!A:A,\">=\"&'Graph Data'!$E$2,Transações!A:A,\"<=\"&'Graph Data'!$E$3,Transações!C:C,'Graph Data'!A244)=0,NA(),SUMIFS(Transações!D:D,Transações!A:A,\">=\"&'Graph Data'!$E$2,Transações!A:A,\"<=\"&'Graph Data'!$E$3,Transações!C:C,'Graph Data'!A244))","v":{"$error":"#N/A"}}]
[null,{"$f":"IF(SUMIFS(Transações!D:D,Transações!A:A,\">=\"&'Graph Data'!$E$2,Transações!A:A,\"<=\"&'Graph Data'!$E$3,Transações!C:C,'Graph Data'!A245)=0,NA(),SUMIFS(Transações!D:D,Transações!A:A,\">=\"&'Graph Data'!$E$2,Transações!A:A,\"<=\"&'Graph Data'!$E$3,Transações!C:C,'Graph Data'!A245))","v":{"$error":"#N/A"}}]
[null,{"$f":"IF(SUMIFS(Transações!D:D,Transações!A:A,\">=\"&'Graph Data'!$E$2,Transações!A:A,\"<=\"&'Graph Data'!$E$3,Transações!C:C,'Graph Data'!A246)=0,NA(),SUMIFS(Transações!D:D,Transações!A:A,\">=\"&'Graph Data'!$E$2,Transações!A:A,\"<=\"&'Graph Data'!$E$3,Transações!C:C,'Graph Data'!A246))","v":{"$error":"#N/A"}}]
[null,{"$f":"IF(SUMIFS(Transações!D:D,Transações!A:A,\">=\"&'Graph Data'!$E$2,Transações!A:A,\"<=\"&'Graph Data'!$E$3,Transações!C:C,'Graph Data'!A247)=0,NA(),SUMIFS(Transações!D:D,Transações!A:A,\">=\"&'Graph Data'!$E$2,Transações!A:A,\"<=\"&'Graph Data'!$E$3,Transações!C:C,'Graph Data'!A247))","v":{"$error":"#N/A"}}]
[null,{"$f":"IF(SUMIFS(Transações!D:D,Transações!A:A,\">=\"&'Graph Data'!$E$2,Transações!A:A,\"<=\"&'Graph Data'!$E$3,Transações!C:C,'Graph Data'!A248)=0,NA(),SUMIFS(Transações!D:D,Transações!A:A,\">=\"&'Graph Data'!$E$2,Transações!A:A,\"<=\"&'Graph Data'!$E$3,Transações!C:C,'Graph Data'!A248))","v":{"$error":"#N/A"}}]
[null,{"$f":"IF(SUMIFS(Transações!D:D,Transações!A:A,\">=\"&'Graph Data'!$E$2,Transações!A:A,\"<=\"&'Graph Data'!$E$3,Transações!C:C,'Graph Data'!A249)=0,NA(),SUMIFS(Transações!D:D,Transações!A:A,\">=\"&'Graph Data'!$E$2,Transações!A:A,\"<=\"&'Graph Data'!$E$3,Transações!C:C,'Graph Data'!A249))","v":{"$error":"#N/A"}}]
[null,{"$f":"IF(SUMIFS(Transações!D:D,Transações!A:A,\">=\"&'Graph Data'!$E$2,Transações!A:A,\"<=\"&'Graph Data'!$E$3,Transações!C:C,'Graph Data'!A250)=0,NA(),SUMIFS(Transações!D:D,Transações!A:A,\">=\"&'Graph Data'!$E$2,Transações!A:A,\"<=\"&'Graph Data'!$E$3,Transações!C:C,'Graph Data'!A250))","v":{"$error":"#N/A"}}]
[null,{"$f":"IF(SUMIFS(Transações!D:D,Transações!A:A,\">=\"&'Graph Data'!$E$2,Transações!A:A,\"<=\"&'Graph Data'!$E$3,Transações!C:C,'Graph Data'!A251)=0,NA(),SUMIFS(Transações!D:D,Transações!A:A,\">=\"&'Graph Data'!$E$2,Transações!A:A,\"<=\"&'Graph Data'!$E$3,Transações!C:C,'Graph Data'!A251))","v":{"$error":"#N/A"}}]
[null,{"$f":"IF(SUMIFS(Transações!D:D,Transações!A:A,\">=\"&'Graph Data'!$E$2,Transações!A:A,\"<=\"&'Graph Data'!$E$3,Transações!C:C,'Graph Data'!A252)=0,NA(),SUMIFS(Transações!D:D,Transações!A:A,\">=\"&'Graph Data'!$E$2,Transações!A:A,\"<=\"&'Graph Data'!$E$3,Transações!C:C,'Graph Data'!A252))","v":{"$error":"#N/A"}}]
[null,{"$f":"IF(SUMIFS(Transações!D:D,Transações!A:A,\">=\"&'Graph Data'!$E$2,Transações!A:A,\"<=\"&'Graph Data'!$E$3,Transações!C:C,'Graph Data'!A253)=0,NA(),SUMIFS(Transações!D:D,Transações!A:A,\">=\"&'Graph Data'!$E$2,Transações!A:A,\"<=\"&'Graph Data'!$E$3,Transações!C:C,'Graph Data'!A253))","v":{"$error":"#N/A"}}]
[null,{"$f":"IF(SUMIFS(Transações!D:D,Transações!A:A,\">=\"&'Graph Data'!$E$2,Transações!A:A,\"<=\"&'Graph Data'!$E$3,Transações!C:C,'Graph Data'!A254)=0,NA(),SUMIFS(Transações!D:D,Transações!A:A,\">=\"&'Graph Data'!$E$2,Transações!A:A,\"<=\"&'Graph Data'!$E$3,Transações!C:C,'Graph Data'!A254))","v":{"$error":"#N/A"}}]
[null,{"$f":"IF(SUMIFS(Transações!D:D,Transações!A:A,\">=\"&'Graph Data'!$E$2,Transações!A:A,\"<=\"&'Graph Data'!$E$3,Transações!C:C,'Graph Data'!A255)=0,NA(),SUMIFS(Transações!D:D,Transações!A:A,\">=\"&'Graph Data'!$E$2,Transações!A:A,\"<=\"&'Graph Data'!$E$3,Transações!C:C,'Graph Data'!A255))","v":{"$error":"#N/A"}}]
[null,{"$f":"IF(SUMIFS(Transações!D:D,Transações!A:A,\">=\"&'Graph Data'!$E$2,Transações!A:A,\"<=\"&'Graph Data'!$E$3,Transações!C:C,'Graph Data'!A256)=0,NA(),SUMIFS(Transações!D:D,Transações!A:A,\">=\"&'Graph Data'!$E$2,Transações!A:A,\"<=\"&'Graph Data'!$E$3,Transações!C:C,'Graph Data'!A256))","v":{"$error":"#N/A"}}]
[null,{"$f":"IF(SUMIFS(Transações!D:D,Transações!A:A,\">=\"&'Graph Data'!$E$2,Transações!A:A,\"<=\"&'Graph Data'!$E$3,Transações!C:C,'Graph Data'!A257)=0,NA(),SUMIFS(Transações!D:D,Transações!A:A,\">=\"&'Graph Data'!$E$2,Transações!A:A,\"<=\"&'Graph Data'!$E$3,Transações!C:C,'Graph Data'!A257))","v":{"$error":"#N/A"}}]
[null,{"$f":"IF(SUMIFS(Transações!D:D,Transações!A:A,\">=\"&'Graph Data'!$E$2,Transações!A:A,\"<=\"&'Graph Data'!$E$3,Transações!C:C,'Graph Data'!A258)=0,NA(),SUMIFS(Transações!D:D,Transações!A:A,\">=\"&'Graph Data'!$E$2,Transações!A:A,\"<=\"&'Graph Data'!$E$3,Transações!C:C,'Graph Data'!A258))","v":{"$error":"#N/A"}}]
[null,{"$f":"IF(SUMIFS(Transações!D:D,Transações!A:A,\">=\"&'Graph Data'!$E$2,Transações!A:A,\"<=\"&'Graph Data'!$E$3,Transações!C:C,'Graph Data'!A259)=0,NA(),SUMIFS(Transações!D:D,Transações!A:A,\">=\"&'Graph Data'!$E$2,Transações!A:A,\"<=\"&'Graph Data'!$E$3,Transações!C:C,'Graph Data'!A259))","v":{"$error":"#N/A"}}]
[null,{"$f":"IF(SUMIFS(Transações!D:D,Transações!A:A,\">=\"&'Graph Data'!$E$2,Transações!A:A,\"<=\"&'Graph Data'!$E$3,Transações!C:C,'Graph Data'!A260)=0,NA(),SUMIFS(Transações!D:D,Transações!A:A,\">=\"&'Graph Data'!$E$2,Transações!A:A,\"<=\"&'Graph Data'!$E$3,Transações!C:C,'Graph Data'!A260))","v":{"$error":"#N/A"}}]
[null,{"$f":"IF(SUMIFS(Transações!D:D,Transações!A:A,\">=\"&'Graph Data'!$E$2,Transações!A:A,\"<=\"&'Graph Data'!$E$3,Transações!C:C,'Graph Data'!A261)=0,NA(),SUMIFS(Transações!D:D,Transações!A:A,\">=\"&'Graph Data'!$E$2,Transações!A:A,\"<=\"&'Graph Data'!$E$3,Transações!C:C,'Graph Data'!A261))","v":{"$error":"#N/A"}}]
[null,{"$f":"IF(SUMIFS(Transações!D:D,Transações!A:A,\">=\"&'Graph Data'!$E$2,Transações!A:A,\"<=\"&'Graph Data'!$E$3,Transações!C:C,'Graph Data'!A262)=0,NA(),SUMIFS(Transações!D:D,Transações!A:A,\">=\"&'Graph Data'!$E$2,Transações!A:A,\"<=\"&'Graph Data'!$E$3,Transações!C:C,'Graph Data'!A262))","v":{"$error":"#N/A"}}]
[null,{"$f":"IF(SUMIFS(Transações!D:D,Transações!A:A,\">=\"&'Graph Data'!$E$2,Transações!A:A,\"<=\"&'Graph Data'!$E$3,Transações!C:C,'Graph Data'!A263)=0,NA(),SUMIFS(Transações!D:D,Transações!A:A,\">=\"&'Graph Data'!$E$2,Transações!A:A,\"<=\"&'Graph Data'!$E$3,Transações!C:C,'Graph Data'!A263))","v":{"$error":"#N/A"}}]
[null,{"$f":"IF(SUMIFS(Transações!D:D,Transações!A:A,\">=\"&'Graph Data'!$E$2,Transações!A:A,\"<=\"&'Graph Data'!$E$3,Transações!C:C,'Graph Data'!A264)=0,NA(),SUMIFS(Transações!D:D,Transações!A:A,\">=\"&'Graph Data'!$E$2,Transações!A:A,\"<=\"&'Graph Data'!$E$3,Transações!C:C,'Graph Data'!A264))","v":{"$error":"#N/A"}}]
[null,{"$f":"IF(SUMIFS(Transações!D:D,Transações!A:A,\">=\"&'Graph Data'!$E$2,Transações!A:A,\"<=\"&'Graph Data'!$E$3,Transações!C:C,'Graph Data'!A265)=0,NA(),SUMIFS(Transações!D:D,Transações!A:A,\">=\"&'Graph Data'!$E$2,Transações!A:A,\"<=\"&'Graph Data'!$E$3,Transações!C:C,'Graph Data'!A265))","v":{"$error":"#N/A"}}]
[null,{"$f":"IF(SUMIFS(Transações!D:D,Transações!A:A,\">=\"&'Graph Data'!$E$2,Transações!A:A,\"<=\"&'Graph Data'!$E$3,Transações!C:C,'Graph Data'!A266)=0,NA(),SUMIFS(Transações!D:D,Transações!A:A,\">=\"&'Graph Data'!$E$2,Transações!A:A,\"<=\"&'Graph Data'!$E$3,Transações!C:C,'Graph Data'!A266))","v":{"$error":"#N/A"}}]
[null,{"$f":"IF(SUMIFS(Transações!D:D,Transações!A:A,\">=\"&'Graph Data'!$E$2,Transações!A:A,\"<=\"&'Graph Data'!$E$3,Transações!C:C,'Graph Data'!A267)=0,NA(),SUMIFS(Transações!D:D,Transações!A:A,\">=\"&'Graph Data'!$E$2,Transações!A:A,\"<=\"&'Graph Data'!$E$3,Transações!C:C,'Graph Data'!A267))","v":{"$error":"#N/A"}}]
[null,{"$f":"IF(SUMIFS(Transações!D:D,Transações!A:A,\">=\"&'Graph Data'!$E$2,Transações!A:A,\"<=\"&'Graph Data'!$E$3,Transações!C:C,'Graph Data'!A268)=0,NA(),SUMIFS(Transações!D:D,Transações!A:A,\">=\"&'Graph Data'!$E$2,Transações!A:A,\"<=\"&'Graph Data'!$E$3,Transações!C:C,'Graph Data'!A268))","v":{"$error":"#N/A"}}]
[null,{"$f":"IF(SUMIFS(Transações!D:D,Transações!A:A,\">=\"&'Graph Data'!$E$2,Transações!A:A,\"<=\"&'Graph Data'!$E$3,Transações!C:C,'Graph Data'!A269)=0,NA(),SUMIFS(Transações!D:D,Transações!A:A,\">=\"&'Graph Data'!$E$2,Transações!A:A,\"<=\"&'Graph Data'!$E$3,Transações!C:C,'Graph Data'!A269))","v":{"$error":"#N/A"}}]
[null,{"$f":"IF(SUMIFS(Transações!D:D,Transações!A:A,\">=\"&'Graph Data'!$E$2,Transações!A:A,\"<=\"&'Graph Data'!$E$3,Transações!C:C,'Graph Data'!A270)=0,NA(),SUMIFS(Transações!D:D,Transações!A:A,\">=\"&'Graph Data'!$E$2,Transações!A:A,\"<=\"&'Graph Data'!$E$3,Transações!C:C,'Graph Data'!A270))","v":{"$error":"#N/A"}}]
[null,{"$f":"IF(SUMIFS(Transações!D:D,Transações!A:A,\">=\"&'Graph Data'!$E$2,Transações!A:A,\"<=\"&'Graph Data'!$E$3,Transações!C:C,'Graph Data'!A271)=0,NA(),SUMIFS(Transações!D:D,Transações!A:A,\">=\"&'Graph Data'!$E$2,Transações!A:A,\"<=\"&'Graph Data'!$E$3,Transações!C:C,'Graph Data'!A271))","v":{"$error":"#N/A"}}]
[null,{"$f":"IF(SUMIFS(Transações!D:D,Transações!A:A,\">=\"&'Graph Data'!$E$2,Transações!A:A,\"<=\"&'Graph Data'!$E$3,Transações!C:C,'Graph Data'!A272)=0,NA(),SUMIFS(Transações!D:D,Transações!A:A,\">=\"&'Graph Data'!$E$2,Transações!A:A,\"<=\"&'Graph Data'!$E$3,Transações!C:C,'Graph Data'!A272))","v":{"$error":"#N/A"}}]
[null,{"$f":"IF(SUMIFS(Transações!D:D,Transações!A:A,\">=\"&'Graph Data'!$E$2,Transações!A:A,\"<=\"&'Graph Data'!$E$3,Transações!C:C,'Graph Data'!A273)=0,NA(),SUMIFS(Transações!D:D,Transações!A:A,\">=\"&'Graph Data'!$E$2,Transações!A:A,\"<=\"&'Graph Data'!$E$3,Transações!C:C,'Graph Data'!A273))","v":{"$error":"#N/A"}}]
[null,{"$f":"IF(SUMIFS(Transações!D:D,Transações!A:A,\">=\"&'Graph Data'!$E$2,Transações!A:A,\"<=\"&'Graph Data'!$E$3,Transações!C:C,'Graph Data'!A274)=0,NA(),SUMIFS(Transações!D:D,Transações!A:A,\">=\"&'Graph Data'!$E$2,Transações!A:A,\"<=\"&'Graph Data'!$E$3,Transações!C:C,'Graph Data'!A274))","v":{"$error":"#N/A"}}]
[null,{"$f":"IF(SUMIFS(Transações!D:D,Transações!A:A,\">=\"&'Graph Data'!$E$2,Transações!A:A,\"<=\"&'Graph Data'!$E$3,Transações!C:C,'Graph Data'!A275)=0,NA(),SUMIFS(Transações!D:D,Transações!A:A,\">=\"&'Graph Data'!$E$2,Transações!A:A,\"<=\"&'Graph Data'!$E$3,Transações!C:C,'Graph Data'!A275))","v":{"$error":"#N/A"}}]
[null,{"$f":"IF(SUMIFS(Transações!D:D,Transações!A:A,\">=\"&'Graph Data'!$E$2,Transações!A:A,\"<=\"&'Graph Data'!$E$3,Transações!C:C,'Graph Data'!A276)=0,NA(),SUMIFS(Transações!D:D,Transações!A:A,\">=\"&'Graph Data'!$E$2,Transações!A:A,\"<=\"&'Graph Data'!$E$3,Transações!C:C,'Graph Data'!A276))","v":{"$error":"#N/A"}}]
[null,{"$f":"IF(SUMIFS(Transações!D:D,Transações!A:A,\">=\"&'Graph Data'!$E$2,Transações!A:A,\"<=\"&'Graph Data'!$E$3,Transações!C:C,'Graph Data'!A277)=0,NA(),SUMIFS(Transações!D:D,Transações!A:A,\">=\"&'Graph Data'!$E$2,Transações!A:A,\"<=\"&'Graph Data'!$E$3,Transações!C:C,'Graph Data'!A277))","v":{"$error":"#N/A"}}]
[null,{"$f":"IF(SUMIFS(Transações!D:D,Transações!A:A,\">=\"&'Graph Data'!$E$2,Transações!A:A,\"<=\"&'Graph Data'!$E$3,Transações!C:C,'Graph Data'!A278)=0,NA(),SUMIFS(Transações!D:D,Transações!A:A,\">=\"&'Graph Data'!$E$2,Transações!A:A,\"<=\"&'Graph Data'!$E$3,Transações!C:C,'Graph Data'!A278))","v":{"$error":"#N/A"}}]
[null,{"$f":"IF(SUMIFS(Transações!D:D,Transações!A:A,\">=\"&'Graph Data'!$E$2,Transações!A:A,\"<=\"&'Graph Data'!$E$3,Transações!C:C,'Graph Data'!A279)=0,NA(),SUMIFS(Transações!D:D,Transações!A:A,\">=\"&'Graph Data'!$E$2,Transações!A:A,\"<=\"&'Graph Data'!$E$3,Transações!C:C,'Graph Data'!A279))","v":{"$error":"#N/A"}}]
[null,{"$f":"IF(SUMIFS(Transações!D:D,Transações!A:A,\">=\"&'Graph Data'!$E$2,Transações!A:A,\"<=\"&'Graph Data'!$E$3,Transações!C:C,'Graph Data'!A280)=0,NA(),SUMIFS(Transações!D:D,Transações!A:A,\">=\"&'Graph Data'!$E$2,Transações!A:A,\"<=\"&'Graph Data'!$E$3,Transações!C:C,'Graph Data'!A280))","v":{"$error":"#N/A"}}]
[null,{"$f":"IF(SUMIFS(Transações!D:D,Transações!A:A,\">=\"&'Graph Data'!$E$2,Transações!A:A,\"<=\"&'Graph Data'!$E$3,Transações!C:C,'Graph Data'!A281)=0,NA(),SUMIFS(Transações!D:D,Transações!A:A,\">=\"&'Graph Data'!$E$2,Transações!A:A,\"<=\"&'Graph Data'!$E$3,Transações!C:C,'Graph Data'!A281))","v":{"$error":"#N/A"}}]
[null,{"$f":"IF(SUMIFS(Transações!D:D,Transações!A:A,\">=\"&'Graph Data'!$E$2,Transações!A:A,\"<=\"&'Graph Data'!$E$3,Transações!C:C,'Graph Data'!A282)=0,NA(),SUMIFS(Transações!D:D,Transações!A:A,\">=\"&'Graph Data'!$E$2,Transações!A:A,\"<=\"&'Graph Data'!$E$3,Transações!C:C,'Graph Data'!A282))","v":{"$error":"#N/A"}}]
[null,{"$f":"IF(SUMIFS(Transações!D:D,Transações!A:A,\">=\"&'Graph Data'!$E$2,Transações!A:A,\"<=\"&'Graph Data'!$E$3,Transações!C:C,'Graph Data'!A283)=0,NA(),SUMIFS(Transações!D:D,Transações!A:A,\">=\"&'Graph Data'!$E$2,Transações!A:A,\"<=\"&'Graph Data'!$E$3,Transações!C:C,'Graph Data'!A283))","v":{"$error":"#N/A"}}]
[null,{"$f":"IF(SUMIFS(Transações!D:D,Transações!A:A,\">=\"&'Graph Data'!$E$2,Transações!A:A,\"<=\"&'Graph Data'!$E$3,Transações!C:C,'Graph Data'!A284)=0,NA(),SUMIFS(Transações!D:D,Transações!A:A,\">=\"&'Graph Data'!$E$2,Transações!A:A,\"<=\"&'Graph Data'!$E$3,Transações!C:C,'Graph Data'!A284))","v":{"$error":"#N/A"}}]
[null,{"$f":"IF(SUMIFS(Transações!D:D,Transações!A:A,\">=\"&'Graph Data'!$E$2,Transações!A:A,\"<=\"&'Graph Data'!$E$3,Transações!C:C,'Graph Data'!A285)=0,NA(),SUMIFS(Transações!D:D,Transações!A:A,\">=\"&'Graph Data'!$E$2,Transações!A:A,\"<=\"&'Graph Data'!$E$3,Transações!C:C,'Graph Data'!A285))","v":{"$error":"#N/A"}}]
[null,{"$f":"IF(SUMIFS(Transações!D:D,Transações!A:A,\">=\"&'Graph Data'!$E$2,Transações!A:A,\"<=\"&'Graph Data'!$E$3,Transações!C:C,'Graph Data'!A286)=0,NA(),SUMIFS(Transações!D:D,Transações!A:A,\">=\"&'Graph Data'!$E$2,Transações!A:A,\"<=\"&'Graph Data'!$E$3,Transações!C:C,'Graph Data'!A286))","v":{"$error":"#N/A"}}]
[null,{"$f":"IF(SUMIFS(Transações!D:D,Transações!A:A,\">=\"&'Graph Data'!$E$2,Transações!A:A,\"<=\"&'Graph Data'!$E$3,Transações!C:C,'Graph Data'!A287)=0,NA(),SUMIFS(Transações!D:D,Transações!A:A,\">=\"&'Graph Data'!$E$2,Transações!A:A,\"<=\"&'Graph Data'!$E$3,Transações!C:C,'Graph Data'!A287))","v":{"$error":"#N/A"}}]
[null,{"$f":"IF(SUMIFS(Transações!D:D,Transações!A:A,\">=\"&'Graph Data'!$E$2,Transações!A:A,\"<=\"&'Graph Data'!$E$3,Transações!C:C,'Graph Data'!A288)=0,NA(),SUMIFS(Transações!D:D,Transações!A:A,\">=\"&'Graph Data'!$E$2,Transações!A:A,\"<=\"&'Graph Data'!$E$3,Transações!C:C,'Graph Data'!A288))","v":{"$error":"#N/A"}}]
[null,{"$f":"IF(SUMIFS(Transações!D:D,Transações!A:A,\">=\"&'Graph Data'!$E$2,Transações!A:A,\"<=\"&'Graph Data'!$E$3,Transações!C:C,'Graph Data'!A289)=0,NA(),SUMIFS(Transações!D:D,Transações!A:A,\">=\"&'Graph Data'!$E$2,Transações!A:A,\"<=\"&'Graph Data'!$E$3,Transações!C:C,'Graph Data'!A289))","v":{"$error":"#N/A"}}]
[null,{"$f":"IF(SUMIFS(Transações!D:D,Transações!A:A,\">=\"&'Graph Data'!$E$2,Transações!A:A,\"<=\"&'Graph Data'!$E$3,Transações!C:C,'Graph Data'!A290)=0,NA(),SUMIFS(Transações!D:D,Transações!A:A,\">=\"&'Graph Data'!$E$2,Transações!A:A,\"<=\"&'Graph Data'!$E$3,Transações!C:C,'Graph Data'!A290))","v":{"$error":"#N/A"}}]
[null,{"$f":"IF(SUMIFS(Transações!D:D,Transações!A:A,\">=\"&'Graph Data'!$E$2,Transações!A:A,\"<=\"&'Graph Data'!$E$3,Transações!C:C,'Graph Data'!A291)=0,NA(),SUMIFS(Transações!D:D,Transações!A:A,\">=\"&'Graph Data'!$E$2,Transações!A:A,\"<=\"&'Graph Data'!$E$3,Transações!C:C,'Graph Data'!A291))","v":{"$error":"#N/A"}}]
[null,{"$f":"IF(SUMIFS(Transações!D:D,Transações!A:A,\">=\"&'Graph Data'!$E$2,Transações!A:A,\"<=\"&'Graph Data'!$E$3,Transações!C:C,'Graph Data'!A292)=0,NA(),SUMIFS(Transações!D:D,Transações!A:A,\">=\"&'Graph Data'!$E$2,Transações!A:A,\"<=\"&'Graph Data'!$E$3,Transações!C:C,'Graph Data'!A292))","v":{"$error":"#N/A"}}]
[null,{"$f":"IF(SUMIFS(Transações!D:D,Transações!A:A,\">=\"&'Graph Data'!$E$2,Transações!A:A,\"<=\"&'Graph Data'!$E$3,Transações!C:C,'Graph Data'!A293)=0,NA(),SUMIFS(Transações!D:D,Transações!A:A,\">=\"&'Graph Data'!$E$2,Transações!A:A,\"<=\"&'Graph Data'!$E$3,Transações!C:C,'Graph Data'!A293))","v":{"$error":"#N/A"}}]
[null,{"$f":"IF(SUMIFS(Transações!D:D,Transações!A:A,\">=\"&'Graph Data'!$E$2,Transações!A:A,\"<=\"&'Graph Data'!$E$3,Transações!C:C,'Graph Data'!A294)=0,NA(),SUMIFS(Transações!D:D,Transações!A:A,\">=\"&'Graph Data'!$E$2,Transações!A:A,\"<=\"&'Graph Data'!$E$3,Transações!C:C,'Graph Data'!A294))","v":{"$error":"#N/A"}}]
[null,{"$f":"IF(SUMIFS(Transações!D:D,Transações!A:A,\">=\"&'Graph Data'!$E$2,Transações!A:A,\"<=\"&'Graph Data'!$E$3,Transações!C:C,'Graph Data'!A295)=0,NA(),SUMIFS(Transações!D:D,Transações!A:A,\">=\"&'Graph Data'!$E$2,Transações!A:A,\"<=\"&'Graph Data'!$E$3,Transações!C:C,'Graph Data'!A295))","v":{"$error":"#N/A"}}]
[null,{"$f":"IF(SUMIFS(Transações!D:D,Transações!A:A,\">=\"&'Graph Data'!$E$2,Transações!A:A,\"<=\"&'Graph Data'!$E$3,Transações!C:C,'Graph Data'!A296)=0,NA(),SUMIFS(Transações!D:D,Transações!A:A,\">=\"&'Graph Data'!$E$2,Transações!A:A,\"<=\"&'Graph Data'!$E$3,Transações!C:C,'Graph Data'!A296))","v":{"$error":"#N/A"}}]
[null,{"$f":"IF(SUMIFS(Transações!D:D,Transações!A:A,\">=\"&'Graph Data'!$E$2,Transações!A:A,\"<=\"&'Graph Data'!$E$3,Transações!C:C,'Graph Data'!A297)=0,NA(),SUMIFS(Transações!D:D,Transações!A:A,\">=\"&'Graph Data'!$E$2,Transações!A:A,\"<=\"&'Graph Data'!$E$3,Transações!C:C,'Graph Data'!A297))","v":{"$error":"#N/A"}}]
[null,{"$f":"IF(SUMIFS(Transações!D:D,Transações!A:A,\">=\"&'Graph Data'!$E$2,Transações!A:A,\"<=\"&'Graph Data'!$E$3,Transações!C:C,'Graph Data'!A298)=0,NA(),SUMIFS(Transações!D:D,Transações!A:A,\">=\"&'Graph Data'!$E$2,Transações!A:A,\"<=\"&'Graph Data'!$E$3,Transações!C:C,'Graph Data'!A298))","v":{"$error":"#N/A"}}]
[null,{"$f":"IF(SUMIFS(Transações!D:D,Transações!A:A,\">=\"&'Graph Data'!$E$2,Transações!A:A,\"<=\"&'Graph Data'!$E$3,Transações!C:C,'Graph Data'!A299)=0,NA(),SUMIFS(Transações!D:D,Transações!A:A,\">=\"&'Graph Data'!$E$2,Transações!A:A,\"<=\"&'Graph Data'!$E$3,Transações!C:C,'Graph Data'!A299))","v":{"$error":"#N/A"}}]
[null,{"$f":"IF(SUMIFS(Transações!D:D,Transações!A:A,\">=\"&'Graph Data'!$E$2,Transações!A:A,\"<=\"&'Graph Data'!$E$3,Transações!C:C,'Graph Data'!A300)=0,NA(),SUMIFS(Transações!D:D,Transações!A:A,\">=\"&'Graph Data'!$E$2,Transações!A:A,\"<=\"&'Graph Data'!$E$3,Transações!C:C,'Graph Data'!A300))","v":{"$error":"#N/A"}}]
[null,{"$f":"IF(SUMIFS(Transações!D:D,Transações!A:A,\">=\"&'Graph Data'!$E$2,Transações!A:A,\"<=\"&'Graph Data'!$E$3,Transações!C:C,'Graph Data'!A301)=0,NA(),SUMIFS(Transações!D:D,Transações!A:A,\">=\"&'Graph Data'!$E$2,Transações!A:A,\"<=\"&'Graph Data'!$E$3,Transações!C:C,'Graph Data'!A301))","v":{"$error":"#N/A"}}]
[null,{"$f":"IF(SUMIFS(Transações!D:D,Transações!A:A,\">=\"&'Graph Data'!$E$2,Transações!A:A,\"<=\"&'Graph Data'!$E$3,Transações!C:C,'Graph Data'!A302)=0,NA(),SUMIFS(Transações!D:D,Transações!A:A,\">=\"&'Graph Data'!$E$2,Transações!A:A,\"<=\"&'Graph Data'!$E$3,Transações!C:C,'Graph Data'!A302))","v":{"$error":"#N/A"}}]
[null,{"$f":"IF(SUMIFS(Transações!D:D,Transações!A:A,\">=\"&'Graph Data'!$E$2,Transações!A:A,\"<=\"&'Graph Data'!$E$3,Transações!C:C,'Graph Data'!A303)=0,NA(),SUMIFS(Transações!D:D,Transações!A:A,\">=\"&'Graph Data'!$E$2,Transações!A:A,\"<=\"&'Graph Data'!$E$3,Transações!C:C,'Graph Data'!A303))","v":{"$error":"#N/A"}}]
[null,{"$f":"IF(SUMIFS(Transações!D:D,Transações!A:A,\">=\"&'Graph Data'!$E$2,Transações!A:A,\"<=\"&'Graph Data'!$E$3,Transações!C:C,'Graph Data'!A304)=0,NA(),SUMIFS(Transações!D:D,Transações!A:A,\">=\"&'Graph Data'!$E$2,Transações!A:A,\"<=\"&'Graph Data'!$E$3,Transações!C:C,'Graph Data'!A304))","v":{"$error":"#N/A"}}]
[null,{"$f":"IF(SUMIFS(Transações!D:D,Transações!A:A,\">=\"&'Graph Data'!$E$2,Transações!A:A,\"<=\"&'Graph Data'!$E$3,Transações!C:C,'Graph Data'!A305)=0,NA(),SUMIFS(Transações!D:D,Transações!A:A,\">=\"&'Graph Data'!$E$2,Transações!A:A,\"<=\"&'Graph Data'!$E$3,Transações!C:C,'Graph Data'!A305))","v":{"$error":"#N/A"}}]
[null,{"$f":"IF(SUMIFS(Transações!D:D,Transações!A:A,\">=\"&'Graph Data'!$E$2,Transações!A:A,\"<=\"&'Graph Data'!$E$3,Transações!C:C,'Graph Data'!A306)=0,NA(),SUMIFS(Transações!D:D,Transações!A:A,\">=\"&'Graph Data'!$E$2,Transações!A:A,\"<=\"&'Graph Data'!$E$3,Transações!C:C,'Graph Data'!A306))","v":{"$error":"#N/A"}}]
[null,{"$f":"IF(SUMIFS(Transações!D:D,Transações!A:A,\">=\"&'Graph Data'!$E$2,Transações!A:A,\"<=\"&'Graph Data'!$E$3,Transações!C:C,'Graph Data'!A307)=0,NA(),SUMIFS(Transações!D:D,Transações!A:A,\">=\"&'Graph Data'!$E$2,Transações!A:A,\"<=\"&'Graph Data'!$E$3,Transações!C:C,'Graph Data'!A307))","v":{"$error":"#N/A"}}]
[null,{"$f":"IF(SUMIFS(Transações!D:D,Transações!A:A,\">=\"&'Graph Data'!$E$2,Transações!A:A,\"<=\"&'Graph Data'!$E$3,Transações!C:C,'Graph Data'!A308)=0,NA(),SUMIFS(Transações!D:D,Transações!A:A,\">=\"&'Graph Data'!$E$2,Transações!A:A,\"<=\"&'Graph Data'!$E$3,Transações!C:C,'Graph Data'!A308))","v":{"$error":"#N/A"}}]
[null,{"$f":"IF(SUMIFS(Transações!D:D,Transações!A:A,\">=\"&'Graph Data'!$E$2,Transações!A:A,\"<=\"&'Graph Data'!$E$3,Transações!C:C,'Graph Data'!A309)=0,NA(),SUMIFS(Transações!D:D,Transações!A:A,\">=\"&'Graph Data'!$E$2,Transações!A:A,\"<=\"&'Graph Data'!$E$3,Transações!C:C,'Graph Data'!A309))","v":{"$error":"#N/A"}}]
[null,{"$f":"IF(SUMIFS(Transações!D:D,Transações!A:A,\">=\"&'Graph Data'!$E$2,Transações!A:A,\"<=\"&'Graph Data'!$E$3,Transações!C:C,'Graph Data'!A310)=0,NA(),SUMIFS(Transações!D:D,Transações!A:A,\">=\"&'Graph Data'!$E$2,Transações!A:A,\"<=\"&'Graph Data'!$E$3,Transações!C:C,'Graph Data'!A310))","v":{"$error":"#N/A"}}]
[null,{"$f":"IF(SUMIFS(Transações!D:D,Transações!A:A,\">=\"&'Graph Data'!$E$2,Transações!A:A,\"<=\"&'Graph Data'!$E$3,Transações!C:C,'Graph Data'!A311)=0,NA(),SUMIFS(Transações!D:D,Transações!A:A,\">=\"&'Graph Data'!$E$2,Transações!A:A,\"<=\"&'Graph Data'!$E$3,Transações!C:C,'Graph Data'!A311))","v":{"$error":"#N/A"}}]
[null,{"$f":"IF(SUMIFS(Transações!D:D,Transações!A:A,\">=\"&'Graph Data'!$E$2,Transações!A:A,\"<=\"&'Graph Data'!$E$3,Transações!C:C,'Graph Data'!A312)=0,NA(),SUMIFS(Transações!D:D,Transações!A:A,\">=\"&'Graph Data'!$E$2,Transações!A:A,\"<=\"&'Graph Data'!$E$3,Transações!C:C,'Graph Data'!A312))","v":{"$error":"#N/A"}}]
[null,{"$f":"IF(SUMIFS(Transações!D:D,Transações!A:A,\">=\"&'Graph Data'!$E$2,Transações!A:A,\"<=\"&'Graph Data'!$E$3,Transações!C:C,'Graph Data'!A313)=0,NA(),SUMIFS(Transações!D:D,Transações!A:A,\">=\"&'Graph Data'!$E$2,Transações!A:A,\"<=\"&'Graph Data'!$E$3,Transações!C:C,'Graph Data'!A313))","v":{"$error":"#N/A"}}]
[null,{"$f":"IF(SUMIFS(Transações!D:D,Transações!A:A,\">=\"&'Graph Data'!$E$2,Transações!A:A,\"<=\"&'Graph Data'!$E$3,Transações!C:C,'Graph Data'!A314)=0,NA(),SUMIFS(Transações!D:D,Transações!A:A,\">=\"&'Graph Data'!$E$2,Transações!A:A,\"<=\"&'Graph Data'!$E$3,Transações!C:C,'Graph Data'!A314))","v":{"$error":"#N/A"}}]
[null,{"$f":"IF(SUMIFS(Transações!D:D,Transações!A:A,\">=\"&'Graph Data'!$E$2,Transações!A:A,\"<=\"&'Graph Data'!$E$3,Transações!C:C,'Graph Data'!A315)=0,NA(),SUMIFS(Transações!D:D,Transações!A:A,\">=\"&'Graph Data'!$E$2,Transações!A:A,\"<=\"&'Graph Data'!$E$3,Transações!C:C,'Graph Data'!A315))","v":{"$error":"#N/A"}}]
[null,{"$f":"IF(SUMIFS(Transações!D:D,Transações!A:A,\">=\"&'Graph Data'!$E$2,Transações!A:A,\"<=\"&'Graph Data'!$E$3,Transações!C:C,'Graph Data'!A316)=0,NA(),SUMIFS(Transações!D:D,Transações!A:A,\">=\"&'Graph Data'!$E$2,Transações!A:A,\"<=\"&'Graph Data'!$E$3,Transações!C:C,'Graph Data'!A316))","v":{"$error":"#N/A"}}]
[null,{"$f":"IF(SUMIFS(Transações!D:D,Transações!A:A,\">=\"&'Graph Data'!$E$2,Transações!A:A,\"<=\"&'Graph Data'!$E$3,Transações!C:C,'Graph Data'!A317)=0,NA(),SUMIFS(Transações!D:D,Transações!A:A,\">=\"&'Graph Data'!$E$2,Transações!A:A,\"<=\"&'Graph Data'!$E$3,Transações!C:C,'Graph Data'!A317))","v":{"$error":"#N/A"}}]
[null,{"$f":"IF(SUMIFS(Transações!D:D,Transações!A:A,\">=\"&'Graph Data'!$E$2,Transações!A:A,\"<=\"&'Graph Data'!$E$3,Transações!C:C,'Graph Data'!A318)=0,NA(),SUMIFS(Transações!D:D,Transações!A:A,\">=\"&'Graph Data'!$E$2,Transações!A:A,\"<=\"&'Graph Data'!$E$3,Transações!C:C,'Graph Data'!A318))","v":{"$error":"#N/A"}}]
[null,{"$f":"IF(SUMIFS(Transações!D:D,Transações!A:A,\">=\"&'Graph Data'!$E$2,Transações!A:A,\"<=\"&'Graph Data'!$E$3,Transações!C:C,'Graph Data'!A319)=0,NA(),SUMIFS(Transações!D:D,Transações!A:A,\">=\"&'Graph Data'!$E$2,Transações!A:A,\"<=\"&'Graph Data'!$E$3,Transações!C:C,'Graph Data'!A319))","v":{"$error":"#N/A"}}]
[null,{"$f":"IF(SUMIFS(Transações!D:D,Transações!A:A,\">=\"&'Graph Data'!$E$2,Transações!A:A,\"<=\"&'Graph Data'!$E$3,Transações!C:C,'Graph Data'!A320)=0,NA(),SUMIFS(Transações!D:D,Transações!A:A,\">=\"&'Graph Data'!$E$2,Transações!A:A,\"<=\"&'Graph Data'!$E$3,Transações!C:C,'Graph Data'!A320))","v":{"$error":"#N/A"}}]
[null,{"$f":"IF(SUMIFS(Transações!D:D,Transações!A:A,\">=\"&'Graph Data'!$E$2,Transações!A:A,\"<=\"&'Graph Data'!$E$3,Transações!C:C,'Graph Data'!A321)=0,NA(),SUMIFS(Transações!D:D,Transações!A:A,\">=\"&'Graph Data'!$E$2,Transações!A:A,\"<=\"&'Graph Data'!$E$3,Transações!C:C,'Graph Data'!A321))","v":{"$error":"#N/A"}}]
[null,{"$f":"IF(SUMIFS(Transações!D:D,Transações!A:A,\">=\"&'Graph Data'!$E$2,Transações!A:A,\"<=\"&'Graph Data'!$E$3,Transações!C:C,'Graph Data'!A322)=0,NA(),SUMIFS(Transações!D:D,Transações!A:A,\">=\"&'Graph Data'!$E$2,Transações!A:A,\"<=\"&'Graph Data'!$E$3,Transações!C:C,'Graph Data'!A322))","v":{"$error":"#N/A"}}]
[null,{"$f":"IF(SUMIFS(Transações!D:D,Transações!A:A,\">=\"&'Graph Data'!$E$2,Transações!A:A,\"<=\"&'Graph Data'!$E$3,Transações!C:C,'Graph Data'!A323)=0,NA(),SUMIFS(Transações!D:D,Transações!A:A,\">=\"&'Graph Data'!$E$2,Transações!A:A,\"<=\"&'Graph Data'!$E$3,Transações!C:C,'Graph Data'!A323))","v":{"$error":"#N/A"}}]
[null,{"$f":"IF(SUMIFS(Transações!D:D,Transações!A:A,\">=\"&'Graph Data'!$E$2,Transações!A:A,\"<=\"&'Graph Data'!$E$3,Transações!C:C,'Graph Data'!A324)=0,NA(),SUMIFS(Transações!D:D,Transações!A:A,\">=\"&'Graph Data'!$E$2,Transações!A:A,\"<=\"&'Graph Data'!$E$3,Transações!C:C,'Graph Data'!A324))","v":{"$error":"#N/A"}}]
[null,{"$f":"IF(SUMIFS(Transações!D:D,Transações!A:A,\">=\"&'Graph Data'!$E$2,Transações!A:A,\"<=\"&'Graph Data'!$E$3,Transações!C:C,'Graph Data'!A325)=0,NA(),SUMIFS(Transações!D:D,Transações!A:A,\">=\"&'Graph Data'!$E$2,Transações!A:A,\"<=\"&'Graph Data'!$E$3,Transações!C:C,'Graph Data'!A325))","v":{"$error":"#N/A"}}]
[null,{"$f":"IF(SUMIFS(Transações!D:D,Transações!A:A,\">=\"&'Graph Data'!$E$2,Transações!A:A,\"<=\"&'Graph Data'!$E$3,Transações!C:C,'Graph Data'!A326)=0,NA(),SUMIFS(Transações!D:D,Transações!A:A,\">=\"&'Graph Data'!$E$2,Transações!A:A,\"<=\"&'Graph Data'!$E$3,Transações!C:C,'Graph Data'!A326))","v":{"$error":"#N/A"}}]
[null,{"$f":"IF(SUMIFS(Transações!D:D,Transações!A:A,\">=\"&'Graph Data'!$E$2,Transações!A:A,\"<=\"&'Graph Data'!$E$3,Transações!C:C,'Graph Data'!A327)=0,NA(),SUMIFS(Transações!D:D,Transações!A:A,\">=\"&'Graph Data'!$E$2,Transações!A:A,\"<=\"&'Graph Data'!$E$3,Transações!C:C,'Graph Data'!A327))","v":{"$error":"#N/A"}}]
[null,{"$f":"IF(SUMIFS(Transações!D:D,Transações!A:A,\">=\"&'Graph Data'!$E$2,Transações!A:A,\"<=\"&'Graph Data'!$E$3,Transações!C:C,'Graph Data'!A328)=0,NA(),SUMIFS(Transações!D:D,Transações!A:A,\">=\"&'Graph Data'!$E$2,Transações!A:A,\"<=\"&'Graph Data'!$E$3,Transações!C:C,'Graph Data'!A328))","v":{"$error":"#N/A"}}]
[null,{"$f":"IF(SUMIFS(Transações!D:D,Transações!A:A,\">=\"&'Graph Data'!$E$2,Transações!A:A,\"<=\"&'Graph Data'!$E$3,Transações!C:C,'Graph Data'!A329)=0,NA(),SUMIFS(Transações!D:D,Transações!A:A,\">=\"&'Graph Data'!$E$2,Transações!A:A,\"<=\"&'Graph Data'!$E$3,Transações!C:C,'Graph Data'!A329))","v":{"$error":"#N/A"}}]
[null,{"$f":"IF(SUMIFS(Transações!D:D,Transações!A:A,\">=\"&'Graph Data'!$E$2,Transações!A:A,\"<=\"&'Graph Data'!$E$3,Transações!C:C,'Graph Data'!A330)=0,NA(),SUMIFS(Transações!D:D,Transações!A:A,\">=\"&'Graph Data'!$E$2,Transações!A:A,\"<=\"&'Graph Data'!$E$3,Transações!C:C,'Graph Data'!A330))","v":{"$error":"#N/A"}}]
[null,{"$f":"IF(SUMIFS(Transações!D:D,Transações!A:A,\">=\"&'Graph Data'!$E$2,Transações!A:A,\"<=\"&'Graph Data'!$E$3,Transações!C:C,'Graph Data'!A331)=0,NA(),SUMIFS(Transações!D:D,Transações!A:A,\">=\"&'Graph Data'!$E$2,Transações!A:A,\"<=\"&'Graph Data'!$E$3,Transações!C:C,'Graph Data'!A331))","v":{"$error":"#N/A"}}]
[null,{"$f":"IF(SUMIFS(Transações!D:D,Transações!A:A,\">=\"&'Graph Data'!$E$2,Transações!A:A,\"<=\"&'Graph Data'!$E$3,Transações!C:C,'Graph Data'!A332)=0,NA(),SUMIFS(Transações!D:D,Transações!A:A,\">=\"&'Graph Data'!$E$2,Transações!A:A,\"<=\"&'Graph Data'!$E$3,Transações!C:C,'Graph Data'!A332))","v":{"$error":"#N/A"}}]
[null,{"$f":"IF(SUMIFS(Transações!D:D,Transações!A:A,\">=\"&'Graph Data'!$E$2,Transações!A:A,\"<=\"&'Graph Data'!$E$3,Transações!C:C,'Graph Data'!A333)=0,NA(),SUMIFS(Transações!D:D,Transações!A:A,\">=\"&'Graph Data'!$E$2,Transações!A:A,\"<=\"&'Graph Data'!$E$3,Transações!C:C,'Graph Data'!A333))","v":{"$error":"#N/A"}}]
[null,{"$f":"IF(SUMIFS(Transações!D:D,Transações!A:A,\">=\"&'Graph Data'!$E$2,Transações!A:A,\"<=\"&'Graph Data'!$E$3,Transações!C:C,'Graph Data'!A334)=0,NA(),SUMIFS(Transações!D:D,Transações!A:A,\">=\"&'Graph Data'!$E$2,Transações!A:A,\"<=\"&'Graph Data'!$E$3,Transações!C:C,'Graph Data'!A334))","v":{"$error":"#N/A"}}]
[null,{"$f":"IF(SUMIFS(Transações!D:D,Transações!A:A,\">=\"&'Graph Data'!$E$2,Transações!A:A,\"<=\"&'Graph Data'!$E$3,Transações!C:C,'Graph Data'!A335)=0,NA(),SUMIFS(Transações!D:D,Transações!A:A,\">=\"&'Graph Data'!$E$2,Transações!A:A,\"<=\"&'Graph Data'!$E$3,Transações!C:C,'Graph Data'!A335))","v":{"$error":"#N/A"}}]
[null,{"$f":"IF(SUMIFS(Transações!D:D,Transações!A:A,\">=\"&'Graph Data'!$E$2,Transações!A:A,\"<=\"&'Graph Data'!$E$3,Transações!C:C,'Graph Data'!A336)=0,NA(),SUMIFS(Transações!D:D,Transações!A:A,\">=\"&'Graph Data'!$E$2,Transações!A:A,\"<=\"&'Graph Data'!$E$3,Transações!C:C,'Graph Data'!A336))","v":{"$error":"#N/A"}}]
[null,{"$f":"IF(SUMIFS(Transações!D:D,Transações!A:A,\">=\"&'Graph Data'!$E$2,Transações!A:A,\"<=\"&'Graph Data'!$E$3,Transações!C:C,'Graph Data'!A337)=0,NA(),SUMIFS(Transações!D:D,Transações!A:A,\">=\"&'Graph Data'!$E$2,Transações!A:A,\"<=\"&'Graph Data'!$E$3,Transações!C:C,'Graph Data'!A337))","v":{"$error":"#N/A"}}]
[null,{"$f":"IF(SUMIFS(Transações!D:D,Transações!A:A,\">=\"&'Graph Data'!$E$2,Transações!A:A,\"<=\"&'Graph Data'!$E$3,Transações!C:C,'Graph Data'!A338)=0,NA(),SUMIFS(Transações!D:D,Transações!A:A,\">=\"&'Graph Data'!$E$2,Transações!A:A,\"<=\"&'Graph Data'!$E$3,Transações!C:C,'Graph Data'!A338))","v":{"$error":"#N/A"}}]
[null,{"$f":"IF(SUMIFS(Transações!D:D,Transações!A:A,\">=\"&'Graph Data'!$E$2,Transações!A:A,\"<=\"&'Graph Data'!$E$3,Transações!C:C,'Graph Data'!A339)=0,NA(),SUMIFS(Transações!D:D,Transações!A:A,\">=\"&'Graph Data'!$E$2,Transações!A:A,\"<=\"&'Graph Data'!$E$3,Transações!C:C,'Graph Data'!A339))","v":{"$error":"#N/A"}}]
[null,{"$f":"IF(SUMIFS(Transações!D:D,Transações!A:A,\">=\"&'Graph Data'!$E$2,Transações!A:A,\"<=\"&'Graph Data'!$E$3,Transações!C:C,'Graph Data'!A340)=0,NA(),SUMIFS(Transações!D:D,Transações!A:A,\">=\"&'Graph Data'!$E$2,Transações!A:A,\"<=\"&'Graph Data'!$E$3,Transações!C:C,'Graph Data'!A340))","v":{"$error":"#N/A"}}]
[null,{"$f":"IF(SUMIFS(Transações!D:D,Transações!A:A,\">=\"&'Graph Data'!$E$2,Transações!A:A,\"<=\"&'Graph Data'!$E$3,Transações!C:C,'Graph Data'!A341)=0,NA(),SUMIFS(Transações!D:D,Transações!A:A,\">=\"&'Graph Data'!$E$2,Transações!A:A,\"<=\"&'Graph Data'!$E$3,Transações!C:C,'Graph Data'!A341))","v":{"$error":"#N/A"}}]
[null,{"$f":"IF(SUMIFS(Transações!D:D,Transações!A:A,\">=\"&'Graph Data'!$E$2,Transações!A:A,\"<=\"&'Graph Data'!$E$3,Transações!C:C,'Graph Data'!A342)=0,NA(),SUMIFS(Transações!D:D,Transações!A:A,\">=\"&'Graph Data'!$E$2,Transações!A:A,\"<=\"&'Graph Data'!$E$3,Transações!C:C,'Graph Data'!A342))","v":{"$error":"#N/A"}}]
[null,{"$f":"IF(SUMIFS(Transações!D:D,Transações!A:A,\">=\"&'Graph Data'!$E$2,Transações!A:A,\"<=\"&'Graph Data'!$E$3,Transações!C:C,'Graph Data'!A343)=0,NA(),SUMIFS(Transações!D:D,Transações!A:A,\">=\"&'Graph Data'!$E$2,Transações!A:A,\"<=\"&'Graph Data'!$E$3,Transações!C:C,'Graph Data'!A343))","v":{"$error":"#N/A"}}]
[null,{"$f":"IF(SUMIFS(Transações!D:D,Transações!A:A,\">=\"&'Graph Data'!$E$2,Transações!A:A,\"<=\"&'Graph Data'!$E$3,Transações!C:C,'Graph Data'!A344)=0,NA(),SUMIFS(Transações!D:D,Transações!A:A,\">=\"&'Graph Data'!$E$2,Transações!A:A,\"<=\"&'Graph Data'!$E$3,Transações!C:C,'Graph Data'!A344))","v":{"$error":"#N/A"}}]
[null,{"$f":"IF(SUMIFS(Transações!D:D,Transações!A:A,\">=\"&'Graph Data'!$E$2,Transações!A:A,\"<=\"&'Graph Data'!$E$3,Transações!C:C,'Graph Data'!A345)=0,NA(),SUMIFS(Transações!D:D,Transações!A:A,\">=\"&'Graph Data'!$E$2,Transações!A:A,\"<=\"&'Graph Data'!$E$3,Transações!C:C,'Graph Data'!A345))","v":{"$error":"#N/A"}}]
[null,{"$f":"IF(SUMIFS(Transações!D:D,Transações!A:A,\">=\"&'Graph Data'!$E$2,Transações!A:A,\"<=\"&'Graph Data'!$E$3,Transações!C:C,'Graph Data'!A346)=0,NA(),SUMIFS(Transações!D:D,Transações!A:A,\">=\"&'Graph Data'!$E$2,Transações!A:A,\"<=\"&'Graph Data'!$E$3,Transações!C:C,'Graph Data'!A346))","v":{"$error":"#N/A"}}]
[null,{"$f":"IF(SUMIFS(Transações!D:D,Transações!A:A,\">=\"&'Graph Data'!$E$2,Transações!A:A,\"<=\"&'Graph Data'!$E$3,Transações!C:C,'Graph Data'!A347)=0,NA(),SUMIFS(Transações!D:D,Transações!A:A,\">=\"&'Graph Data'!$E$2,Transações!A:A,\"<=\"&'Graph Data'!$E$3,Transações!C:C,'Graph Data'!A347))","v":{"$error":"#N/A"}}]
[null,{"$f":"IF(SUMIFS(Transações!D:D,Transações!A:A,\">=\"&'Graph Data'!$E$2,Transações!A:A,\"<=\"&'Graph Data'!$E$3,Transações!C:C,'Graph Data'!A348)=0,NA(),SUMIFS(Transações!D:D,Transações!A:A,\">=\"&'Graph Data'!$E$2,Transações!A:A,\"<=\"&'Graph Data'!$E$3,Transações!C:C,'Graph Data'!A348))","v":{"$error":"#N/A"}}]
[null,{"$f":"IF(SUMIFS(Transações!D:D,Transações!A:A,\">=\"&'Graph Data'!$E$2,Transações!A:A,\"<=\"&'Graph Data'!$E$3,Transações!C:C,'Graph Data'!A349)=0,NA(),SUMIFS(Transações!D:D,Transações!A:A,\">=\"&'Graph Data'!$E$2,Transações!A:A,\"<=\"&'Graph Data'!$E$3,Transações!C:C,'Graph Data'!A349))","v":{"$error":"#N/A"}}]
[null,{"$f":"IF(SUMIFS(Transações!D:D,Transações!A:A,\">=\"&'Graph Data'!$E$2,Transações!A:A,\"<=\"&'Graph Data'!$E$3,Transações!C:C,'Graph Data'!A350)=0,NA(),SUMIFS(Transações!D:D,Transações!A:A,\">=\"&'Graph Data'!$E$2,Transações!A:A,\"<=\"&'Graph Data'!$E$3,Transações!C:C,'Graph Data'!A350))","v":{"$error":"#N/A"}}]
[null,{"$f":"IF(SUMIFS(Transações!D:D,Transações!A:A,\">=\"&'Graph Data'!$E$2,Transações!A:A,\"<=\"&'Graph Data'!$E$3,Transações!C:C,'Graph Data'!A351)=0,NA(),SUMIFS(Transações!D:D,Transações!A:A,\">=\"&'Graph Data'!$E$2,Transações!A:A,\"<=\"&'Graph Data'!$E$3,Transações!C:C,'Graph Data'!A351))","v":{"$error":"#N/A"}}]
[null,{"$f":"IF(SUMIFS(Transações!D:D,Transações!A:A,\">=\"&'Graph Data'!$E$2,Transações!A:A,\"<=\"&'Graph Data'!$E$3,Transações!C:C,'Graph Data'!A352)=0,NA(),SUMIFS(Transações!D:D,Transações!A:A,\">=\"&'Graph Data'!$E$2,Transações!A:A,\"<=\"&'Graph Data'!$E$3,Transações!C:C,'Graph Data'!A352))","v":{"$error":"#N/A"}}]
[null,{"$f":"IF(SUMIFS(Transações!D:D,Transações!A:A,\">=\"&'Graph Data'!$E$2,Transações!A:A,\"<=\"&'Graph Data'!$E$3,Transações!C:C,'Graph Data'!A353)=0,NA(),SUMIFS(Transações!D:D,Transações!A:A,\">=\"&'Graph Data'!$E$2,Transações!A:A,\"<=\"&'Graph Data'!$E$3,Transações!C:C,'Graph Data'!A353))","v":{"$error":"#N/A"}}]
[null,{"$f":"IF(SUMIFS(Transações!D:D,Transações!A:A,\">=\"&'Graph Data'!$E$2,Transações!A:A,\"<=\"&'Graph Data'!$E$3,Transações!C:C,'Graph Data'!A354)=0,NA(),SUMIFS(Transações!D:D,Transações!A:A,\">=\"&'Graph Data'!$E$2,Transações!A:A,\"<=\"&'Graph Data'!$E$3,Transações!C:C,'Graph Data'!A354))","v":{"$error":"#N/A"}}]
[null,{"$f":"IF(SUMIFS(Transações!D:D,Transações!A:A,\">=\"&'Graph Data'!$E$2,Transações!A:A,\"<=\"&'Graph Data'!$E$3,Transações!C:C,'Graph Data'!A355)=0,NA(),SUMIFS(Transações!D:D,Transações!A:A,\">=\"&'Graph Data'!$E$2,Transações!A:A,\"<=\"&'Graph Data'!$E$3,Transações!C:C,'Graph Data'!A355))","v":{"$error":"#N/A"}}]
[null,{"$f":"IF(SUMIFS(Transações!D:D,Transações!A:A,\">=\"&'Graph Data'!$E$2,Transações!A:A,\"<=\"&'Graph Data'!$E$3,Transações!C:C,'Graph Data'!A356)=0,NA(),SUMIFS(Transações!D:D,Transações!A:A,\">=\"&'Graph Data'!$E$2,Transações!A:A,\"<=\"&'Graph Data'!$E$3,Transações!C:C,'Graph Data'!A356))","v":{"$error":"#N/A"}}]
[null,{"$f":"IF(SUMIFS(Transações!D:D,Transações!A:A,\">=\"&'Graph Data'!$E$2,Transações!A:A,\"<=\"&'Graph Data'!$E$3,Transações!C:C,'Graph Data'!A357)=0,NA(),SUMIFS(Transações!D:D,Transações!A:A,\">=\"&'Graph Data'!$E$2,Transações!A:A,\"<=\"&'Graph Data'!$E$3,Transações!C:C,'Graph Data'!A357))","v":{"$error":"#N/A"}}]
[null,{"$f":"IF(SUMIFS(Transações!D:D,Transações!A:A,\">=\"&'Graph Data'!$E$2,Transações!A:A,\"<=\"&'Graph Data'!$E$3,Transações!C:C,'Graph Data'!A358)=0,NA(),SUMIFS(Transações!D:D,Transações!A:A,\">=\"&'Graph Data'!$E$2,Transações!A:A,\"<=\"&'Graph Data'!$E$3,Transações!C:C,'Graph Data'!A358))","v":{"$error":"#N/A"}}]
[null,{"$f":"IF(SUMIFS(Transações!D:D,Transações!A:A,\">=\"&'Graph Data'!$E$2,Transações!A:A,\"<=\"&'Graph Data'!$E$3,Transações!C:C,'Graph Data'!A359)=0,NA(),SUMIFS(Transações!D:D,Transações!A:A,\">=\"&'Graph Data'!$E$2,Transações!A:A,\"<=\"&'Graph Data'!$E$3,Transações!C:C,'Graph Data'!A359))","v":{"$error":"#N/A"}}]
[null,{"$f":"IF(SUMIFS(Transações!D:D,Transações!A:A,\">=\"&'Graph Data'!$E$2,Transações!A:A,\"<=\"&'Graph Data'!$E$3,Transações!C:C,'Graph Data'!A360)=0,NA(),SUMIFS(Transações!D:D,Transações!A:A,\">=\"&'Graph Data'!$E$2,Transações!A:A,\"<=\"&'Graph Data'!$E$3,Transações!C:C,'Graph Data'!A360))","v":{"$error":"#N/A"}}]
[null,{"$f":"IF(SUMIFS(Transações!D:D,Transações!A:A,\">=\"&'Graph Data'!$E$2,Transações!A:A,\"<=\"&'Graph Data'!$E$3,Transações!C:C,'Graph Data'!A361)=0,NA(),SUMIFS(Transações!D:D,Transações!A:A,\">=\"&'Graph Data'!$E$2,Transações!A:A,\"<=\"&'Graph Data'!$E$3,Transações!C:C,'Graph Data'!A361))","v":{"$error":"#N/A"}}]
[null,{"$f":"IF(SUMIFS(Transações!D:D,Transações!A:A,\">=\"&'Graph Data'!$E$2,Transações!A:A,\"<=\"&'Graph Data'!$E$3,Transações!C:C,'Graph Data'!A362)=0,NA(),SUMIFS(Transações!D:D,Transações!A:A,\">=\"&'Graph Data'!$E$2,Transações!A:A,\"<=\"&'Graph Data'!$E$3,Transações!C:C,'Graph Data'!A362))","v":{"$error":"#N/A"}}]
[null,{"$f":"IF(SUMIFS(Transações!D:D,Transações!A:A,\">=\"&'Graph Data'!$E$2,Transações!A:A,\"<=\"&'Graph Data'!$E$3,Transações!C:C,'Graph Data'!A363)=0,NA(),SUMIFS(Transações!D:D,Transações!A:A,\">=\"&'Graph Data'!$E$2,Transações!A:A,\"<=\"&'Graph Data'!$E$3,Transações!C:C,'Graph Data'!A363))","v":{"$error":"#N/A"}}]
[null,{"$f":"IF(SUMIFS(Transações!D:D,Transações!A:A,\">=\"&'Graph Data'!$E$2,Transações!A:A,\"<=\"&'Graph Data'!$E$3,Transações!C:C,'Graph Data'!A364)=0,NA(),SUMIFS(Transações!D:D,Transações!A:A,\">=\"&'Graph Data'!$E$2,Transações!A:A,\"<=\"&'Graph Data'!$E$3,Transações!C:C,'Graph Data'!A364))","v":{"$error":"#N/A"}}]
[null,{"$f":"IF(SUMIFS(Transações!D:D,Transações!A:A,\">=\"&'Graph Data'!$E$2,Transações!A:A,\"<=\"&'Graph Data'!$E$3,Transações!C:C,'Graph Data'!A365)=0,NA(),SUMIFS(Transações!D:D,Transações!A:A,\">=\"&'Graph Data'!$E$2,Transações!A:A,\"<=\"&'Graph Data'!$E$3,Transações!C:C,'Graph Data'!A365))","v":{"$error":"#N/A"}}]
[null,{"$f":"IF(SUMIFS(Transações!D:D,Transações!A:A,\">=\"&'Graph Data'!$E$2,Transações!A:A,\"<=\"&'Graph Data'!$E$3,Transações!C:C,'Graph Data'!A366)=0,NA(),SUMIFS(Transações!D:D,Transações!A:A,\">=\"&'Graph Data'!$E$2,Transações!A:A,\"<=\"&'Graph Data'!$E$3,Transações!C:C,'Graph Data'!A366))","v":{"$error":"#N/A"}}]
[null,{"$f":"IF(SUMIFS(Transações!D:D,Transações!A:A,\">=\"&'Graph Data'!$E$2,Transações!A:A,\"<=\"&'Graph Data'!$E$3,Transações!C:C,'Graph Data'!A367)=0,NA(),SUMIFS(Transações!D:D,Transações!A:A,\">=\"&'Graph Data'!$E$2,Transações!A:A,\"<=\"&'Graph Data'!$E$3,Transações!C:C,'Graph Data'!A367))","v":{"$error":"#N/A"}}]
[null,{"$f":"IF(SUMIFS(Transações!D:D,Transações!A:A,\">=\"&'Graph Data'!$E$2,Transações!A:A,\"<=\"&'Graph Data'!$E$3,Transações!C:C,'Graph Data'!A368)=0,NA(),SUMIFS(Transações!D:D,Transações!A:A,\">=\"&'Graph Data'!$E$2,Transações!A:A,\"<=\"&'Graph Data'!$E$3,Transações!C:C,'Graph Data'!A368))","v":{"$error":"#N/A"}}]
[null,{"$f":"IF(SUMIFS(Transações!D:D,Transações!A:A,\">=\"&'Graph Data'!$E$2,Transações!A:A,\"<=\"&'Graph Data'!$E$3,Transações!C:C,'Graph Data'!A369)=0,NA(),SUMIFS(Transações!D:D,Transações!A:A,\">=\"&'Graph Data'!$E$2,Transações!A:A,\"<=\"&'Graph Data'!$E$3,Transações!C:C,'Graph Data'!A369))","v":{"$error":"#N/A"}}]
[null,{"$f":"IF(SUMIFS(Transações!D:D,Transações!A:A,\">=\"&'Graph Data'!$E$2,Transações!A:A,\"<=\"&'Graph Data'!$E$3,Transações!C:C,'Graph Data'!A370)=0,NA(),SUMIFS(Transações!D:D,Transações!A:A,\">=\"&'Graph Data'!$E$2,Transações!A:A,\"<=\"&'Graph Data'!$E$3,Transações!C:C,'Graph Data'!A370))","v":{"$error":"#N/A"}}]
[null,{"$f":"IF(SUMIFS(Transações!D:D,Transações!A:A,\">=\"&'Graph Data'!$E$2,Transações!A:A,\"<=\"&'Graph Data'!$E$3,Transações!C:C,'Graph Data'!A371)=0,NA(),SUMIFS(Transações!D:D,Transações!A:A,\">=\"&'Graph Data'!$E$2,Transações!A:A,\"<=\"&'Graph Data'!$E$3,Transações!C:C,'Graph Data'!A371))","v":{"$error":"#N/A"}}]
[null,{"$f":"IF(SUMIFS(Transações!D:D,Transações!A:A,\">=\"&'Graph Data'!$E$2,Transações!A:A,\"<=\"&'Graph Data'!$E$3,Transações!C:C,'Graph Data'!A372)=0,NA(),SUMIFS(Transações!D:D,Transações!A:A,\">=\"&'Graph Data'!$E$2,Transações!A:A,\"<=\"&'Graph Data'!$E$3,Transações!C:C,'Graph Data'!A372))","v":{"$error":"#N/A"}}]
[null,{"$f":"IF(SUMIFS(Transações!D:D,Transações!A:A,\">=\"&'Graph Data'!$E$2,Transações!A:A,\"<=\"&'Graph Data'!$E$3,Transações!C:C,'Graph Data'!A373)=0,NA(),SUMIFS(Transações!D:D,Transações!A:A,\">=\"&'Graph Data'!$E$2,Transações!A:A,\"<=\"&'Graph Data'!$E$3,Transações!C:C,'Graph Data'!A373))","v":{"$error":"#N/A"}}]
[null,{"$f":"IF(SUMIFS(Transações!D:D,Transações!A:A,\">=\"&'Graph Data'!$E$2,Transações!A:A,\"<=\"&'Graph Data'!$E$3,Transações!C:C,'Graph Data'!A374)=0,NA(),SUMIFS(Transações!D:D,Transações!A:A,\">=\"&'Graph Data'!$E$2,Transações!A:A,\"<=\"&'Graph Data'!$E$3,Transações!C:C,'Graph Data'!A374))","v":{"$error":"#N/A"}}]
[null,{"$f":"IF(SUMIFS(Transações!D:D,Transações!A:A,\">=\"&'Graph Data'!$E$2,Transações!A:A,\"<=\"&'Graph Data'!$E$3,Transações!C:C,'Graph Data'!A375)=0,NA(),SUMIFS(Transações!D:D,Transações!A:A,\">=\"&'Graph Data'!$E$2,Transações!A:A,\"<=\"&'Graph Data'!$E$3,Transações!C:C,'Graph Data'!A375))","v":{"$error":"#N/A"}}]
[null,{"$f":"IF(SUMIFS(Transações!D:D,Transações!A:A,\">=\"&'Graph Data'!$E$2,Transações!A:A,\"<=\"&'Graph Data'!$E$3,Transações!C:C,'Graph Data'!A376)=0,NA(),SUMIFS(Transações!D:D,Transações!A:A,\">=\"&'Graph Data'!$E$2,Transações!A:A,\"<=\"&'Graph Data'!$E$3,Transações!C:C,'Graph Data'!A376))","v":{"$error":"#N/A"}}]
[null,{"$f":"IF(SUMIFS(Transações!D:D,Transações!A:A,\">=\"&'Graph Data'!$E$2,Transações!A:A,\"<=\"&'Graph Data'!$E$3,Transações!C:C,'Graph Data'!A377)=0,NA(),SUMIFS(Transações!D:D,Transações!A:A,\">=\"&'Graph Data'!$E$2,Transações!A:A,\"<=\"&'Graph Data'!$E$3,Transações!C:C,'Graph Data'!A377))","v":{"$error":"#N/A"}}]
[null,{"$f":"IF(SUMIFS(Transações!D:D,Transações!A:A,\">=\"&'Graph Data'!$E$2,Transações!A:A,\"<=\"&'Graph Data'!$E$3,Transações!C:C,'Graph Data'!A378)=0,NA(),SUMIFS(Transações!D:D,Transações!A:A,\">=\"&'Graph Data'!$E$2,Transações!A:A,\"<=\"&'Graph Data'!$E$3,Transações!C:C,'Graph Data'!A378))","v":{"$error":"#N/A"}}]
[null,{"$f":"IF(SUMIFS(Transações!D:D,Transações!A:A,\">=\"&'Graph Data'!$E$2,Transações!A:A,\"<=\"&'Graph Data'!$E$3,Transações!C:C,'Graph Data'!A379)=0,NA(),SUMIFS(Transações!D:D,Transações!A:A,\">=\"&'Graph Data'!$E$2,Transações!A:A,\"<=\"&'Graph Data'!$E$3,Transações!C:C,'Graph Data'!A379))","v":{"$error":"#N/A"}}]
[null,{"$f":"IF(SUMIFS(Transações!D:D,Transações!A:A,\">=\"&'Graph Data'!$E$2,Transações!A:A,\"<=\"&'Graph Data'!$E$3,Transações!C:C,'Graph Data'!A380)=0,NA(),SUMIFS(Transações!D:D,Transações!A:A,\">=\"&'Graph Data'!$E$2,Transações!A:A,\"<=\"&'Graph Data'!$E$3,Transações!C:C,'Graph Data'!A380))","v":{"$error":"#N/A"}}]
[null,{"$f":"IF(SUMIFS(Transações!D:D,Transações!A:A,\">=\"&'Graph Data'!$E$2,Transações!A:A,\"<=\"&'Graph Data'!$E$3,Transações!C:C,'Graph Data'!A381)=0,NA(),SUMIFS(Transações!D:D,Transações!A:A,\">=\"&'Graph Data'!$E$2,Transações!A:A,\"<=\"&'Graph Data'!$E$3,Transações!C:C,'Graph Data'!A381))","v":{"$error":"#N/A"}}]
[null,{"$f":"IF(SUMIFS(Transações!D:D,Transações!A:A,\">=\"&'Graph Data'!$E$2,Transações!A:A,\"<=\"&'Graph Data'!$E$3,Transações!C:C,'Graph Data'!A382)=0,NA(),SUMIFS(Transações!D:D,Transações!A:A,\">=\"&'Graph Data'!$E$2,Transações!A:A,\"<=\"&'Graph Data'!$E$3,Transações!C:C,'Graph Data'!A382))","v":{"$error":"#N/A"}}]
[null,{"$f":"IF(SUMIFS(Transações!D:D,Transações!A:A,\">=\"&'Graph Data'!$E$2,Transações!A:A,\"<=\"&'Graph Data'!$E$3,Transações!C:C,'Graph Data'!A383)=0,NA(),SUMIFS(Transações!D:D,Transações!A:A,\">=\"&'Graph Data'!$E$2,Transações!A:A,\"<=\"&'Graph Data'!$E$3,Transações!C:C,'Graph Data'!A383))","v":{"$error":"#N/A"}}]
[null,{"$f":"IF(SUMIFS(Transações!D:D,Transações!A:A,\">=\"&'Graph Data'!$E$2,Transações!A:A,\"<=\"&'Graph Data'!$E$3,Transações!C:C,'Graph Data'!A384)=0,NA(),SUMIFS(Transações!D:D,Transações!A:A,\">=\"&'Graph Data'!$E$2,Transações!A:A,\"<=\"&'Graph Data'!$E$3,Transações!C:C,'Graph Data'!A384))","v":{"$error":"#N/A"}}]
[null,{"$f":"IF(SUMIFS(Transações!D:D,Transações!A:A,\">=\"&'Graph Data'!$E$2,Transações!A:A,\"<=\"&'Graph Data'!$E$3,Transações!C:C,'Graph Data'!A385)=0,NA(),SUMIFS(Transações!D:D,Transações!A:A,\">=\"&'Graph Data'!$E$2,Transações!A:A,\"<=\"&'Graph Data'!$E$3,Transações!C:C,'Graph Data'!A385))","v":{"$error":"#N/A"}}]
[null,{"$f":"IF(SUMIFS(Transações!D:D,Transações!A:A,\">=\"&'Graph Data'!$E$2,Transações!A:A,\"<=\"&'Graph Data'!$E$3,Transações!C:C,'Graph Data'!A386)=0,NA(),SUMIFS(Transações!D:D,Transações!A:A,\">=\"&'Graph Data'!$E$2,Transações!A:A,\"<=\"&'Graph Data'!$E$3,Transações!C:C,'Graph Data'!A386))","v":{"$error":"#N/A"}}]
[null,{"$f":"IF(SUMIFS(Transações!D:D,Transações!A:A,\">=\"&'Graph Data'!$E$2,Transações!A:A,\"<=\"&'Graph Data'!$E$3,Transações!C:C,'Graph Data'!A387)=0,NA(),SUMIFS(Transações!D:D,Transações!A:A,\">=\"&'Graph Data'!$E$2,Transações!A:A,\"<=\"&'Graph Data'!$E$3,Transações!C:C,'Graph Data'!A387))","v":{"$error":"#N/A"}}]
[null,{"$f":"IF(SUMIFS(Transações!D:D,Transações!A:A,\">=\"&'Graph Data'!$E$2,Transações!A:A,\"<=\"&'Graph Data'!$E$3,Transações!C:C,'Graph Data'!A388)=0,NA(),SUMIFS(Transações!D:D,Transações!A:A,\">=\"&'Graph Data'!$E$2,Transações!A:A,\"<=\"&'Graph Data'!$E$3,Transações!C:C,'Graph Data'!A388))","v":{"$error":"#N/A"}}]
[null,{"$f":"IF(SUMIFS(Transações!D:D,Transações!A:A,\">=\"&'Graph Data'!$E$2,Transações!A:A,\"<=\"&'Graph Data'!$E$3,Transações!C:C,'Graph Data'!A389)=0,NA(),SUMIFS(Transações!D:D,Transações!A:A,\">=\"&'Graph Data'!$E$2,Transações!A:A,\"<=\"&'Graph Data'!$E$3,Transações!C:C,'Graph Data'!A389))","v":{"$error":"#N/A"}}]
[null,{"$f":"IF(SUMIFS(Transações!D:D,Transações!A:A,\">=\"&'Graph Data'!$E$2,Transações!A:A,\"<=\"&'Graph Data'!$E$3,Transações!C:C,'Graph Data'!A390)=0,NA(),SUMIFS(Transações!D:D,Transações!A:A,\">=\"&'Graph Data'!$E$2,Transações!A:A,\"<=\"&'Graph Data'!$E$3,Transações!C:C,'Graph Data'!A390))","v":{"$error":"#N/A"}}]
[null,{"$f":"IF(SUMIFS(Transações!D:D,Transações!A:A,\">=\"&'Graph Data'!$E$2,Transações!A:A,\"<=\"&'Graph Data'!$E$3,Transações!C:C,'Graph Data'!A391)=0,NA(),SUMIFS(Transações!D:D,Transações!A:A,\">=\"&'Graph Data'!$E$2,Transações!A:A,\"<=\"&'Graph Data'!$E$3,Transações!C:C,'Graph Data'!A391))","v":{"$error":"#N/A"}}]
[null,{"$f":"IF(SUMIFS(Transações!D:D,Transações!A:A,\">=\"&'Graph Data'!$E$2,Transações!A:A,\"<=\"&'Graph Data'!$E$3,Transações!C:C,'Graph Data'!A392)=0,NA(),SUMIFS(Transações!D:D,Transações!A:A,\">=\"&'Graph Data'!$E$2,Transações!A:A,\"<=\"&'Graph Data'!$E$3,Transações!C:C,'Graph Data'!A392))","v":{"$error":"#N/A"}}]
[null,{"$f":"IF(SUMIFS(Transações!D:D,Transações!A:A,\">=\"&'Graph Data'!$E$2,Transações!A:A,\"<=\"&'Graph Data'!$E$3,Transações!C:C,'Graph Data'!A393)=0,NA(),SUMIFS(Transações!D:D,Transações!A:A,\">=\"&'Graph Data'!$E$2,Transações!A:A,\"<=\"&'Graph Data'!$E$3,Transações!C:C,'Graph Data'!A393))","v":{"$error":"#N/A"}}]
[null,{"$f":"IF(SUMIFS(Transações!D:D,Transações!A:A,\">=\"&'Graph Data'!$E$2,Transações!A:A,\"<=\"&'Graph Data'!$E$3,Transações!C:C,'Graph Data'!A394)=0,NA(),SUMIFS(Transações!D:D,Transações!A:A,\">=\"&'Graph Data'!$E$2,Transações!A:A,\"<=\"&'Graph Data'!$E$3,Transações!C:C,'Graph Data'!A394))","v":{"$error":"#N/A"}}]
[null,{"$f":"IF(SUMIFS(Transações!D:D,Transações!A:A,\">=\"&'Graph Data'!$E$2,Transações!A:A,\"<=\"&'Graph Data'!$E$3,Transações!C:C,'Graph Data'!A395)=0,NA(),SUMIFS(Transações!D:D,Transações!A:A,\">=\"&'Graph Data'!$E$2,Transações!A:A,\"<=\"&'Graph Data'!$E$3,Transações!C:C,'Graph Data'!A395))","v":{"$error":"#N/A"}}]
[null,{"$f":"IF(SUMIFS(Transações!D:D,Transações!A:A,\">=\"&'Graph Data'!$E$2,Transações!A:A,\"<=\"&'Graph Data'!$E$3,Transações!C:C,'Graph Data'!A396)=0,NA(),SUMIFS(Transações!D:D,Transações!A:A,\">=\"&'Graph Data'!$E$2,Transações!A:A,\"<=\"&'Graph Data'!$E$3,Transações!C:C,'Graph Data'!A396))","v":{"$error":"#N/A"}}]
[null,{"$f":"IF(SUMIFS(Transações!D:D,Transações!A:A,\">=\"&'Graph Data'!$E$2,Transações!A:A,\"<=\"&'Graph Data'!$E$3,Transações!C:C,'Graph Data'!A397)=0,NA(),SUMIFS(Transações!D:D,Transações!A:A,\">=\"&'Graph Data'!$E$2,Transações!A:A,\"<=\"&'Graph Data'!$E$3,Transações!C:C,'Graph Data'!A397))","v":{"$error":"#N/A"}}]
[null,{"$f":"IF(SUMIFS(Transações!D:D,Transações!A:A,\">=\"&'Graph Data'!$E$2,Transações!A:A,\"<=\"&'Graph Data'!$E$3,Transações!C:C,'Graph Data'!A398)=0,NA(),SUMIFS(Transações!D:D,Transações!A:A,\">=\"&'Graph Data'!$E$2,Transações!A:A,\"<=\"&'Graph Data'!$E$3,Transações!C:C,'Graph Data'!A398))","v":{"$error":"#N/A"}}]
[null,{"$f":"IF(SUMIFS(Transações!D:D,Transações!A:A,\">=\"&'Graph Data'!$E$2,Transações!A:A,\"<=\"&'Graph Data'!$E$3,Transações!C:C,'Graph Data'!A399)=0,NA(),SUMIFS(Transações!D:D,Transações!A:A,\">=\"&'Graph Data'!$E$2,Transações!A:A,\"<=\"&'Graph Data'!$E$3,Transações!C:C,'Graph Data'!A399))","v":{"$error":"#N/A"}}]
[null,{"$f":"IF(SUMIFS(Transações!D:D,Transações!A:A,\">=\"&'Graph Data'!$E$2,Transações!A:A,\"<=\"&'Graph Data'!$E$3,Transações!C:C,'Graph Data'!A400)=0,NA(),SUMIFS(Transações!D:D,Transações!A:A,\">=\"&'Graph Data'!$E$2,Transações!A:A,\"<=\"&'Graph Data'!$E$3,Transações!C:C,'Graph Data'!A400))","v":{"$error":"#N/A"}}]
[null,{"$f":"IF(SUMIFS(Transações!D:D,Transações!A:A,\">=\"&'Graph Data'!$E$2,Transações!A:A,\"<=\"&'Graph Data'!$E$3,Transações!C:C,'Graph Data'!A401)=0,NA(),SUMIFS(Transações!D:D,Transações!A:A,\">=\"&'Graph Data'!$E$2,Transações!A:A,\"<=\"&'Graph Data'!$E$3,Transações!C:C,'Graph Data'!A401))","v":{"$error":"#N/A"}}]
[null,{"$f":"IF(SUMIFS(Transações!D:D,Transações!A:A,\">=\"&'Graph Data'!$E$2,Transações!A:A,\"<=\"&'Graph Data'!$E$3,Transações!C:C,'Graph Data'!A402)=0,NA(),SUMIFS(Transações!D:D,Transações!A:A,\">=\"&'Graph Data'!$E$2,Transações!A:A,\"<=\"&'Graph Data'!$E$3,Transações!C:C,'Graph Data'!A402))","v":{"$error":"#N/A"}}]
[null,{"$f":"IF(SUMIFS(Transações!D:D,Transações!A:A,\">=\"&'Graph Data'!$E$2,Transações!A:A,\"<=\"&'Graph Data'!$E$3,Transações!C:C,'Graph Data'!A403)=0,NA(),SUMIFS(Transações!D:D,Transações!A:A,\">=\"&'Graph Data'!$E$2,Transações!A:A,\"<=\"&'Graph Data'!$E$3,Transações!C:C,'Graph Data'!A403))","v":{"$error":"#N/A"}}]
[null,{"$f":"IF(SUMIFS(Transações!D:D,Transações!A:A,\">=\"&'Graph Data'!$E$2,Transações!A:A,\"<=\"&'Graph Data'!$E$3,Transações!C:C,'Graph Data'!A404)=0,NA(),SUMIFS(Transações!D:D,Transações!A:A,\">=\"&'Graph Data'!$E$2,Transações!A:A,\"<=\"&'Graph Data'!$E$3,Transações!C:C,'Graph Data'!A404))","v":{"$error":"#N/A"}}]
[null,{"$f":"IF(SUMIFS(Transações!D:D,Transações!A:A,\">=\"&'Graph Data'!$E$2,Transações!A:A,\"<=\"&'Graph Data'!$E$3,Transações!C:C,'Graph Data'!A405)=0,NA(),SUMIFS(Transações!D:D,Transações!A:A,\">=\"&'Graph Data'!$E$2,Transações!A:A,\"<=\"&'Graph Data'!$E$3,Transações!C:C,'Graph Data'!A405))","v":{"$error":"#N/A"}}]
[null,{"$f":"IF(SUMIFS(Transações!D:D,Transações!A:A,\">=\"&'Graph Data'!$E$2,Transações!A:A,\"<=\"&'Graph Data'!$E$3,Transações!C:C,'Graph Data'!A406)=0,NA(),SUMIFS(Transações!D:D,Transações!A:A,\">=\"&'Graph Data'!$E$2,Transações!A:A,\"<=\"&'Graph Data'!$E$3,Transações!C:C,'Graph Data'!A406))","v":{"$error":"#N/A"}}]
[null,{"$f":"IF(SUMIFS(Transações!D:D,Transações!A:A,\">=\"&'Graph Data'!$E$2,Transações!A:A,\"<=\"&'Graph Data'!$E$3,Transações!C:C,'Graph Data'!A407)=0,NA(),SUMIFS(Transações!D:D,Transações!A:A,\">=\"&'Graph Data'!$E$2,Transações!A:A,\"<=\"&'Graph Data'!$E$3,Transações!C:C,'Graph Data'!A407))","v":{"$error":"#N/A"}}]
[null,{"$f":"IF(SUMIFS(Transações!D:D,Transações!A:A,\">=\"&'Graph Data'!$E$2,Transações!A:A,\"<=\"&'Graph Data'!$E$3,Transações!C:C,'Graph Data'!A408)=0,NA(),SUMIFS(Transações!D:D,Transações!A:A,\">=\"&'Graph Data'!$E$2,Transações!A:A,\"<=\"&'Graph Data'!$E$3,Transações!C:C,'Graph Data'!A408))","v":{"$error":"#N/A"}}]
[null,{"$f":"IF(SUMIFS(Transações!D:D,Transações!A:A,\">=\"&'Graph Data'!$E$2,Transações!A:A,\"<=\"&'Graph Data'!$E$3,Transações!C:C,'Graph Data'!A409)=0,NA(),SUMIFS(Transações!D:D,Transações!A:A,\">=\"&'Graph Data'!$E$2,Transações!A:A,\"<=\"&'Graph Data'!$E$3,Transações!C:C,'Graph Data'!A409))","v":{"$error":"#N/A"}}]
[null,{"$f":"IF(SUMIFS(Transações!D:D,Transações!A:A,\">=\"&'Graph Data'!$E$2,Transações!A:A,\"<=\"&'Graph Data'!$E$3,Transações!C:C,'Graph Data'!A410)=0,NA(),SUMIFS(Transações!D:D,Transações!A:A,\">=\"&'Graph Data'!$E$2,Transações!A:A,\"<=\"&'Graph Data'!$E$3,Transações!C:C,'Graph Data'!A410))","v":{"$error":"#N/A"}}]
[null,{"$f":"IF(SUMIFS(Transações!D:D,Transações!A:A,\">=\"&'Graph Data'!$E$2,Transações!A:A,\"<=\"&'Graph Data'!$E$3,Transações!C:C,'Graph Data'!A411)=0,NA(),SUMIFS(Transações!D:D,Transações!A:A,\">=\"&'Graph Data'!$E$2,Transações!A:A,\"<=\"&'Graph Data'!$E$3,Transações!C:C,'Graph Data'!A411))","v":{"$error":"#N/A"}}]
[null,{"$f":"IF(SUMIFS(Transações!D:D,Transações!A:A,\">=\"&'Graph Data'!$E$2,Transações!A:A,\"<=\"&'Graph Data'!$E$3,Transações!C:C,'Graph Data'!A412)=0,NA(),SUMIFS(Transações!D:D,Transações!A:A,\">=\"&'Graph Data'!$E$2,Transações!A:A,\"<=\"&'Graph Data'!$E$3,Transações!C:C,'Graph Data'!A412))","v":{"$error":"#N/A"}}]
[null,{"$f":"IF(SUMIFS(Transações!D:D,Transações!A:A,\">=\"&'Graph Data'!$E$2,Transações!A:A,\"<=\"&'Graph Data'!$E$3,Transações!C:C,'Graph Data'!A413)=0,NA(),SUMIFS(Transações!D:D,Transações!A:A,\">=\"&'Graph Data'!$E$2,Transações!A:A,\"<=\"&'Graph Data'!$E$3,Transações!C:C,'Graph Data'!A413))","v":{"$error":"#N/A"}}]
[null,{"$f":"IF(SUMIFS(Transações!D:D,Transações!A:A,\">=\"&'Graph Data'!$E$2,Transações!A:A,\"<=\"&'Graph Data'!$E$3,Transações!C:C,'Graph Data'!A414)=0,NA(),SUMIFS(Transações!D:D,Transações!A:A,\">=\"&'Graph Data'!$E$2,Transações!A:A,\"<=\"&'Graph Data'!$E$3,Transações!C:C,'Graph Data'!A414))","v":{"$error":"#N/A"}}]
[null,{"$f":"IF(SUMIFS(Transações!D:D,Transações!A:A,\">=\"&'Graph Data'!$E$2,Transações!A:A,\"<=\"&'Graph Data'!$E$3,Transações!C:C,'Graph Data'!A415)=0,NA(),SUMIFS(Transações!D:D,Transações!A:A,\">=\"&'Graph Data'!$E$2,Transações!A:A,\"<=\"&'Graph Data'!$E$3,Transações!C:C,'Graph Data'!A415))","v":{"$error":"#N/A"}}]
[null,{"$f":"IF(SUMIFS(Transações!D:D,Transações!A:A,\">=\"&'Graph Data'!$E$2,Transações!A:A,\"<=\"&'Graph Data'!$E$3,Transações!C:C,'Graph Data'!A416)=0,NA(),SUMIFS(Transações!D:D,Transações!A:A,\">=\"&'Graph Data'!$E$2,Transações!A:A,\"<=\"&'Graph Data'!$E$3,Transações!C:C,'Graph Data'!A416))","v":{"$error":"#N/A"}}]
[null,{"$f":"IF(SUMIFS(Transações!D:D,Transações!A:A,\">=\"&'Graph Data'!$E$2,Transações!A:A,\"<=\"&'Graph Data'!$E$3,Transações!C:C,'Graph Data'!A417)=0,NA(),SUMIFS(Transações!D:D,Transações!A:A,\">=\"&'Graph Data'!$E$2,Transações!A:A,\"<=\"&'Graph Data'!$E$3,Transações!C:C,'Graph Data'!A417))","v":{"$error":"#N/A"}}]
[null,{"$f":"IF(SUMIFS(Transações!D:D,Transações!A:A,\">=\"&'Graph Data'!$E$2,Transações!A:A,\"<=\"&'Graph Data'!$E$3,Transações!C:C,'Graph Data'!A418)=0,NA(),SUMIFS(Transações!D:D,Transações!A:A,\">=\"&'Graph Data'!$E$2,Transações!A:A,\"<=\"&'Graph Data'!$E$3,Transações!C:C,'Graph Data'!A418))","v":{"$error":"#N/A"}}]
[null,{"$f":"IF(SUMIFS(Transações!D:D,Transações!A:A,\">=\"&'Graph Data'!$E$2,Transações!A:A,\"<=\"&'Graph Data'!$E$3,Transações!C:C,'Graph Data'!A419)=0,NA(),SUMIFS(Transações!D:D,Transações!A:A,\">=\"&'Graph Data'!$E$2,Transações!A:A,\"<=\"&'Graph Data'!$E$3,Transações!C:C,'Graph Data'!A419))","v":{"$error":"#N/A"}}]
[null,{"$f":"IF(SUMIFS(Transações!D:D,Transações!A:A,\">=\"&'Graph Data'!$E$2,Transações!A:A,\"<=\"&'Graph Data'!$E$3,Transações!C:C,'Graph Data'!A420)=0,NA(),SUMIFS(Transações!D:D,Transações!A:A,\">=\"&'Graph Data'!$E$2,Transações!A:A,\"<=\"&'Graph Data'!$E$3,Transações!C:C,'Graph Data'!A420))","v":{"$error":"#N/A"}}]
[null,{"$f":"IF(SUMIFS(Transações!D:D,Transações!A:A,\">=\"&'Graph Data'!$E$2,Transações!A:A,\"<=\"&'Graph Data'!$E$3,Transações!C:C,'Graph Data'!A421)=0,NA(),SUMIFS(Transações!D:D,Transações!A:A,\">=\"&'Graph Data'!$E$2,Transações!A:A,\"<=\"&'Graph Data'!$E$3,Transações!C:C,'Graph Data'!A421))","v":{"$error":"#N/A"}}]
[null,{"$f":"IF(SUMIFS(Transações!D:D,Transações!A:A,\">=\"&'Graph Data'!$E$2,Transações!A:A,\"<=\"&'Graph Data'!$E$3,Transações!C:C,'Graph Data'!A422)=0,NA(),SUMIFS(Transações!D:D,Transações!A:A,\">=\"&'Graph Data'!$E$2,Transações!A:A,\"<=\"&'Graph Data'!$E$3,Transações!C:C,'Graph Data'!A422))","v":{"$error":"#N/A"}}]
[null,{"$f":"IF(SUMIFS(Transações!D:D,Transações!A:A,\">=\"&'Graph Data'!$E$2,Transações!A:A,\"<=\"&'Graph Data'!$E$3,Transações!C:C,'Graph Data'!A423)=0,NA(),SUMIFS(Transações!D:D,Transações!A:A,\">=\"&'Graph Data'!$E$2,Transações!A:A,\"<=\"&'Graph Data'!$E$3,Transações!C:C,'Graph Data'!A423))","v":{"$error":"#N/A"}}]
[null,{"$f":"IF(SUMIFS(Transações!D:D,Transações!A:A,\">=\"&'Graph Data'!$E$2,Transações!A:A,\"<=\"&'Graph Data'!$E$3,Transações!C:C,'Graph Data'!A424)=0,NA(),SUMIFS(Transações!D:D,Transações!A:A,\">=\"&'Graph Data'!$E$2,Transações!A:A,\"<=\"&'Graph Data'!$E$3,Transações!C:C,'Graph Data'!A424))","v":{"$error":"#N/A"}}]
[null,{"$f":"IF(SUMIFS(Transações!D:D,Transações!A:A,\">=\"&'Graph Data'!$E$2,Transações!A:A,\"<=\"&'Graph Data'!$E$3,Transações!C:C,'Graph Data'!A425)=0,NA(),SUMIFS(Transações!D:D,Transações!A:A,\">=\"&'Graph Data'!$E$2,Transações!A:A,\"<=\"&'Graph Data'!$E$3,Transações!C:C,'Graph Data'!A425))","v":{"$error":"#N/A"}}]
[null,{"$f":"IF(SUMIFS(Transações!D:D,Transações!A:A,\">=\"&'Graph Data'!$E$2,Transações!A:A,\"<=\"&'Graph Data'!$E$3,Transações!C:C,'Graph Data'!A426)=0,NA(),SUMIFS(Transações!D:D,Transações!A:A,\">=\"&'Graph Data'!$E$2,Transações!A:A,\"<=\"&'Graph Data'!$E$3,Transações!C:C,'Graph Data'!A426))","v":{"$error":"#N/A"}}]
[null,{"$f":"IF(SUMIFS(Transações!D:D,Transações!A:A,\">=\"&'Graph Data'!$E$2,Transações!A:A,\"<=\"&'Graph Data'!$E$3,Transações!C:C,'Graph Data'!A427)=0,NA(),SUMIFS(Transações!D:D,Transações!A:A,\">=\"&'Graph Data'!$E$2,Transações!A:A,\"<=\"&'Graph Data'!$E$3,Transações!C:C,'Graph Data'!A427))","v":{"$error":"#N/A"}}]
[null,{"$f":"IF(SUMIFS(Transações!D:D,Transações!A:A,\">=\"&'Graph Data'!$E$2,Transações!A:A,\"<=\"&'Graph Data'!$E$3,Transações!C:C,'Graph Data'!A428)=0,NA(),SUMIFS(Transações!D:D,Transações!A:A,\">=\"&'Graph Data'!$E$2,Transações!A:A,\"<=\"&'Graph Data'!$E$3,Transações!C:C,'Graph Data'!A428))","v":{"$error":"#N/A"}}]
[null,{"$f":"IF(SUMIFS(Transações!D:D,Transações!A:A,\">=\"&'Graph Data'!$E$2,Transações!A:A,\"<=\"&'Graph Data'!$E$3,Transações!C:C,'Graph Data'!A429)=0,NA(),SUMIFS(Transações!D:D,Transações!A:A,\">=\"&'Graph Data'!$E$2,Transações!A:A,\"<=\"&'Graph Data'!$E$3,Transações!C:C,'Graph Data'!A429))","v":{"$error":"#N/A"}}]
[null,{"$f":"IF(SUMIFS(Transações!D:D,Transações!A:A,\">=\"&'Graph Data'!$E$2,Transações!A:A,\"<=\"&'Graph Data'!$E$3,Transações!C:C,'Graph Data'!A430)=0,NA(),SUMIFS(Transações!D:D,Transações!A:A,\">=\"&'Graph Data'!$E$2,Transações!A:A,\"<=\"&'Graph Data'!$E$3,Transações!C:C,'Graph Data'!A430))","v":{"$error":"#N/A"}}]
[null,{"$f":"IF(SUMIFS(Transações!D:D,Transações!A:A,\">=\"&'Graph Data'!$E$2,Transações!A:A,\"<=\"&'Graph Data'!$E$3,Transações!C:C,'Graph Data'!A431)=0,NA(),SUMIFS(Transações!D:D,Transações!A:A,\">=\"&'Graph Data'!$E$2,Transações!A:A,\"<=\"&'Graph Data'!$E$3,Transações!C:C,'Graph Data'!A431))","v":{"$error":"#N/A"}}]
[null,{"$f":"IF(SUMIFS(Transações!D:D,Transações!A:A,\">=\"&'Graph Data'!$E$2,Transações!A:A,\"<=\"&'Graph Data'!$E$3,Transações!C:C,'Graph Data'!A432)=0,NA(),SUMIFS(Transações!D:D,Transações!A:A,\">=\"&'Graph Data'!$E$2,Transações!A:A,\"<=\"&'Graph Data'!$E$3,Transações!C:C,'Graph Data'!A432))","v":{"$error":"#N/A"}}]
[null,{"$f":"IF(SUMIFS(Transações!D:D,Transações!A:A,\">=\"&'Graph Data'!$E$2,Transações!A:A,\"<=\"&'Graph Data'!$E$3,Transações!C:C,'Graph Data'!A433)=0,NA(),SUMIFS(Transações!D:D,Transações!A:A,\">=\"&'Graph Data'!$E$2,Transações!A:A,\"<=\"&'Graph Data'!$E$3,Transações!C:C,'Graph Data'!A433))","v":{"$error":"#N/A"}}]
[null,{"$f":"IF(SUMIFS(Transações!D:D,Transações!A:A,\">=\"&'Graph Data'!$E$2,Transações!A:A,\"<=\"&'Graph Data'!$E$3,Transações!C:C,'Graph Data'!A434)=0,NA(),SUMIFS(Transações!D:D,Transações!A:A,\">=\"&'Graph Data'!$E$2,Transações!A:A,\"<=\"&'Graph Data'!$E$3,Transações!C:C,'Graph Data'!A434))","v":{"$error":"#N/A"}}]
[null,{"$f":"IF(SUMIFS(Transações!D:D,Transações!A:A,\">=\"&'Graph Data'!$E$2,Transações!A:A,\"<=\"&'Graph Data'!$E$3,Transações!C:C,'Graph Data'!A435)=0,NA(),SUMIFS(Transações!D:D,Transações!A:A,\">=\"&'Graph Data'!$E$2,Transações!A:A,\"<=\"&'Graph Data'!$E$3,Transações!C:C,'Graph Data'!A435))","v":{"$error":"#N/A"}}]
[null,{"$f":"IF(SUMIFS(Transações!D:D,Transações!A:A,\">=\"&'Graph Data'!$E$2,Transações!A:A,\"<=\"&'Graph Data'!$E$3,Transações!C:C,'Graph Data'!A436)=0,NA(),SUMIFS(Transações!D:D,Transações!A:A,\">=\"&'Graph Data'!$E$2,Transações!A:A,\"<=\"&'Graph Data'!$E$3,Transações!C:C,'Graph Data'!A436))","v":{"$error":"#N/A"}}]
[null,{"$f":"IF(SUMIFS(Transações!D:D,Transações!A:A,\">=\"&'Graph Data'!$E$2,Transações!A:A,\"<=\"&'Graph Data'!$E$3,Transações!C:C,'Graph Data'!A437)=0,NA(),SUMIFS(Transações!D:D,Transações!A:A,\">=\"&'Graph Data'!$E$2,Transações!A:A,\"<=\"&'Graph Data'!$E$3,Transações!C:C,'Graph Data'!A437))","v":{"$error":"#N/A"}}]
[null,{"$f":"IF(SUMIFS(Transações!D:D,Transações!A:A,\">=\"&'Graph Data'!$E$2,Transações!A:A,\"<=\"&'Graph Data'!$E$3,Transações!C:C,'Graph Data'!A438)=0,NA(),SUMIFS(Transações!D:D,Transações!A:A,\">=\"&'Graph Data'!$E$2,Transações!A:A,\"<=\"&'Graph Data'!$E$3,Transações!C:C,'Graph Data'!A438))","v":{"$error":"#N/A"}}]
[null,{"$f":"IF(SUMIFS(Transações!D:D,Transações!A:A,\">=\"&'Graph Data'!$E$2,Transações!A:A,\"<=\"&'Graph Data'!$E$3,Transações!C:C,'Graph Data'!A439)=0,NA(),SUMIFS(Transações!D:D,Transações!A:A,\">=\"&'Graph Data'!$E$2,Transações!A:A,\"<=\"&'Graph Data'!$E$3,Transações!C:C,'Graph Data'!A439))","v":{"$error":"#N/A"}}]
[null,{"$f":"IF(SUMIFS(Transações!D:D,Transações!A:A,\">=\"&'Graph Data'!$E$2,Transações!A:A,\"<=\"&'Graph Data'!$E$3,Transações!C:C,'Graph Data'!A440)=0,NA(),SUMIFS(Transações!D:D,Transações!A:A,\">=\"&'Graph Data'!$E$2,Transações!A:A,\"<=\"&'Graph Data'!$E$3,Transações!C:C,'Graph Data'!A440))","v":{"$error":"#N/A"}}]
[null,{"$f":"IF(SUMIFS(Transações!D:D,Transações!A:A,\">=\"&'Graph Data'!$E$2,Transações!A:A,\"<=\"&'Graph Data'!$E$3,Transações!C:C,'Graph Data'!A441)=0,NA(),SUMIFS(Transações!D:D,Transações!A:A,\">=\"&'Graph Data'!$E$2,Transações!A:A,\"<=\"&'Graph Data'!$E$3,Transações!C:C,'Graph Data'!A441))","v":{"$error":"#N/A"}}]
[null,{"$f":"IF(SUMIFS(Transações!D:D,Transações!A:A,\">=\"&'Graph Data'!$E$2,Transações!A:A,\"<=\"&'Graph Data'!$E$3,Transações!C:C,'Graph Data'!A442)=0,NA(),SUMIFS(Transações!D:D,Transações!A:A,\">=\"&'Graph Data'!$E$2,Transações!A:A,\"<=\"&'Graph Data'!$E$3,Transações!C:C,'Graph Data'!A442))","v":{"$error":"#N/A"}}]
[null,{"$f":"IF(SUMIFS(Transações!D:D,Transações!A:A,\">=\"&'Graph Data'!$E$2,Transações!A:A,\"<=\"&'Graph Data'!$E$3,Transações!C:C,'Graph Data'!A443)=0,NA(),SUMIFS(Transações!D:D,Transações!A:A,\">=\"&'Graph Data'!$E$2,Transações!A:A,\"<=\"&'Graph Data'!$E$3,Transações!C:C,'Graph Data'!A443))","v":{"$error":"#N/A"}}]
[null,{"$f":"IF(SUMIFS(Transações!D:D,Transações!A:A,\">=\"&'Graph Data'!$E$2,Transações!A:A,\"<=\"&'Graph Data'!$E$3,Transações!C:C,'Graph Data'!A444)=0,NA(),SUMIFS(Transações!D:D,Transações!A:A,\">=\"&'Graph Data'!$E$2,Transações!A:A,\"<=\"&'Graph Data'!$E$3,Transações!C:C,'Graph Data'!A444))","v":{"$error":"#N/A"}}]
[null,{"$f":"IF(SUMIFS(Transações!D:D,Transações!A:A,\">=\"&'Graph Data'!$E$2,Transações!A:A,\"<=\"&'Graph Data'!$E$3,Transações!C:C,'Graph Data'!A445)=0,NA(),SUMIFS(Transações!D:D,Transações!A:A,\">=\"&'Graph Data'!$E$2,Transações!A:A,\"<=\"&'Graph Data'!$E$3,Transações!C:C,'Graph Data'!A445))","v":{"$error":"#N/A"}}]
[null,{"$f":"IF(SUMIFS(Transações!D:D,Transações!A:A,\">=\"&'Graph Data'!$E$2,Transações!A:A,\"<=\"&'Graph Data'!$E$3,Transações!C:C,'Graph Data'!A446)=0,NA(),SUMIFS(Transações!D:D,Transações!A:A,\">=\"&'Graph Data'!$E$2,Transações!A:A,\"<=\"&'Graph Data'!$E$3,Transações!C:C,'Graph Data'!A446))","v":{"$error":"#N/A"}}]
[null,{"$f":"IF(SUMIFS(Transações!D:D,Transações!A:A,\">=\"&'Graph Data'!$E$2,Transações!A:A,\"<=\"&'Graph Data'!$E$3,Transações!C:C,'Graph Data'!A447)=0,NA(),SUMIFS(Transações!D:D,Transações!A:A,\">=\"&'Graph Data'!$E$2,Transações!A:A,\"<=\"&'Graph Data'!$E$3,Transações!C:C,'Graph Data'!A447))","v":{"$error":"#N/A"}}]
[null,{"$f":"IF(SUMIFS(Transações!D:D,Transações!A:A,\">=\"&'Graph Data'!$E$2,Transações!A:A,\"<=\"&'Graph Data'!$E$3,Transações!C:C,'Graph Data'!A448)=0,NA(),SUMIFS(Transações!D:D,Transações!A:A,\">=\"&'Graph Data'!$E$2,Transações!A:A,\"<=\"&'Graph Data'!$E$3,Transações!C:C,'Graph Data'!A448))","v":{"$error":"#N/A"}}]
[null,{"$f":"IF(SUMIFS(Transações!D:D,Transações!A:A,\">=\"&'Graph Data'!$E$2,Transações!A:A,\"<=\"&'Graph Data'!$E$3,Transações!C:C,'Graph Data'!A449)=0,NA(),SUMIFS(Transações!D:D,Transações!A:A,\">=\"&'Graph Data'!$E$2,Transações!A:A,\"<=\"&'Graph Data'!$E$3,Transações!C:C,'Graph Data'!A449))","v":{"$error":"#N/A"}}]
[null,{"$f":"IF(SUMIFS(Transações!D:D,Transações!A:A,\">=\"&'Graph Data'!$E$2,Transações!A:A,\"<=\"&'Graph Data'!$E$3,Transações!C:C,'Graph Data'!A450)=0,NA(),SUMIFS(Transações!D:D,Transações!A:A,\">=\"&'Graph Data'!$E$2,Transações!A:A,\"<=\"&'Graph Data'!$E$3,Transações!C:C,'Graph Data'!A450))","v":{"$error":"#N/A"}}]
[null,{"$f":"IF(SUMIFS(Transações!D:D,Transações!A:A,\">=\"&'Graph Data'!$E$2,Transações!A:A,\"<=\"&'Graph Data'!$E$3,Transações!C:C,'Graph Data'!A451)=0,NA(),SUMIFS(Transações!D:D,Transações!A:A,\">=\"&'Graph Data'!$E$2,Transações!A:A,\"<=\"&'Graph Data'!$E$3,Transações!C:C,'Graph Data'!A451))","v":{"$error":"#N/A"}}]
[null,{"$f":"IF(SUMIFS(Transações!D:D,Transações!A:A,\">=\"&'Graph Data'!$E$2,Transações!A:A,\"<=\"&'Graph Data'!$E$3,Transações!C:C,'Graph Data'!A452)=0,NA(),SUMIFS(Transações!D:D,Transações!A:A,\">=\"&'Graph Data'!$E$2,Transações!A:A,\"<=\"&'Graph Data'!$E$3,Transações!C:C,'Graph Data'!A452))","v":{"$error":"#N/A"}}]
[null,{"$f":"IF(SUMIFS(Transações!D:D,Transações!A:A,\">=\"&'Graph Data'!$E$2,Transações!A:A,\"<=\"&'Graph Data'!$E$3,Transações!C:C,'Graph Data'!A453)=0,NA(),SUMIFS(Transações!D:D,Transações!A:A,\">=\"&'Graph Data'!$E$2,Transações!A:A,\"<=\"&'Graph Data'!$E$3,Transações!C:C,'Graph Data'!A453))","v":{"$error":"#N/A"}}]
[null,{"$f":"IF(SUMIFS(Transações!D:D,Transações!A:A,\">=\"&'Graph Data'!$E$2,Transações!A:A,\"<=\"&'Graph Data'!$E$3,Transações!C:C,'Graph Data'!A454)=0,NA(),SUMIFS(Transações!D:D,Transações!A:A,\">=\"&'Graph Data'!$E$2,Transações!A:A,\"<=\"&'Graph Data'!$E$3,Transações!C:C,'Graph Data'!A454))","v":{"$error":"#N/A"}}]
[null,{"$f":"IF(SUMIFS(Transações!D:D,Transações!A:A,\">=\"&'Graph Data'!$E$2,Transações!A:A,\"<=\"&'Graph Data'!$E$3,Transações!C:C,'Graph Data'!A455)=0,NA(),SUMIFS(Transações!D:D,Transações!A:A,\">=\"&'Graph Data'!$E$2,Transações!A:A,\"<=\"&'Graph Data'!$E$3,Transações!C:C,'Graph Data'!A455))","v":{"$error":"#N/A"}}]
[null,{"$f":"IF(SUMIFS(Transações!D:D,Transações!A:A,\">=\"&'Graph Data'!$E$2,Transações!A:A,\"<=\"&'Graph Data'!$E$3,Transações!C:C,'Graph Data'!A456)=0,NA(),SUMIFS(Transações!D:D,Transações!A:A,\">=\"&'Graph Data'!$E$2,Transações!A:A,\"<=\"&'Graph Data'!$E$3,Transações!C:C,'Graph Data'!A456))","v":{"$error":"#N/A"}}]
[null,{"$f":"IF(SUMIFS(Transações!D:D,Transações!A:A,\">=\"&'Graph Data'!$E$2,Transações!A:A,\"<=\"&'Graph Data'!$E$3,Transações!C:C,'Graph Data'!A457)=0,NA(),SUMIFS(Transações!D:D,Transações!A:A,\">=\"&'Graph Data'!$E$2,Transações!A:A,\"<=\"&'Graph Data'!$E$3,Transações!C:C,'Graph Data'!A457))","v":{"$error":"#N/A"}}]
[null,{"$f":"IF(SUMIFS(Transações!D:D,Transações!A:A,\">=\"&'Graph Data'!$E$2,Transações!A:A,\"<=\"&'Graph Data'!$E$3,Transações!C:C,'Graph Data'!A458)=0,NA(),SUMIFS(Transações!D:D,Transações!A:A,\">=\"&'Graph Data'!$E$2,Transações!A:A,\"<=\"&'Graph Data'!$E$3,Transações!C:C,'Graph Data'!A458))","v":{"$error":"#N/A"}}]
[null,{"$f":"IF(SUMIFS(Transações!D:D,Transações!A:A,\">=\"&'Graph Data'!$E$2,Transações!A:A,\"<=\"&'Graph Data'!$E$3,Transações!C:C,'Graph Data'!A459)=0,NA(),SUMIFS(Transações!D:D,Transações!A:A,\">=\"&'Graph Data'!$E$2,Transações!A:A,\"<=\"&'Graph Data'!$E$3,Transações!C:C,'Graph Data'!A459))","v":{"$error":"#N/A"}}]
[null,{"$f":"IF(SUMIFS(Transações!D:D,Transações!A:A,\">=\"&'Graph Data'!$E$2,Transações!A:A,\"<=\"&'Graph Data'!$E$3,Transações!C:C,'Graph Data'!A460)=0,NA(),SUMIFS(Transações!D:D,Transações!A:A,\">=\"&'Graph Data'!$E$2,Transações!A:A,\"<=\"&'Graph Data'!$E$3,Transações!C:C,'Graph Data'!A460))","v":{"$error":"#N/A"}}]
[null,{"$f":"IF(SUMIFS(Transações!D:D,Transações!A:A,\">=\"&'Graph Data'!$E$2,Transações!A:A,\"<=\"&'Graph Data'!$E$3,Transações!C:C,'Graph Data'!A461)=0,NA(),SUMIFS(Transações!D:D,Transações!A:A,\">=\"&'Graph Data'!$E$2,Transações!A:A,\"<=\"&'Graph Data'!$E$3,Transações!C:C,'Graph Data'!A461))","v":{"$error":"#N/A"}}]
[null,{"$f":"IF(SUMIFS(Transações!D:D,Transações!A:A,\">=\"&'Graph Data'!$E$2,Transações!A:A,\"<=\"&'Graph Data'!$E$3,Transações!C:C,'Graph Data'!A462)=0,NA(),SUMIFS(Transações!D:D,Transações!A:A,\">=\"&'Graph Data'!$E$2,Transações!A:A,\"<=\"&'Graph Data'!$E$3,Transações!C:C,'Graph Data'!A462))","v":{"$error":"#N/A"}}]
[null,{"$f":"IF(SUMIFS(Transações!D:D,Transações!A:A,\">=\"&'Graph Data'!$E$2,Transações!A:A,\"<=\"&'Graph Data'!$E$3,Transações!C:C,'Graph Data'!A463)=0,NA(),SUMIFS(Transações!D:D,Transações!A:A,\">=\"&'Graph Data'!$E$2,Transações!A:A,\"<=\"&'Graph Data'!$E$3,Transações!C:C,'Graph Data'!A463))","v":{"$error":"#N/A"}}]
[null,{"$f":"IF(SUMIFS(Transações!D:D,Transações!A:A,\">=\"&'Graph Data'!$E$2,Transações!A:A,\"<=\"&'Graph Data'!$E$3,Transações!C:C,'Graph Data'!A464)=0,NA(),SUMIFS(Transações!D:D,Transações!A:A,\">=\"&'Graph Data'!$E$2,Transações!A:A,\"<=\"&'Graph Data'!$E$3,Transações!C:C,'Graph Data'!A464))","v":{"$error":"#N/A"}}]
[null,{"$f":"IF(SUMIFS(Transações!D:D,Transações!A:A,\">=\"&'Graph Data'!$E$2,Transações!A:A,\"<=\"&'Graph Data'!$E$3,Transações!C:C,'Graph Data'!A465)=0,NA(),SUMIFS(Transações!D:D,Transações!A:A,\">=\"&'Graph Data'!$E$2,Transações!A:A,\"<=\"&'Graph Data'!$E$3,Transações!C:C,'Graph Data'!A465))","v":{"$error":"#N/A"}}]
[null,{"$f":"IF(SUMIFS(Transações!D:D,Transações!A:A,\">=\"&'Graph Data'!$E$2,Transações!A:A,\"<=\"&'Graph Data'!$E$3,Transações!C:C,'Graph Data'!A466)=0,NA(),SUMIFS(Transações!D:D,Transações!A:A,\">=\"&'Graph Data'!$E$2,Transações!A:A,\"<=\"&'Graph Data'!$E$3,Transações!C:C,'Graph Data'!A466))","v":{"$error":"#N/A"}}]
[null,{"$f":"IF(SUMIFS(Transações!D:D,Transações!A:A,\">=\"&'Graph Data'!$E$2,Transações!A:A,\"<=\"&'Graph Data'!$E$3,Transações!C:C,'Graph Data'!A467)=0,NA(),SUMIFS(Transações!D:D,Transações!A:A,\">=\"&'Graph Data'!$E$2,Transações!A:A,\"<=\"&'Graph Data'!$E$3,Transações!C:C,'Graph Data'!A467))","v":{"$error":"#N/A"}}]
[null,{"$f":"IF(SUMIFS(Transações!D:D,Transações!A:A,\">=\"&'Graph Data'!$E$2,Transações!A:A,\"<=\"&'Graph Data'!$E$3,Transações!C:C,'Graph Data'!A468)=0,NA(),SUMIFS(Transações!D:D,Transações!A:A,\">=\"&'Graph Data'!$E$2,Transações!A:A,\"<=\"&'Graph Data'!$E$3,Transações!C:C,'Graph Data'!A468))","v":{"$error":"#N/A"}}]
[null,{"$f":"IF(SUMIFS(Transações!D:D,Transações!A:A,\">=\"&'Graph Data'!$E$2,Transações!A:A,\"<=\"&'Graph Data'!$E$3,Transações!C:C,'Graph Data'!A469)=0,NA(),SUMIFS(Transações!D:D,Transações!A:A,\">=\"&'Graph Data'!$E$2,Transações!A:A,\"<=\"&'Graph Data'!$E$3,Transações!C:C,'Graph Data'!A469))","v":{"$error":"#N/A"}}]
[null,{"$f":"IF(SUMIFS(Transações!D:D,Transações!A:A,\">=\"&'Graph Data'!$E$2,Transações!A:A,\"<=\"&'Graph Data'!$E$3,Transações!C:C,'Graph Data'!A470)=0,NA(),SUMIFS(Transações!D:D,Transações!A:A,\">=\"&'Graph Data'!$E$2,Transações!A:A,\"<=\"&'Graph Data'!$E$3,Transações!C:C,'Graph Data'!A470))","v":{"$error":"#N/A"}}]
[null,{"$f":"IF(SUMIFS(Transações!D:D,Transações!A:A,\">=\"&'Graph Data'!$E$2,Transações!A:A,\"<=\"&'Graph Data'!$E$3,Transações!C:C,'Graph Data'!A471)=0,NA(),SUMIFS(Transações!D:D,Transações!A:A,\">=\"&'Graph Data'!$E$2,Transações!A:A,\"<=\"&'Graph Data'!$E$3,Transações!C:C,'Graph Data'!A471))","v":{"$error":"#N/A"}}]
[null,{"$f":"IF(SUMIFS(Transações!D:D,Transações!A:A,\">=\"&'Graph Data'!$E$2,Transações!A:A,\"<=\"&'Graph Data'!$E$3,Transações!C:C,'Graph Data'!A472)=0,NA(),SUMIFS(Transações!D:D,Transações!A:A,\">=\"&'Graph Data'!$E$2,Transações!A:A,\"<=\"&'Graph Data'!$E$3,Transações!C:C,'Graph Data'!A472))","v":{"$error":"#N/A"}}]
[null,{"$f":"IF(SUMIFS(Transações!D:D,Transações!A:A,\">=\"&'Graph Data'!$E$2,Transações!A:A,\"<=\"&'Graph Data'!$E$3,Transações!C:C,'Graph Data'!A473)=0,NA(),SUMIFS(Transações!D:D,Transações!A:A,\">=\"&'Graph Data'!$E$2,Transações!A:A,\"<=\"&'Graph Data'!$E$3,Transações!C:C,'Graph Data'!A473))","v":{"$error":"#N/A"}}]
[null,{"$f":"IF(SUMIFS(Transações!D:D,Transações!A:A,\">=\"&'Graph Data'!$E$2,Transações!A:A,\"<=\"&'Graph Data'!$E$3,Transações!C:C,'Graph Data'!A474)=0,NA(),SUMIFS(Transações!D:D,Transações!A:A,\">=\"&'Graph Data'!$E$2,Transações!A:A,\"<=\"&'Graph Data'!$E$3,Transações!C:C,'Graph Data'!A474))","v":{"$error":"#N/A"}}]
[null,{"$f":"IF(SUMIFS(Transações!D:D,Transações!A:A,\">=\"&'Graph Data'!$E$2,Transações!A:A,\"<=\"&'Graph Data'!$E$3,Transações!C:C,'Graph Data'!A475)=0,NA(),SUMIFS(Transações!D:D,Transações!A:A,\">=\"&'Graph Data'!$E$2,Transações!A:A,\"<=\"&'Graph Data'!$E$3,Transações!C:C,'Graph Data'!A475))","v":{"$error":"#N/A"}}]
[null,{"$f":"IF(SUMIFS(Transações!D:D,Transações!A:A,\">=\"&'Graph Data'!$E$2,Transações!A:A,\"<=\"&'Graph Data'!$E$3,Transações!C:C,'Graph Data'!A476)=0,NA(),SUMIFS(Transações!D:D,Transações!A:A,\">=\"&'Graph Data'!$E$2,Transações!A:A,\"<=\"&'Graph Data'!$E$3,Transações!C:C,'Graph Data'!A476))","v":{"$error":"#N/A"}}]
[null,{"$f":"IF(SUMIFS(Transações!D:D,Transações!A:A,\">=\"&'Graph Data'!$E$2,Transações!A:A,\"<=\"&'Graph Data'!$E$3,Transações!C:C,'Graph Data'!A477)=0,NA(),SUMIFS(Transações!D:D,Transações!A:A,\">=\"&'Graph Data'!$E$2,Transações!A:A,\"<=\"&'Graph Data'!$E$3,Transações!C:C,'Graph Data'!A477))","v":{"$error":"#N/A"}}]
[null,{"$f":"IF(SUMIFS(Transações!D:D,Transações!A:A,\">=\"&'Graph Data'!$E$2,Transações!A:A,\"<=\"&'Graph Data'!$E$3,Transações!C:C,'Graph Data'!A478)=0,NA(),SUMIFS(Transações!D:D,Transações!A:A,\">=\"&'Graph Data'!$E$2,Transações!A:A,\"<=\"&'Graph Data'!$E$3,Transações!C:C,'Graph Data'!A478))","v":{"$error":"#N/A"}}]
[null,{"$f":"IF(SUMIFS(Transações!D:D,Transações!A:A,\">=\"&'Graph Data'!$E$2,Transações!A:A,\"<=\"&'Graph Data'!$E$3,Transações!C:C,'Graph Data'!A479)=0,NA(),SUMIFS(Transações!D:D,Transações!A:A,\">=\"&'Graph Data'!$E$2,Transações!A:A,\"<=\"&'Graph Data'!$E$3,Transações!C:C,'Graph Data'!A479))","v":{"$error":"#N/A"}}]
[null,{"$f":"IF(SUMIFS(Transações!D:D,Transações!A:A,\">=\"&'Graph Data'!$E$2,Transações!A:A,\"<=\"&'Graph Data'!$E$3,Transações!C:C,'Graph Data'!A480)=0,NA(),SUMIFS(Transações!D:D,Transações!A:A,\">=\"&'Graph Data'!$E$2,Transações!A:A,\"<=\"&'Graph Data'!$E$3,Transações!C:C,'Graph Data'!A480))","v":{"$error":"#N/A"}}]
[null,{"$f":"IF(SUMIFS(Transações!D:D,Transações!A:A,\">=\"&'Graph Data'!$E$2,Transações!A:A,\"<=\"&'Graph Data'!$E$3,Transações!C:C,'Graph Data'!A481)=0,NA(),SUMIFS(Transações!D:D,Transações!A:A,\">=\"&'Graph Data'!$E$2,Transações!A:A,\"<=\"&'Graph Data'!$E$3,Transações!C:C,'Graph Data'!A481))","v":{"$error":"#N/A"}}]
[null,{"$f":"IF(SUMIFS(Transações!D:D,Transações!A:A,\">=\"&'Graph Data'!$E$2,Transações!A:A,\"<=\"&'Graph Data'!$E$3,Transações!C:C,'Graph Data'!A482)=0,NA(),SUMIFS(Transações!D:D,Transações!A:A,\">=\"&'Graph Data'!$E$2,Transações!A:A,\"<=\"&'Graph Data'!$E$3,Transações!C:C,'Graph Data'!A482))","v":{"$error":"#N/A"}}]
[null,{"$f":"IF(SUMIFS(Transações!D:D,Transações!A:A,\">=\"&'Graph Data'!$E$2,Transações!A:A,\"<=\"&'Graph Data'!$E$3,Transações!C:C,'Graph Data'!A483)=0,NA(),SUMIFS(Transações!D:D,Transações!A:A,\">=\"&'Graph Data'!$E$2,Transações!A:A,\"<=\"&'Graph Data'!$E$3,Transações!C:C,'Graph Data'!A483))","v":{"$error":"#N/A"}}]
[null,{"$f":"IF(SUMIFS(Transações!D:D,Transações!A:A,\">=\"&'Graph Data'!$E$2,Transações!A:A,\"<=\"&'Graph Data'!$E$3,Transações!C:C,'Graph Data'!A484)=0,NA(),SUMIFS(Transações!D:D,Transações!A:A,\">=\"&'Graph Data'!$E$2,Transações!A:A,\"<=\"&'Graph Data'!$E$3,Transações!C:C,'Graph Data'!A484))","v":{"$error":"#N/A"}}]
[null,{"$f":"IF(SUMIFS(Transações!D:D,Transações!A:A,\">=\"&'Graph Data'!$E$2,Transações!A:A,\"<=\"&'Graph Data'!$E$3,Transações!C:C,'Graph Data'!A485)=0,NA(),SUMIFS(Transações!D:D,Transações!A:A,\">=\"&'Graph Data'!$E$2,Transações!A:A,\"<=\"&'Graph Data'!$E$3,Transações!C:C,'Graph Data'!A485))","v":{"$error":"#N/A"}}]
[null,{"$f":"IF(SUMIFS(Transações!D:D,Transações!A:A,\">=\"&'Graph Data'!$E$2,Transações!A:A,\"<=\"&'Graph Data'!$E$3,Transações!C:C,'Graph Data'!A486)=0,NA(),SUMIFS(Transações!D:D,Transações!A:A,\">=\"&'Graph Data'!$E$2,Transações!A:A,\"<=\"&'Graph Data'!$E$3,Transações!C:C,'Graph Data'!A486))","v":{"$error":"#N/A"}}]
[null,{"$f":"IF(SUMIFS(Transações!D:D,Transações!A:A,\">=\"&'Graph Data'!$E$2,Transações!A:A,\"<=\"&'Graph Data'!$E$3,Transações!C:C,'Graph Data'!A487)=0,NA(),SUMIFS(Transações!D:D,Transações!A:A,\">=\"&'Graph Data'!$E$2,Transações!A:A,\"<=\"&'Graph Data'!$E$3,Transações!C:C,'Graph Data'!A487))","v":{"$error":"#N/A"}}]
[null,{"$f":"IF(SUMIFS(Transações!D:D,Transações!A:A,\">=\"&'Graph Data'!$E$2,Transações!A:A,\"<=\"&'Graph Data'!$E$3,Transações!C:C,'Graph Data'!A488)=0,NA(),SUMIFS(Transações!D:D,Transações!A:A,\">=\"&'Graph Data'!$E$2,Transações!A:A,\"<=\"&'Graph Data'!$E$3,Transações!C:C,'Graph Data'!A488))","v":{"$error":"#N/A"}}]
[null,{"$f":"IF(SUMIFS(Transações!D:D,Transações!A:A,\">=\"&'Graph Data'!$E$2,Transações!A:A,\"<=\"&'Graph Data'!$E$3,Transações!C:C,'Graph Data'!A489)=0,NA(),SUMIFS(Transações!D:D,Transações!A:A,\">=\"&'Graph Data'!$E$2,Transações!A:A,\"<=\"&'Graph Data'!$E$3,Transações!C:C,'Graph Data'!A489))","v":{"$error":"#N/A"}}]
[null,{"$f":"IF(SUMIFS(Transações!D:D,Transações!A:A,\">=\"&'Graph Data'!$E$2,Transações!A:A,\"<=\"&'Graph Data'!$E$3,Transações!C:C,'Graph Data'!A490)=0,NA(),SUMIFS(Transações!D:D,Transações!A:A,\">=\"&'Graph Data'!$E$2,Transações!A:A,\"<=\"&'Graph Data'!$E$3,Transações!C:C,'Graph Data'!A490))","v":{"$error":"#N/A"}}]
[null,{"$f":"IF(SUMIFS(Transações!D:D,Transações!A:A,\">=\"&'Graph Data'!$E$2,Transações!A:A,\"<=\"&'Graph Data'!$E$3,Transações!C:C,'Graph Data'!A491)=0,NA(),SUMIFS(Transações!D:D,Transações!A:A,\">=\"&'Graph Data'!$E$2,Transações!A:A,\"<=\"&'Graph Data'!$E$3,Transações!C:C,'Graph Data'!A491))","v":{"$error":"#N/A"}}]
[null,{"$f":"IF(SUMIFS(Transações!D:D,Transações!A:A,\">=\"&'Graph Data'!$E$2,Transações!A:A,\"<=\"&'Graph Data'!$E$3,Transações!C:C,'Graph Data'!A492)=0,NA(),SUMIFS(Transações!D:D,Transações!A:A,\">=\"&'Graph Data'!$E$2,Transações!A:A,\"<=\"&'Graph Data'!$E$3,Transações!C:C,'Graph Data'!A492))","v":{"$error":"#N/A"}}]
[null,{"$f":"IF(SUMIFS(Transações!D:D,Transações!A:A,\">=\"&'Graph Data'!$E$2,Transações!A:A,\"<=\"&'Graph Data'!$E$3,Transações!C:C,'Graph Data'!A493)=0,NA(),SUMIFS(Transações!D:D,Transações!A:A,\">=\"&'Graph Data'!$E$2,Transações!A:A,\"<=\"&'Graph Data'!$E$3,Transações!C:C,'Graph Data'!A493))","v":{"$error":"#N/A"}}]
[null,{"$f":"IF(SUMIFS(Transações!D:D,Transações!A:A,\">=\"&'Graph Data'!$E$2,Transações!A:A,\"<=\"&'Graph Data'!$E$3,Transações!C:C,'Graph Data'!A494)=0,NA(),SUMIFS(Transações!D:D,Transações!A:A,\">=\"&'Graph Data'!$E$2,Transações!A:A,\"<=\"&'Graph Data'!$E$3,Transações!C:C,'Graph Data'!A494))","v":{"$error":"#N/A"}}]
[null,{"$f":"IF(SUMIFS(Transações!D:D,Transações!A:A,\">=\"&'Graph Data'!$E$2,Transações!A:A,\"<=\"&'Graph Data'!$E$3,Transações!C:C,'Graph Data'!A495)=0,NA(),SUMIFS(Transações!D:D,Transações!A:A,\">=\"&'Graph Data'!$E$2,Transações!A:A,\"<=\"&'Graph Data'!$E$3,Transações!C:C,'Graph Data'!A495))","v":{"$error":"#N/A"}}]
[null,{"$f":"IF(SUMIFS(Transações!D:D,Transações!A:A,\">=\"&'Graph Data'!$E$2,Transações!A:A,\"<=\"&'Graph Data'!$E$3,Transações!C:C,'Graph Data'!A496)=0,NA(),SUMIFS(Transações!D:D,Transações!A:A,\">=\"&'Graph Data'!$E$2,Transações!A:A,\"<=\"&'Graph Data'!$E$3,Transações!C:C,'Graph Data'!A496))","v":{"$error":"#N/A"}}]
[null,{"$f":"IF(SUMIFS(Transações!D:D,Transações!A:A,\">=\"&'Graph Data'!$E$2,Transações!A:A,\"<=\"&'Graph Data'!$E$3,Transações!C:C,'Graph Data'!A497)=0,NA(),SUMIFS(Transações!D:D,Transações!A:A,\">=\"&'Graph Data'!$E$2,Transações!A:A,\"<=\"&'Graph Data'!$E$3,Transações!C:C,'Graph Data'!A497))","v":{"$error":"#N/A"}}]
[null,{"$f":"IF(SUMIFS(Transações!D:D,Transações!A:A,\">=\"&'Graph Data'!$E$2,Transações!A:A,\"<=\"&'Graph Data'!$E$3,Transações!C:C,'Graph Data'!A498)=0,NA(),SUMIFS(Transações!D:D,Transações!A:A,\">=\"&'Graph Data'!$E$2,Transações!A:A,\"<=\"&'Graph Data'!$E$3,Transações!C:C,'Graph Data'!A498))","v":{"$error":"#N/A"}}]
[null,{"$f":"IF(SUMIFS(Transações!D:D,Transações!A:A,\">=\"&'Graph Data'!$E$2,Transações!A:A,\"<=\"&'Graph Data'!$E$3,Transações!C:C,'Graph Data'!A499)=0,NA(),SUMIFS(Transações!D:D,Transações!A:A,\">=\"&'Graph Data'!$E$2,Transações!A:A,\"<=\"&'Graph Data'!$E$3,Transações!C:C,'Graph Data'!A499))","v":{"$error":"#N/A"}}]
[null,{"$f":"IF(SUMIFS(Transações!D:D,Transações!A:A,\">=\"&'Graph Data'!$E$2,Transações!A:A,\"<=\"&'Graph Data'!$E$3,Transações!C:C,'Graph Data'!A500)=0,NA(),SUMIFS(Transações!D:D,Transações!A:A,\">=\"&'Graph Data'!$E$2,Transações!A:A,\"<=\"&'Graph Data'!$E$3,Transações!C:C,'Graph Data'!A500))","v":{"$error":"#N/A"}}]
[null,{"$f":"IF(SUMIFS(Transações!D:D,Transações!A:A,\">=\"&'Graph Data'!$E$2,Transações!A:A,\"<=\"&'Graph Data'!$E$3,Transações!C:C,'Graph Data'!A501)=0,NA(),SUMIFS(Transações!D:D,Transações!A:A,\">=\"&'Graph Data'!$E$2,Transações!A:A,\"<=\"&'Graph Data'!$E$3,Transações!C:C,'Graph Data'!A501))","v":{"$error":"#N/A"}}]
[null,{"$f":"IF(SUMIFS(Transações!D:D,Transações!A:A,\">=\"&'Graph Data'!$E$2,Transações!A:A,\"<=\"&'Graph Data'!$E$3,Transações!C:C,'Graph Data'!A502)=0,NA(),SUMIFS(Transações!D:D,Transações!A:A,\">=\"&'Graph Data'!$E$2,Transações!A:A,\"<=\"&'Graph Data'!$E$3,Transações!C:C,'Graph Data'!A502))","v":{"$error":"#N/A"}}]
[null,{"$f":"IF(SUMIFS(Transações!D:D,Transações!A:A,\">=\"&'Graph Data'!$E$2,Transações!A:A,\"<=\"&'Graph Data'!$E$3,Transações!C:C,'Graph Data'!A503)=0,NA(),SUMIFS(Transações!D:D,Transações!A:A,\">=\"&'Graph Data'!$E$2,Transações!A:A,\"<=\"&'Graph Data'!$E$3,Transações!C:C,'Graph Data'!A503))","v":{"$error":"#N/A"}}]
[null,{"$f":"IF(SUMIFS(Transações!D:D,Transações!A:A,\">=\"&'Graph Data'!$E$2,Transações!A:A,\"<=\"&'Graph Data'!$E$3,Transações!C:C,'Graph Data'!A504)=0,NA(),SUMIFS(Transações!D:D,Transações!A:A,\">=\"&'Graph Data'!$E$2,Transações!A:A,\"<=\"&'Graph Data'!$E$3,Transações!C:C,'Graph Data'!A504))","v":{"$error":"#N/A"}}]
[null,{"$f":"IF(SUMIFS(Transações!D:D,Transações!A:A,\">=\"&'Graph Data'!$E$2,Transações!A:A,\"<=\"&'Graph Data'!$E$3,Transações!C:C,'Graph Data'!A505)=0,NA(),SUMIFS(Transações!D:D,Transações!A:A,\">=\"&'Graph Data'!$E$2,Transações!A:A,\"<=\"&'Graph Data'!$E$3,Transações!C:C,'Graph Data'!A505))","v":{"$error":"#N/A"}}]
[null,{"$f":"IF(SUMIFS(Transações!D:D,Transações!A:A,\">=\"&'Graph Data'!$E$2,Transações!A:A,\"<=\"&'Graph Data'!$E$3,Transações!C:C,'Graph Data'!A506)=0,NA(),SUMIFS(Transações!D:D,Transações!A:A,\">=\"&'Graph Data'!$E$2,Transações!A:A,\"<=\"&'Graph Data'!$E$3,Transações!C:C,'Graph Data'!A506))","v":{"$error":"#N/A"}}]
[null,{"$f":"IF(SUMIFS(Transações!D:D,Transações!A:A,\">=\"&'Graph Data'!$E$2,Transações!A:A,\"<=\"&'Graph Data'!$E$3,Transações!C:C,'Graph Data'!A507)=0,NA(),SUMIFS(Transações!D:D,Transações!A:A,\">=\"&'Graph Data'!$E$2,Transações!A:A,\"<=\"&'Graph Data'!$E$3,Transações!C:C,'Graph Data'!A507))","v":{"$error":"#N/A"}}]
[null,{"$f":"IF(SUMIFS(Transações!D:D,Transações!A:A,\">=\"&'Graph Data'!$E$2,Transações!A:A,\"<=\"&'Graph Data'!$E$3,Transações!C:C,'Graph Data'!A508)=0,NA(),SUMIFS(Transações!D:D,Transações!A:A,\">=\"&'Graph Data'!$E$2,Transações!A:A,\"<=\"&'Graph Data'!$E$3,Transações!C:C,'Graph Data'!A508))","v":{"$error":"#N/A"}}]
[null,{"$f":"IF(SUMIFS(Transações!D:D,Transações!A:A,\">=\"&'Graph Data'!$E$2,Transações!A:A,\"<=\"&'Graph Data'!$E$3,Transações!C:C,'Graph Data'!A509)=0,NA(),SUMIFS(Transações!D:D,Transações!A:A,\">=\"&'Graph Data'!$E$2,Transações!A:A,\"<=\"&'Graph Data'!$E$3,Transações!C:C,'Graph Data'!A509))","v":{"$error":"#N/A"}}]
[null,{"$f":"IF(SUMIFS(Transações!D:D,Transações!A:A,\">=\"&'Graph Data'!$E$2,Transações!A:A,\"<=\"&'Graph Data'!$E$3,Transações!C:C,'Graph Data'!A510)=0,NA(),SUMIFS(Transações!D:D,Transações!A:A,\">=\"&'Graph Data'!$E$2,Transações!A:A,\"<=\"&'Graph Data'!$E$3,Transações!C:C,'Graph Data'!A510))","v":{"$error":"#N/A"}}]
[null,{"$f":"IF(SUMIFS(Transações!D:D,Transações!A:A,\">=\"&'Graph Data'!$E$2,Transações!A:A,\"<=\"&'Graph Data'!$E$3,Transações!C:C,'Graph Data'!A511)=0,NA(),SUMIFS(Transações!D:D,Transações!A:A,\">=\"&'Graph Data'!$E$2,Transações!A:A,\"<=\"&'Graph Data'!$E$3,Transações!C:C,'Graph Data'!A511))","v":{"$error":"#N/A"}}]
[null,{"$f":"IF(SUMIFS(Transações!D:D,Transações!A:A,\">=\"&'Graph Data'!$E$2,Transações!A:A,\"<=\"&'Graph Data'!$E$3,Transações!C:C,'Graph Data'!A512)=0,NA(),SUMIFS(Transações!D:D,Transações!A:A,\">=\"&'Graph Data'!$E$2,Transações!A:A,\"<=\"&'Graph Data'!$E$3,Transações!C:C,'Graph Data'!A512))","v":{"$error":"#N/A"}}]
[null,{"$f":"IF(SUMIFS(Transações!D:D,Transações!A:A,\">=\"&'Graph Data'!$E$2,Transações!A:A,\"<=\"&'Graph Data'!$E$3,Transações!C:C,'Graph Data'!A513)=0,NA(),SUMIFS(Transações!D:D,Transações!A:A,\">=\"&'Graph Data'!$E$2,Transações!A:A,\"<=\"&'Graph Data'!$E$3,Transações!C:C,'Graph Data'!A513))","v":{"$error":"#N/A"}}]
[null,{"$f":"IF(SUMIFS(Transações!D:D,Transações!A:A,\">=\"&'Graph Data'!$E$2,Transações!A:A,\"<=\"&'Graph Data'!$E$3,Transações!C:C,'Graph Data'!A514)=0,NA(),SUMIFS(Transações!D:D,Transações!A:A,\">=\"&'Graph Data'!$E$2,Transações!A:A,\"<=\"&'Graph Data'!$E$3,Transações!C:C,'Graph Data'!A514))","v":{"$error":"#N/A"}}]
[null,{"$f":"IF(SUMIFS(Transações!D:D,Transações!A:A,\">=\"&'Graph Data'!$E$2,Transações!A:A,\"<=\"&'Graph Data'!$E$3,Transações!C:C,'Graph Data'!A515)=0,NA(),SUMIFS(Transações!D:D,Transações!A:A,\">=\"&'Graph Data'!$E$2,Transações!A:A,\"<=\"&'Graph Data'!$E$3,Transações!C:C,'Graph Data'!A515))","v":{"$error":"#N/A"}}]
[null,{"$f":"IF(SUMIFS(Transações!D:D,Transações!A:A,\">=\"&'Graph Data'!$E$2,Transações!A:A,\"<=\"&'Graph Data'!$E$3,Transações!C:C,'Graph Data'!A516)=0,NA(),SUMIFS(Transações!D:D,Transações!A:A,\">=\"&'Graph Data'!$E$2,Transações!A:A,\"<=\"&'Graph Data'!$E$3,Transações!C:C,'Graph Data'!A516))","v":{"$error":"#N/A"}}]
[null,{"$f":"IF(SUMIFS(Transações!D:D,Transações!A:A,\">=\"&'Graph Data'!$E$2,Transações!A:A,\"<=\"&'Graph Data'!$E$3,Transações!C:C,'Graph Data'!A517)=0,NA(),SUMIFS(Transações!D:D,Transações!A:A,\">=\"&'Graph Data'!$E$2,Transações!A:A,\"<=\"&'Graph Data'!$E$3,Transações!C:C,'Graph Data'!A517))","v":{"$error":"#N/A"}}]
[null,{"$f":"IF(SUMIFS(Transações!D:D,Transações!A:A,\">=\"&'Graph Data'!$E$2,Transações!A:A,\"<=\"&'Graph Data'!$E$3,Transações!C:C,'Graph Data'!A518)=0,NA(),SUMIFS(Transações!D:D,Transações!A:A,\">=\"&'Graph Data'!$E$2,Transações!A:A,\"<=\"&'Graph Data'!$E$3,Transações!C:C,'Graph Data'!A518))","v":{"$error":"#N/A"}}]
[null,{"$f":"IF(SUMIFS(Transações!D:D,Transações!A:A,\">=\"&'Graph Data'!$E$2,Transações!A:A,\"<=\"&'Graph Data'!$E$3,Transações!C:C,'Graph Data'!A519)=0,NA(),SUMIFS(Transações!D:D,Transações!A:A,\">=\"&'Graph Data'!$E$2,Transações!A:A,\"<=\"&'Graph Data'!$E$3,Transações!C:C,'Graph Data'!A519))","v":{"$error":"#N/A"}}]
[null,{"$f":"IF(SUMIFS(Transações!D:D,Transações!A:A,\">=\"&'Graph Data'!$E$2,Transações!A:A,\"<=\"&'Graph Data'!$E$3,Transações!C:C,'Graph Data'!A520)=0,NA(),SUMIFS(Transações!D:D,Transações!A:A,\">=\"&'Graph Data'!$E$2,Transações!A:A,\"<=\"&'Graph Data'!$E$3,Transações!C:C,'Graph Data'!A520))","v":{"$error":"#N/A"}}]
[null,{"$f":"IF(SUMIFS(Transações!D:D,Transações!A:A,\">=\"&'Graph Data'!$E$2,Transações!A:A,\"<=\"&'Graph Data'!$E$3,Transações!C:C,'Graph Data'!A521)=0,NA(),SUMIFS(Transações!D:D,Transações!A:A,\">=\"&'Graph Data'!$E$2,Transações!A:A,\"<=\"&'Graph Data'!$E$3,Transações!C:C,'Graph Data'!A521))","v":{"$error":"#N/A"}}]
[null,{"$f":"IF(SUMIFS(Transações!D:D,Transações!A:A,\">=\"&'Graph Data'!$E$2,Transações!A:A,\"<=\"&'Graph Data'!$E$3,Transações!C:C,'Graph Data'!A522)=0,NA(),SUMIFS(Transações!D:D,Transações!A:A,\">=\"&'Graph Data'!$E$2,Transações!A:A,\"<=\"&'Graph Data'!$E$3,Transações!C:C,'Graph Data'!A522))","v":{"$error":"#N/A"}}]
[null,{"$f":"IF(SUMIFS(Transações!D:D,Transações!A:A,\">=\"&'Graph Data'!$E$2,Transações!A:A,\"<=\"&'Graph Data'!$E$3,Transações!C:C,'Graph Data'!A523)=0,NA(),SUMIFS(Transações!D:D,Transações!A:A,\">=\"&'Graph Data'!$E$2,Transações!A:A,\"<=\"&'Graph Data'!$E$3,Transações!C:C,'Graph Data'!A523))","v":{"$error":"#N/A"}}]
[null,{"$f":"IF(SUMIFS(Transações!D:D,Transações!A:A,\">=\"&'Graph Data'!$E$2,Transações!A:A,\"<=\"&'Graph Data'!$E$3,Transações!C:C,'Graph Data'!A524)=0,NA(),SUMIFS(Transações!D:D,Transações!A:A,\">=\"&'Graph Data'!$E$2,Transações!A:A,\"<=\"&'Graph Data'!$E$3,Transações!C:C,'Graph Data'!A524))","v":{"$error":"#N/A"}}]
[null,{"$f":"IF(SUMIFS(Transações!D:D,Transações!A:A,\">=\"&'Graph Data'!$E$2,Transações!A:A,\"<=\"&'Graph Data'!$E$3,Transações!C:C,'Graph Data'!A525)=0,NA(),SUMIFS(Transações!D:D,Transações!A:A,\">=\"&'Graph Data'!$E$2,Transações!A:A,\"<=\"&'Graph Data'!$E$3,Transações!C:C,'Graph Data'!A525))","v":{"$error":"#N/A"}}]
[null,{"$f":"IF(SUMIFS(Transações!D:D,Transações!A:A,\">=\"&'Graph Data'!$E$2,Transações!A:A,\"<=\"&'Graph Data'!$E$3,Transações!C:C,'Graph Data'!A526)=0,NA(),SUMIFS(Transações!D:D,Transações!A:A,\">=\"&'Graph Data'!$E$2,Transações!A:A,\"<=\"&'Graph Data'!$E$3,Transações!C:C,'Graph Data'!A526))","v":{"$error":"#N/A"}}]
[null,{"$f":"IF(SUMIFS(Transações!D:D,Transações!A:A,\">=\"&'Graph Data'!$E$2,Transações!A:A,\"<=\"&'Graph Data'!$E$3,Transações!C:C,'Graph Data'!A527)=0,NA(),SUMIFS(Transações!D:D,Transações!A:A,\">=\"&'Graph Data'!$E$2,Transações!A:A,\"<=\"&'Graph Data'!$E$3,Transações!C:C,'Graph Data'!A527))","v":{"$error":"#N/A"}}]
[null,{"$f":"IF(SUMIFS(Transações!D:D,Transações!A:A,\">=\"&'Graph Data'!$E$2,Transações!A:A,\"<=\"&'Graph Data'!$E$3,Transações!C:C,'Graph Data'!A528)=0,NA(),SUMIFS(Transações!D:D,Transações!A:A,\">=\"&'Graph Data'!$E$2,Transações!A:A,\"<=\"&'Graph Data'!$E$3,Transações!C:C,'Graph Data'!A528))","v":{"$error":"#N/A"}}]
[null,{"$f":"IF(SUMIFS(Transações!D:D,Transações!A:A,\">=\"&'Graph Data'!$E$2,Transações!A:A,\"<=\"&'Graph Data'!$E$3,Transações!C:C,'Graph Data'!A529)=0,NA(),SUMIFS(Transações!D:D,Transações!A:A,\">=\"&'Graph Data'!$E$2,Transações!A:A,\"<=\"&'Graph Data'!$E$3,Transações!C:C,'Graph Data'!A529))","v":{"$error":"#N/A"}}]
[null,{"$f":"IF(SUMIFS(Transações!D:D,Transações!A:A,\">=\"&'Graph Data'!$E$2,Transações!A:A,\"<=\"&'Graph Data'!$E$3,Transações!C:C,'Graph Data'!A530)=0,NA(),SUMIFS(Transações!D:D,Transações!A:A,\">=\"&'Graph Data'!$E$2,Transações!A:A,\"<=\"&'Graph Data'!$E$3,Transações!C:C,'Graph Data'!A530))","v":{"$error":"#N/A"}}]
[null,{"$f":"IF(SUMIFS(Transações!D:D,Transações!A:A,\">=\"&'Graph Data'!$E$2,Transações!A:A,\"<=\"&'Graph Data'!$E$3,Transações!C:C,'Graph Data'!A531)=0,NA(),SUMIFS(Transações!D:D,Transações!A:A,\">=\"&'Graph Data'!$E$2,Transações!A:A,\"<=\"&'Graph Data'!$E$3,Transações!C:C,'Graph Data'!A531))","v":{"$error":"#N/A"}}]
[null,{"$f":"IF(SUMIFS(Transações!D:D,Transações!A:A,\">=\"&'Graph Data'!$E$2,Transações!A:A,\"<=\"&'Graph Data'!$E$3,Transações!C:C,'Graph Data'!A532)=0,NA(),SUMIFS(Transações!D:D,Transações!A:A,\">=\"&'Graph Data'!$E$2,Transações!A:A,\"<=\"&'Graph Data'!$E$3,Transações!C:C,'Graph Data'!A532))","v":{"$error":"#N/A"}}]
[null,{"$f":"IF(SUMIFS(Transações!D:D,Transações!A:A,\">=\"&'Graph Data'!$E$2,Transações!A:A,\"<=\"&'Graph Data'!$E$3,Transações!C:C,'Graph Data'!A533)=0,NA(),SUMIFS(Transações!D:D,Transações!A:A,\">=\"&'Graph Data'!$E$2,Transações!A:A,\"<=\"&'Graph Data'!$E$3,Transações!C:C,'Graph Data'!A533))","v":{"$error":"#N/A"}}]
[null,{"$f":"IF(SUMIFS(Transações!D:D,Transações!A:A,\">=\"&'Graph Data'!$E$2,Transações!A:A,\"<=\"&'Graph Data'!$E$3,Transações!C:C,'Graph Data'!A534)=0,NA(),SUMIFS(Transações!D:D,Transações!A:A,\">=\"&'Graph Data'!$E$2,Transações!A:A,\"<=\"&'Graph Data'!$E$3,Transações!C:C,'Graph Data'!A534))","v":{"$error":"#N/A"}}]
[null,{"$f":"IF(SUMIFS(Transações!D:D,Transações!A:A,\">=\"&'Graph Data'!$E$2,Transações!A:A,\"<=\"&'Graph Data'!$E$3,Transações!C:C,'Graph Data'!A535)=0,NA(),SUMIFS(Transações!D:D,Transações!A:A,\">=\"&'Graph Data'!$E$2,Transações!A:A,\"<=\"&'Graph Data'!$E$3,Transações!C:C,'Graph Data'!A535))","v":{"$error":"#N/A"}}]
[null,{"$f":"IF(SUMIFS(Transações!D:D,Transações!A:A,\">=\"&'Graph Data'!$E$2,Transações!A:A,\"<=\"&'Graph Data'!$E$3,Transações!C:C,'Graph Data'!A536)=0,NA(),SUMIFS(Transações!D:D,Transações!A:A,\">=\"&'Graph Data'!$E$2,Transações!A:A,\"<=\"&'Graph Data'!$E$3,Transações!C:C,'Graph Data'!A536))","v":{"$error":"#N/A"}}]
[null,{"$f":"IF(SUMIFS(Transações!D:D,Transações!A:A,\">=\"&'Graph Data'!$E$2,Transações!A:A,\"<=\"&'Graph Data'!$E$3,Transações!C:C,'Graph Data'!A537)=0,NA(),SUMIFS(Transações!D:D,Transações!A:A,\">=\"&'Graph Data'!$E$2,Transações!A:A,\"<=\"&'Graph Data'!$E$3,Transações!C:C,'Graph Data'!A537))","v":{"$error":"#N/A"}}]
[null,{"$f":"IF(SUMIFS(Transações!D:D,Transações!A:A,\">=\"&'Graph Data'!$E$2,Transações!A:A,\"<=\"&'Graph Data'!$E$3,Transações!C:C,'Graph Data'!A538)=0,NA(),SUMIFS(Transações!D:D,Transações!A:A,\">=\"&'Graph Data'!$E$2,Transações!A:A,\"<=\"&'Graph Data'!$E$3,Transações!C:C,'Graph Data'!A538))","v":{"$error":"#N/A"}}]
[null,{"$f":"IF(SUMIFS(Transações!D:D,Transações!A:A,\">=\"&'Graph Data'!$E$2,Transações!A:A,\"<=\"&'Graph Data'!$E$3,Transações!C:C,'Graph Data'!A539)=0,NA(),SUMIFS(Transações!D:D,Transações!A:A,\">=\"&'Graph Data'!$E$2,Transações!A:A,\"<=\"&'Graph Data'!$E$3,Transações!C:C,'Graph Data'!A539))","v":{"$error":"#N/A"}}]
[null,{"$f":"IF(SUMIFS(Transações!D:D,Transações!A:A,\">=\"&'Graph Data'!$E$2,Transações!A:A,\"<=\"&'Graph Data'!$E$3,Transações!C:C,'Graph Data'!A540)=0,NA(),SUMIFS(Transações!D:D,Transações!A:A,\">=\"&'Graph Data'!$E$2,Transações!A:A,\"<=\"&'Graph Data'!$E$3,Transações!C:C,'Graph Data'!A540))","v":{"$error":"#N/A"}}]
[null,{"$f":"IF(SUMIFS(Transações!D:D,Transações!A:A,\">=\"&'Graph Data'!$E$2,Transações!A:A,\"<=\"&'Graph Data'!$E$3,Transações!C:C,'Graph Data'!A541)=0,NA(),SUMIFS(Transações!D:D,Transações!A:A,\">=\"&'Graph Data'!$E$2,Transações!A:A,\"<=\"&'Graph Data'!$E$3,Transações!C:C,'Graph Data'!A541))","v":{"$error":"#N/A"}}]
[null,{"$f":"IF(SUMIFS(Transações!D:D,Transações!A:A,\">=\"&'Graph Data'!$E$2,Transações!A:A,\"<=\"&'Graph Data'!$E$3,Transações!C:C,'Graph Data'!A542)=0,NA(),SUMIFS(Transações!D:D,Transações!A:A,\">=\"&'Graph Data'!$E$2,Transações!A:A,\"<=\"&'Graph Data'!$E$3,Transações!C:C,'Graph Data'!A542))","v":{"$error":"#N/A"}}]
[null,{"$f":"IF(SUMIFS(Transações!D:D,Transações!A:A,\">=\"&'Graph Data'!$E$2,Transações!A:A,\"<=\"&'Graph Data'!$E$3,Transações!C:C,'Graph Data'!A543)=0,NA(),SUMIFS(Transações!D:D,Transações!A:A,\">=\"&'Graph Data'!$E$2,Transações!A:A,\"<=\"&'Graph Data'!$E$3,Transações!C:C,'Graph Data'!A543))","v":{"$error":"#N/A"}}]
[null,{"$f":"IF(SUMIFS(Transações!D:D,Transações!A:A,\">=\"&'Graph Data'!$E$2,Transações!A:A,\"<=\"&'Graph Data'!$E$3,Transações!C:C,'Graph Data'!A544)=0,NA(),SUMIFS(Transações!D:D,Transações!A:A,\">=\"&'Graph Data'!$E$2,Transações!A:A,\"<=\"&'Graph Data'!$E$3,Transações!C:C,'Graph Data'!A544))","v":{"$error":"#N/A"}}]
[null,{"$f":"IF(SUMIFS(Transações!D:D,Transações!A:A,\">=\"&'Graph Data'!$E$2,Transações!A:A,\"<=\"&'Graph Data'!$E$3,Transações!C:C,'Graph Data'!A545)=0,NA(),SUMIFS(Transações!D:D,Transações!A:A,\">=\"&'Graph Data'!$E$2,Transações!A:A,\"<=\"&'Graph Data'!$E$3,Transações!C:C,'Graph Data'!A545))","v":{"$error":"#N/A"}}]
[null,{"$f":"IF(SUMIFS(Transações!D:D,Transações!A:A,\">=\"&'Graph Data'!$E$2,Transações!A:A,\"<=\"&'Graph Data'!$E$3,Transações!C:C,'Graph Data'!A546)=0,NA(),SUMIFS(Transações!D:D,Transações!A:A,\">=\"&'Graph Data'!$E$2,Transações!A:A,\"<=\"&'Graph Data'!$E$3,Transações!C:C,'Graph Data'!A546))","v":{"$error":"#N/A"}}]
[null,{"$f":"IF(SUMIFS(Transações!D:D,Transações!A:A,\">=\"&'Graph Data'!$E$2,Transações!A:A,\"<=\"&'Graph Data'!$E$3,Transações!C:C,'Graph Data'!A547)=0,NA(),SUMIFS(Transações!D:D,Transações!A:A,\">=\"&'Graph Data'!$E$2,Transações!A:A,\"<=\"&'Graph Data'!$E$3,Transações!C:C,'Graph Data'!A547))","v":{"$error":"#N/A"}}]
[null,{"$f":"IF(SUMIFS(Transações!D:D,Transações!A:A,\">=\"&'Graph Data'!$E$2,Transações!A:A,\"<=\"&'Graph Data'!$E$3,Transações!C:C,'Graph Data'!A548)=0,NA(),SUMIFS(Transações!D:D,Transações!A:A,\">=\"&'Graph Data'!$E$2,Transações!A:A,\"<=\"&'Graph Data'!$E$3,Transações!C:C,'Graph Data'!A548))","v":{"$error":"#N/A"}}]
[null,{"$f":"IF(SUMIFS(Transações!D:D,Transações!A:A,\">=\"&'Graph Data'!$E$2,Transações!A:A,\"<=\"&'Graph Data'!$E$3,Transações!C:C,'Graph Data'!A549)=0,NA(),SUMIFS(Transações!D:D,Transações!A:A,\">=\"&'Graph Data'!$E$2,Transações!A:A,\"<=\"&'Graph Data'!$E$3,Transações!C:C,'Graph Data'!A549))","v":{"$error":"#N/A"}}]
[null,{"$f":"IF(SUMIFS(Transações!D:D,Transações!A:A,\">=\"&'Graph Data'!$E$2,Transações!A:A,\"<=\"&'Graph Data'!$E$3,Transações!C:C,'Graph Data'!A550)=0,NA(),SUMIFS(Transações!D:D,Transações!A:A,\">=\"&'Graph Data'!$E$2,Transações!A:A,\"<=\"&'Graph Data'!$E$3,Transações!C:C,'Graph Data'!A550))","v":{"$error":"#N/A"}}]
[null,{"$f":"IF(SUMIFS(Transações!D:D,Transações!A:A,\">=\"&'Graph Data'!$E$2,Transações!A:A,\"<=\"&'Graph Data'!$E$3,Transações!C:C,'Graph Data'!A551)=0,NA(),SUMIFS(Transações!D:D,Transações!A:A,\">=\"&'Graph Data'!$E$2,Transações!A:A,\"<=\"&'Graph Data'!$E$3,Transações!C:C,'Graph Data'!A551))","v":{"$error":"#N/A"}}]
[null,{"$f":"IF(SUMIFS(Transações!D:D,Transações!A:A,\">=\"&'Graph Data'!$E$2,Transações!A:A,\"<=\"&'Graph Data'!$E$3,Transações!C:C,'Graph Data'!A552)=0,NA(),SUMIFS(Transações!D:D,Transações!A:A,\">=\"&'Graph Data'!$E$2,Transações!A:A,\"<=\"&'Graph Data'!$E$3,Transações!C:C,'Graph Data'!A552))","v":{"$error":"#N/A"}}]
[null,{"$f":"IF(SUMIFS(Transações!D:D,Transações!A:A,\">=\"&'Graph Data'!$E$2,Transações!A:A,\"<=\"&'Graph Data'!$E$3,Transações!C:C,'Graph Data'!A553)=0,NA(),SUMIFS(Transações!D:D,Transações!A:A,\">=\"&'Graph Data'!$E$2,Transações!A:A,\"<=\"&'Graph Data'!$E$3,Transações!C:C,'Graph Data'!A553))","v":{"$error":"#N/A"}}]
[null,{"$f":"IF(SUMIFS(Transações!D:D,Transações!A:A,\">=\"&'Graph Data'!$E$2,Transações!A:A,\"<=\"&'Graph Data'!$E$3,Transações!C:C,'Graph Data'!A554)=0,NA(),SUMIFS(Transações!D:D,Transações!A:A,\">=\"&'Graph Data'!$E$2,Transações!A:A,\"<=\"&'Graph Data'!$E$3,Transações!C:C,'Graph Data'!A554))","v":{"$error":"#N/A"}}]
[null,{"$f":"IF(SUMIFS(Transações!D:D,Transações!A:A,\">=\"&'Graph Data'!$E$2,Transações!A:A,\"<=\"&'Graph Data'!$E$3,Transações!C:C,'Graph Data'!A555)=0,NA(),SUMIFS(Transações!D:D,Transações!A:A,\">=\"&'Graph Data'!$E$2,Transações!A:A,\"<=\"&'Graph Data'!$E$3,Transações!C:C,'Graph Data'!A555))","v":{"$error":"#N/A"}}]
[null,{"$f":"IF(SUMIFS(Transações!D:D,Transações!A:A,\">=\"&'Graph Data'!$E$2,Transações!A:A,\"<=\"&'Graph Data'!$E$3,Transações!C:C,'Graph Data'!A556)=0,NA(),SUMIFS(Transações!D:D,Transações!A:A,\">=\"&'Graph Data'!$E$2,Transações!A:A,\"<=\"&'Graph Data'!$E$3,Transações!C:C,'Graph Data'!A556))","v":{"$error":"#N/A"}}]
[null,{"$f":"IF(SUMIFS(Transações!D:D,Transações!A:A,\">=\"&'Graph Data'!$E$2,Transações!A:A,\"<=\"&'Graph Data'!$E$3,Transações!C:C,'Graph Data'!A557)=0,NA(),SUMIFS(Transações!D:D,Transações!A:A,\">=\"&'Graph Data'!$E$2,Transações!A:A,\"<=\"&'Graph Data'!$E$3,Transações!C:C,'Graph Data'!A557))","v":{"$error":"#N/A"}}]
[null,{"$f":"IF(SUMIFS(Transações!D:D,Transações!A:A,\">=\"&'Graph Data'!$E$2,Transações!A:A,\"<=\"&'Graph Data'!$E$3,Transações!C:C,'Graph Data'!A558)=0,NA(),SUMIFS(Transações!D:D,Transações!A:A,\">=\"&'Graph Data'!$E$2,Transações!A:A,\"<=\"&'Graph Data'!$E$3,Transações!C:C,'Graph Data'!A558))","v":{"$error":"#N/A"}}]
[null,{"$f":"IF(SUMIFS(Transações!D:D,Transações!A:A,\">=\"&'Graph Data'!$E$2,Transações!A:A,\"<=\"&'Graph Data'!$E$3,Transações!C:C,'Graph Data'!A559)=0,NA(),SUMIFS(Transações!D:D,Transações!A:A,\">=\"&'Graph Data'!$E$2,Transações!A:A,\"<=\"&'Graph Data'!$E$3,Transações!C:C,'Graph Data'!A559))","v":{"$error":"#N/A"}}]
[null,{"$f":"IF(SUMIFS(Transações!D:D,Transações!A:A,\">=\"&'Graph Data'!$E$2,Transações!A:A,\"<=\"&'Graph Data'!$E$3,Transações!C:C,'Graph Data'!A560)=0,NA(),SUMIFS(Transações!D:D,Transações!A:A,\">=\"&'Graph Data'!$E$2,Transações!A:A,\"<=\"&'Graph Data'!$E$3,Transações!C:C,'Graph Data'!A560))","v":{"$error":"#N/A"}}]
[null,{"$f":"IF(SUMIFS(Transações!D:D,Transações!A:A,\">=\"&'Graph Data'!$E$2,Transações!A:A,\"<=\"&'Graph Data'!$E$3,Transações!C:C,'Graph Data'!A561)=0,NA(),SUMIFS(Transações!D:D,Transações!A:A,\">=\"&'Graph Data'!$E$2,Transações!A:A,\"<=\"&'Graph Data'!$E$3,Transações!C:C,'Graph Data'!A561))","v":{"$error":"#N/A"}}]
[null,{"$f":"IF(SUMIFS(Transações!D:D,Transações!A:A,\">=\"&'Graph Data'!$E$2,Transações!A:A,\"<=\"&'Graph Data'!$E$3,Transações!C:C,'Graph Data'!A562)=0,NA(),SUMIFS(Transações!D:D,Transações!A:A,\">=\"&'Graph Data'!$E$2,Transações!A:A,\"<=\"&'Graph Data'!$E$3,Transações!C:C,'Graph Data'!A562))","v":{"$error":"#N/A"}}]
[null,{"$f":"IF(SUMIFS(Transações!D:D,Transações!A:A,\">=\"&'Graph Data'!$E$2,Transações!A:A,\"<=\"&'Graph Data'!$E$3,Transações!C:C,'Graph Data'!A563)=0,NA(),SUMIFS(Transações!D:D,Transações!A:A,\">=\"&'Graph Data'!$E$2,Transações!A:A,\"<=\"&'Graph Data'!$E$3,Transações!C:C,'Graph Data'!A563))","v":{"$error":"#N/A"}}]
[null,{"$f":"IF(SUMIFS(Transações!D:D,Transações!A:A,\">=\"&'Graph Data'!$E$2,Transações!A:A,\"<=\"&'Graph Data'!$E$3,Transações!C:C,'Graph Data'!A564)=0,NA(),SUMIFS(Transações!D:D,Transações!A:A,\">=\"&'Graph Data'!$E$2,Transações!A:A,\"<=\"&'Graph Data'!$E$3,Transações!C:C,'Graph Data'!A564))","v":{"$error":"#N/A"}}]
[null,{"$f":"IF(SUMIFS(Transações!D:D,Transações!A:A,\">=\"&'Graph Data'!$E$2,Transações!A:A,\"<=\"&'Graph Data'!$E$3,Transações!C:C,'Graph Data'!A565)=0,NA(),SUMIFS(Transações!D:D,Transações!A:A,\">=\"&'Graph Data'!$E$2,Transações!A:A,\"<=\"&'Graph Data'!$E$3,Transações!C:C,'Graph Data'!A565))","v":{"$error":"#N/A"}}]
[null,{"$f":"IF(SUMIFS(Transações!D:D,Transações!A:A,\">=\"&'Graph Data'!$E$2,Transações!A:A,\"<=\"&'Graph Data'!$E$3,Transações!C:C,'Graph Data'!A566)=0,NA(),SUMIFS(Transações!D:D,Transações!A:A,\">=\"&'Graph Data'!$E$2,Transações!A:A,\"<=\"&'Graph Data'!$E$3,Transações!C:C,'Graph Data'!A566))","v":{"$error":"#N/A"}}]
[null,{"$f":"IF(SUMIFS(Transações!D:D,Transações!A:A,\">=\"&'Graph Data'!$E$2,Transações!A:A,\"<=\"&'Graph Data'!$E$3,Transações!C:C,'Graph Data'!A567)=0,NA(),SUMIFS(Transações!D:D,Transações!A:A,\">=\"&'Graph Data'!$E$2,Transações!A:A,\"<=\"&'Graph Data'!$E$3,Transações!C:C,'Graph Data'!A567))","v":{"$error":"#N/A"}}]
[null,{"$f":"IF(SUMIFS(Transações!D:D,Transações!A:A,\">=\"&'Graph Data'!$E$2,Transações!A:A,\"<=\"&'Graph Data'!$E$3,Transações!C:C,'Graph Data'!A568)=0,NA(),SUMIFS(Transações!D:D,Transações!A:A,\">=\"&'Graph Data'!$E$2,Transações!A:A,\"<=\"&'Graph Data'!$E$3,Transações!C:C,'Graph Data'!A568))","v":{"$error":"#N/A"}}]
[null,{"$f":"IF(SUMIFS(Transações!D:D,Transações!A:A,\">=\"&'Graph Data'!$E$2,Transações!A:A,\"<=\"&'Graph Data'!$E$3,Transações!C:C,'Graph Data'!A569)=0,NA(),SUMIFS(Transações!D:D,Transações!A:A,\">=\"&'Graph Data'!$E$2,Transações!A:A,\"<=\"&'Graph Data'!$E$3,Transações!C:C,'Graph Data'!A569))","v":{"$error":"#N/A"}}]
[null,{"$f":"IF(SUMIFS(Transações!D:D,Transações!A:A,\">=\"&'Graph Data'!$E$2,Transações!A:A,\"<=\"&'Graph Data'!$E$3,Transações!C:C,'Graph Data'!A570)=0,NA(),SUMIFS(Transações!D:D,Transações!A:A,\">=\"&'Graph Data'!$E$2,Transações!A:A,\"<=\"&'Graph Data'!$E$3,Transações!C:C,'Graph Data'!A570))","v":{"$error":"#N/A"}}]
[null,{"$f":"IF(SUMIFS(Transações!D:D,Transações!A:A,\">=\"&'Graph Data'!$E$2,Transações!A:A,\"<=\"&'Graph Data'!$E$3,Transações!C:C,'Graph Data'!A571)=0,NA(),SUMIFS(Transações!D:D,Transações!A:A,\">=\"&'Graph Data'!$E$2,Transações!A:A,\"<=\"&'Graph Data'!$E$3,Transações!C:C,'Graph Data'!A571))","v":{"$error":"#N/A"}}]
[null,{"$f":"IF(SUMIFS(Transações!D:D,Transações!A:A,\">=\"&'Graph Data'!$E$2,Transações!A:A,\"<=\"&'Graph Data'!$E$3,Transações!C:C,'Graph Data'!A572)=0,NA(),SUMIFS(Transações!D:D,Transações!A:A,\">=\"&'Graph Data'!$E$2,Transações!A:A,\"<=\"&'Graph Data'!$E$3,Transações!C:C,'Graph Data'!A572))","v":{"$error":"#N/A"}}]
[null,{"$f":"IF(SUMIFS(Transações!D:D,Transações!A:A,\">=\"&'Graph Data'!$E$2,Transações!A:A,\"<=\"&'Graph Data'!$E$3,Transações!C:C,'Graph Data'!A573)=0,NA(),SUMIFS(Transações!D:D,Transações!A:A,\">=\"&'Graph Data'!$E$2,Transações!A:A,\"<=\"&'Graph Data'!$E$3,Transações!C:C,'Graph Data'!A573))","v":{"$error":"#N/A"}}]
[null,{"$f":"IF(SUMIFS(Transações!D:D,Transações!A:A,\">=\"&'Graph Data'!$E$2,Transações!A:A,\"<=\"&'Graph Data'!$E$3,Transações!C:C,'Graph Data'!A574)=0,NA(),SUMIFS(Transações!D:D,Transações!A:A,\">=\"&'Graph Data'!$E$2,Transações!A:A,\"<=\"&'Graph Data'!$E$3,Transações!C:C,'Graph Data'!A574))","v":{"$error":"#N/A"}}]
[null,{"$f":"IF(SUMIFS(Transações!D:D,Transações!A:A,\">=\"&'Graph Data'!$E$2,Transações!A:A,\"<=\"&'Graph Data'!$E$3,Transações!C:C,'Graph Data'!A575)=0,NA(),SUMIFS(Transações!D:D,Transações!A:A,\">=\"&'Graph Data'!$E$2,Transações!A:A,\"<=\"&'Graph Data'!$E$3,Transações!C:C,'Graph Data'!A575))","v":{"$error":"#N/A"}}]
[null,{"$f":"IF(SUMIFS(Transações!D:D,Transações!A:A,\">=\"&'Graph Data'!$E$2,Transações!A:A,\"<=\"&'Graph Data'!$E$3,Transações!C:C,'Graph Data'!A576)=0,NA(),SUMIFS(Transações!D:D,Transações!A:A,\">=\"&'Graph Data'!$E$2,Transações!A:A,\"<=\"&'Graph Data'!$E$3,Transações!C:C,'Graph Data'!A576))","v":{"$error":"#N/A"}}]
[null,{"$f":"IF(SUMIFS(Transações!D:D,Transações!A:A,\">=\"&'Graph Data'!$E$2,Transações!A:A,\"<=\"&'Graph Data'!$E$3,Transações!C:C,'Graph Data'!A577)=0,NA(),SUMIFS(Transações!D:D,Transações!A:A,\">=\"&'Graph Data'!$E$2,Transações!A:A,\"<=\"&'Graph Data'!$E$3,Transações!C:C,'Graph Data'!A577))","v":{"$error":"#N/A"}}]
[null,{"$f":"IF(SUMIFS(Transações!D:D,Transações!A:A,\">=\"&'Graph Data'!$E$2,Transações!A:A,\"<=\"&'Graph Data'!$E$3,Transações!C:C,'Graph Data'!A578)=0,NA(),SUMIFS(Transações!D:D,Transações!A:A,\">=\"&'Graph Data'!$E$2,Transações!A:A,\"<=\"&'Graph Data'!$E$3,Transações!C:C,'Graph Data'!A578))","v":{"$error":"#N/A"}}]
[null,{"$f":"IF(SUMIFS(Transações!D:D,Transações!A:A,\">=\"&'Graph Data'!$E$2,Transações!A:A,\"<=\"&'Graph Data'!$E$3,Transações!C:C,'Graph Data'!A579)=0,NA(),SUMIFS(Transações!D:D,Transações!A:A,\">=\"&'Graph Data'!$E$2,Transações!A:A,\"<=\"&'Graph Data'!$E$3,Transações!C:C,'Graph Data'!A579))","v":{"$error":"#N/A"}}]
[null,{"$f":"IF(SUMIFS(Transações!D:D,Transações!A:A,\">=\"&'Graph Data'!$E$2,Transações!A:A,\"<=\"&'Graph Data'!$E$3,Transações!C:C,'Graph Data'!A580)=0,NA(),SUMIFS(Transações!D:D,Transações!A:A,\">=\"&'Graph Data'!$E$2,Transações!A:A,\"<=\"&'Graph Data'!$E$3,Transações!C:C,'Graph Data'!A580))","v":{"$error":"#N/A"}}]
[null,{"$f":"IF(SUMIFS(Transações!D:D,Transações!A:A,\">=\"&'Graph Data'!$E$2,Transações!A:A,\"<=\"&'Graph Data'!$E$3,Transações!C:C,'Graph Data'!A581)=0,NA(),SUMIFS(Transações!D:D,Transações!A:A,\">=\"&'Graph Data'!$E$2,Transações!A:A,\"<=\"&'Graph Data'!$E$3,Transações!C:C,'Graph Data'!A581))","v":{"$error":"#N/A"}}]
[null,{"$f":"IF(SUMIFS(Transações!D:D,Transações!A:A,\">=\"&'Graph Data'!$E$2,Transações!A:A,\"<=\"&'Graph Data'!$E$3,Transações!C:C,'Graph Data'!A582)=0,NA(),SUMIFS(Transações!D:D,Transações!A:A,\">=\"&'Graph Data'!$E$2,Transações!A:A,\"<=\"&'Graph Data'!$E$3,Transações!C:C,'Graph Data'!A582))","v":{"$error":"#N/A"}}]
[null,{"$f":"IF(SUMIFS(Transações!D:D,Transações!A:A,\">=\"&'Graph Data'!$E$2,Transações!A:A,\"<=\"&'Graph Data'!$E$3,Transações!C:C,'Graph Data'!A583)=0,NA(),SUMIFS(Transações!D:D,Transações!A:A,\">=\"&'Graph Data'!$E$2,Transações!A:A,\"<=\"&'Graph Data'!$E$3,Transações!C:C,'Graph Data'!A583))","v":{"$error":"#N/A"}}]
[null,{"$f":"IF(SUMIFS(Transações!D:D,Transações!A:A,\">=\"&'Graph Data'!$E$2,Transações!A:A,\"<=\"&'Graph Data'!$E$3,Transações!C:C,'Graph Data'!A584)=0,NA(),SUMIFS(Transações!D:D,Transações!A:A,\">=\"&'Graph Data'!$E$2,Transações!A:A,\"<=\"&'Graph Data'!$E$3,Transações!C:C,'Graph Data'!A584))","v":{"$error":"#N/A"}}]
[null,{"$f":"IF(SUMIFS(Transações!D:D,Transações!A:A,\">=\"&'Graph Data'!$E$2,Transações!A:A,\"<=\"&'Graph Data'!$E$3,Transações!C:C,'Graph Data'!A585)=0,NA(),SUMIFS(Transações!D:D,Transações!A:A,\">=\"&'Graph Data'!$E$2,Transações!A:A,\"<=\"&'Graph Data'!$E$3,Transações!C:C,'Graph Data'!A585))","v":{"$error":"#N/A"}}]
[null,{"$f":"IF(SUMIFS(Transações!D:D,Transações!A:A,\">=\"&'Graph Data'!$E$2,Transações!A:A,\"<=\"&'Graph Data'!$E$3,Transações!C:C,'Graph Data'!A586)=0,NA(),SUMIFS(Transações!D:D,Transações!A:A,\">=\"&'Graph Data'!$E$2,Transações!A:A,\"<=\"&'Graph Data'!$E$3,Transações!C:C,'Graph Data'!A586))","v":{"$error":"#N/A"}}]
[null,{"$f":"IF(SUMIFS(Transações!D:D,Transações!A:A,\">=\"&'Graph Data'!$E$2,Transações!A:A,\"<=\"&'Graph Data'!$E$3,Transações!C:C,'Graph Data'!A587)=0,NA(),SUMIFS(Transações!D:D,Transações!A:A,\">=\"&'Graph Data'!$E$2,Transações!A:A,\"<=\"&'Graph Data'!$E$3,Transações!C:C,'Graph Data'!A587))","v":{"$error":"#N/A"}}]
[null,{"$f":"IF(SUMIFS(Transações!D:D,Transações!A:A,\">=\"&'Graph Data'!$E$2,Transações!A:A,\"<=\"&'Graph Data'!$E$3,Transações!C:C,'Graph Data'!A588)=0,NA(),SUMIFS(Transações!D:D,Transações!A:A,\">=\"&'Graph Data'!$E$2,Transações!A:A,\"<=\"&'Graph Data'!$E$3,Transações!C:C,'Graph Data'!A588))","v":{"$error":"#N/A"}}]
[null,{"$f":"IF(SUMIFS(Transações!D:D,Transações!A:A,\">=\"&'Graph Data'!$E$2,Transações!A:A,\"<=\"&'Graph Data'!$E$3,Transações!C:C,'Graph Data'!A589)=0,NA(),SUMIFS(Transações!D:D,Transações!A:A,\">=\"&'Graph Data'!$E$2,Transações!A:A,\"<=\"&'Graph Data'!$E$3,Transações!C:C,'Graph Data'!A589))","v":{"$error":"#N/A"}}]
[null,{"$f":"IF(SUMIFS(Transações!D:D,Transações!A:A,\">=\"&'Graph Data'!$E$2,Transações!A:A,\"<=\"&'Graph Data'!$E$3,Transações!C:C,'Graph Data'!A590)=0,NA(),SUMIFS(Transações!D:D,Transações!A:A,\">=\"&'Graph Data'!$E$2,Transações!A:A,\"<=\"&'Graph Data'!$E$3,Transações!C:C,'Graph Data'!A590))","v":{"$error":"#N/A"}}]
[null,{"$f":"IF(SUMIFS(Transações!D:D,Transações!A:A,\">=\"&'Graph Data'!$E$2,Transações!A:A,\"<=\"&'Graph Data'!$E$3,Transações!C:C,'Graph Data'!A591)=0,NA(),SUMIFS(Transações!D:D,Transações!A:A,\">=\"&'Graph Data'!$E$2,Transações!A:A,\"<=\"&'Graph Data'!$E$3,Transações!C:C,'Graph Data'!A591))","v":{"$error":"#N/A"}}]
[null,{"$f":"IF(SUMIFS(Transações!D:D,Transações!A:A,\">=\"&'Graph Data'!$E$2,Transações!A:A,\"<=\"&'Graph Data'!$E$3,Transações!C:C,'Graph Data'!A592)=0,NA(),SUMIFS(Transações!D:D,Transações!A:A,\">=\"&'Graph Data'!$E$2,Transações!A:A,\"<=\"&'Graph Data'!$E$3,Transações!C:C,'Graph Data'!A592))","v":{"$error":"#N/A"}}]
[null,{"$f":"IF(SUMIFS(Transações!D:D,Transações!A:A,\">=\"&'Graph Data'!$E$2,Transações!A:A,\"<=\"&'Graph Data'!$E$3,Transações!C:C,'Graph Data'!A593)=0,NA(),SUMIFS(Transações!D:D,Transações!A:A,\">=\"&'Graph Data'!$E$2,Transações!A:A,\"<=\"&'Graph Data'!$E$3,Transações!C:C,'Graph Data'!A593))","v":{"$error":"#N/A"}}]
[null,{"$f":"IF(SUMIFS(Transações!D:D,Transações!A:A,\">=\"&'Graph Data'!$E$2,Transações!A:A,\"<=\"&'Graph Data'!$E$3,Transações!C:C,'Graph Data'!A594)=0,NA(),SUMIFS(Transações!D:D,Transações!A:A,\">=\"&'Graph Data'!$E$2,Transações!A:A,\"<=\"&'Graph Data'!$E$3,Transações!C:C,'Graph Data'!A594))","v":{"$error":"#N/A"}}]
[null,{"$f":"IF(SUMIFS(Transações!D:D,Transações!A:A,\">=\"&'Graph Data'!$E$2,Transações!A:A,\"<=\"&'Graph Data'!$E$3,Transações!C:C,'Graph Data'!A595)=0,NA(),SUMIFS(Transações!D:D,Transações!A:A,\">=\"&'Graph Data'!$E$2,Transações!A:A,\"<=\"&'Graph Data'!$E$3,Transações!C:C,'Graph Data'!A595))","v":{"$error":"#N/A"}}]
[null,{"$f":"IF(SUMIFS(Transações!D:D,Transações!A:A,\">=\"&'Graph Data'!$E$2,Transações!A:A,\"<=\"&'Graph Data'!$E$3,Transações!C:C,'Graph Data'!A596)=0,NA(),SUMIFS(Transações!D:D,Transações!A:A,\">=\"&'Graph Data'!$E$2,Transações!A:A,\"<=\"&'Graph Data'!$E$3,Transações!C:C,'Graph Data'!A596))","v":{"$error":"#N/A"}}]
[null,{"$f":"IF(SUMIFS(Transações!D:D,Transações!A:A,\">=\"&'Graph Data'!$E$2,Transações!A:A,\"<=\"&'Graph Data'!$E$3,Transações!C:C,'Graph Data'!A597)=0,NA(),SUMIFS(Transações!D:D,Transações!A:A,\">=\"&'Graph Data'!$E$2,Transações!A:A,\"<=\"&'Graph Data'!$E$3,Transações!C:C,'Graph Data'!A597))","v":{"$error":"#N/A"}}]
[null,{"$f":"IF(SUMIFS(Transações!D:D,Transações!A:A,\">=\"&'Graph Data'!$E$2,Transações!A:A,\"<=\"&'Graph Data'!$E$3,Transações!C:C,'Graph Data'!A598)=0,NA(),SUMIFS(Transações!D:D,Transações!A:A,\">=\"&'Graph Data'!$E$2,Transações!A:A,\"<=\"&'Graph Data'!$E$3,Transações!C:C,'Graph Data'!A598))","v":{"$error":"#N/A"}}]
[null,{"$f":"IF(SUMIFS(Transações!D:D,Transações!A:A,\">=\"&'Graph Data'!$E$2,Transações!A:A,\"<=\"&'Graph Data'!$E$3,Transações!C:C,'Graph Data'!A599)=0,NA(),SUMIFS(Transações!D:D,Transações!A:A,\">=\"&'Graph Data'!$E$2,Transações!A:A,\"<=\"&'Graph Data'!$E$3,Transações!C:C,'Graph Data'!A599))","v":{"$error":"#N/A"}}]
[null,{"$f":"IF(SUMIFS(Transações!D:D,Transações!A:A,\">=\"&'Graph Data'!$E$2,Transações!A:A,\"<=\"&'Graph Data'!$E$3,Transações!C:C,'Graph Data'!A600)=0,NA(),SUMIFS(Transações!D:D,Transações!A:A,\">=\"&'Graph Data'!$E$2,Transações!A:A,\"<=\"&'Graph Data'!$E$3,Transações!C:C,'Graph Data'!A600))","v":{"$error":"#N/A"}}]
[null,{"$f":"IF(SUMIFS(Transações!D:D,Transações!A:A,\">=\"&'Graph Data'!$E$2,Transações!A:A,\"<=\"&'Graph Data'!$E$3,Transações!C:C,'Graph Data'!A601)=0,NA(),SUMIFS(Transações!D:D,Transações!A:A,\">=\"&'Graph Data'!$E$2,Transações!A:A,\"<=\"&'Graph Data'!$E$3,Transações!C:C,'Graph Data'!A601))","v":{"$error":"#N/A"}}]
[null,{"$f":"IF(SUMIFS(Transações!D:D,Transações!A:A,\">=\"&'Graph Data'!$E$2,Transações!A:A,\"<=\"&'Graph Data'!$E$3,Transações!C:C,'Graph Data'!A602)=0,NA(),SUMIFS(Transações!D:D,Transações!A:A,\">=\"&'Graph Data'!$E$2,Transações!A:A,\"<=\"&'Graph Data'!$E$3,Transações!C:C,'Graph Data'!A602))","v":{"$error":"#N/A"}}]
[null,{"$f":"IF(SUMIFS(Transações!D:D,Transações!A:A,\">=\"&'Graph Data'!$E$2,Transações!A:A,\"<=\"&'Graph Data'!$E$3,Transações!C:C,'Graph Data'!A603)=0,NA(),SUMIFS(Transações!D:D,Transações!A:A,\">=\"&'Graph Data'!$E$2,Transações!A:A,\"<=\"&'Graph Data'!$E$3,Transações!C:C,'Graph Data'!A603))","v":{"$error":"#N/A"}}]
[null,{"$f":"IF(SUMIFS(Transações!D:D,Transações!A:A,\">=\"&'Graph Data'!$E$2,Transações!A:A,\"<=\"&'Graph Data'!$E$3,Transações!C:C,'Graph Data'!A604)=0,NA(),SUMIFS(Transações!D:D,Transações!A:A,\">=\"&'Graph Data'!$E$2,Transações!A:A,\"<=\"&'Graph Data'!$E$3,Transações!C:C,'Graph Data'!A604))","v":{"$error":"#N/A"}}]
[null,{"$f":"IF(SUMIFS(Transações!D:D,Transações!A:A,\">=\"&'Graph Data'!$E$2,Transações!A:A,\"<=\"&'Graph Data'!$E$3,Transações!C:C,'Graph Data'!A605)=0,NA(),SUMIFS(Transações!D:D,Transações!A:A,\">=\"&'Graph Data'!$E$2,Transações!A:A,\"<=\"&'Graph Data'!$E$3,Transações!C:C,'Graph Data'!A605))","v":{"$error":"#N/A"}}]
[null,{"$f":"IF(SUMIFS(Transações!D:D,Transações!A:A,\">=\"&'Graph Data'!$E$2,Transações!A:A,\"<=\"&'Graph Data'!$E$3,Transações!C:C,'Graph Data'!A606)=0,NA(),SUMIFS(Transações!D:D,Transações!A:A,\">=\"&'Graph Data'!$E$2,Transações!A:A,\"<=\"&'Graph Data'!$E$3,Transações!C:C,'Graph Data'!A606))","v":{"$error":"#N/A"}}]
[null,{"$f":"IF(SUMIFS(Transações!D:D,Transações!A:A,\">=\"&'Graph Data'!$E$2,Transações!A:A,\"<=\"&'Graph Data'!$E$3,Transações!C:C,'Graph Data'!A607)=0,NA(),SUMIFS(Transações!D:D,Transações!A:A,\">=\"&'Graph Data'!$E$2,Transações!A:A,\"<=\"&'Graph Data'!$E$3,Transações!C:C,'Graph Data'!A607))","v":{"$error":"#N/A"}}]
[null,{"$f":"IF(SUMIFS(Transações!D:D,Transações!A:A,\">=\"&'Graph Data'!$E$2,Transações!A:A,\"<=\"&'Graph Data'!$E$3,Transações!C:C,'Graph Data'!A608)=0,NA(),SUMIFS(Transações!D:D,Transações!A:A,\">=\"&'Graph Data'!$E$2,Transações!A:A,\"<=\"&'Graph Data'!$E$3,Transações!C:C,'Graph Data'!A608))","v":{"$error":"#N/A"}}]
[null,{"$f":"IF(SUMIFS(Transações!D:D,Transações!A:A,\">=\"&'Graph Data'!$E$2,Transações!A:A,\"<=\"&'Graph Data'!$E$3,Transações!C:C,'Graph Data'!A609)=0,NA(),SUMIFS(Transações!D:D,Transações!A:A,\">=\"&'Graph Data'!$E$2,Transações!A:A,\"<=\"&'Graph Data'!$E$3,Transações!C:C,'Graph Data'!A609))","v":{"$error":"#N/A"}}]
[null,{"$f":"IF(SUMIFS(Transações!D:D,Transações!A:A,\">=\"&'Graph Data'!$E$2,Transações!A:A,\"<=\"&'Graph Data'!$E$3,Transações!C:C,'Graph Data'!A610)=0,NA(),SUMIFS(Transações!D:D,Transações!A:A,\">=\"&'Graph Data'!$E$2,Transações!A:A,\"<=\"&'Graph Data'!$E$3,Transações!C:C,'Graph Data'!A610))","v":{"$error":"#N/A"}}]
[null,{"$f":"IF(SUMIFS(Transações!D:D,Transações!A:A,\">=\"&'Graph Data'!$E$2,Transações!A:A,\"<=\"&'Graph Data'!$E$3,Transações!C:C,'Graph Data'!A611)=0,NA(),SUMIFS(Transações!D:D,Transações!A:A,\">=\"&'Graph Data'!$E$2,Transações!A:A,\"<=\"&'Graph Data'!$E$3,Transações!C:C,'Graph Data'!A611))","v":{"$error":"#N/A"}}]
[null,{"$f":"IF(SUMIFS(Transações!D:D,Transações!A:A,\">=\"&'Graph Data'!$E$2,Transações!A:A,\"<=\"&'Graph Data'!$E$3,Transações!C:C,'Graph Data'!A612)=0,NA(),SUMIFS(Transações!D:D,Transações!A:A,\">=\"&'Graph Data'!$E$2,Transações!A:A,\"<=\"&'Graph Data'!$E$3,Transações!C:C,'Graph Data'!A612))","v":{"$error":"#N/A"}}]
[null,{"$f":"IF(SUMIFS(Transações!D:D,Transações!A:A,\">=\"&'Graph Data'!$E$2,Transações!A:A,\"<=\"&'Graph Data'!$E$3,Transações!C:C,'Graph Data'!A613)=0,NA(),SUMIFS(Transações!D:D,Transações!A:A,\">=\"&'Graph Data'!$E$2,Transações!A:A,\"<=\"&'Graph Data'!$E$3,Transações!C:C,'Graph Data'!A613))","v":{"$error":"#N/A"}}]
[null,{"$f":"IF(SUMIFS(Transações!D:D,Transações!A:A,\">=\"&'Graph Data'!$E$2,Transações!A:A,\"<=\"&'Graph Data'!$E$3,Transações!C:C,'Graph Data'!A614)=0,NA(),SUMIFS(Transações!D:D,Transações!A:A,\">=\"&'Graph Data'!$E$2,Transações!A:A,\"<=\"&'Graph Data'!$E$3,Transações!C:C,'Graph Data'!A614))","v":{"$error":"#N/A"}}]
[null,{"$f":"IF(SUMIFS(Transações!D:D,Transações!A:A,\">=\"&'Graph Data'!$E$2,Transações!A:A,\"<=\"&'Graph Data'!$E$3,Transações!C:C,'Graph Data'!A615)=0,NA(),SUMIFS(Transações!D:D,Transações!A:A,\">=\"&'Graph Data'!$E$2,Transações!A:A,\"<=\"&'Graph Data'!$E$3,Transações!C:C,'Graph Data'!A615))","v":{"$error":"#N/A"}}]
[null,{"$f":"IF(SUMIFS(Transações!D:D,Transações!A:A,\">=\"&'Graph Data'!$E$2,Transações!A:A,\"<=\"&'Graph Data'!$E$3,Transações!C:C,'Graph Data'!A616)=0,NA(),SUMIFS(Transações!D:D,Transações!A:A,\">=\"&'Graph Data'!$E$2,Transações!A:A,\"<=\"&'Graph Data'!$E$3,Transações!C:C,'Graph Data'!A616))","v":{"$error":"#N/A"}}]
[null,{"$f":"IF(SUMIFS(Transações!D:D,Transações!A:A,\">=\"&'Graph Data'!$E$2,Transações!A:A,\"<=\"&'Graph Data'!$E$3,Transações!C:C,'Graph Data'!A617)=0,NA(),SUMIFS(Transações!D:D,Transações!A:A,\">=\"&'Graph Data'!$E$2,Transações!A:A,\"<=\"&'Graph Data'!$E$3,Transações!C:C,'Graph Data'!A617))","v":{"$error":"#N/A"}}]
[null,{"$f":"IF(SUMIFS(Transações!D:D,Transações!A:A,\">=\"&'Graph Data'!$E$2,Transações!A:A,\"<=\"&'Graph Data'!$E$3,Transações!C:C,'Graph Data'!A618)=0,NA(),SUMIFS(Transações!D:D,Transações!A:A,\">=\"&'Graph Data'!$E$2,Transações!A:A,\"<=\"&'Graph Data'!$E$3,Transações!C:C,'Graph Data'!A618))","v":{"$error":"#N/A"}}]
[null,{"$f":"IF(SUMIFS(Transações!D:D,Transações!A:A,\">=\"&'Graph Data'!$E$2,Transações!A:A,\"<=\"&'Graph Data'!$E$3,Transações!C:C,'Graph Data'!A619)=0,NA(),SUMIFS(Transações!D:D,Transações!A:A,\">=\"&'Graph Data'!$E$2,Transações!A:A,\"<=\"&'Graph Data'!$E$3,Transações!C:C,'Graph Data'!A619))","v":{"$error":"#N/A"}}]
[null,{"$f":"IF(SUMIFS(Transações!D:D,Transações!A:A,\">=\"&'Graph Data'!$E$2,Transações!A:A,\"<=\"&'Graph Data'!$E$3,Transações!C:C,'Graph Data'!A620)=0,NA(),SUMIFS(Transações!D:D,Transações!A:A,\">=\"&'Graph Data'!$E$2,Transações!A:A,\"<=\"&'Graph Data'!$E$3,Transações!C:C,'Graph Data'!A620))","v":{"$error":"#N/A"}}]
[null,{"$f":"IF(SUMIFS(Transações!D:D,Transações!A:A,\">=\"&'Graph Data'!$E$2,Transações!A:A,\"<=\"&'Graph Data'!$E$3,Transações!C:C,'Graph Data'!A621)=0,NA(),SUMIFS(Transações!D:D,Transações!A:A,\">=\"&'Graph Data'!$E$2,Transações!A:A,\"<=\"&'Graph Data'!$E$3,Transações!C:C,'Graph Data'!A621))","v":{"$error":"#N/A"}}]
[null,{"$f":"IF(SUMIFS(Transações!D:D,Transações!A:A,\">=\"&'Graph Data'!$E$2,Transações!A:A,\"<=\"&'Graph Data'!$E$3,Transações!C:C,'Graph Data'!A622)=0,NA(),SUMIFS(Transações!D:D,Transações!A:A,\">=\"&'Graph Data'!$E$2,Transações!A:A,\"<=\"&'Graph Data'!$E$3,Transações!C:C,'Graph Data'!A622))","v":{"$error":"#N/A"}}]
[null,{"$f":"IF(SUMIFS(Transações!D:D,Transações!A:A,\">=\"&'Graph Data'!$E$2,Transações!A:A,\"<=\"&'Graph Data'!$E$3,Transações!C:C,'Graph Data'!A623)=0,NA(),SUMIFS(Transações!D:D,Transações!A:A,\">=\"&'Graph Data'!$E$2,Transações!A:A,\"<=\"&'Graph Data'!$E$3,Transações!C:C,'Graph Data'!A623))","v":{"$error":"#N/A"}}]
[null,{"$f":"IF(SUMIFS(Transações!D:D,Transações!A:A,\">=\"&'Graph Data'!$E$2,Transações!A:A,\"<=\"&'Graph Data'!$E$3,Transações!C:C,'Graph Data'!A624)=0,NA(),SUMIFS(Transações!D:D,Transações!A:A,\">=\"&'Graph Data'!$E$2,Transações!A:A,\"<=\"&'Graph Data'!$E$3,Transações!C:C,'Graph Data'!A624))","v":{"$error":"#N/A"}}]
[null,{"$f":"IF(SUMIFS(Transações!D:D,Transações!A:A,\">=\"&'Graph Data'!$E$2,Transações!A:A,\"<=\"&'Graph Data'!$E$3,Transações!C:C,'Graph Data'!A625)=0,NA(),SUMIFS(Transações!D:D,Transações!A:A,\">=\"&'Graph Data'!$E$2,Transações!A:A,\"<=\"&'Graph Data'!$E$3,Transações!C:C,'Graph Data'!A625))","v":{"$error":"#N/A"}}]
[null,{"$f":"IF(SUMIFS(Transações!D:D,Transações!A:A,\">=\"&'Graph Data'!$E$2,Transações!A:A,\"<=\"&'Graph Data'!$E$3,Transações!C:C,'Graph Data'!A626)=0,NA(),SUMIFS(Transações!D:D,Transações!A:A,\">=\"&'Graph Data'!$E$2,Transações!A:A,\"<=\"&'Graph Data'!$E$3,Transações!C:C,'Graph Data'!A626))","v":{"$error":"#N/A"}}]
[null,{"$f":"IF(SUMIFS(Transações!D:D,Transações!A:A,\">=\"&'Graph Data'!$E$2,Transações!A:A,\"<=\"&'Graph Data'!$E$3,Transações!C:C,'Graph Data'!A627)=0,NA(),SUMIFS(Transações!D:D,Transações!A:A,\">=\"&'Graph Data'!$E$2,Transações!A:A,\"<=\"&'Graph Data'!$E$3,Transações!C:C,'Graph Data'!A627))","v":{"$error":"#N/A"}}]
[null,{"$f":"IF(SUMIFS(Transações!D:D,Transações!A:A,\">=\"&'Graph Data'!$E$2,Transações!A:A,\"<=\"&'Graph Data'!$E$3,Transações!C:C,'Graph Data'!A628)=0,NA(),SUMIFS(Transações!D:D,Transações!A:A,\">=\"&'Graph Data'!$E$2,Transações!A:A,\"<=\"&'Graph Data'!$E$3,Transações!C:C,'Graph Data'!A628))","v":{"$error":"#N/A"}}]
[null,{"$f":"IF(SUMIFS(Transações!D:D,Transações!A:A,\">=\"&'Graph Data'!$E$2,Transações!A:A,\"<=\"&'Graph Data'!$E$3,Transações!C:C,'Graph Data'!A629)=0,NA(),SUMIFS(Transações!D:D,Transações!A:A,\">=\"&'Graph Data'!$E$2,Transações!A:A,\"<=\"&'Graph Data'!$E$3,Transações!C:C,'Graph Data'!A629))","v":{"$error":"#N/A"}}]
[null,{"$f":"IF(SUMIFS(Transações!D:D,Transações!A:A,\">=\"&'Graph Data'!$E$2,Transações!A:A,\"<=\"&'Graph Data'!$E$3,Transações!C:C,'Graph Data'!A630)=0,NA(),SUMIFS(Transações!D:D,Transações!A:A,\">=\"&'Graph Data'!$E$2,Transações!A:A,\"<=\"&'Graph Data'!$E$3,Transações!C:C,'Graph Data'!A630))","v":{"$error":"#N/A"}}]
[null,{"$f":"IF(SUMIFS(Transações!D:D,Transações!A:A,\">=\"&'Graph Data'!$E$2,Transações!A:A,\"<=\"&'Graph Data'!$E$3,Transações!C:C,'Graph Data'!A631)=0,NA(),SUMIFS(Transações!D:D,Transações!A:A,\">=\"&'Graph Data'!$E$2,Transações!A:A,\"<=\"&'Graph Data'!$E$3,Transações!C:C,'Graph Data'!A631))","v":{"$error":"#N/A"}}]
[null,{"$f":"IF(SUMIFS(Transações!D:D,Transações!A:A,\">=\"&'Graph Data'!$E$2,Transações!A:A,\"<=\"&'Graph Data'!$E$3,Transações!C:C,'Graph Data'!A632)=0,NA(),SUMIFS(Transações!D:D,Transações!A:A,\">=\"&'Graph Data'!$E$2,Transações!A:A,\"<=\"&'Graph Data'!$E$3,Transações!C:C,'Graph Data'!A632))","v":{"$error":"#N/A"}}]
[null,{"$f":"IF(SUMIFS(Transações!D:D,Transações!A:A,\">=\"&'Graph Data'!$E$2,Transações!A:A,\"<=\"&'Graph Data'!$E$3,Transações!C:C,'Graph Data'!A633)=0,NA(),SUMIFS(Transações!D:D,Transações!A:A,\">=\"&'Graph Data'!$E$2,Transações!A:A,\"<=\"&'Graph Data'!$E$3,Transações!C:C,'Graph Data'!A633))","v":{"$error":"#N/A"}}]
[null,{"$f":"IF(SUMIFS(Transações!D:D,Transações!A:A,\">=\"&'Graph Data'!$E$2,Transações!A:A,\"<=\"&'Graph Data'!$E$3,Transações!C:C,'Graph Data'!A634)=0,NA(),SUMIFS(Transações!D:D,Transações!A:A,\">=\"&'Graph Data'!$E$2,Transações!A:A,\"<=\"&'Graph Data'!$E$3,Transações!C:C,'Graph Data'!A634))","v":{"$error":"#N/A"}}]
[null,{"$f":"IF(SUMIFS(Transações!D:D,Transações!A:A,\">=\"&'Graph Data'!$E$2,Transações!A:A,\"<=\"&'Graph Data'!$E$3,Transações!C:C,'Graph Data'!A635)=0,NA(),SUMIFS(Transações!D:D,Transações!A:A,\">=\"&'Graph Data'!$E$2,Transações!A:A,\"<=\"&'Graph Data'!$E$3,Transações!C:C,'Graph Data'!A635))","v":{"$error":"#N/A"}}]
[null,{"$f":"IF(SUMIFS(Transações!D:D,Transações!A:A,\">=\"&'Graph Data'!$E$2,Transações!A:A,\"<=\"&'Graph Data'!$E$3,Transações!C:C,'Graph Data'!A636)=0,NA(),SUMIFS(Transações!D:D,Transações!A:A,\">=\"&'Graph Data'!$E$2,Transações!A:A,\"<=\"&'Graph Data'!$E$3,Transações!C:C,'Graph Data'!A636))","v":{"$error":"#N/A"}}]
[null,{"$f":"IF(SUMIFS(Transações!D:D,Transações!A:A,\">=\"&'Graph Data'!$E$2,Transações!A:A,\"<=\"&'Graph Data'!$E$3,Transações!C:C,'Graph Data'!A637)=0,NA(),SUMIFS(Transações!D:D,Transações!A:A,\">=\"&'Graph Data'!$E$2,Transações!A:A,\"<=\"&'Graph Data'!$E$3,Transações!C:C,'Graph Data'!A637))","v":{"$error":"#N/A"}}]
[null,{"$f":"IF(SUMIFS(Transações!D:D,Transações!A:A,\">=\"&'Graph Data'!$E$2,Transações!A:A,\"<=\"&'Graph Data'!$E$3,Transações!C:C,'Graph Data'!A638)=0,NA(),SUMIFS(Transações!D:D,Transações!A:A,\">=\"&'Graph Data'!$E$2,Transações!A:A,\"<=\"&'Graph Data'!$E$3,Transações!C:C,'Graph Data'!A638))","v":{"$error":"#N/A"}}]
[null,{"$f":"IF(SUMIFS(Transações!D:D,Transações!A:A,\">=\"&'Graph Data'!$E$2,Transações!A:A,\"<=\"&'Graph Data'!$E$3,Transações!C:C,'Graph Data'!A639)=0,NA(),SUMIFS(Transações!D:D,Transações!A:A,\">=\"&'Graph Data'!$E$2,Transações!A:A,\"<=\"&'Graph Data'!$E$3,Transações!C:C,'Graph Data'!A639))","v":{"$error":"#N/A"}}]
[null,{"$f":"IF(SUMIFS(Transações!D:D,Transações!A:A,\">=\"&'Graph Data'!$E$2,Transações!A:A,\"<=\"&'Graph Data'!$E$3,Transações!C:C,'Graph Data'!A640)=0,NA(),SUMIFS(Transações!D:D,Transações!A:A,\">=\"&'Graph Data'!$E$2,Transações!A:A,\"<=\"&'Graph Data'!$E$3,Transações!C:C,'Graph Data'!A640))","v":{"$error":"#N/A"}}]
[null,{"$f":"IF(SUMIFS(Transações!D:D,Transações!A:A,\">=\"&'Graph Data'!$E$2,Transações!A:A,\"<=\"&'Graph Data'!$E$3,Transações!C:C,'Graph Data'!A641)=0,NA(),SUMIFS(Transações!D:D,Transações!A:A,\">=\"&'Graph Data'!$E$2,Transações!A:A,\"<=\"&'Graph Data'!$E$3,Transações!C:C,'Graph Data'!A641))","v":{"$error":"#N/A"}}]
[null,{"$f":"IF(SUMIFS(Transações!D:D,Transações!A:A,\">=\"&'Graph Data'!$E$2,Transações!A:A,\"<=\"&'Graph Data'!$E$3,Transações!C:C,'Graph Data'!A642)=0,NA(),SUMIFS(Transações!D:D,Transações!A:A,\">=\"&'Graph Data'!$E$2,Transações!A:A,\"<=\"&'Graph Data'!$E$3,Transações!C:C,'Graph Data'!A642))","v":{"$error":"#N/A"}}]
[null,{"$f":"IF(SUMIFS(Transações!D:D,Transações!A:A,\">=\"&'Graph Data'!$E$2,Transações!A:A,\"<=\"&'Graph Data'!$E$3,Transações!C:C,'Graph Data'!A643)=0,NA(),SUMIFS(Transações!D:D,Transações!A:A,\">=\"&'Graph Data'!$E$2,Transações!A:A,\"<=\"&'Graph Data'!$E$3,Transações!C:C,'Graph Data'!A643))","v":{"$error":"#N/A"}}]
[null,{"$f":"IF(SUMIFS(Transações!D:D,Transações!A:A,\">=\"&'Graph Data'!$E$2,Transações!A:A,\"<=\"&'Graph Data'!$E$3,Transações!C:C,'Graph Data'!A644)=0,NA(),SUMIFS(Transações!D:D,Transações!A:A,\">=\"&'Graph Data'!$E$2,Transações!A:A,\"<=\"&'Graph Data'!$E$3,Transações!C:C,'Graph Data'!A644))","v":{"$error":"#N/A"}}]
[null,{"$f":"IF(SUMIFS(Transações!D:D,Transações!A:A,\">=\"&'Graph Data'!$E$2,Transações!A:A,\"<=\"&'Graph Data'!$E$3,Transações!C:C,'Graph Data'!A645)=0,NA(),SUMIFS(Transações!D:D,Transações!A:A,\">=\"&'Graph Data'!$E$2,Transações!A:A,\"<=\"&'Graph Data'!$E$3,Transações!C:C,'Graph Data'!A645))","v":{"$error":"#N/A"}}]
[null,{"$f":"IF(SUMIFS(Transações!D:D,Transações!A:A,\">=\"&'Graph Data'!$E$2,Transações!A:A,\"<=\"&'Graph Data'!$E$3,Transações!C:C,'Graph Data'!A646)=0,NA(),SUMIFS(Transações!D:D,Transações!A:A,\">=\"&'Graph Data'!$E$2,Transações!A:A,\"<=\"&'Graph Data'!$E$3,Transações!C:C,'Graph Data'!A646))","v":{"$error":"#N/A"}}]
[null,{"$f":"IF(SUMIFS(Transações!D:D,Transações!A:A,\">=\"&'Graph Data'!$E$2,Transações!A:A,\"<=\"&'Graph Data'!$E$3,Transações!C:C,'Graph Data'!A647)=0,NA(),SUMIFS(Transações!D:D,Transações!A:A,\">=\"&'Graph Data'!$E$2,Transações!A:A,\"<=\"&'Graph Data'!$E$3,Transações!C:C,'Graph Data'!A647))","v":{"$error":"#N/A"}}]
[null,{"$f":"IF(SUMIFS(Transações!D:D,Transações!A:A,\">=\"&'Graph Data'!$E$2,Transações!A:A,\"<=\"&'Graph Data'!$E$3,Transações!C:C,'Graph Data'!A648)=0,NA(),SUMIFS(Transações!D:D,Transações!A:A,\">=\"&'Graph Data'!$E$2,Transações!A:A,\"<=\"&'Graph Data'!$E$3,Transações!C:C,'Graph Data'!A648))","v":{"$error":"#N/A"}}]
[null,{"$f":"IF(SUMIFS(Transações!D:D,Transações!A:A,\">=\"&'Graph Data'!$E$2,Transações!A:A,\"<=\"&'Graph Data'!$E$3,Transações!C:C,'Graph Data'!A649)=0,NA(),SUMIFS(Transações!D:D,Transações!A:A,\">=\"&'Graph Data'!$E$2,Transações!A:A,\"<=\"&'Graph Data'!$E$3,Transações!C:C,'Graph Data'!A649))","v":{"$error":"#N/A"}}]
[null,{"$f":"IF(SUMIFS(Transações!D:D,Transações!A:A,\">=\"&'Graph Data'!$E$2,Transações!A:A,\"<=\"&'Graph Data'!$E$3,Transações!C:C,'Graph Data'!A650)=0,NA(),SUMIFS(Transações!D:D,Transações!A:A,\">=\"&'Graph Data'!$E$2,Transações!A:A,\"<=\"&'Graph Data'!$E$3,Transações!C:C,'Graph Data'!A650))","v":{"$error":"#N/A"}}]
[null,{"$f":"IF(SUMIFS(Transações!D:D,Transações!A:A,\">=\"&'Graph Data'!$E$2,Transações!A:A,\"<=\"&'Graph Data'!$E$3,Transações!C:C,'Graph Data'!A651)=0,NA(),SUMIFS(Transações!D:D,Transações!A:A,\">=\"&'Graph Data'!$E$2,Transações!A:A,\"<=\"&'Graph Data'!$E$3,Transações!C:C,'Graph Data'!A651))","v":{"$error":"#N/A"}}]
[null,{"$f":"IF(SUMIFS(Transações!D:D,Transações!A:A,\">=\"&'Graph Data'!$E$2,Transações!A:A,\"<=\"&'Graph Data'!$E$3,Transações!C:C,'Graph Data'!A652)=0,NA(),SUMIFS(Transações!D:D,Transações!A:A,\">=\"&'Graph Data'!$E$2,Transações!A:A,\"<=\"&'Graph Data'!$E$3,Transações!C:C,'Graph Data'!A652))","v":{"$error":"#N/A"}}]
[null,{"$f":"IF(SUMIFS(Transações!D:D,Transações!A:A,\">=\"&'Graph Data'!$E$2,Transações!A:A,\"<=\"&'Graph Data'!$E$3,Transações!C:C,'Graph Data'!A653)=0,NA(),SUMIFS(Transações!D:D,Transações!A:A,\">=\"&'Graph Data'!$E$2,Transações!A:A,\"<=\"&'Graph Data'!$E$3,Transações!C:C,'Graph Data'!A653))","v":{"$error":"#N/A"}}]
[null,{"$f":"IF(SUMIFS(Transações!D:D,Transações!A:A,\">=\"&'Graph Data'!$E$2,Transações!A:A,\"<=\"&'Graph Data'!$E$3,Transações!C:C,'Graph Data'!A654)=0,NA(),SUMIFS(Transações!D:D,Transações!A:A,\">=\"&'Graph Data'!$E$2,Transações!A:A,\"<=\"&'Graph Data'!$E$3,Transações!C:C,'Graph Data'!A654))","v":{"$error":"#N/A"}}]
[null,{"$f":"IF(SUMIFS(Transações!D:D,Transações!A:A,\">=\"&'Graph Data'!$E$2,Transações!A:A,\"<=\"&'Graph Data'!$E$3,Transações!C:C,'Graph Data'!A655)=0,NA(),SUMIFS(Transações!D:D,Transações!A:A,\">=\"&'Graph Data'!$E$2,Transações!A:A,\"<=\"&'Graph Data'!$E$3,Transações!C:C,'Graph Data'!A655))","v":{"$error":"#N/A"}}]
[null,{"$f":"IF(SUMIFS(Transações!D:D,Transações!A:A,\">=\"&'Graph Data'!$E$2,Transações!A:A,\"<=\"&'Graph Data'!$E$3,Transações!C:C,'Graph Data'!A656)=0,NA(),SUMIFS(Transações!D:D,Transações!A:A,\">=\"&'Graph Data'!$E$2,Transações!A:A,\"<=\"&'Graph Data'!$E$3,Transações!C:C,'Graph Data'!A656))","v":{"$error":"#N/A"}}]
[null,{"$f":"IF(SUMIFS(Transações!D:D,Transações!A:A,\">=\"&'Graph Data'!$E$2,Transações!A:A,\"<=\"&'Graph Data'!$E$3,Transações!C:C,'Graph Data'!A657)=0,NA(),SUMIFS(Transações!D:D,Transações!A:A,\">=\"&'Graph Data'!$E$2,Transações!A:A,\"<=\"&'Graph Data'!$E$3,Transações!C:C,'Graph Data'!A657))","v":{"$error":"#N/A"}}]
[null,{"$f":"IF(SUMIFS(Transações!D:D,Transações!A:A,\">=\"&'Graph Data'!$E$2,Transações!A:A,\"<=\"&'Graph Data'!$E$3,Transações!C:C,'Graph Data'!A658)=0,NA(),SUMIFS(Transações!D:D,Transações!A:A,\">=\"&'Graph Data'!$E$2,Transações!A:A,\"<=\"&'Graph Data'!$E$3,Transações!C:C,'Graph Data'!A658))","v":{"$error":"#N/A"}}]
[null,{"$f":"IF(SUMIFS(Transações!D:D,Transações!A:A,\">=\"&'Graph Data'!$E$2,Transações!A:A,\"<=\"&'Graph Data'!$E$3,Transações!C:C,'Graph Data'!A659)=0,NA(),SUMIFS(Transações!D:D,Transações!A:A,\">=\"&'Graph Data'!$E$2,Transações!A:A,\"<=\"&'Graph Data'!$E$3,Transações!C:C,'Graph Data'!A659))","v":{"$error":"#N/A"}}]
[null,{"$f":"IF(SUMIFS(Transações!D:D,Transações!A:A,\">=\"&'Graph Data'!$E$2,Transações!A:A,\"<=\"&'Graph Data'!$E$3,Transações!C:C,'Graph Data'!A660)=0,NA(),SUMIFS(Transações!D:D,Transações!A:A,\">=\"&'Graph Data'!$E$2,Transações!A:A,\"<=\"&'Graph Data'!$E$3,Transações!C:C,'Graph Data'!A660))","v":{"$error":"#N/A"}}]
[null,{"$f":"IF(SUMIFS(Transações!D:D,Transações!A:A,\">=\"&'Graph Data'!$E$2,Transações!A:A,\"<=\"&'Graph Data'!$E$3,Transações!C:C,'Graph Data'!A661)=0,NA(),SUMIFS(Transações!D:D,Transações!A:A,\">=\"&'Graph Data'!$E$2,Transações!A:A,\"<=\"&'Graph Data'!$E$3,Transações!C:C,'Graph Data'!A661))","v":{"$error":"#N/A"}}]
[null,{"$f":"IF(SUMIFS(Transações!D:D,Transações!A:A,\">=\"&'Graph Data'!$E$2,Transações!A:A,\"<=\"&'Graph Data'!$E$3,Transações!C:C,'Graph Data'!A662)=0,NA(),SUMIFS(Transações!D:D,Transações!A:A,\">=\"&'Graph Data'!$E$2,Transações!A:A,\"<=\"&'Graph Data'!$E$3,Transações!C:C,'Graph Data'!A662))","v":{"$error":"#N/A"}}]
[null,{"$f":"IF(SUMIFS(Transações!D:D,Transações!A:A,\">=\"&'Graph Data'!$E$2,Transações!A:A,\"<=\"&'Graph Data'!$E$3,Transações!C:C,'Graph Data'!A663)=0,NA(),SUMIFS(Transações!D:D,Transações!A:A,\">=\"&'Graph Data'!$E$2,Transações!A:A,\"<=\"&'Graph Data'!$E$3,Transações!C:C,'Graph Data'!A663))","v":{"$error":"#N/A"}}]
[null,{"$f":"IF(SUMIFS(Transações!D:D,Transações!A:A,\">=\"&'Graph Data'!$E$2,Transações!A:A,\"<=\"&'Graph Data'!$E$3,Transações!C:C,'Graph Data'!A664)=0,NA(),SUMIFS(Transações!D:D,Transações!A:A,\">=\"&'Graph Data'!$E$2,Transações!A:A,\"<=\"&'Graph Data'!$E$3,Transações!C:C,'Graph Data'!A664))","v":{"$error":"#N/A"}}]
[null,{"$f":"IF(SUMIFS(Transações!D:D,Transações!A:A,\">=\"&'Graph Data'!$E$2,Transações!A:A,\"<=\"&'Graph Data'!$E$3,Transações!C:C,'Graph Data'!A665)=0,NA(),SUMIFS(Transações!D:D,Transações!A:A,\">=\"&'Graph Data'!$E$2,Transações!A:A,\"<=\"&'Graph Data'!$E$3,Transações!C:C,'Graph Data'!A665))","v":{"$error":"#N/A"}}]
[null,{"$f":"IF(SUMIFS(Transações!D:D,Transações!A:A,\">=\"&'Graph Data'!$E$2,Transações!A:A,\"<=\"&'Graph Data'!$E$3,Transações!C:C,'Graph Data'!A666)=0,NA(),SUMIFS(Transações!D:D,Transações!A:A,\">=\"&'Graph Data'!$E$2,Transações!A:A,\"<=\"&'Graph Data'!$E$3,Transações!C:C,'Graph Data'!A666))","v":{"$error":"#N/A"}}]
[null,{"$f":"IF(SUMIFS(Transações!D:D,Transações!A:A,\">=\"&'Graph Data'!$E$2,Transações!A:A,\"<=\"&'Graph Data'!$E$3,Transações!C:C,'Graph Data'!A667)=0,NA(),SUMIFS(Transações!D:D,Transações!A:A,\">=\"&'Graph Data'!$E$2,Transações!A:A,\"<=\"&'Graph Data'!$E$3,Transações!C:C,'Graph Data'!A667))","v":{"$error":"#N/A"}}]
[null,{"$f":"IF(SUMIFS(Transações!D:D,Transações!A:A,\">=\"&'Graph Data'!$E$2,Transações!A:A,\"<=\"&'Graph Data'!$E$3,Transações!C:C,'Graph Data'!A668)=0,NA(),SUMIFS(Transações!D:D,Transações!A:A,\">=\"&'Graph Data'!$E$2,Transações!A:A,\"<=\"&'Graph Data'!$E$3,Transações!C:C,'Graph Data'!A668))","v":{"$error":"#N/A"}}]
[null,{"$f":"IF(SUMIFS(Transações!D:D,Transações!A:A,\">=\"&'Graph Data'!$E$2,Transações!A:A,\"<=\"&'Graph Data'!$E$3,Transações!C:C,'Graph Data'!A669)=0,NA(),SUMIFS(Transações!D:D,Transações!A:A,\">=\"&'Graph Data'!$E$2,Transações!A:A,\"<=\"&'Graph Data'!$E$3,Transações!C:C,'Graph Data'!A669))","v":{"$error":"#N/A"}}]
[null,{"$f":"IF(SUMIFS(Transações!D:D,Transações!A:A,\">=\"&'Graph Data'!$E$2,Transações!A:A,\"<=\"&'Graph Data'!$E$3,Transações!C:C,'Graph Data'!A670)=0,NA(),SUMIFS(Transações!D:D,Transações!A:A,\">=\"&'Graph Data'!$E$2,Transações!A:A,\"<=\"&'Graph Data'!$E$3,Transações!C:C,'Graph Data'!A670))","v":{"$error":"#N/A"}}]
[null,{"$f":"IF(SUMIFS(Transações!D:D,Transações!A:A,\">=\"&'Graph Data'!$E$2,Transações!A:A,\"<=\"&'Graph Data'!$E$3,Transações!C:C,'Graph Data'!A671)=0,NA(),SUMIFS(Transações!D:D,Transações!A:A,\">=\"&'Graph Data'!$E$2,Transações!A:A,\"<=\"&'Graph Data'!$E$3,Transações!C:C,'Graph Data'!A671))","v":{"$error":"#N/A"}}]
[null,{"$f":"IF(SUMIFS(Transações!D:D,Transações!A:A,\">=\"&'Graph Data'!$E$2,Transações!A:A,\"<=\"&'Graph Data'!$E$3,Transações!C:C,'Graph Data'!A672)=0,NA(),SUMIFS(Transações!D:D,Transações!A:A,\">=\"&'Graph Data'!$E$2,Transações!A:A,\"<=\"&'Graph Data'!$E$3,Transações!C:C,'Graph Data'!A672))","v":{"$error":"#N/A"}}]
[null,{"$f":"IF(SUMIFS(Transações!D:D,Transações!A:A,\">=\"&'Graph Data'!$E$2,Transações!A:A,\"<=\"&'Graph Data'!$E$3,Transações!C:C,'Graph Data'!A673)=0,NA(),SUMIFS(Transações!D:D,Transações!A:A,\">=\"&'Graph Data'!$E$2,Transações!A:A,\"<=\"&'Graph Data'!$E$3,Transações!C:C,'Graph Data'!A673))","v":{"$error":"#N/A"}}]
[null,{"$f":"IF(SUMIFS(Transações!D:D,Transações!A:A,\">=\"&'Graph Data'!$E$2,Transações!A:A,\"<=\"&'Graph Data'!$E$3,Transações!C:C,'Graph Data'!A674)=0,NA(),SUMIFS(Transações!D:D,Transações!A:A,\">=\"&'Graph Data'!$E$2,Transações!A:A,\"<=\"&'Graph Data'!$E$3,Transações!C:C,'Graph Data'!A674))","v":{"$error":"#N/A"}}]
[null,{"$f":"IF(SUMIFS(Transações!D:D,Transações!A:A,\">=\"&'Graph Data'!$E$2,Transações!A:A,\"<=\"&'Graph Data'!$E$3,Transações!C:C,'Graph Data'!A675)=0,NA(),SUMIFS(Transações!D:D,Transações!A:A,\">=\"&'Graph Data'!$E$2,Transações!A:A,\"<=\"&'Graph Data'!$E$3,Transações!C:C,'Graph Data'!A675))","v":{"$error":"#N/A"}}]
[null,{"$f":"IF(SUMIFS(Transações!D:D,Transações!A:A,\">=\"&'Graph Data'!$E$2,Transações!A:A,\"<=\"&'Graph Data'!$E$3,Transações!C:C,'Graph Data'!A676)=0,NA(),SUMIFS(Transações!D:D,Transações!A:A,\">=\"&'Graph Data'!$E$2,Transações!A:A,\"<=\"&'Graph Data'!$E$3,Transações!C:C,'Graph Data'!A676))","v":{"$error":"#N/A"}}]
[null,{"$f":"IF(SUMIFS(Transações!D:D,Transações!A:A,\">=\"&'Graph Data'!$E$2,Transações!A:A,\"<=\"&'Graph Data'!$E$3,Transações!C:C,'Graph Data'!A677)=0,NA(),SUMIFS(Transações!D:D,Transações!A:A,\">=\"&'Graph Data'!$E$2,Transações!A:A,\"<=\"&'Graph Data'!$E$3,Transações!C:C,'Graph Data'!A677))","v":{"$error":"#N/A"}}]
[null,{"$f":"IF(SUMIFS(Transações!D:D,Transações!A:A,\">=\"&'Graph Data'!$E$2,Transações!A:A,\"<=\"&'Graph Data'!$E$3,Transações!C:C,'Graph Data'!A678)=0,NA(),SUMIFS(Transações!D:D,Transações!A:A,\">=\"&'Graph Data'!$E$2,Transações!A:A,\"<=\"&'Graph Data'!$E$3,Transações!C:C,'Graph Data'!A678))","v":{"$error":"#N/A"}}]
[null,{"$f":"IF(SUMIFS(Transações!D:D,Transações!A:A,\">=\"&'Graph Data'!$E$2,Transações!A:A,\"<=\"&'Graph Data'!$E$3,Transações!C:C,'Graph Data'!A679)=0,NA(),SUMIFS(Transações!D:D,Transações!A:A,\">=\"&'Graph Data'!$E$2,Transações!A:A,\"<=\"&'Graph Data'!$E$3,Transações!C:C,'Graph Data'!A679))","v":{"$error":"#N/A"}}]
[null,{"$f":"IF(SUMIFS(Transações!D:D,Transações!A:A,\">=\"&'Graph Data'!$E$2,Transações!A:A,\"<=\"&'Graph Data'!$E$3,Transações!C:C,'Graph Data'!A680)=0,NA(),SUMIFS(Transações!D:D,Transações!A:A,\">=\"&'Graph Data'!$E$2,Transações!A:A,\"<=\"&'Graph Data'!$E$3,Transações!C:C,'Graph Data'!A680))","v":{"$error":"#N/A"}}]
[null,{"$f":"IF(SUMIFS(Transações!D:D,Transações!A:A,\">=\"&'Graph Data'!$E$2,Transações!A:A,\"<=\"&'Graph Data'!$E$3,Transações!C:C,'Graph Data'!A681)=0,NA(),SUMIFS(Transações!D:D,Transações!A:A,\">=\"&'Graph Data'!$E$2,Transações!A:A,\"<=\"&'Graph Data'!$E$3,Transações!C:C,'Graph Data'!A681))","v":{"$error":"#N/A"}}]
[null,{"$f":"IF(SUMIFS(Transações!D:D,Transações!A:A,\">=\"&'Graph Data'!$E$2,Transações!A:A,\"<=\"&'Graph Data'!$E$3,Transações!C:C,'Graph Data'!A682)=0,NA(),SUMIFS(Transações!D:D,Transações!A:A,\">=\"&'Graph Data'!$E$2,Transações!A:A,\"<=\"&'Graph Data'!$E$3,Transações!C:C,'Graph Data'!A682))","v":{"$error":"#N/A"}}]
[null,{"$f":"IF(SUMIFS(Transações!D:D,Transações!A:A,\">=\"&'Graph Data'!$E$2,Transações!A:A,\"<=\"&'Graph Data'!$E$3,Transações!C:C,'Graph Data'!A683)=0,NA(),SUMIFS(Transações!D:D,Transações!A:A,\">=\"&'Graph Data'!$E$2,Transações!A:A,\"<=\"&'Graph Data'!$E$3,Transações!C:C,'Graph Data'!A683))","v":{"$error":"#N/A"}}]
[null,{"$f":"IF(SUMIFS(Transações!D:D,Transações!A:A,\">=\"&'Graph Data'!$E$2,Transações!A:A,\"<=\"&'Graph Data'!$E$3,Transações!C:C,'Graph Data'!A684)=0,NA(),SUMIFS(Transações!D:D,Transações!A:A,\">=\"&'Graph Data'!$E$2,Transações!A:A,\"<=\"&'Graph Data'!$E$3,Transações!C:C,'Graph Data'!A684))","v":{"$error":"#N/A"}}]
[null,{"$f":"IF(SUMIFS(Transações!D:D,Transações!A:A,\">=\"&'Graph Data'!$E$2,Transações!A:A,\"<=\"&'Graph Data'!$E$3,Transações!C:C,'Graph Data'!A685)=0,NA(),SUMIFS(Transações!D:D,Transações!A:A,\">=\"&'Graph Data'!$E$2,Transações!A:A,\"<=\"&'Graph Data'!$E$3,Transações!C:C,'Graph Data'!A685))","v":{"$error":"#N/A"}}]
[null,{"$f":"IF(SUMIFS(Transações!D:D,Transações!A:A,\">=\"&'Graph Data'!$E$2,Transações!A:A,\"<=\"&'Graph Data'!$E$3,Transações!C:C,'Graph Data'!A686)=0,NA(),SUMIFS(Transações!D:D,Transações!A:A,\">=\"&'Graph Data'!$E$2,Transações!A:A,\"<=\"&'Graph Data'!$E$3,Transações!C:C,'Graph Data'!A686))","v":{"$error":"#N/A"}}]
[null,{"$f":"IF(SUMIFS(Transações!D:D,Transações!A:A,\">=\"&'Graph Data'!$E$2,Transações!A:A,\"<=\"&'Graph Data'!$E$3,Transações!C:C,'Graph Data'!A687)=0,NA(),SUMIFS(Transações!D:D,Transações!A:A,\">=\"&'Graph Data'!$E$2,Transações!A:A,\"<=\"&'Graph Data'!$E$3,Transações!C:C,'Graph Data'!A687))","v":{"$error":"#N/A"}}]
[null,{"$f":"IF(SUMIFS(Transações!D:D,Transações!A:A,\">=\"&'Graph Data'!$E$2,Transações!A:A,\"<=\"&'Graph Data'!$E$3,Transações!C:C,'Graph Data'!A688)=0,NA(),SUMIFS(Transações!D:D,Transações!A:A,\">=\"&'Graph Data'!$E$2,Transações!A:A,\"<=\"&'Graph Data'!$E$3,Transações!C:C,'Graph Data'!A688))","v":{"$error":"#N/A"}}]
[null,{"$f":"IF(SUMIFS(Transações!D:D,Transações!A:A,\">=\"&'Graph Data'!$E$2,Transações!A:A,\"<=\"&'Graph Data'!$E$3,Transações!C:C,'Graph Data'!A689)=0,NA(),SUMIFS(Transações!D:D,Transações!A:A,\">=\"&'Graph Data'!$E$2,Transações!A:A,\"<=\"&'Graph Data'!$E$3,Transações!C:C,'Graph Data'!A689))","v":{"$error":"#N/A"}}]
[null,{"$f":"IF(SUMIFS(Transações!D:D,Transações!A:A,\">=\"&'Graph Data'!$E$2,Transações!A:A,\"<=\"&'Graph Data'!$E$3,Transações!C:C,'Graph Data'!A690)=0,NA(),SUMIFS(Transações!D:D,Transações!A:A,\">=\"&'Graph Data'!$E$2,Transações!A:A,\"<=\"&'Graph Data'!$E$3,Transações!C:C,'Graph Data'!A690))","v":{"$error":"#N/A"}}]
[null,{"$f":"IF(SUMIFS(Transações!D:D,Transações!A:A,\">=\"&'Graph Data'!$E$2,Transações!A:A,\"<=\"&'Graph Data'!$E$3,Transações!C:C,'Graph Data'!A691)=0,NA(),SUMIFS(Transações!D:D,Transações!A:A,\">=\"&'Graph Data'!$E$2,Transações!A:A,\"<=\"&'Graph Data'!$E$3,Transações!C:C,'Graph Data'!A691))","v":{"$error":"#N/A"}}]
[null,{"$f":"IF(SUMIFS(Transações!D:D,Transações!A:A,\">=\"&'Graph Data'!$E$2,Transações!A:A,\"<=\"&'Graph Data'!$E$3,Transações!C:C,'Graph Data'!A692)=0,NA(),SUMIFS(Transações!D:D,Transações!A:A,\">=\"&'Graph Data'!$E$2,Transações!A:A,\"<=\"&'Graph Data'!$E$3,Transações!C:C,'Graph Data'!A692))","v":{"$error":"#N/A"}}]
[null,{"$f":"IF(SUMIFS(Transações!D:D,Transações!A:A,\">=\"&'Graph Data'!$E$2,Transações!A:A,\"<=\"&'Graph Data'!$E$3,Transações!C:C,'Graph Data'!A693)=0,NA(),SUMIFS(Transações!D:D,Transações!A:A,\">=\"&'Graph Data'!$E$2,Transações!A:A,\"<=\"&'Graph Data'!$E$3,Transações!C:C,'Graph Data'!A693))","v":{"$error":"#N/A"}}]
[null,{"$f":"IF(SUMIFS(Transações!D:D,Transações!A:A,\">=\"&'Graph Data'!$E$2,Transações!A:A,\"<=\"&'Graph Data'!$E$3,Transações!C:C,'Graph Data'!A694)=0,NA(),SUMIFS(Transações!D:D,Transações!A:A,\">=\"&'Graph Data'!$E$2,Transações!A:A,\"<=\"&'Graph Data'!$E$3,Transações!C:C,'Graph Data'!A694))","v":{"$error":"#N/A"}}]
[null,{"$f":"IF(SUMIFS(Transações!D:D,Transações!A:A,\">=\"&'Graph Data'!$E$2,Transações!A:A,\"<=\"&'Graph Data'!$E$3,Transações!C:C,'Graph Data'!A695)=0,NA(),SUMIFS(Transações!D:D,Transações!A:A,\">=\"&'Graph Data'!$E$2,Transações!A:A,\"<=\"&'Graph Data'!$E$3,Transações!C:C,'Graph Data'!A695))","v":{"$error":"#N/A"}}]
[null,{"$f":"IF(SUMIFS(Transações!D:D,Transações!A:A,\">=\"&'Graph Data'!$E$2,Transações!A:A,\"<=\"&'Graph Data'!$E$3,Transações!C:C,'Graph Data'!A696)=0,NA(),SUMIFS(Transações!D:D,Transações!A:A,\">=\"&'Graph Data'!$E$2,Transações!A:A,\"<=\"&'Graph Data'!$E$3,Transações!C:C,'Graph Data'!A696))","v":{"$error":"#N/A"}}]
[null,{"$f":"IF(SUMIFS(Transações!D:D,Transações!A:A,\">=\"&'Graph Data'!$E$2,Transações!A:A,\"<=\"&'Graph Data'!$E$3,Transações!C:C,'Graph Data'!A697)=0,NA(),SUMIFS(Transações!D:D,Transações!A:A,\">=\"&'Graph Data'!$E$2,Transações!A:A,\"<=\"&'Graph Data'!$E$3,Transações!C:C,'Graph Data'!A697))","v":{"$error":"#N/A"}}]
[null,{"$f":"IF(SUMIFS(Transações!D:D,Transações!A:A,\">=\"&'Graph Data'!$E$2,Transações!A:A,\"<=\"&'Graph Data'!$E$3,Transações!C:C,'Graph Data'!A698)=0,NA(),SUMIFS(Transações!D:D,Transações!A:A,\">=\"&'Graph Data'!$E$2,Transações!A:A,\"<=\"&'Graph Data'!$E$3,Transações!C:C,'Graph Data'!A698))","v":{"$error":"#N/A"}}]
[null,{"$f":"IF(SUMIFS(Transações!D:D,Transações!A:A,\">=\"&'Graph Data'!$E$2,Transações!A:A,\"<=\"&'Graph Data'!$E$3,Transações!C:C,'Graph Data'!A699)=0,NA(),SUMIFS(Transações!D:D,Transações!A:A,\">=\"&'Graph Data'!$E$2,Transações!A:A,\"<=\"&'Graph Data'!$E$3,Transações!C:C,'Graph Data'!A699))","v":{"$error":"#N/A"}}]
[null,{"$f":"IF(SUMIFS(Transações!D:D,Transações!A:A,\">=\"&'Graph Data'!$E$2,Transações!A:A,\"<=\"&'Graph Data'!$E$3,Transações!C:C,'Graph Data'!A700)=0,NA(),SUMIFS(Transações!D:D,Transações!A:A,\">=\"&'Graph Data'!$E$2,Transações!A:A,\"<=\"&'Graph Data'!$E$3,Transações!C:C,'Graph Data'!A700))","v":{"$error":"#N/A"}}]
[null,{"$f":"IF(SUMIFS(Transações!D:D,Transações!A:A,\">=\"&'Graph Data'!$E$2,Transações!A:A,\"<=\"&'Graph Data'!$E$3,Transações!C:C,'Graph Data'!A701)=0,NA(),SUMIFS(Transações!D:D,Transações!A:A,\">=\"&'Graph Data'!$E$2,Transações!A:A,\"<=\"&'Graph Data'!$E$3,Transações!C:C,'Graph Data'!A701))","v":{"$error":"#N/A"}}]
[null,{"$f":"IF(SUMIFS(Transações!D:D,Transações!A:A,\">=\"&'Graph Data'!$E$2,Transações!A:A,\"<=\"&'Graph Data'!$E$3,Transações!C:C,'Graph Data'!A702)=0,NA(),SUMIFS(Transações!D:D,Transações!A:A,\">=\"&'Graph Data'!$E$2,Transações!A:A,\"<=\"&'Graph Data'!$E$3,Transações!C:C,'Graph Data'!A702))","v":{"$error":"#N/A"}}]
[null,{"$f":"IF(SUMIFS(Transações!D:D,Transações!A:A,\">=\"&'Graph Data'!$E$2,Transações!A:A,\"<=\"&'Graph Data'!$E$3,Transações!C:C,'Graph Data'!A703)=0,NA(),SUMIFS(Transações!D:D,Transações!A:A,\">=\"&'Graph Data'!$E$2,Transações!A:A,\"<=\"&'Graph Data'!$E$3,Transações!C:C,'Graph Data'!A703))","v":{"$error":"#N/A"}}]
[null,{"$f":"IF(SUMIFS(Transações!D:D,Transações!A:A,\">=\"&'Graph Data'!$E$2,Transações!A:A,\"<=\"&'Graph Data'!$E$3,Transações!C:C,'Graph Data'!A704)=0,NA(),SUMIFS(Transações!D:D,Transações!A:A,\">=\"&'Graph Data'!$E$2,Transações!A:A,\"<=\"&'Graph Data'!$E$3,Transações!C:C,'Graph Data'!A704))","v":{"$error":"#N/A"}}]
[null,{"$f":"IF(SUMIFS(Transações!D:D,Transações!A:A,\">=\"&'Graph Data'!$E$2,Transações!A:A,\"<=\"&'Graph Data'!$E$3,Transações!C:C,'Graph Data'!A705)=0,NA(),SUMIFS(Transações!D:D,Transações!A:A,\">=\"&'Graph Data'!$E$2,Transações!A:A,\"<=\"&'Graph Data'!$E$3,Transações!C:C,'Graph Data'!A705))","v":{"$error":"#N/A"}}]
[null,{"$f":"IF(SUMIFS(Transações!D:D,Transações!A:A,\">=\"&'Graph Data'!$E$2,Transações!A:A,\"<=\"&'Graph Data'!$E$3,Transações!C:C,'Graph Data'!A706)=0,NA(),SUMIFS(Transações!D:D,Transações!A:A,\">=\"&'Graph Data'!$E$2,Transações!A:A,\"<=\"&'Graph Data'!$E$3,Transações!C:C,'Graph Data'!A706))","v":{"$error":"#N/A"}}]
[null,{"$f":"IF(SUMIFS(Transações!D:D,Transações!A:A,\">=\"&'Graph Data'!$E$2,Transações!A:A,\"<=\"&'Graph Data'!$E$3,Transações!C:C,'Graph Data'!A707)=0,NA(),SUMIFS(Transações!D:D,Transações!A:A,\">=\"&'Graph Data'!$E$2,Transações!A:A,\"<=\"&'Graph Data'!$E$3,Transações!C:C,'Graph Data'!A707))","v":{"$error":"#N/A"}}]
[null,{"$f":"IF(SUMIFS(Transações!D:D,Transações!A:A,\">=\"&'Graph Data'!$E$2,Transações!A:A,\"<=\"&'Graph Data'!$E$3,Transações!C:C,'Graph Data'!A708)=0,NA(),SUMIFS(Transações!D:D,Transações!A:A,\">=\"&'Graph Data'!$E$2,Transações!A:A,\"<=\"&'Graph Data'!$E$3,Transações!C:C,'Graph Data'!A708))","v":{"$error":"#N/A"}}]
[null,{"$f":"IF(SUMIFS(Transações!D:D,Transações!A:A,\">=\"&'Graph Data'!$E$2,Transações!A:A,\"<=\"&'Graph Data'!$E$3,Transações!C:C,'Graph Data'!A709)=0,NA(),SUMIFS(Transações!D:D,Transações!A:A,\">=\"&'Graph Data'!$E$2,Transações!A:A,\"<=\"&'Graph Data'!$E$3,Transações!C:C,'Graph Data'!A709))","v":{"$error":"#N/A"}}]
[null,{"$f":"IF(SUMIFS(Transações!D:D,Transações!A:A,\">=\"&'Graph Data'!$E$2,Transações!A:A,\"<=\"&'Graph Data'!$E$3,Transações!C:C,'Graph Data'!A710)=0,NA(),SUMIFS(Transações!D:D,Transações!A:A,\">=\"&'Graph Data'!$E$2,Transações!A:A,\"<=\"&'Graph Data'!$E$3,Transações!C:C,'Graph Data'!A710))","v":{"$error":"#N/A"}}]
[null,{"$f":"IF(SUMIFS(Transações!D:D,Transações!A:A,\">=\"&'Graph Data'!$E$2,Transações!A:A,\"<=\"&'Graph Data'!$E$3,Transações!C:C,'Graph Data'!A711)=0,NA(),SUMIFS(Transações!D:D,Transações!A:A,\">=\"&'Graph Data'!$E$2,Transações!A:A,\"<=\"&'Graph Data'!$E$3,Transações!C:C,'Graph Data'!A711))","v":{"$error":"#N/A"}}]
[null,{"$f":"IF(SUMIFS(Transações!D:D,Transações!A:A,\">=\"&'Graph Data'!$E$2,Transações!A:A,\"<=\"&'Graph Data'!$E$3,Transações!C:C,'Graph Data'!A712)=0,NA(),SUMIFS(Transações!D:D,Transações!A:A,\">=\"&'Graph Data'!$E$2,Transações!A:A,\"<=\"&'Graph Data'!$E$3,Transações!C:C,'Graph Data'!A712))","v":{"$error":"#N/A"}}]
[null,{"$f":"IF(SUMIFS(Transações!D:D,Transações!A:A,\">=\"&'Graph Data'!$E$2,Transações!A:A,\"<=\"&'Graph Data'!$E$3,Transações!C:C,'Graph Data'!A713)=0,NA(),SUMIFS(Transações!D:D,Transações!A:A,\">=\"&'Graph Data'!$E$2,Transações!A:A,\"<=\"&'Graph Data'!$E$3,Transações!C:C,'Graph Data'!A713))","v":{"$error":"#N/A"}}]
[null,{"$f":"IF(SUMIFS(Transações!D:D,Transações!A:A,\">=\"&'Graph Data'!$E$2,Transações!A:A,\"<=\"&'Graph Data'!$E$3,Transações!C:C,'Graph Data'!A714)=0,NA(),SUMIFS(Transações!D:D,Transações!A:A,\">=\"&'Graph Data'!$E$2,Transações!A:A,\"<=\"&'Graph Data'!$E$3,Transações!C:C,'Graph Data'!A714))","v":{"$error":"#N/A"}}]
[null,{"$f":"IF(SUMIFS(Transações!D:D,Transações!A:A,\">=\"&'Graph Data'!$E$2,Transações!A:A,\"<=\"&'Graph Data'!$E$3,Transações!C:C,'Graph Data'!A715)=0,NA(),SUMIFS(Transações!D:D,Transações!A:A,\">=\"&'Graph Data'!$E$2,Transações!A:A,\"<=\"&'Graph Data'!$E$3,Transações!C:C,'Graph Data'!A715))","v":{"$error":"#N/A"}}]
[null,{"$f":"IF(SUMIFS(Transações!D:D,Transações!A:A,\">=\"&'Graph Data'!$E$2,Transações!A:A,\"<=\"&'Graph Data'!$E$3,Transações!C:C,'Graph Data'!A716)=0,NA(),SUMIFS(Transações!D:D,Transações!A:A,\">=\"&'Graph Data'!$E$2,Transações!A:A,\"<=\"&'Graph Data'!$E$3,Transações!C:C,'Graph Data'!A716))","v":{"$error":"#N/A"}}]
[null,{"$f":"IF(SUMIFS(Transações!D:D,Transações!A:A,\">=\"&'Graph Data'!$E$2,Transações!A:A,\"<=\"&'Graph Data'!$E$3,Transações!C:C,'Graph Data'!A717)=0,NA(),SUMIFS(Transações!D:D,Transações!A:A,\">=\"&'Graph Data'!$E$2,Transações!A:A,\"<=\"&'Graph Data'!$E$3,Transações!C:C,'Graph Data'!A717))","v":{"$error":"#N/A"}}]
[null,{"$f":"IF(SUMIFS(Transações!D:D,Transações!A:A,\">=\"&'Graph Data'!$E$2,Transações!A:A,\"<=\"&'Graph Data'!$E$3,Transações!C:C,'Graph Data'!A718)=0,NA(),SUMIFS(Transações!D:D,Transações!A:A,\">=\"&'Graph Data'!$E$2,Transações!A:A,\"<=\"&'Graph Data'!$E$3,Transações!C:C,'Graph Data'!A718))","v":{"$error":"#N/A"}}]
[null,{"$f":"IF(SUMIFS(Transações!D:D,Transações!A:A,\">=\"&'Graph Data'!$E$2,Transações!A:A,\"<=\"&'Graph Data'!$E$3,Transações!C:C,'Graph Data'!A719)=0,NA(),SUMIFS(Transações!D:D,Transações!A:A,\">=\"&'Graph Data'!$E$2,Transações!A:A,\"<=\"&'Graph Data'!$E$3,Transações!C:C,'Graph Data'!A719))","v":{"$error":"#N/A"}}]
[null,{"$f":"IF(SUMIFS(Transações!D:D,Transações!A:A,\">=\"&'Graph Data'!$E$2,Transações!A:A,\"<=\"&'Graph Data'!$E$3,Transações!C:C,'Graph Data'!A720)=0,NA(),SUMIFS(Transações!D:D,Transações!A:A,\">=\"&'Graph Data'!$E$2,Transações!A:A,\"<=\"&'Graph Data'!$E$3,Transações!C:C,'Graph Data'!A720))","v":{"$error":"#N/A"}}]
[null,{"$f":"IF(SUMIFS(Transações!D:D,Transações!A:A,\">=\"&'Graph Data'!$E$2,Transações!A:A,\"<=\"&'Graph Data'!$E$3,Transações!C:C,'Graph Data'!A721)=0,NA(),SUMIFS(Transações!D:D,Transações!A:A,\">=\"&'Graph Data'!$E$2,Transações!A:A,\"<=\"&'Graph Data'!$E$3,Transações!C:C,'Graph Data'!A721))","v":{"$error":"#N/A"}}]
[null,{"$f":"IF(SUMIFS(Transações!D:D,Transações!A:A,\">=\"&'Graph Data'!$E$2,Transações!A:A,\"<=\"&'Graph Data'!$E$3,Transações!C:C,'Graph Data'!A722)=0,NA(),SUMIFS(Transações!D:D,Transações!A:A,\">=\"&'Graph Data'!$E$2,Transações!A:A,\"<=\"&'Graph Data'!$E$3,Transações!C:C,'Graph Data'!A722))","v":{"$error":"#N/A"}}]
[null,{"$f":"IF(SUMIFS(Transações!D:D,Transações!A:A,\">=\"&'Graph Data'!$E$2,Transações!A:A,\"<=\"&'Graph Data'!$E$3,Transações!C:C,'Graph Data'!A723)=0,NA(),SUMIFS(Transações!D:D,Transações!A:A,\">=\"&'Graph Data'!$E$2,Transações!A:A,\"<=\"&'Graph Data'!$E$3,Transações!C:C,'Graph Data'!A723))","v":{"$error":"#N/A"}}]
[null,{"$f":"IF(SUMIFS(Transações!D:D,Transações!A:A,\">=\"&'Graph Data'!$E$2,Transações!A:A,\"<=\"&'Graph Data'!$E$3,Transações!C:C,'Graph Data'!A724)=0,NA(),SUMIFS(Transações!D:D,Transações!A:A,\">=\"&'Graph Data'!$E$2,Transações!A:A,\"<=\"&'Graph Data'!$E$3,Transações!C:C,'Graph Data'!A724))","v":{"$error":"#N/A"}}]
[null,{"$f":"IF(SUMIFS(Transações!D:D,Transações!A:A,\">=\"&'Graph Data'!$E$2,Transações!A:A,\"<=\"&'Graph Data'!$E$3,Transações!C:C,'Graph Data'!A725)=0,NA(),SUMIFS(Transações!D:D,Transações!A:A,\">=\"&'Graph Data'!$E$2,Transações!A:A,\"<=\"&'Graph Data'!$E$3,Transações!C:C,'Graph Data'!A725))","v":{"$error":"#N/A"}}]
[null,{"$f":"IF(SUMIFS(Transações!D:D,Transações!A:A,\">=\"&'Graph Data'!$E$2,Transações!A:A,\"<=\"&'Graph Data'!$E$3,Transações!C:C,'Graph Data'!A726)=0,NA(),SUMIFS(Transações!D:D,Transações!A:A,\">=\"&'Graph Data'!$E$2,Transações!A:A,\"<=\"&'Graph Data'!$E$3,Transações!C:C,'Graph Data'!A726))","v":{"$error":"#N/A"}}]
[null,{"$f":"IF(SUMIFS(Transações!D:D,Transações!A:A,\">=\"&'Graph Data'!$E$2,Transações!A:A,\"<=\"&'Graph Data'!$E$3,Transações!C:C,'Graph Data'!A727)=0,NA(),SUMIFS(Transações!D:D,Transações!A:A,\">=\"&'Graph Data'!$E$2,Transações!A:A,\"<=\"&'Graph Data'!$E$3,Transações!C:C,'Graph Data'!A727))","v":{"$error":"#N/A"}}]
[null,{"$f":"IF(SUMIFS(Transações!D:D,Transações!A:A,\">=\"&'Graph Data'!$E$2,Transações!A:A,\"<=\"&'Graph Data'!$E$3,Transações!C:C,'Graph Data'!A728)=0,NA(),SUMIFS(Transações!D:D,Transações!A:A,\">=\"&'Graph Data'!$E$2,Transações!A:A,\"<=\"&'Graph Data'!$E$3,Transações!C:C,'Graph Data'!A728))","v":{"$error":"#N/A"}}]
[null,{"$f":"IF(SUMIFS(Transações!D:D,Transações!A:A,\">=\"&'Graph Data'!$E$2,Transações!A:A,\"<=\"&'Graph Data'!$E$3,Transações!C:C,'Graph Data'!A729)=0,NA(),SUMIFS(Transações!D:D,Transações!A:A,\">=\"&'Graph Data'!$E$2,Transações!A:A,\"<=\"&'Graph Data'!$E$3,Transações!C:C,'Graph Data'!A729))","v":{"$error":"#N/A"}}]
[null,{"$f":"IF(SUMIFS(Transações!D:D,Transações!A:A,\">=\"&'Graph Data'!$E$2,Transações!A:A,\"<=\"&'Graph Data'!$E$3,Transações!C:C,'Graph Data'!A730)=0,NA(),SUMIFS(Transações!D:D,Transações!A:A,\">=\"&'Graph Data'!$E$2,Transações!A:A,\"<=\"&'Graph Data'!$E$3,Transações!C:C,'Graph Data'!A730))","v":{"$error":"#N/A"}}]
[null,{"$f":"IF(SUMIFS(Transações!D:D,Transações!A:A,\">=\"&'Graph Data'!$E$2,Transações!A:A,\"<=\"&'Graph Data'!$E$3,Transações!C:C,'Graph Data'!A731)=0,NA(),SUMIFS(Transações!D:D,Transações!A:A,\">=\"&'Graph Data'!$E$2,Transações!A:A,\"<=\"&'Graph Data'!$E$3,Transações!C:C,'Graph Data'!A731))","v":{"$error":"#N/A"}}]
[null,{"$f":"IF(SUMIFS(Transações!D:D,Transações!A:A,\">=\"&'Graph Data'!$E$2,Transações!A:A,\"<=\"&'Graph Data'!$E$3,Transações!C:C,'Graph Data'!A732)=0,NA(),SUMIFS(Transações!D:D,Transações!A:A,\">=\"&'Graph Data'!$E$2,Transações!A:A,\"<=\"&'Graph Data'!$E$3,Transações!C:C,'Graph Data'!A732))","v":{"$error":"#N/A"}}]
[null,{"$f":"IF(SUMIFS(Transações!D:D,Transações!A:A,\">=\"&'Graph Data'!$E$2,Transações!A:A,\"<=\"&'Graph Data'!$E$3,Transações!C:C,'Graph Data'!A733)=0,NA(),SUMIFS(Transações!D:D,Transações!A:A,\">=\"&'Graph Data'!$E$2,Transações!A:A,\"<=\"&'Graph Data'!$E$3,Transações!C:C,'Graph Data'!A733))","v":{"$error":"#N/A"}}]
[null,{"$f":"IF(SUMIFS(Transações!D:D,Transações!A:A,\">=\"&'Graph Data'!$E$2,Transações!A:A,\"<=\"&'Graph Data'!$E$3,Transações!C:C,'Graph Data'!A734)=0,NA(),SUMIFS(Transações!D:D,Transações!A:A,\">=\"&'Graph Data'!$E$2,Transações!A:A,\"<=\"&'Graph Data'!$E$3,Transações!C:C,'Graph Data'!A734))","v":{"$error":"#N/A"}}]
[null,{"$f":"IF(SUMIFS(Transações!D:D,Transações!A:A,\">=\"&'Graph Data'!$E$2,Transações!A:A,\"<=\"&'Graph Data'!$E$3,Transações!C:C,'Graph Data'!A735)=0,NA(),SUMIFS(Transações!D:D,Transações!A:A,\">=\"&'Graph Data'!$E$2,Transações!A:A,\"<=\"&'Graph Data'!$E$3,Transações!C:C,'Graph Data'!A735))","v":{"$error":"#N/A"}}]
[null,{"$f":"IF(SUMIFS(Transações!D:D,Transações!A:A,\">=\"&'Graph Data'!$E$2,Transações!A:A,\"<=\"&'Graph Data'!$E$3,Transações!C:C,'Graph Data'!A736)=0,NA(),SUMIFS(Transações!D:D,Transações!A:A,\">=\"&'Graph Data'!$E$2,Transações!A:A,\"<=\"&'Graph Data'!$E$3,Transações!C:C,'Graph Data'!A736))","v":{"$error":"#N/A"}}]
[null,{"$f":"IF(SUMIFS(Transações!D:D,Transações!A:A,\">=\"&'Graph Data'!$E$2,Transações!A:A,\"<=\"&'Graph Data'!$E$3,Transações!C:C,'Graph Data'!A737)=0,NA(),SUMIFS(Transações!D:D,Transações!A:A,\">=\"&'Graph Data'!$E$2,Transações!A:A,\"<=\"&'Graph Data'!$E$3,Transações!C:C,'Graph Data'!A737))","v":{"$error":"#N/A"}}]
[null,{"$f":"IF(SUMIFS(Transações!D:D,Transações!A:A,\">=\"&'Graph Data'!$E$2,Transações!A:A,\"<=\"&'Graph Data'!$E$3,Transações!C:C,'Graph Data'!A738)=0,NA(),SUMIFS(Transações!D:D,Transações!A:A,\">=\"&'Graph Data'!$E$2,Transações!A:A,\"<=\"&'Graph Data'!$E$3,Transações!C:C,'Graph Data'!A738))","v":{"$error":"#N/A"}}]
[null,{"$f":"IF(SUMIFS(Transações!D:D,Transações!A:A,\">=\"&'Graph Data'!$E$2,Transações!A:A,\"<=\"&'Graph Data'!$E$3,Transações!C:C,'Graph Data'!A739)=0,NA(),SUMIFS(Transações!D:D,Transações!A:A,\">=\"&'Graph Data'!$E$2,Transações!A:A,\"<=\"&'Graph Data'!$E$3,Transações!C:C,'Graph Data'!A739))","v":{"$error":"#N/A"}}]
[null,{"$f":"IF(SUMIFS(Transações!D:D,Transações!A:A,\">=\"&'Graph Data'!$E$2,Transações!A:A,\"<=\"&'Graph Data'!$E$3,Transações!C:C,'Graph Data'!A740)=0,NA(),SUMIFS(Transações!D:D,Transações!A:A,\">=\"&'Graph Data'!$E$2,Transações!A:A,\"<=\"&'Graph Data'!$E$3,Transações!C:C,'Graph Data'!A740))","v":{"$error":"#N/A"}}]
[null,{"$f":"IF(SUMIFS(Transações!D:D,Transações!A:A,\">=\"&'Graph Data'!$E$2,Transações!A:A,\"<=\"&'Graph Data'!$E$3,Transações!C:C,'Graph Data'!A741)=0,NA(),SUMIFS(Transações!D:D,Transações!A:A,\">=\"&'Graph Data'!$E$2,Transações!A:A,\"<=\"&'Graph Data'!$E$3,Transações!C:C,'Graph Data'!A741))","v":{"$error":"#N/A"}}]
[null,{"$f":"IF(SUMIFS(Transações!D:D,Transações!A:A,\">=\"&'Graph Data'!$E$2,Transações!A:A,\"<=\"&'Graph Data'!$E$3,Transações!C:C,'Graph Data'!A742)=0,NA(),SUMIFS(Transações!D:D,Transações!A:A,\">=\"&'Graph Data'!$E$2,Transações!A:A,\"<=\"&'Graph Data'!$E$3,Transações!C:C,'Graph Data'!A742))","v":{"$error":"#N/A"}}]
[null,{"$f":"IF(SUMIFS(Transações!D:D,Transações!A:A,\">=\"&'Graph Data'!$E$2,Transações!A:A,\"<=\"&'Graph Data'!$E$3,Transações!C:C,'Graph Data'!A743)=0,NA(),SUMIFS(Transações!D:D,Transações!A:A,\">=\"&'Graph Data'!$E$2,Transações!A:A,\"<=\"&'Graph Data'!$E$3,Transações!C:C,'Graph Data'!A743))","v":{"$error":"#N/A"}}]
[null,{"$f":"IF(SUMIFS(Transações!D:D,Transações!A:A,\">=\"&'Graph Data'!$E$2,Transações!A:A,\"<=\"&'Graph Data'!$E$3,Transações!C:C,'Graph Data'!A744)=0,NA(),SUMIFS(Transações!D:D,Transações!A:A,\">=\"&'Graph Data'!$E$2,Transações!A:A,\"<=\"&'Graph Data'!$E$3,Transações!C:C,'Graph Data'!A744))","v":{"$error":"#N/A"}}]
[null,{"$f":"IF(SUMIFS(Transações!D:D,Transações!A:A,\">=\"&'Graph Data'!$E$2,Transações!A:A,\"<=\"&'Graph Data'!$E$3,Transações!C:C,'Graph Data'!A745)=0,NA(),SUMIFS(Transações!D:D,Transações!A:A,\">=\"&'Graph Data'!$E$2,Transações!A:A,\"<=\"&'Graph Data'!$E$3,Transações!C:C,'Graph Data'!A745))","v":{"$error":"#N/A"}}]
[null,{"$f":"IF(SUMIFS(Transações!D:D,Transações!A:A,\">=\"&'Graph Data'!$E$2,Transações!A:A,\"<=\"&'Graph Data'!$E$3,Transações!C:C,'Graph Data'!A746)=0,NA(),SUMIFS(Transações!D:D,Transações!A:A,\">=\"&'Graph Data'!$E$2,Transações!A:A,\"<=\"&'Graph Data'!$E$3,Transações!C:C,'Graph Data'!A746))","v":{"$error":"#N/A"}}]
[null,{"$f":"IF(SUMIFS(Transações!D:D,Transações!A:A,\">=\"&'Graph Data'!$E$2,Transações!A:A,\"<=\"&'Graph Data'!$E$3,Transações!C:C,'Graph Data'!A747)=0,NA(),SUMIFS(Transações!D:D,Transações!A:A,\">=\"&'Graph Data'!$E$2,Transações!A:A,\"<=\"&'Graph Data'!$E$3,Transações!C:C,'Graph Data'!A747))","v":{"$error":"#N/A"}}]
[null,{"$f":"IF(SUMIFS(Transações!D:D,Transações!A:A,\">=\"&'Graph Data'!$E$2,Transações!A:A,\"<=\"&'Graph Data'!$E$3,Transações!C:C,'Graph Data'!A748)=0,NA(),SUMIFS(Transações!D:D,Transações!A:A,\">=\"&'Graph Data'!$E$2,Transações!A:A,\"<=\"&'Graph Data'!$E$3,Transações!C:C,'Graph Data'!A748))","v":{"$error":"#N/A"}}]
[null,{"$f":"IF(SUMIFS(Transações!D:D,Transações!A:A,\">=\"&'Graph Data'!$E$2,Transações!A:A,\"<=\"&'Graph Data'!$E$3,Transações!C:C,'Graph Data'!A749)=0,NA(),SUMIFS(Transações!D:D,Transações!A:A,\">=\"&'Graph Data'!$E$2,Transações!A:A,\"<=\"&'Graph Data'!$E$3,Transações!C:C,'Graph Data'!A749))","v":{"$error":"#N/A"}}]
[null,{"$f":"IF(SUMIFS(Transações!D:D,Transações!A:A,\">=\"&'Graph Data'!$E$2,Transações!A:A,\"<=\"&'Graph Data'!$E$3,Transações!C:C,'Graph Data'!A750)=0,NA(),SUMIFS(Transações!D:D,Transações!A:A,\">=\"&'Graph Data'!$E$2,Transações!A:A,\"<=\"&'Graph Data'!$E$3,Transações!C:C,'Graph Data'!A750))","v":{"$error":"#N/A"}}]
[null,{"$f":"IF(SUMIFS(Transações!D:D,Transações!A:A,\">=\"&'Graph Data'!$E$2,Transações!A:A,\"<=\"&'Graph Data'!$E$3,Transações!C:C,'Graph Data'!A751)=0,NA(),SUMIFS(Transações!D:D,Transações!A:A,\">=\"&'Graph Data'!$E$2,Transações!A:A,\"<=\"&'Graph Data'!$E$3,Transações!C:C,'Graph Data'!A751))","v":{"$error":"#N/A"}}]
[null,{"$f":"IF(SUMIFS(Transações!D:D,Transações!A:A,\">=\"&'Graph Data'!$E$2,Transações!A:A,\"<=\"&'Graph Data'!$E$3,Transações!C:C,'Graph Data'!A752)=0,NA(),SUMIFS(Transações!D:D,Transações!A:A,\">=\"&'Graph Data'!$E$2,Transações!A:A,\"<=\"&'Graph Data'!$E$3,Transações!C:C,'Graph Data'!A752))","v":{"$error":"#N/A"}}]
[null,{"$f":"IF(SUMIFS(Transações!D:D,Transações!A:A,\">=\"&'Graph Data'!$E$2,Transações!A:A,\"<=\"&'Graph Data'!$E$3,Transações!C:C,'Graph Data'!A753)=0,NA(),SUMIFS(Transações!D:D,Transações!A:A,\">=\"&'Graph Data'!$E$2,Transações!A:A,\"<=\"&'Graph Data'!$E$3,Transações!C:C,'Graph Data'!A753))","v":{"$error":"#N/A"}}]
[null,{"$f":"IF(SUMIFS(Transações!D:D,Transações!A:A,\">=\"&'Graph Data'!$E$2,Transações!A:A,\"<=\"&'Graph Data'!$E$3,Transações!C:C,'Graph Data'!A754)=0,NA(),SUMIFS(Transações!D:D,Transações!A:A,\">=\"&'Graph Data'!$E$2,Transações!A:A,\"<=\"&'Graph Data'!$E$3,Transações!C:C,'Graph Data'!A754))","v":{"$error":"#N/A"}}]
[null,{"$f":"IF(SUMIFS(Transações!D:D,Transações!A:A,\">=\"&'Graph Data'!$E$2,Transações!A:A,\"<=\"&'Graph Data'!$E$3,Transações!C:C,'Graph Data'!A755)=0,NA(),SUMIFS(Transações!D:D,Transações!A:A,\">=\"&'Graph Data'!$E$2,Transações!A:A,\"<=\"&'Graph Data'!$E$3,Transações!C:C,'Graph Data'!A755))","v":{"$error":"#N/A"}}]
[null,{"$f":"IF(SUMIFS(Transações!D:D,Transações!A:A,\">=\"&'Graph Data'!$E$2,Transações!A:A,\"<=\"&'Graph Data'!$E$3,Transações!C:C,'Graph Data'!A756)=0,NA(),SUMIFS(Transações!D:D,Transações!A:A,\">=\"&'Graph Data'!$E$2,Transações!A:A,\"<=\"&'Graph Data'!$E$3,Transações!C:C,'Graph Data'!A756))","v":{"$error":"#N/A"}}]
[null,{"$f":"IF(SUMIFS(Transações!D:D,Transações!A:A,\">=\"&'Graph Data'!$E$2,Transações!A:A,\"<=\"&'Graph Data'!$E$3,Transações!C:C,'Graph Data'!A757)=0,NA(),SUMIFS(Transações!D:D,Transações!A:A,\">=\"&'Graph Data'!$E$2,Transações!A:A,\"<=\"&'Graph Data'!$E$3,Transações!C:C,'Graph Data'!A757))","v":{"$error":"#N/A"}}]
[null,{"$f":"IF(SUMIFS(Transações!D:D,Transações!A:A,\">=\"&'Graph Data'!$E$2,Transações!A:A,\"<=\"&'Graph Data'!$E$3,Transações!C:C,'Graph Data'!A758)=0,NA(),SUMIFS(Transações!D:D,Transações!A:A,\">=\"&'Graph Data'!$E$2,Transações!A:A,\"<=\"&'Graph Data'!$E$3,Transações!C:C,'Graph Data'!A758))","v":{"$error":"#N/A"}}]
[null,{"$f":"IF(SUMIFS(Transações!D:D,Transações!A:A,\">=\"&'Graph Data'!$E$2,Transações!A:A,\"<=\"&'Graph Data'!$E$3,Transações!C:C,'Graph Data'!A759)=0,NA(),SUMIFS(Transações!D:D,Transações!A:A,\">=\"&'Graph Data'!$E$2,Transações!A:A,\"<=\"&'Graph Data'!$E$3,Transações!C:C,'Graph Data'!A759))","v":{"$error":"#N/A"}}]
[null,{"$f":"IF(SUMIFS(Transações!D:D,Transações!A:A,\">=\"&'Graph Data'!$E$2,Transações!A:A,\"<=\"&'Graph Data'!$E$3,Transações!C:C,'Graph Data'!A760)=0,NA(),SUMIFS(Transações!D:D,Transações!A:A,\">=\"&'Graph Data'!$E$2,Transações!A:A,\"<=\"&'Graph Data'!$E$3,Transações!C:C,'Graph Data'!A760))","v":{"$error":"#N/A"}}]
[null,{"$f":"IF(SUMIFS(Transações!D:D,Transações!A:A,\">=\"&'Graph Data'!$E$2,Transações!A:A,\"<=\"&'Graph Data'!$E$3,Transações!C:C,'Graph Data'!A761)=0,NA(),SUMIFS(Transações!D:D,Transações!A:A,\">=\"&'Graph Data'!$E$2,Transações!A:A,\"<=\"&'Graph Data'!$E$3,Transações!C:C,'Graph Data'!A761))","v":{"$error":"#N/A"}}]
[null,{"$f":"IF(SUMIFS(Transações!D:D,Transações!A:A,\">=\"&'Graph Data'!$E$2,Transações!A:A,\"<=\"&'Graph Data'!$E$3,Transações!C:C,'Graph Data'!A762)=0,NA(),SUMIFS(Transações!D:D,Transações!A:A,\">=\"&'Graph Data'!$E$2,Transações!A:A,\"<=\"&'Graph Data'!$E$3,Transações!C:C,'Graph Data'!A762))","v":{"$error":"#N/A"}}]
[null,{"$f":"IF(SUMIFS(Transações!D:D,Transações!A:A,\">=\"&'Graph Data'!$E$2,Transações!A:A,\"<=\"&'Graph Data'!$E$3,Transações!C:C,'Graph Data'!A763)=0,NA(),SUMIFS(Transações!D:D,Transações!A:A,\">=\"&'Graph Data'!$E$2,Transações!A:A,\"<=\"&'Graph Data'!$E$3,Transações!C:C,'Graph Data'!A763))","v":{"$error":"#N/A"}}]
[null,{"$f":"IF(SUMIFS(Transações!D:D,Transações!A:A,\">=\"&'Graph Data'!$E$2,Transações!A:A,\"<=\"&'Graph Data'!$E$3,Transações!C:C,'Graph Data'!A764)=0,NA(),SUMIFS(Transações!D:D,Transações!A:A,\">=\"&'Graph Data'!$E$2,Transações!A:A,\"<=\"&'Graph Data'!$E$3,Transações!C:C,'Graph Data'!A764))","v":{"$error":"#N/A"}}]
[null,{"$f":"IF(SUMIFS(Transações!D:D,Transações!A:A,\">=\"&'Graph Data'!$E$2,Transações!A:A,\"<=\"&'Graph Data'!$E$3,Transações!C:C,'Graph Data'!A765)=0,NA(),SUMIFS(Transações!D:D,Transações!A:A,\">=\"&'Graph Data'!$E$2,Transações!A:A,\"<=\"&'Graph Data'!$E$3,Transações!C:C,'Graph Data'!A765))","v":{"$error":"#N/A"}}]
[null,{"$f":"IF(SUMIFS(Transações!D:D,Transações!A:A,\">=\"&'Graph Data'!$E$2,Transações!A:A,\"<=\"&'Graph Data'!$E$3,Transações!C:C,'Graph Data'!A766)=0,NA(),SUMIFS(Transações!D:D,Transações!A:A,\">=\"&'Graph Data'!$E$2,Transações!A:A,\"<=\"&'Graph Data'!$E$3,Transações!C:C,'Graph Data'!A766))","v":{"$error":"#N/A"}}]
[null,{"$f":"IF(SUMIFS(Transações!D:D,Transações!A:A,\">=\"&'Graph Data'!$E$2,Transações!A:A,\"<=\"&'Graph Data'!$E$3,Transações!C:C,'Graph Data'!A767)=0,NA(),SUMIFS(Transações!D:D,Transações!A:A,\">=\"&'Graph Data'!$E$2,Transações!A:A,\"<=\"&'Graph Data'!$E$3,Transações!C:C,'Graph Data'!A767))","v":{"$error":"#N/A"}}]
[null,{"$f":"IF(SUMIFS(Transações!D:D,Transações!A:A,\">=\"&'Graph Data'!$E$2,Transações!A:A,\"<=\"&'Graph Data'!$E$3,Transações!C:C,'Graph Data'!A768)=0,NA(),SUMIFS(Transações!D:D,Transações!A:A,\">=\"&'Graph Data'!$E$2,Transações!A:A,\"<=\"&'Graph Data'!$E$3,Transações!C:C,'Graph Data'!A768))","v":{"$error":"#N/A"}}]
[null,{"$f":"IF(SUMIFS(Transações!D:D,Transações!A:A,\">=\"&'Graph Data'!$E$2,Transações!A:A,\"<=\"&'Graph Data'!$E$3,Transações!C:C,'Graph Data'!A769)=0,NA(),SUMIFS(Transações!D:D,Transações!A:A,\">=\"&'Graph Data'!$E$2,Transações!A:A,\"<=\"&'Graph Data'!$E$3,Transações!C:C,'Graph Data'!A769))","v":{"$error":"#N/A"}}]
[null,{"$f":"IF(SUMIFS(Transações!D:D,Transações!A:A,\">=\"&'Graph Data'!$E$2,Transações!A:A,\"<=\"&'Graph Data'!$E$3,Transações!C:C,'Graph Data'!A770)=0,NA(),SUMIFS(Transações!D:D,Transações!A:A,\">=\"&'Graph Data'!$E$2,Transações!A:A,\"<=\"&'Graph Data'!$E$3,Transações!C:C,'Graph Data'!A770))","v":{"$error":"#N/A"}}]
[null,{"$f":"IF(SUMIFS(Transações!D:D,Transações!A:A,\">=\"&'Graph Data'!$E$2,Transações!A:A,\"<=\"&'Graph Data'!$E$3,Transações!C:C,'Graph Data'!A771)=0,NA(),SUMIFS(Transações!D:D,Transações!A:A,\">=\"&'Graph Data'!$E$2,Transações!A:A,\"<=\"&'Graph Data'!$E$3,Transações!C:C,'Graph Data'!A771))","v":{"$error":"#N/A"}}]
[null,{"$f":"IF(SUMIFS(Transações!D:D,Transações!A:A,\">=\"&'Graph Data'!$E$2,Transações!A:A,\"<=\"&'Graph Data'!$E$3,Transações!C:C,'Graph Data'!A772)=0,NA(),SUMIFS(Transações!D:D,Transações!A:A,\">=\"&'Graph Data'!$E$2,Transações!A:A,\"<=\"&'Graph Data'!$E$3,Transações!C:C,'Graph Data'!A772))","v":{"$error":"#N/A"}}]
[null,{"$f":"IF(SUMIFS(Transações!D:D,Transações!A:A,\">=\"&'Graph Data'!$E$2,Transações!A:A,\"<=\"&'Graph Data'!$E$3,Transações!C:C,'Graph Data'!A773)=0,NA(),SUMIFS(Transações!D:D,Transações!A:A,\">=\"&'Graph Data'!$E$2,Transações!A:A,\"<=\"&'Graph Data'!$E$3,Transações!C:C,'Graph Data'!A773))","v":{"$error":"#N/A"}}]
[null,{"$f":"IF(SUMIFS(Transações!D:D,Transações!A:A,\">=\"&'Graph Data'!$E$2,Transações!A:A,\"<=\"&'Graph Data'!$E$3,Transações!C:C,'Graph Data'!A774)=0,NA(),SUMIFS(Transações!D:D,Transações!A:A,\">=\"&'Graph Data'!$E$2,Transações!A:A,\"<=\"&'Graph Data'!$E$3,Transações!C:C,'Graph Data'!A774))","v":{"$error":"#N/A"}}]
[null,{"$f":"IF(SUMIFS(Transações!D:D,Transações!A:A,\">=\"&'Graph Data'!$E$2,Transações!A:A,\"<=\"&'Graph Data'!$E$3,Transações!C:C,'Graph Data'!A775)=0,NA(),SUMIFS(Transações!D:D,Transações!A:A,\">=\"&'Graph Data'!$E$2,Transações!A:A,\"<=\"&'Graph Data'!$E$3,Transações!C:C,'Graph Data'!A775))","v":{"$error":"#N/A"}}]
[null,{"$f":"IF(SUMIFS(Transações!D:D,Transações!A:A,\">=\"&'Graph Data'!$E$2,Transações!A:A,\"<=\"&'Graph Data'!$E$3,Transações!C:C,'Graph Data'!A776)=0,NA(),SUMIFS(Transações!D:D,Transações!A:A,\">=\"&'Graph Data'!$E$2,Transações!A:A,\"<=\"&'Graph Data'!$E$3,Transações!C:C,'Graph Data'!A776))","v":{"$error":"#N/A"}}]
[null,{"$f":"IF(SUMIFS(Transações!D:D,Transações!A:A,\">=\"&'Graph Data'!$E$2,Transações!A:A,\"<=\"&'Graph Data'!$E$3,Transações!C:C,'Graph Data'!A777)=0,NA(),SUMIFS(Transações!D:D,Transações!A:A,\">=\"&'Graph Data'!$E$2,Transações!A:A,\"<=\"&'Graph Data'!$E$3,Transações!C:C,'Graph Data'!A777))","v":{"$error":"#N/A"}}]
[null,{"$f":"IF(SUMIFS(Transações!D:D,Transações!A:A,\">=\"&'Graph Data'!$E$2,Transações!A:A,\"<=\"&'Graph Data'!$E$3,Transações!C:C,'Graph Data'!A778)=0,NA(),SUMIFS(Transações!D:D,Transações!A:A,\">=\"&'Graph Data'!$E$2,Transações!A:A,\"<=\"&'Graph Data'!$E$3,Transações!C:C,'Graph Data'!A778))","v":{"$error":"#N/A"}}]
[null,{"$f":"IF(SUMIFS(Transações!D:D,Transações!A:A,\">=\"&'Graph Data'!$E$2,Transações!A:A,\"<=\"&'Graph Data'!$E$3,Transações!C:C,'Graph Data'!A779)=0,NA(),SUMIFS(Transações!D:D,Transações!A:A,\">=\"&'Graph Data'!$E$2,Transações!A:A,\"<=\"&'Graph Data'!$E$3,Transações!C:C,'Graph Data'!A779))","v":{"$error":"#N/A"}}]
[null,{"$f":"IF(SUMIFS(Transações!D:D,Transações!A:A,\">=\"&'Graph Data'!$E$2,Transações!A:A,\"<=\"&'Graph Data'!$E$3,Transações!C:C,'Graph Data'!A780)=0,NA(),SUMIFS(Transações!D:D,Transações!A:A,\">=\"&'Graph Data'!$E$2,Transações!A:A,\"<=\"&'Graph Data'!$E$3,Transações!C:C,'Graph Data'!A780))","v":{"$error":"#N/A"}}]
[null,{"$f":"IF(SUMIFS(Transações!D:D,Transações!A:A,\">=\"&'Graph Data'!$E$2,Transações!A:A,\"<=\"&'Graph Data'!$E$3,Transações!C:C,'Graph Data'!A781)=0,NA(),SUMIFS(Transações!D:D,Transações!A:A,\">=\"&'Graph Data'!$E$2,Transações!A:A,\"<=\"&'Graph Data'!$E$3,Transações!C:C,'Graph Data'!A781))","v":{"$error":"#N/A"}}]
[null,{"$f":"IF(SUMIFS(Transações!D:D,Transações!A:A,\">=\"&'Graph Data'!$E$2,Transações!A:A,\"<=\"&'Graph Data'!$E$3,Transações!C:C,'Graph Data'!A782)=0,NA(),SUMIFS(Transações!D:D,Transações!A:A,\">=\"&'Graph Data'!$E$2,Transações!A:A,\"<=\"&'Graph Data'!$E$3,Transações!C:C,'Graph Data'!A782))","v":{"$error":"#N/A"}}]
[null,{"$f":"IF(SUMIFS(Transações!D:D,Transações!A:A,\">=\"&'Graph Data'!$E$2,Transações!A:A,\"<=\"&'Graph Data'!$E$3,Transações!C:C,'Graph Data'!A783)=0,NA(),SUMIFS(Transações!D:D,Transações!A:A,\">=\"&'Graph Data'!$E$2,Transações!A:A,\"<=\"&'Graph Data'!$E$3,Transações!C:C,'Graph Data'!A783))","v":{"$error":"#N/A"}}]
[null,{"$f":"IF(SUMIFS(Transações!D:D,Transações!A:A,\">=\"&'Graph Data'!$E$2,Transações!A:A,\"<=\"&'Graph Data'!$E$3,Transações!C:C,'Graph Data'!A784)=0,NA(),SUMIFS(Transações!D:D,Transações!A:A,\">=\"&'Graph Data'!$E$2,Transações!A:A,\"<=\"&'Graph Data'!$E$3,Transações!C:C,'Graph Data'!A784))","v":{"$error":"#N/A"}}]
[null,{"$f":"IF(SUMIFS(Transações!D:D,Transações!A:A,\">=\"&'Graph Data'!$E$2,Transações!A:A,\"<=\"&'Graph Data'!$E$3,Transações!C:C,'Graph Data'!A785)=0,NA(),SUMIFS(Transações!D:D,Transações!A:A,\">=\"&'Graph Data'!$E$2,Transações!A:A,\"<=\"&'Graph Data'!$E$3,Transações!C:C,'Graph Data'!A785))","v":{"$error":"#N/A"}}]
[null,{"$f":"IF(SUMIFS(Transações!D:D,Transações!A:A,\">=\"&'Graph Data'!$E$2,Transações!A:A,\"<=\"&'Graph Data'!$E$3,Transações!C:C,'Graph Data'!A786)=0,NA(),SUMIFS(Transações!D:D,Transações!A:A,\">=\"&'Graph Data'!$E$2,Transações!A:A,\"<=\"&'Graph Data'!$E$3,Transações!C:C,'Graph Data'!A786))","v":{"$error":"#N/A"}}]
[null,{"$f":"IF(SUMIFS(Transações!D:D,Transações!A:A,\">=\"&'Graph Data'!$E$2,Transações!A:A,\"<=\"&'Graph Data'!$E$3,Transações!C:C,'Graph Data'!A787)=0,NA(),SUMIFS(Transações!D:D,Transações!A:A,\">=\"&'Graph Data'!$E$2,Transações!A:A,\"<=\"&'Graph Data'!$E$3,Transações!C:C,'Graph Data'!A787))","v":{"$error":"#N/A"}}]
[null,{"$f":"IF(SUMIFS(Transações!D:D,Transações!A:A,\">=\"&'Graph Data'!$E$2,Transações!A:A,\"<=\"&'Graph Data'!$E$3,Transações!C:C,'Graph Data'!A788)=0,NA(),SUMIFS(Transações!D:D,Transações!A:A,\">=\"&'Graph Data'!$E$2,Transações!A:A,\"<=\"&'Graph Data'!$E$3,Transações!C:C,'Graph Data'!A788))","v":{"$error":"#N/A"}}]
[null,{"$f":"IF(SUMIFS(Transações!D:D,Transações!A:A,\">=\"&'Graph Data'!$E$2,Transações!A:A,\"<=\"&'Graph Data'!$E$3,Transações!C:C,'Graph Data'!A789)=0,NA(),SUMIFS(Transações!D:D,Transações!A:A,\">=\"&'Graph Data'!$E$2,Transações!A:A,\"<=\"&'Graph Data'!$E$3,Transações!C:C,'Graph Data'!A789))","v":{"$error":"#N/A"}}]
[null,{"$f":"IF(SUMIFS(Transações!D:D,Transações!A:A,\">=\"&'Graph Data'!$E$2,Transações!A:A,\"<=\"&'Graph Data'!$E$3,Transações!C:C,'Graph Data'!A790)=0,NA(),SUMIFS(Transações!D:D,Transações!A:A,\">=\"&'Graph Data'!$E$2,Transações!A:A,\"<=\"&'Graph Data'!$E$3,Transações!C:C,'Graph Data'!A790))","v":{"$error":"#N/A"}}]
[null,{"$f":"IF(SUMIFS(Transações!D:D,Transações!A:A,\">=\"&'Graph Data'!$E$2,Transações!A:A,\"<=\"&'Graph Data'!$E$3,Transações!C:C,'Graph Data'!A791)=0,NA(),SUMIFS(Transações!D:D,Transações!A:A,\">=\"&'Graph Data'!$E$2,Transações!A:A,\"<=\"&'Graph Data'!$E$3,Transações!C:C,'Graph Data'!A791))","v":{"$error":"#N/A"}}]
[null,{"$f":"IF(SUMIFS(Transações!D:D,Transações!A:A,\">=\"&'Graph Data'!$E$2,Transações!A:A,\"<=\"&'Graph Data'!$E$3,Transações!C:C,'Graph Data'!A792)=0,NA(),SUMIFS(Transações!D:D,Transações!A:A,\">=\"&'Graph Data'!$E$2,Transações!A:A,\"<=\"&'Graph Data'!$E$3,Transações!C:C,'Graph Data'!A792))","v":{"$error":"#N/A"}}]
[null,{"$f":"IF(SUMIFS(Transações!D:D,Transações!A:A,\">=\"&'Graph Data'!$E$2,Transações!A:A,\"<=\"&'Graph Data'!$E$3,Transações!C:C,'Graph Data'!A793)=0,NA(),SUMIFS(Transações!D:D,Transações!A:A,\">=\"&'Graph Data'!$E$2,Transações!A:A,\"<=\"&'Graph Data'!$E$3,Transações!C:C,'Graph Data'!A793))","v":{"$error":"#N/A"}}]
[null,{"$f":"IF(SUMIFS(Transações!D:D,Transações!A:A,\">=\"&'Graph Data'!$E$2,Transações!A:A,\"<=\"&'Graph Data'!$E$3,Transações!C:C,'Graph Data'!A794)=0,NA(),SUMIFS(Transações!D:D,Transações!A:A,\">=\"&'Graph Data'!$E$2,Transações!A:A,\"<=\"&'Graph Data'!$E$3,Transações!C:C,'Graph Data'!A794))","v":{"$error":"#N/A"}}]
[null,{"$f":"IF(SUMIFS(Transações!D:D,Transações!A:A,\">=\"&'Graph Data'!$E$2,Transações!A:A,\"<=\"&'Graph Data'!$E$3,Transações!C:C,'Graph Data'!A795)=0,NA(),SUMIFS(Transações!D:D,Transações!A:A,\">=\"&'Graph Data'!$E$2,Transações!A:A,\"<=\"&'Graph Data'!$E$3,Transações!C:C,'Graph Data'!A795))","v":{"$error":"#N/A"}}]
[null,{"$f":"IF(SUMIFS(Transações!D:D,Transações!A:A,\">=\"&'Graph Data'!$E$2,Transações!A:A,\"<=\"&'Graph Data'!$E$3,Transações!C:C,'Graph Data'!A796)=0,NA(),SUMIFS(Transações!D:D,Transações!A:A,\">=\"&'Graph Data'!$E$2,Transações!A:A,\"<=\"&'Graph Data'!$E$3,Transações!C:C,'Graph Data'!A796))","v":{"$error":"#N/A"}}]
[null,{"$f":"IF(SUMIFS(Transações!D:D,Transações!A:A,\">=\"&'Graph Data'!$E$2,Transações!A:A,\"<=\"&'Graph Data'!$E$3,Transações!C:C,'Graph Data'!A797)=0,NA(),SUMIFS(Transações!D:D,Transações!A:A,\">=\"&'Graph Data'!$E$2,Transações!A:A,\"<=\"&'Graph Data'!$E$3,Transações!C:C,'Graph Data'!A797))","v":{"$error":"#N/A"}}]
[null,{"$f":"IF(SUMIFS(Transações!D:D,Transações!A:A,\">=\"&'Graph Data'!$E$2,Transações!A:A,\"<=\"&'Graph Data'!$E$3,Transações!C:C,'Graph Data'!A798)=0,NA(),SUMIFS(Transações!D:D,Transações!A:A,\">=\"&'Graph Data'!$E$2,Transações!A:A,\"<=\"&'Graph Data'!$E$3,Transações!C:C,'Graph Data'!A798))","v":{"$error":"#N/A"}}]
[null,{"$f":"IF(SUMIFS(Transações!D:D,Transações!A:A,\">=\"&'Graph Data'!$E$2,Transações!A:A,\"<=\"&'Graph Data'!$E$3,Transações!C:C,'Graph Data'!A799)=0,NA(),SUMIFS(Transações!D:D,Transações!A:A,\">=\"&'Graph Data'!$E$2,Transações!A:A,\"<=\"&'Graph Data'!$E$3,Transações!C:C,'Graph Data'!A799))","v":{"$error":"#N/A"}}]
[null,{"$f":"IF(SUMIFS(Transações!D:D,Transações!A:A,\">=\"&'Graph Data'!$E$2,Transações!A:A,\"<=\"&'Graph Data'!$E$3,Transações!C:C,'Graph Data'!A800)=0,NA(),SUMIFS(Transações!D:D,Transações!A:A,\">=\"&'Graph Data'!$E$2,Transações!A:A,\"<=\"&'Graph Data'!$E$3,Transações!C:C,'Graph Data'!A800))","v":{"$error":"#N/A"}}]
[null,{"$f":"IF(SUMIFS(Transações!D:D,Transações!A:A,\">=\"&'Graph Data'!$E$2,Transações!A:A,\"<=\"&'Graph Data'!$E$3,Transações!C:C,'Graph Data'!A801)=0,NA(),SUMIFS(Transações!D:D,Transações!A:A,\">=\"&'Graph Data'!$E$2,Transações!A:A,\"<=\"&'Graph Data'!$E$3,Transações!C:C,'Graph Data'!A801))","v":{"$error":"#N/A"}}]
[null,{"$f":"IF(SUMIFS(Transações!D:D,Transações!A:A,\">=\"&'Graph Data'!$E$2,Transações!A:A,\"<=\"&'Graph Data'!$E$3,Transações!C:C,'Graph Data'!A802)=0,NA(),SUMIFS(Transações!D:D,Transações!A:A,\">=\"&'Graph Data'!$E$2,Transações!A:A,\"<=\"&'Graph Data'!$E$3,Transações!C:C,'Graph Data'!A802))","v":{"$error":"#N/A"}}]
[null,{"$f":"IF(SUMIFS(Transações!D:D,Transações!A:A,\">=\"&'Graph Data'!$E$2,Transações!A:A,\"<=\"&'Graph Data'!$E$3,Transações!C:C,'Graph Data'!A803)=0,NA(),SUMIFS(Transações!D:D,Transações!A:A,\">=\"&'Graph Data'!$E$2,Transações!A:A,\"<=\"&'Graph Data'!$E$3,Transações!C:C,'Graph Data'!A803))","v":{"$error":"#N/A"}}]
[null,{"$f":"IF(SUMIFS(Transações!D:D,Transações!A:A,\">=\"&'Graph Data'!$E$2,Transações!A:A,\"<=\"&'Graph Data'!$E$3,Transações!C:C,'Graph Data'!A804)=0,NA(),SUMIFS(Transações!D:D,Transações!A:A,\">=\"&'Graph Data'!$E$2,Transações!A:A,\"<=\"&'Graph Data'!$E$3,Transações!C:C,'Graph Data'!A804))","v":{"$error":"#N/A"}}]
[null,{"$f":"IF(SUMIFS(Transações!D:D,Transações!A:A,\">=\"&'Graph Data'!$E$2,Transações!A:A,\"<=\"&'Graph Data'!$E$3,Transações!C:C,'Graph Data'!A805)=0,NA(),SUMIFS(Transações!D:D,Transações!A:A,\">=\"&'Graph Data'!$E$2,Transações!A:A,\"<=\"&'Graph Data'!$E$3,Transações!C:C,'Graph Data'!A805))","v":{"$error":"#N/A"}}]
[null,{"$f":"IF(SUMIFS(Transações!D:D,Transações!A:A,\">=\"&'Graph Data'!$E$2,Transações!A:A,\"<=\"&'Graph Data'!$E$3,Transações!C:C,'Graph Data'!A806)=0,NA(),SUMIFS(Transações!D:D,Transações!A:A,\">=\"&'Graph Data'!$E$2,Transações!A:A,\"<=\"&'Graph Data'!$E$3,Transações!C:C,'Graph Data'!A806))","v":{"$error":"#N/A"}}]
[null,{"$f":"IF(SUMIFS(Transações!D:D,Transações!A:A,\">=\"&'Graph Data'!$E$2,Transações!A:A,\"<=\"&'Graph Data'!$E$3,Transações!C:C,'Graph Data'!A807)=0,NA(),SUMIFS(Transações!D:D,Transações!A:A,\">=\"&'Graph Data'!$E$2,Transações!A:A,\"<=\"&'Graph Data'!$E$3,Transações!C:C,'Graph Data'!A807))","v":{"$error":"#N/A"}}]
[null,{"$f":"IF(SUMIFS(Transações!D:D,Transações!A:A,\">=\"&'Graph Data'!$E$2,Transações!A:A,\"<=\"&'Graph Data'!$E$3,Transações!C:C,'Graph Data'!A808)=0,NA(),SUMIFS(Transações!D:D,Transações!A:A,\">=\"&'Graph Data'!$E$2,Transações!A:A,\"<=\"&'Graph Data'!$E$3,Transações!C:C,'Graph Data'!A808))","v":{"$error":"#N/A"}}]
[null,{"$f":"IF(SUMIFS(Transações!D:D,Transações!A:A,\">=\"&'Graph Data'!$E$2,Transações!A:A,\"<=\"&'Graph Data'!$E$3,Transações!C:C,'Graph Data'!A809)=0,NA(),SUMIFS(Transações!D:D,Transações!A:A,\">=\"&'Graph Data'!$E$2,Transações!A:A,\"<=\"&'Graph Data'!$E$3,Transações!C:C,'Graph Data'!A809))","v":{"$error":"#N/A"}}]
[null,{"$f":"IF(SUMIFS(Transações!D:D,Transações!A:A,\">=\"&'Graph Data'!$E$2,Transações!A:A,\"<=\"&'Graph Data'!$E$3,Transações!C:C,'Graph Data'!A810)=0,NA(),SUMIFS(Transações!D:D,Transações!A:A,\">=\"&'Graph Data'!$E$2,Transações!A:A,\"<=\"&'Graph Data'!$E$3,Transações!C:C,'Graph Data'!A810))","v":{"$error":"#N/A"}}]
[null,{"$f":"IF(SUMIFS(Transações!D:D,Transações!A:A,\">=\"&'Graph Data'!$E$2,Transações!A:A,\"<=\"&'Graph Data'!$E$3,Transações!C:C,'Graph Data'!A811)=0,NA(),SUMIFS(Transações!D:D,Transações!A:A,\">=\"&'Graph Data'!$E$2,Transações!A:A,\"<=\"&'Graph Data'!$E$3,Transações!C:C,'Graph Data'!A811))","v":{"$error":"#N/A"}}]
[null,{"$f":"IF(SUMIFS(Transações!D:D,Transações!A:A,\">=\"&'Graph Data'!$E$2,Transações!A:A,\"<=\"&'Graph Data'!$E$3,Transações!C:C,'Graph Data'!A812)=0,NA(),SUMIFS(Transações!D:D,Transações!A:A,\">=\"&'Graph Data'!$E$2,Transações!A:A,\"<=\"&'Graph Data'!$E$3,Transações!C:C,'Graph Data'!A812))","v":{"$error":"#N/A"}}]
[null,{"$f":"IF(SUMIFS(Transações!D:D,Transações!A:A,\">=\"&'Graph Data'!$E$2,Transações!A:A,\"<=\"&'Graph Data'!$E$3,Transações!C:C,'Graph Data'!A813)=0,NA(),SUMIFS(Transações!D:D,Transações!A:A,\">=\"&'Graph Data'!$E$2,Transações!A:A,\"<=\"&'Graph Data'!$E$3,Transações!C:C,'Graph Data'!A813))","v":{"$error":"#N/A"}}]
[null,{"$f":"IF(SUMIFS(Transações!D:D,Transações!A:A,\">=\"&'Graph Data'!$E$2,Transações!A:A,\"<=\"&'Graph Data'!$E$3,Transações!C:C,'Graph Data'!A814)=0,NA(),SUMIFS(Transações!D:D,Transações!A:A,\">=\"&'Graph Data'!$E$2,Transações!A:A,\"<=\"&'Graph Data'!$E$3,Transações!C:C,'Graph Data'!A814))","v":{"$error":"#N/A"}}]
[null,{"$f":"IF(SUMIFS(Transações!D:D,Transações!A:A,\">=\"&'Graph Data'!$E$2,Transações!A:A,\"<=\"&'Graph Data'!$E$3,Transações!C:C,'Graph Data'!A815)=0,NA(),SUMIFS(Transações!D:D,Transações!A:A,\">=\"&'Graph Data'!$E$2,Transações!A:A,\"<=\"&'Graph Data'!$E$3,Transações!C:C,'Graph Data'!A815))","v":{"$error":"#N/A"}}]
[null,{"$f":"IF(SUMIFS(Transações!D:D,Transações!A:A,\">=\"&'Graph Data'!$E$2,Transações!A:A,\"<=\"&'Graph Data'!$E$3,Transações!C:C,'Graph Data'!A816)=0,NA(),SUMIFS(Transações!D:D,Transações!A:A,\">=\"&'Graph Data'!$E$2,Transações!A:A,\"<=\"&'Graph Data'!$E$3,Transações!C:C,'Graph Data'!A816))","v":{"$error":"#N/A"}}]
[null,{"$f":"IF(SUMIFS(Transações!D:D,Transações!A:A,\">=\"&'Graph Data'!$E$2,Transações!A:A,\"<=\"&'Graph Data'!$E$3,Transações!C:C,'Graph Data'!A817)=0,NA(),SUMIFS(Transações!D:D,Transações!A:A,\">=\"&'Graph Data'!$E$2,Transações!A:A,\"<=\"&'Graph Data'!$E$3,Transações!C:C,'Graph Data'!A817))","v":{"$error":"#N/A"}}]
[null,{"$f":"IF(SUMIFS(Transações!D:D,Transações!A:A,\">=\"&'Graph Data'!$E$2,Transações!A:A,\"<=\"&'Graph Data'!$E$3,Transações!C:C,'Graph Data'!A818)=0,NA(),SUMIFS(Transações!D:D,Transações!A:A,\">=\"&'Graph Data'!$E$2,Transações!A:A,\"<=\"&'Graph Data'!$E$3,Transações!C:C,'Graph Data'!A818))","v":{"$error":"#N/A"}}]
[null,{"$f":"IF(SUMIFS(Transações!D:D,Transações!A:A,\">=\"&'Graph Data'!$E$2,Transações!A:A,\"<=\"&'Graph Data'!$E$3,Transações!C:C,'Graph Data'!A819)=0,NA(),SUMIFS(Transações!D:D,Transações!A:A,\">=\"&'Graph Data'!$E$2,Transações!A:A,\"<=\"&'Graph Data'!$E$3,Transações!C:C,'Graph Data'!A819))","v":{"$error":"#N/A"}}]
[null,{"$f":"IF(SUMIFS(Transações!D:D,Transações!A:A,\">=\"&'Graph Data'!$E$2,Transações!A:A,\"<=\"&'Graph Data'!$E$3,Transações!C:C,'Graph Data'!A820)=0,NA(),SUMIFS(Transações!D:D,Transações!A:A,\">=\"&'Graph Data'!$E$2,Transações!A:A,\"<=\"&'Graph Data'!$E$3,Transações!C:C,'Graph Data'!A820))","v":{"$error":"#N/A"}}]
[null,{"$f":"IF(SUMIFS(Transações!D:D,Transações!A:A,\">=\"&'Graph Data'!$E$2,Transações!A:A,\"<=\"&'Graph Data'!$E$3,Transações!C:C,'Graph Data'!A821)=0,NA(),SUMIFS(Transações!D:D,Transações!A:A,\">=\"&'Graph Data'!$E$2,Transações!A:A,\"<=\"&'Graph Data'!$E$3,Transações!C:C,'Graph Data'!A821))","v":{"$error":"#N/A"}}]
[null,{"$f":"IF(SUMIFS(Transações!D:D,Transações!A:A,\">=\"&'Graph Data'!$E$2,Transações!A:A,\"<=\"&'Graph Data'!$E$3,Transações!C:C,'Graph Data'!A822)=0,NA(),SUMIFS(Transações!D:D,Transações!A:A,\">=\"&'Graph Data'!$E$2,Transações!A:A,\"<=\"&'Graph Data'!$E$3,Transações!C:C,'Graph Data'!A822))","v":{"$error":"#N/A"}}]
[null,{"$f":"IF(SUMIFS(Transações!D:D,Transações!A:A,\">=\"&'Graph Data'!$E$2,Transações!A:A,\"<=\"&'Graph Data'!$E$3,Transações!C:C,'Graph Data'!A823)=0,NA(),SUMIFS(Transações!D:D,Transações!A:A,\">=\"&'Graph Data'!$E$2,Transações!A:A,\"<=\"&'Graph Data'!$E$3,Transações!C:C,'Graph Data'!A823))","v":{"$error":"#N/A"}}]
[null,{"$f":"IF(SUMIFS(Transações!D:D,Transações!A:A,\">=\"&'Graph Data'!$E$2,Transações!A:A,\"<=\"&'Graph Data'!$E$3,Transações!C:C,'Graph Data'!A824)=0,NA(),SUMIFS(Transações!D:D,Transações!A:A,\">=\"&'Graph Data'!$E$2,Transações!A:A,\"<=\"&'Graph Data'!$E$3,Transações!C:C,'Graph Data'!A824))","v":{"$error":"#N/A"}}]
[null,{"$f":"IF(SUMIFS(Transações!D:D,Transações!A:A,\">=\"&'Graph Data'!$E$2,Transações!A:A,\"<=\"&'Graph Data'!$E$3,Transações!C:C,'Graph Data'!A825)=0,NA(),SUMIFS(Transações!D:D,Transações!A:A,\">=\"&'Graph Data'!$E$2,Transações!A:A,\"<=\"&'Graph Data'!$E$3,Transações!C:C,'Graph Data'!A825))","v":{"$error":"#N/A"}}]
[null,{"$f":"IF(SUMIFS(Transações!D:D,Transações!A:A,\">=\"&'Graph Data'!$E$2,Transações!A:A,\"<=\"&'Graph Data'!$E$3,Transações!C:C,'Graph Data'!A826)=0,NA(),SUMIFS(Transações!D:D,Transações!A:A,\">=\"&'Graph Data'!$E$2,Transações!A:A,\"<=\"&'Graph Data'!$E$3,Transações!C:C,'Graph Data'!A826))","v":{"$error":"#N/A"}}]
[null,{"$f":"IF(SUMIFS(Transações!D:D,Transações!A:A,\">=\"&'Graph Data'!$E$2,Transações!A:A,\"<=\"&'Graph Data'!$E$3,Transações!C:C,'Graph Data'!A827)=0,NA(),SUMIFS(Transações!D:D,Transações!A:A,\">=\"&'Graph Data'!$E$2,Transações!A:A,\"<=\"&'Graph Data'!$E$3,Transações!C:C,'Graph Data'!A827))","v":{"$error":"#N/A"}}]
[null,{"$f":"IF(SUMIFS(Transações!D:D,Transações!A:A,\">=\"&'Graph Data'!$E$2,Transações!A:A,\"<=\"&'Graph Data'!$E$3,Transações!C:C,'Graph Data'!A828)=0,NA(),SUMIFS(Transações!D:D,Transações!A:A,\">=\"&'Graph Data'!$E$2,Transações!A:A,\"<=\"&'Graph Data'!$E$3,Transações!C:C,'Graph Data'!A828))","v":{"$error":"#N/A"}}]
[null,{"$f":"IF(SUMIFS(Transações!D:D,Transações!A:A,\">=\"&'Graph Data'!$E$2,Transações!A:A,\"<=\"&'Graph Data'!$E$3,Transações!C:C,'Graph Data'!A829)=0,NA(),SUMIFS(Transações!D:D,Transações!A:A,\">=\"&'Graph Data'!$E$2,Transações!A:A,\"<=\"&'Graph Data'!$E$3,Transações!C:C,'Graph Data'!A829))","v":{"$error":"#N/A"}}]
[null,{"$f":"IF(SUMIFS(Transações!D:D,Transações!A:A,\">=\"&'Graph Data'!$E$2,Transações!A:A,\"<=\"&'Graph Data'!$E$3,Transações!C:C,'Graph Data'!A830)=0,NA(),SUMIFS(Transações!D:D,Transações!A:A,\">=\"&'Graph Data'!$E$2,Transações!A:A,\"<=\"&'Graph Data'!$E$3,Transações!C:C,'Graph Data'!A830))","v":{"$error":"#N/A"}}]
[null,{"$f":"IF(SUMIFS(Transações!D:D,Transações!A:A,\">=\"&'Graph Data'!$E$2,Transações!A:A,\"<=\"&'Graph Data'!$E$3,Transações!C:C,'Graph Data'!A831)=0,NA(),SUMIFS(Transações!D:D,Transações!A:A,\">=\"&'Graph Data'!$E$2,Transações!A:A,\"<=\"&'Graph Data'!$E$3,Transações!C:C,'Graph Data'!A831))","v":{"$error":"#N/A"}}]
[null,{"$f":"IF(SUMIFS(Transações!D:D,Transações!A:A,\">=\"&'Graph Data'!$E$2,Transações!A:A,\"<=\"&'Graph Data'!$E$3,Transações!C:C,'Graph Data'!A832)=0,NA(),SUMIFS(Transações!D:D,Transações!A:A,\">=\"&'Graph Data'!$E$2,Transações!A:A,\"<=\"&'Graph Data'!$E$3,Transações!C:C,'Graph Data'!A832))","v":{"$error":"#N/A"}}]
[null,{"$f":"IF(SUMIFS(Transações!D:D,Transações!A:A,\">=\"&'Graph Data'!$E$2,Transações!A:A,\"<=\"&'Graph Data'!$E$3,Transações!C:C,'Graph Data'!A833)=0,NA(),SUMIFS(Transações!D:D,Transações!A:A,\">=\"&'Graph Data'!$E$2,Transações!A:A,\"<=\"&'Graph Data'!$E$3,Transações!C:C,'Graph Data'!A833))","v":{"$error":"#N/A"}}]
[null,{"$f":"IF(SUMIFS(Transações!D:D,Transações!A:A,\">=\"&'Graph Data'!$E$2,Transações!A:A,\"<=\"&'Graph Data'!$E$3,Transações!C:C,'Graph Data'!A834)=0,NA(),SUMIFS(Transações!D:D,Transações!A:A,\">=\"&'Graph Data'!$E$2,Transações!A:A,\"<=\"&'Graph Data'!$E$3,Transações!C:C,'Graph Data'!A834))","v":{"$error":"#N/A"}}]
[null,{"$f":"IF(SUMIFS(Transações!D:D,Transações!A:A,\">=\"&'Graph Data'!$E$2,Transações!A:A,\"<=\"&'Graph Data'!$E$3,Transações!C:C,'Graph Data'!A835)=0,NA(),SUMIFS(Transações!D:D,Transações!A:A,\">=\"&'Graph Data'!$E$2,Transações!A:A,\"<=\"&'Graph Data'!$E$3,Transações!C:C,'Graph Data'!A835))","v":{"$error":"#N/A"}}]
[null,{"$f":"IF(SUMIFS(Transações!D:D,Transações!A:A,\">=\"&'Graph Data'!$E$2,Transações!A:A,\"<=\"&'Graph Data'!$E$3,Transações!C:C,'Graph Data'!A836)=0,NA(),SUMIFS(Transações!D:D,Transações!A:A,\">=\"&'Graph Data'!$E$2,Transações!A:A,\"<=\"&'Graph Data'!$E$3,Transações!C:C,'Graph Data'!A836))","v":{"$error":"#N/A"}}]
[null,{"$f":"IF(SUMIFS(Transações!D:D,Transações!A:A,\">=\"&'Graph Data'!$E$2,Transações!A:A,\"<=\"&'Graph Data'!$E$3,Transações!C:C,'Graph Data'!A837)=0,NA(),SUMIFS(Transações!D:D,Transações!A:A,\">=\"&'Graph Data'!$E$2,Transações!A:A,\"<=\"&'Graph Data'!$E$3,Transações!C:C,'Graph Data'!A837))","v":{"$error":"#N/A"}}]
[null,{"$f":"IF(SUMIFS(Transações!D:D,Transações!A:A,\">=\"&'Graph Data'!$E$2,Transações!A:A,\"<=\"&'Graph Data'!$E$3,Transações!C:C,'Graph Data'!A838)=0,NA(),SUMIFS(Transações!D:D,Transações!A:A,\">=\"&'Graph Data'!$E$2,Transações!A:A,\"<=\"&'Graph Data'!$E$3,Transações!C:C,'Graph Data'!A838))","v":{"$error":"#N/A"}}]
[null,{"$f":"IF(SUMIFS(Transações!D:D,Transações!A:A,\">=\"&'Graph Data'!$E$2,Transações!A:A,\"<=\"&'Graph Data'!$E$3,Transações!C:C,'Graph Data'!A839)=0,NA(),SUMIFS(Transações!D:D,Transações!A:A,\">=\"&'Graph Data'!$E$2,Transações!A:A,\"<=\"&'Graph Data'!$E$3,Transações!C:C,'Graph Data'!A839))","v":{"$error":"#N/A"}}]
[null,{"$f":"IF(SUMIFS(Transações!D:D,Transações!A:A,\">=\"&'Graph Data'!$E$2,Transações!A:A,\"<=\"&'Graph Data'!$E$3,Transações!C:C,'Graph Data'!A840)=0,NA(),SUMIFS(Transações!D:D,Transações!A:A,\">=\"&'Graph Data'!$E$2,Transações!A:A,\"<=\"&'Graph Data'!$E$3,Transações!C:C,'Graph Data'!A840))","v":{"$error":"#N/A"}}]
[null,{"$f":"IF(SUMIFS(Transações!D:D,Transações!A:A,\">=\"&'Graph Data'!$E$2,Transações!A:A,\"<=\"&'Graph Data'!$E$3,Transações!C:C,'Graph Data'!A841)=0,NA(),SUMIFS(Transações!D:D,Transações!A:A,\">=\"&'Graph Data'!$E$2,Transações!A:A,\"<=\"&'Graph Data'!$E$3,Transações!C:C,'Graph Data'!A841))","v":{"$error":"#N/A"}}]
[null,{"$f":"IF(SUMIFS(Transações!D:D,Transações!A:A,\">=\"&'Graph Data'!$E$2,Transações!A:A,\"<=\"&'Graph Data'!$E$3,Transações!C:C,'Graph Data'!A842)=0,NA(),SUMIFS(Transações!D:D,Transações!A:A,\">=\"&'Graph Data'!$E$2,Transações!A:A,\"<=\"&'Graph Data'!$E$3,Transações!C:C,'Graph Data'!A842))","v":{"$error":"#N/A"}}]
[null,{"$f":"IF(SUMIFS(Transações!D:D,Transações!A:A,\">=\"&'Graph Data'!$E$2,Transações!A:A,\"<=\"&'Graph Data'!$E$3,Transações!C:C,'Graph Data'!A843)=0,NA(),SUMIFS(Transações!D:D,Transações!A:A,\">=\"&'Graph Data'!$E$2,Transações!A:A,\"<=\"&'Graph Data'!$E$3,Transações!C:C,'Graph Data'!A843))","v":{"$error":"#N/A"}}]
[null,{"$f":"IF(SUMIFS(Transações!D:D,Transações!A:A,\">=\"&'Graph Data'!$E$2,Transações!A:A,\"<=\"&'Graph Data'!$E$3,Transações!C:C,'Graph Data'!A844)=0,NA(),SUMIFS(Transações!D:D,Transações!A:A,\">=\"&'Graph Data'!$E$2,Transações!A:A,\"<=\"&'Graph Data'!$E$3,Transações!C:C,'Graph Data'!A844))","v":{"$error":"#N/A"}}]
[null,{"$f":"IF(SUMIFS(Transações!D:D,Transações!A:A,\">=\"&'Graph Data'!$E$2,Transações!A:A,\"<=\"&'Graph Data'!$E$3,Transações!C:C,'Graph Data'!A845)=0,NA(),SUMIFS(Transações!D:D,Transações!A:A,\">=\"&'Graph Data'!$E$2,Transações!A:A,\"<=\"&'Graph Data'!$E$3,Transações!C:C,'Graph Data'!A845))","v":{"$error":"#N/A"}}]
[null,{"$f":"IF(SUMIFS(Transações!D:D,Transações!A:A,\">=\"&'Graph Data'!$E$2,Transações!A:A,\"<=\"&'Graph Data'!$E$3,Transações!C:C,'Graph Data'!A846)=0,NA(),SUMIFS(Transações!D:D,Transações!A:A,\">=\"&'Graph Data'!$E$2,Transações!A:A,\"<=\"&'Graph Data'!$E$3,Transações!C:C,'Graph Data'!A846))","v":{"$error":"#N/A"}}]
[null,{"$f":"IF(SUMIFS(Transações!D:D,Transações!A:A,\">=\"&'Graph Data'!$E$2,Transações!A:A,\"<=\"&'Graph Data'!$E$3,Transações!C:C,'Graph Data'!A847)=0,NA(),SUMIFS(Transações!D:D,Transações!A:A,\">=\"&'Graph Data'!$E$2,Transações!A:A,\"<=\"&'Graph Data'!$E$3,Transações!C:C,'Graph Data'!A847))","v":{"$error":"#N/A"}}]
[null,{"$f":"IF(SUMIFS(Transações!D:D,Transações!A:A,\">=\"&'Graph Data'!$E$2,Transações!A:A,\"<=\"&'Graph Data'!$E$3,Transações!C:C,'Graph Data'!A848)=0,NA(),SUMIFS(Transações!D:D,Transações!A:A,\">=\"&'Graph Data'!$E$2,Transações!A:A,\"<=\"&'Graph Data'!$E$3,Transações!C:C,'Graph Data'!A848))","v":{"$error":"#N/A"}}]
[null,{"$f":"IF(SUMIFS(Transações!D:D,Transações!A:A,\">=\"&'Graph Data'!$E$2,Transações!A:A,\"<=\"&'Graph Data'!$E$3,Transações!C:C,'Graph Data'!A849)=0,NA(),SUMIFS(Transações!D:D,Transações!A:A,\">=\"&'Graph Data'!$E$2,Transações!A:A,\"<=\"&'Graph Data'!$E$3,Transações!C:C,'Graph Data'!A849))","v":{"$error":"#N/A"}}]
[null,{"$f":"IF(SUMIFS(Transações!D:D,Transações!A:A,\">=\"&'Graph Data'!$E$2,Transações!A:A,\"<=\"&'Graph Data'!$E$3,Transações!C:C,'Graph Data'!A850)=0,NA(),SUMIFS(Transações!D:D,Transações!A:A,\">=\"&'Graph Data'!$E$2,Transações!A:A,\"<=\"&'Graph Data'!$E$3,Transações!C:C,'Graph Data'!A850))","v":{"$error":"#N/A"}}]
[null,{"$f":"IF(SUMIFS(Transações!D:D,Transações!A:A,\">=\"&'Graph Data'!$E$2,Transações!A:A,\"<=\"&'Graph Data'!$E$3,Transações!C:C,'Graph Data'!A851)=0,NA(),SUMIFS(Transações!D:D,Transações!A:A,\">=\"&'Graph Data'!$E$2,Transações!A:A,\"<=\"&'Graph Data'!$E$3,Transações!C:C,'Graph Data'!A851))","v":{"$error":"#N/A"}}]
[null,{"$f":"IF(SUMIFS(Transações!D:D,Transações!A:A,\">=\"&'Graph Data'!$E$2,Transações!A:A,\"<=\"&'Graph Data'!$E$3,Transações!C:C,'Graph Data'!A852)=0,NA(),SUMIFS(Transações!D:D,Transações!A:A,\">=\"&'Graph Data'!$E$2,Transações!A:A,\"<=\"&'Graph Data'!$E$3,Transações!C:C,'Graph Data'!A852))","v":{"$error":"#N/A"}}]
[null,{"$f":"IF(SUMIFS(Transações!D:D,Transações!A:A,\">=\"&'Graph Data'!$E$2,Transações!A:A,\"<=\"&'Graph Data'!$E$3,Transações!C:C,'Graph Data'!A853)=0,NA(),SUMIFS(Transações!D:D,Transações!A:A,\">=\"&'Graph Data'!$E$2,Transações!A:A,\"<=\"&'Graph Data'!$E$3,Transações!C:C,'Graph Data'!A853))","v":{"$error":"#N/A"}}]
[null,{"$f":"IF(SUMIFS(Transações!D:D,Transações!A:A,\">=\"&'Graph Data'!$E$2,Transações!A:A,\"<=\"&'Graph Data'!$E$3,Transações!C:C,'Graph Data'!A854)=0,NA(),SUMIFS(Transações!D:D,Transações!A:A,\">=\"&'Graph Data'!$E$2,Transações!A:A,\"<=\"&'Graph Data'!$E$3,Transações!C:C,'Graph Data'!A854))","v":{"$error":"#N/A"}}]
[null,{"$f":"IF(SUMIFS(Transações!D:D,Transações!A:A,\">=\"&'Graph Data'!$E$2,Transações!A:A,\"<=\"&'Graph Data'!$E$3,Transações!C:C,'Graph Data'!A855)=0,NA(),SUMIFS(Transações!D:D,Transações!A:A,\">=\"&'Graph Data'!$E$2,Transações!A:A,\"<=\"&'Graph Data'!$E$3,Transações!C:C,'Graph Data'!A855))","v":{"$error":"#N/A"}}]
[null,{"$f":"IF(SUMIFS(Transações!D:D,Transações!A:A,\">=\"&'Graph Data'!$E$2,Transações!A:A,\"<=\"&'Graph Data'!$E$3,Transações!C:C,'Graph Data'!A856)=0,NA(),SUMIFS(Transações!D:D,Transações!A:A,\">=\"&'Graph Data'!$E$2,Transações!A:A,\"<=\"&'Graph Data'!$E$3,Transações!C:C,'Graph Data'!A856))","v":{"$error":"#N/A"}}]
[null,{"$f":"IF(SUMIFS(Transações!D:D,Transações!A:A,\">=\"&'Graph Data'!$E$2,Transações!A:A,\"<=\"&'Graph Data'!$E$3,Transações!C:C,'Graph Data'!A857)=0,NA(),SUMIFS(Transações!D:D,Transações!A:A,\">=\"&'Graph Data'!$E$2,Transações!A:A,\"<=\"&'Graph Data'!$E$3,Transações!C:C,'Graph Data'!A857))","v":{"$error":"#N/A"}}]
[null,{"$f":"IF(SUMIFS(Transações!D:D,Transações!A:A,\">=\"&'Graph Data'!$E$2,Transações!A:A,\"<=\"&'Graph Data'!$E$3,Transações!C:C,'Graph Data'!A858)=0,NA(),SUMIFS(Transações!D:D,Transações!A:A,\">=\"&'Graph Data'!$E$2,Transações!A:A,\"<=\"&'Graph Data'!$E$3,Transações!C:C,'Graph Data'!A858))","v":{"$error":"#N/A"}}]
[null,{"$f":"IF(SUMIFS(Transações!D:D,Transações!A:A,\">=\"&'Graph Data'!$E$2,Transações!A:A,\"<=\"&'Graph Data'!$E$3,Transações!C:C,'Graph Data'!A859)=0,NA(),SUMIFS(Transações!D:D,Transações!A:A,\">=\"&'Graph Data'!$E$2,Transações!A:A,\"<=\"&'Graph Data'!$E$3,Transações!C:C,'Graph Data'!A859))","v":{"$error":"#N/A"}}]
[null,{"$f":"IF(SUMIFS(Transações!D:D,Transações!A:A,\">=\"&'Graph Data'!$E$2,Transações!A:A,\"<=\"&'Graph Data'!$E$3,Transações!C:C,'Graph Data'!A860)=0,NA(),SUMIFS(Transações!D:D,Transações!A:A,\">=\"&'Graph Data'!$E$2,Transações!A:A,\"<=\"&'Graph Data'!$E$3,Transações!C:C,'Graph Data'!A860))","v":{"$error":"#N/A"}}]
[null,{"$f":"IF(SUMIFS(Transações!D:D,Transações!A:A,\">=\"&'Graph Data'!$E$2,Transações!A:A,\"<=\"&'Graph Data'!$E$3,Transações!C:C,'Graph Data'!A861)=0,NA(),SUMIFS(Transações!D:D,Transações!A:A,\">=\"&'Graph Data'!$E$2,Transações!A:A,\"<=\"&'Graph Data'!$E$3,Transações!C:C,'Graph Data'!A861))","v":{"$error":"#N/A"}}]
[null,{"$f":"IF(SUMIFS(Transações!D:D,Transações!A:A,\">=\"&'Graph Data'!$E$2,Transações!A:A,\"<=\"&'Graph Data'!$E$3,Transações!C:C,'Graph Data'!A862)=0,NA(),SUMIFS(Transações!D:D,Transações!A:A,\">=\"&'Graph Data'!$E$2,Transações!A:A,\"<=\"&'Graph Data'!$E$3,Transações!C:C,'Graph Data'!A862))","v":{"$error":"#N/A"}}]
[null,{"$f":"IF(SUMIFS(Transações!D:D,Transações!A:A,\">=\"&'Graph Data'!$E$2,Transações!A:A,\"<=\"&'Graph Data'!$E$3,Transações!C:C,'Graph Data'!A863)=0,NA(),SUMIFS(Transações!D:D,Transações!A:A,\">=\"&'Graph Data'!$E$2,Transações!A:A,\"<=\"&'Graph Data'!$E$3,Transações!C:C,'Graph Data'!A863))","v":{"$error":"#N/A"}}]
[null,{"$f":"IF(SUMIFS(Transações!D:D,Transações!A:A,\">=\"&'Graph Data'!$E$2,Transações!A:A,\"<=\"&'Graph Data'!$E$3,Transações!C:C,'Graph Data'!A864)=0,NA(),SUMIFS(Transações!D:D,Transações!A:A,\">=\"&'Graph Data'!$E$2,Transações!A:A,\"<=\"&'Graph Data'!$E$3,Transações!C:C,'Graph Data'!A864))","v":{"$error":"#N/A"}}]
[null,{"$f":"IF(SUMIFS(Transações!D:D,Transações!A:A,\">=\"&'Graph Data'!$E$2,Transações!A:A,\"<=\"&'Graph Data'!$E$3,Transações!C:C,'Graph Data'!A865)=0,NA(),SUMIFS(Transações!D:D,Transações!A:A,\">=\"&'Graph Data'!$E$2,Transações!A:A,\"<=\"&'Graph Data'!$E$3,Transações!C:C,'Graph Data'!A865))","v":{"$error":"#N/A"}}]
[null,{"$f":"IF(SUMIFS(Transações!D:D,Transações!A:A,\">=\"&'Graph Data'!$E$2,Transações!A:A,\"<=\"&'Graph Data'!$E$3,Transações!C:C,'Graph Data'!A866)=0,NA(),SUMIFS(Transações!D:D,Transações!A:A,\">=\"&'Graph Data'!$E$2,Transações!A:A,\"<=\"&'Graph Data'!$E$3,Transações!C:C,'Graph Data'!A866))","v":{"$error":"#N/A"}}]
[null,{"$f":"IF(SUMIFS(Transações!D:D,Transações!A:A,\">=\"&'Graph Data'!$E$2,Transações!A:A,\"<=\"&'Graph Data'!$E$3,Transações!C:C,'Graph Data'!A867)=0,NA(),SUMIFS(Transações!D:D,Transações!A:A,\">=\"&'Graph Data'!$E$2,Transações!A:A,\"<=\"&'Graph Data'!$E$3,Transações!C:C,'Graph Data'!A867))","v":{"$error":"#N/A"}}]
[null,{"$f":"IF(SUMIFS(Transações!D:D,Transações!A:A,\">=\"&'Graph Data'!$E$2,Transações!A:A,\"<=\"&'Graph Data'!$E$3,Transações!C:C,'Graph Data'!A868)=0,NA(),SUMIFS(Transações!D:D,Transações!A:A,\">=\"&'Graph Data'!$E$2,Transações!A:A,\"<=\"&'Graph Data'!$E$3,Transações!C:C,'Graph Data'!A868))","v":{"$error":"#N/A"}}]
[null,{"$f":"IF(SUMIFS(Transações!D:D,Transações!A:A,\">=\"&'Graph Data'!$E$2,Transações!A:A,\"<=\"&'Graph Data'!$E$3,Transações!C:C,'Graph Data'!A869)=0,NA(),SUMIFS(Transações!D:D,Transações!A:A,\">=\"&'Graph Data'!$E$2,Transações!A:A,\"<=\"&'Graph Data'!$E$3,Transações!C:C,'Graph Data'!A869))","v":{"$error":"#N/A"}}]
[null,{"$f":"IF(SUMIFS(Transações!D:D,Transações!A:A,\">=\"&'Graph Data'!$E$2,Transações!A:A,\"<=\"&'Graph Data'!$E$3,Transações!C:C,'Graph Data'!A870)=0,NA(),SUMIFS(Transações!D:D,Transações!A:A,\">=\"&'Graph Data'!$E$2,Transações!A:A,\"<=\"&'Graph Data'!$E$3,Transações!C:C,'Graph Data'!A870))","v":{"$error":"#N/A"}}]
[null,{"$f":"IF(SUMIFS(Transações!D:D,Transações!A:A,\">=\"&'Graph Data'!$E$2,Transações!A:A,\"<=\"&'Graph Data'!$E$3,Transações!C:C,'Graph Data'!A871)=0,NA(),SUMIFS(Transações!D:D,Transações!A:A,\">=\"&'Graph Data'!$E$2,Transações!A:A,\"<=\"&'Graph Data'!$E$3,Transações!C:C,'Graph Data'!A871))","v":{"$error":"#N/A"}}]
[null,{"$f":"IF(SUMIFS(Transações!D:D,Transações!A:A,\">=\"&'Graph Data'!$E$2,Transações!A:A,\"<=\"&'Graph Data'!$E$3,Transações!C:C,'Graph Data'!A872)=0,NA(),SUMIFS(Transações!D:D,Transações!A:A,\">=\"&'Graph Data'!$E$2,Transações!A:A,\"<=\"&'Graph Data'!$E$3,Transações!C:C,'Graph Data'!A872))","v":{"$error":"#N/A"}}]
[null,{"$f":"IF(SUMIFS(Transações!D:D,Transações!A:A,\">=\"&'Graph Data'!$E$2,Transações!A:A,\"<=\"&'Graph Data'!$E$3,Transações!C:C,'Graph Data'!A873)=0,NA(),SUMIFS(Transações!D:D,Transações!A:A,\">=\"&'Graph Data'!$E$2,Transações!A:A,\"<=\"&'Graph Data'!$E$3,Transações!C:C,'Graph Data'!A873))","v":{"$error":"#N/A"}}]
[null,{"$f":"IF(SUMIFS(Transações!D:D,Transações!A:A,\">=\"&'Graph Data'!$E$2,Transações!A:A,\"<=\"&'Graph Data'!$E$3,Transações!C:C,'Graph Data'!A874)=0,NA(),SUMIFS(Transações!D:D,Transações!A:A,\">=\"&'Graph Data'!$E$2,Transações!A:A,\"<=\"&'Graph Data'!$E$3,Transações!C:C,'Graph Data'!A874))","v":{"$error":"#N/A"}}]
[null,{"$f":"IF(SUMIFS(Transações!D:D,Transações!A:A,\">=\"&'Graph Data'!$E$2,Transações!A:A,\"<=\"&'Graph Data'!$E$3,Transações!C:C,'Graph Data'!A875)=0,NA(),SUMIFS(Transações!D:D,Transações!A:A,\">=\"&'Graph Data'!$E$2,Transações!A:A,\"<=\"&'Graph Data'!$E$3,Transações!C:C,'Graph Data'!A875))","v":{"$error":"#N/A"}}]
[null,{"$f":"IF(SUMIFS(Transações!D:D,Transações!A:A,\">=\"&'Graph Data'!$E$2,Transações!A:A,\"<=\"&'Graph Data'!$E$3,Transações!C:C,'Graph Data'!A876)=0,NA(),SUMIFS(Transações!D:D,Transações!A:A,\">=\"&'Graph Data'!$E$2,Transações!A:A,\"<=\"&'Graph Data'!$E$3,Transações!C:C,'Graph Data'!A876))","v":{"$error":"#N/A"}}]
[null,{"$f":"IF(SUMIFS(Transações!D:D,Transações!A:A,\">=\"&'Graph Data'!$E$2,Transações!A:A,\"<=\"&'Graph Data'!$E$3,Transações!C:C,'Graph Data'!A877)=0,NA(),SUMIFS(Transações!D:D,Transações!A:A,\">=\"&'Graph Data'!$E$2,Transações!A:A,\"<=\"&'Graph Data'!$E$3,Transações!C:C,'Graph Data'!A877))","v":{"$error":"#N/A"}}]
[null,{"$f":"IF(SUMIFS(Transações!D:D,Transações!A:A,\">=\"&'Graph Data'!$E$2,Transações!A:A,\"<=\"&'Graph Data'!$E$3,Transações!C:C,'Graph Data'!A878)=0,NA(),SUMIFS(Transações!D:D,Transações!A:A,\">=\"&'Graph Data'!$E$2,Transações!A:A,\"<=\"&'Graph Data'!$E$3,Transações!C:C,'Graph Data'!A878))","v":{"$error":"#N/A"}}]
[null,{"$f":"IF(SUMIFS(Transações!D:D,Transações!A:A,\">=\"&'Graph Data'!$E$2,Transações!A:A,\"<=\"&'Graph Data'!$E$3,Transações!C:C,'Graph Data'!A879)=0,NA(),SUMIFS(Transações!D:D,Transações!A:A,\">=\"&'Graph Data'!$E$2,Transações!A:A,\"<=\"&'Graph Data'!$E$3,Transações!C:C,'Graph Data'!A879))","v":{"$error":"#N/A"}}]
[null,{"$f":"IF(SUMIFS(Transações!D:D,Transações!A:A,\">=\"&'Graph Data'!$E$2,Transações!A:A,\"<=\"&'Graph Data'!$E$3,Transações!C:C,'Graph Data'!A880)=0,NA(),SUMIFS(Transações!D:D,Transações!A:A,\">=\"&'Graph Data'!$E$2,Transações!A:A,\"<=\"&'Graph Data'!$E$3,Transações!C:C,'Graph Data'!A880))","v":{"$error":"#N/A"}}]
[null,{"$f":"IF(SUMIFS(Transações!D:D,Transações!A:A,\">=\"&'Graph Data'!$E$2,Transações!A:A,\"<=\"&'Graph Data'!$E$3,Transações!C:C,'Graph Data'!A881)=0,NA(),SUMIFS(Transações!D:D,Transações!A:A,\">=\"&'Graph Data'!$E$2,Transações!A:A,\"<=\"&'Graph Data'!$E$3,Transações!C:C,'Graph Data'!A881))","v":{"$error":"#N/A"}}]
[null,{"$f":"IF(SUMIFS(Transações!D:D,Transações!A:A,\">=\"&'Graph Data'!$E$2,Transações!A:A,\"<=\"&'Graph Data'!$E$3,Transações!C:C,'Graph Data'!A882)=0,NA(),SUMIFS(Transações!D:D,Transações!A:A,\">=\"&'Graph Data'!$E$2,Transações!A:A,\"<=\"&'Graph Data'!$E$3,Transações!C:C,'Graph Data'!A882))","v":{"$error":"#N/A"}}]
[null,{"$f":"IF(SUMIFS(Transações!D:D,Transações!A:A,\">=\"&'Graph Data'!$E$2,Transações!A:A,\"<=\"&'Graph Data'!$E$3,Transações!C:C,'Graph Data'!A883)=0,NA(),SUMIFS(Transações!D:D,Transações!A:A,\">=\"&'Graph Data'!$E$2,Transações!A:A,\"<=\"&'Graph Data'!$E$3,Transações!C:C,'Graph Data'!A883))","v":{"$error":"#N/A"}}]
[null,{"$f":"IF(SUMIFS(Transações!D:D,Transações!A:A,\">=\"&'Graph Data'!$E$2,Transações!A:A,\"<=\"&'Graph Data'!$E$3,Transações!C:C,'Graph Data'!A884)=0,NA(),SUMIFS(Transações!D:D,Transações!A:A,\">=\"&'Graph Data'!$E$2,Transações!A:A,\"<=\"&'Graph Data'!$E$3,Transações!C:C,'Graph Data'!A884))","v":{"$error":"#N/A"}}]
[null,{"$f":"IF(SUMIFS(Transações!D:D,Transações!A:A,\">=\"&'Graph Data'!$E$2,Transações!A:A,\"<=\"&'Graph Data'!$E$3,Transações!C:C,'Graph Data'!A885)=0,NA(),SUMIFS(Transações!D:D,Transações!A:A,\">=\"&'Graph Data'!$E$2,Transações!A:A,\"<=\"&'Graph Data'!$E$3,Transações!C:C,'Graph Data'!A885))","v":{"$error":"#N/A"}}]
[null,{"$f":"IF(SUMIFS(Transações!D:D,Transações!A:A,\">=\"&'Graph Data'!$E$2,Transações!A:A,\"<=\"&'Graph Data'!$E$3,Transações!C:C,'Graph Data'!A886)=0,NA(),SUMIFS(Transações!D:D,Transações!A:A,\">=\"&'Graph Data'!$E$2,Transações!A:A,\"<=\"&'Graph Data'!$E$3,Transações!C:C,'Graph Data'!A886))","v":{"$error":"#N/A"}}]
[null,{"$f":"IF(SUMIFS(Transações!D:D,Transações!A:A,\">=\"&'Graph Data'!$E$2,Transações!A:A,\"<=\"&'Graph Data'!$E$3,Transações!C:C,'Graph Data'!A887)=0,NA(),SUMIFS(Transações!D:D,Transações!A:A,\">=\"&'Graph Data'!$E$2,Transações!A:A,\"<=\"&'Graph Data'!$E$3,Transações!C:C,'Graph Data'!A887))","v":{"$error":"#N/A"}}]
[null,{"$f":"IF(SUMIFS(Transações!D:D,Transações!A:A,\">=\"&'Graph Data'!$E$2,Transações!A:A,\"<=\"&'Graph Data'!$E$3,Transações!C:C,'Graph Data'!A888)=0,NA(),SUMIFS(Transações!D:D,Transações!A:A,\">=\"&'Graph Data'!$E$2,Transações!A:A,\"<=\"&'Graph Data'!$E$3,Transações!C:C,'Graph Data'!A888))","v":{"$error":"#N/A"}}]
[null,{"$f":"IF(SUMIFS(Transações!D:D,Transações!A:A,\">=\"&'Graph Data'!$E$2,Transações!A:A,\"<=\"&'Graph Data'!$E$3,Transações!C:C,'Graph Data'!A889)=0,NA(),SUMIFS(Transações!D:D,Transações!A:A,\">=\"&'Graph Data'!$E$2,Transações!A:A,\"<=\"&'Graph Data'!$E$3,Transações!C:C,'Graph Data'!A889))","v":{"$error":"#N/A"}}]
[null,{"$f":"IF(SUMIFS(Transações!D:D,Transações!A:A,\">=\"&'Graph Data'!$E$2,Transações!A:A,\"<=\"&'Graph Data'!$E$3,Transações!C:C,'Graph Data'!A890)=0,NA(),SUMIFS(Transações!D:D,Transações!A:A,\">=\"&'Graph Data'!$E$2,Transações!A:A,\"<=\"&'Graph Data'!$E$3,Transações!C:C,'Graph Data'!A890))","v":{"$error":"#N/A"}}]
[null,{"$f":"IF(SUMIFS(Transações!D:D,Transações!A:A,\">=\"&'Graph Data'!$E$2,Transações!A:A,\"<=\"&'Graph Data'!$E$3,Transações!C:C,'Graph Data'!A891)=0,NA(),SUMIFS(Transações!D:D,Transações!A:A,\">=\"&'Graph Data'!$E$2,Transações!A:A,\"<=\"&'Graph Data'!$E$3,Transações!C:C,'Graph Data'!A891))","v":{"$error":"#N/A"}}]
[null,{"$f":"IF(SUMIFS(Transações!D:D,Transações!A:A,\">=\"&'Graph Data'!$E$2,Transações!A:A,\"<=\"&'Graph Data'!$E$3,Transações!C:C,'Graph Data'!A892)=0,NA(),SUMIFS(Transações!D:D,Transações!A:A,\">=\"&'Graph Data'!$E$2,Transações!A:A,\"<=\"&'Graph Data'!$E$3,Transações!C:C,'Graph Data'!A892))","v":{"$error":"#N/A"}}]
[null,{"$f":"IF(SUMIFS(Transações!D:D,Transações!A:A,\">=\"&'Graph Data'!$E$2,Transações!A:A,\"<=\"&'Graph Data'!$E$3,Transações!C:C,'Graph Data'!A893)=0,NA(),SUMIFS(Transações!D:D,Transações!A:A,\">=\"&'Graph Data'!$E$2,Transações!A:A,\"<=\"&'Graph Data'!$E$3,Transações!C:C,'Graph Data'!A893))","v":{"$error":"#N/A"}}]
[null,{"$f":"IF(SUMIFS(Transações!D:D,Transações!A:A,\">=\"&'Graph Data'!$E$2,Transações!A:A,\"<=\"&'Graph Data'!$E$3,Transações!C:C,'Graph Data'!A894)=0,NA(),SUMIFS(Transações!D:D,Transações!A:A,\">=\"&'Graph Data'!$E$2,Transações!A:A,\"<=\"&'Graph Data'!$E$3,Transações!C:C,'Graph Data'!A894))","v":{"$error":"#N/A"}}]
[null,{"$f":"IF(SUMIFS(Transações!D:D,Transações!A:A,\">=\"&'Graph Data'!$E$2,Transações!A:A,\"<=\"&'Graph Data'!$E$3,Transações!C:C,'Graph Data'!A895)=0,NA(),SUMIFS(Transações!D:D,Transações!A:A,\">=\"&'Graph Data'!$E$2,Transações!A:A,\"<=\"&'Graph Data'!$E$3,Transações!C:C,'Graph Data'!A895))","v":{"$error":"#N/A"}}]
[null,{"$f":"IF(SUMIFS(Transações!D:D,Transações!A:A,\">=\"&'Graph Data'!$E$2,Transações!A:A,\"<=\"&'Graph Data'!$E$3,Transações!C:C,'Graph Data'!A896)=0,NA(),SUMIFS(Transações!D:D,Transações!A:A,\">=\"&'Graph Data'!$E$2,Transações!A:A,\"<=\"&'Graph Data'!$E$3,Transações!C:C,'Graph Data'!A896))","v":{"$error":"#N/A"}}]
[null,{"$f":"IF(SUMIFS(Transações!D:D,Transações!A:A,\">=\"&'Graph Data'!$E$2,Transações!A:A,\"<=\"&'Graph Data'!$E$3,Transações!C:C,'Graph Data'!A897)=0,NA(),SUMIFS(Transações!D:D,Transações!A:A,\">=\"&'Graph Data'!$E$2,Transações!A:A,\"<=\"&'Graph Data'!$E$3,Transações!C:C,'Graph Data'!A897))","v":{"$error":"#N/A"}}]
[null,{"$f":"IF(SUMIFS(Transações!D:D,Transações!A:A,\">=\"&'Graph Data'!$E$2,Transações!A:A,\"<=\"&'Graph Data'!$E$3,Transações!C:C,'Graph Data'!A898)=0,NA(),SUMIFS(Transações!D:D,Transações!A:A,\">=\"&'Graph Data'!$E$2,Transações!A:A,\"<=\"&'Graph Data'!$E$3,Transações!C:C,'Graph Data'!A898))","v":{"$error":"#N/A"}}]
[null,{"$f":"IF(SUMIFS(Transações!D:D,Transações!A:A,\">=\"&'Graph Data'!$E$2,Transações!A:A,\"<=\"&'Graph Data'!$E$3,Transações!C:C,'Graph Data'!A899)=0,NA(),SUMIFS(Transações!D:D,Transações!A:A,\">=\"&'Graph Data'!$E$2,Transações!A:A,\"<=\"&'Graph Data'!$E$3,Transações!C:C,'Graph Data'!A899))","v":{"$error":"#N/A"}}]
[null,{"$f":"IF(SUMIFS(Transações!D:D,Transações!A:A,\">=\"&'Graph Data'!$E$2,Transações!A:A,\"<=\"&'Graph Data'!$E$3,Transações!C:C,'Graph Data'!A900)=0,NA(),SUMIFS(Transações!D:D,Transações!A:A,\">=\"&'Graph Data'!$E$2,Transações!A:A,\"<=\"&'Graph Data'!$E$3,Transações!C:C,'Graph Data'!A900))","v":{"$error":"#N/A"}}]
[null,{"$f":"IF(SUMIFS(Transações!D:D,Transações!A:A,\">=\"&'Graph Data'!$E$2,Transações!A:A,\"<=\"&'Graph Data'!$E$3,Transações!C:C,'Graph Data'!A901)=0,NA(),SUMIFS(Transações!D:D,Transações!A:A,\">=\"&'Graph Data'!$E$2,Transações!A:A,\"<=\"&'Graph Data'!$E$3,Transações!C:C,'Graph Data'!A901))","v":{"$error":"#N/A"}}]
[null,{"$f":"IF(SUMIFS(Transações!D:D,Transações!A:A,\">=\"&'Graph Data'!$E$2,Transações!A:A,\"<=\"&'Graph Data'!$E$3,Transações!C:C,'Graph Data'!A902)=0,NA(),SUMIFS(Transações!D:D,Transações!A:A,\">=\"&'Graph Data'!$E$2,Transações!A:A,\"<=\"&'Graph Data'!$E$3,Transações!C:C,'Graph Data'!A902))","v":{"$error":"#N/A"}}]
[null,{"$f":"IF(SUMIFS(Transações!D:D,Transações!A:A,\">=\"&'Graph Data'!$E$2,Transações!A:A,\"<=\"&'Graph Data'!$E$3,Transações!C:C,'Graph Data'!A903)=0,NA(),SUMIFS(Transações!D:D,Transações!A:A,\">=\"&'Graph Data'!$E$2,Transações!A:A,\"<=\"&'Graph Data'!$E$3,Transações!C:C,'Graph Data'!A903))","v":{"$error":"#N/A"}}]
[null,{"$f":"IF(SUMIFS(Transações!D:D,Transações!A:A,\">=\"&'Graph Data'!$E$2,Transações!A:A,\"<=\"&'Graph Data'!$E$3,Transações!C:C,'Graph Data'!A904)=0,NA(),SUMIFS(Transações!D:D,Transações!A:A,\">=\"&'Graph Data'!$E$2,Transações!A:A,\"<=\"&'Graph Data'!$E$3,Transações!C:C,'Graph Data'!A904))","v":{"$error":"#N/A"}}]
[null,{"$f":"IF(SUMIFS(Transações!D:D,Transações!A:A,\">=\"&'Graph Data'!$E$2,Transações!A:A,\"<=\"&'Graph Data'!$E$3,Transações!C:C,'Graph Data'!A905)=0,NA(),SUMIFS(Transações!D:D,Transações!A:A,\">=\"&'Graph Data'!$E$2,Transações!A:A,\"<=\"&'Graph Data'!$E$3,Transações!C:C,'Graph Data'!A905))","v":{"$error":"#N/A"}}]
[null,{"$f":"IF(SUMIFS(Transações!D:D,Transações!A:A,\">=\"&'Graph Data'!$E$2,Transações!A:A,\"<=\"&'Graph Data'!$E$3,Transações!C:C,'Graph Data'!A906)=0,NA(),SUMIFS(Transações!D:D,Transações!A:A,\">=\"&'Graph Data'!$E$2,Transações!A:A,\"<=\"&'Graph Data'!$E$3,Transações!C:C,'Graph Data'!A906))","v":{"$error":"#N/A"}}]
[null,{"$f":"IF(SUMIFS(Transações!D:D,Transações!A:A,\">=\"&'Graph Data'!$E$2,Transações!A:A,\"<=\"&'Graph Data'!$E$3,Transações!C:C,'Graph Data'!A907)=0,NA(),SUMIFS(Transações!D:D,Transações!A:A,\">=\"&'Graph Data'!$E$2,Transações!A:A,\"<=\"&'Graph Data'!$E$3,Transações!C:C,'Graph Data'!A907))","v":{"$error":"#N/A"}}]
[null,{"$f":"IF(SUMIFS(Transações!D:D,Transações!A:A,\">=\"&'Graph Data'!$E$2,Transações!A:A,\"<=\"&'Graph Data'!$E$3,Transações!C:C,'Graph Data'!A908)=0,NA(),SUMIFS(Transações!D:D,Transações!A:A,\">=\"&'Graph Data'!$E$2,Transações!A:A,\"<=\"&'Graph Data'!$E$3,Transações!C:C,'Graph Data'!A908))","v":{"$error":"#N/A"}}]
[null,{"$f":"IF(SUMIFS(Transações!D:D,Transações!A:A,\">=\"&'Graph Data'!$E$2,Transações!A:A,\"<=\"&'Graph Data'!$E$3,Transações!C:C,'Graph Data'!A909)=0,NA(),SUMIFS(Transações!D:D,Transações!A:A,\">=\"&'Graph Data'!$E$2,Transações!A:A,\"<=\"&'Graph Data'!$E$3,Transações!C:C,'Graph Data'!A909))","v":{"$error":"#N/A"}}]
[null,{"$f":"IF(SUMIFS(Transações!D:D,Transações!A:A,\">=\"&'Graph Data'!$E$2,Transações!A:A,\"<=\"&'Graph Data'!$E$3,Transações!C:C,'Graph Data'!A910)=0,NA(),SUMIFS(Transações!D:D,Transações!A:A,\">=\"&'Graph Data'!$E$2,Transações!A:A,\"<=\"&'Graph Data'!$E$3,Transações!C:C,'Graph Data'!A910))","v":{"$error":"#N/A"}}]
[null,{"$f":"IF(SUMIFS(Transações!D:D,Transações!A:A,\">=\"&'Graph Data'!$E$2,Transações!A:A,\"<=\"&'Graph Data'!$E$3,Transações!C:C,'Graph Data'!A911)=0,NA(),SUMIFS(Transações!D:D,Transações!A:A,\">=\"&'Graph Data'!$E$2,Transações!A:A,\"<=\"&'Graph Data'!$E$3,Transações!C:C,'Graph Data'!A911))","v":{"$error":"#N/A"}}]
[null,{"$f":"IF(SUMIFS(Transações!D:D,Transações!A:A,\">=\"&'Graph Data'!$E$2,Transações!A:A,\"<=\"&'Graph Data'!$E$3,Transações!C:C,'Graph Data'!A912)=0,NA(),SUMIFS(Transações!D:D,Transações!A:A,\">=\"&'Graph Data'!$E$2,Transações!A:A,\"<=\"&'Graph Data'!$E$3,Transações!C:C,'Graph Data'!A912))","v":{"$error":"#N/A"}}]
[null,{"$f":"IF(SUMIFS(Transações!D:D,Transações!A:A,\">=\"&'Graph Data'!$E$2,Transações!A:A,\"<=\"&'Graph Data'!$E$3,Transações!C:C,'Graph Data'!A913)=0,NA(),SUMIFS(Transações!D:D,Transações!A:A,\">=\"&'Graph Data'!$E$2,Transações!A:A,\"<=\"&'Graph Data'!$E$3,Transações!C:C,'Graph Data'!A913))","v":{"$error":"#N/A"}}]
[null,{"$f":"IF(SUMIFS(Transações!D:D,Transações!A:A,\">=\"&'Graph Data'!$E$2,Transações!A:A,\"<=\"&'Graph Data'!$E$3,Transações!C:C,'Graph Data'!A914)=0,NA(),SUMIFS(Transações!D:D,Transações!A:A,\">=\"&'Graph Data'!$E$2,Transações!A:A,\"<=\"&'Graph Data'!$E$3,Transações!C:C,'Graph Data'!A914))","v":{"$error":"#N/A"}}]
[null,{"$f":"IF(SUMIFS(Transações!D:D,Transações!A:A,\">=\"&'Graph Data'!$E$2,Transações!A:A,\"<=\"&'Graph Data'!$E$3,Transações!C:C,'Graph Data'!A915)=0,NA(),SUMIFS(Transações!D:D,Transações!A:A,\">=\"&'Graph Data'!$E$2,Transações!A:A,\"<=\"&'Graph Data'!$E$3,Transações!C:C,'Graph Data'!A915))","v":{"$error":"#N/A"}}]
[null,{"$f":"IF(SUMIFS(Transações!D:D,Transações!A:A,\">=\"&'Graph Data'!$E$2,Transações!A:A,\"<=\"&'Graph Data'!$E$3,Transações!C:C,'Graph Data'!A916)=0,NA(),SUMIFS(Transações!D:D,Transações!A:A,\">=\"&'Graph Data'!$E$2,Transações!A:A,\"<=\"&'Graph Data'!$E$3,Transações!C:C,'Graph Data'!A916))","v":{"$error":"#N/A"}}]
[null,{"$f":"IF(SUMIFS(Transações!D:D,Transações!A:A,\">=\"&'Graph Data'!$E$2,Transações!A:A,\"<=\"&'Graph Data'!$E$3,Transações!C:C,'Graph Data'!A917)=0,NA(),SUMIFS(Transações!D:D,Transações!A:A,\">=\"&'Graph Data'!$E$2,Transações!A:A,\"<=\"&'Graph Data'!$E$3,Transações!C:C,'Graph Data'!A917))","v":{"$error":"#N/A"}}]
[null,{"$f":"IF(SUMIFS(Transações!D:D,Transações!A:A,\">=\"&'Graph Data'!$E$2,Transações!A:A,\"<=\"&'Graph Data'!$E$3,Transações!C:C,'Graph Data'!A918)=0,NA(),SUMIFS(Transações!D:D,Transações!A:A,\">=\"&'Graph Data'!$E$2,Transações!A:A,\"<=\"&'Graph Data'!$E$3,Transações!C:C,'Graph Data'!A918))","v":{"$error":"#N/A"}}]
[null,{"$f":"IF(SUMIFS(Transações!D:D,Transações!A:A,\">=\"&'Graph Data'!$E$2,Transações!A:A,\"<=\"&'Graph Data'!$E$3,Transações!C:C,'Graph Data'!A919)=0,NA(),SUMIFS(Transações!D:D,Transações!A:A,\">=\"&'Graph Data'!$E$2,Transações!A:A,\"<=\"&'Graph Data'!$E$3,Transações!C:C,'Graph Data'!A919))","v":{"$error":"#N/A"}}]
[null,{"$f":"IF(SUMIFS(Transações!D:D,Transações!A:A,\">=\"&'Graph Data'!$E$2,Transações!A:A,\"<=\"&'Graph Data'!$E$3,Transações!C:C,'Graph Data'!A920)=0,NA(),SUMIFS(Transações!D:D,Transações!A:A,\">=\"&'Graph Data'!$E$2,Transações!A:A,\"<=\"&'Graph Data'!$E$3,Transações!C:C,'Graph Data'!A920))","v":{"$error":"#N/A"}}]
[null,{"$f":"IF(SUMIFS(Transações!D:D,Transações!A:A,\">=\"&'Graph Data'!$E$2,Transações!A:A,\"<=\"&'Graph Data'!$E$3,Transações!C:C,'Graph Data'!A921)=0,NA(),SUMIFS(Transações!D:D,Transações!A:A,\">=\"&'Graph Data'!$E$2,Transações!A:A,\"<=\"&'Graph Data'!$E$3,Transações!C:C,'Graph Data'!A921))","v":{"$error":"#N/A"}}]
[null,{"$f":"IF(SUMIFS(Transações!D:D,Transações!A:A,\">=\"&'Graph Data'!$E$2,Transações!A:A,\"<=\"&'Graph Data'!$E$3,Transações!C:C,'Graph Data'!A922)=0,NA(),SUMIFS(Transações!D:D,Transações!A:A,\">=\"&'Graph Data'!$E$2,Transações!A:A,\"<=\"&'Graph Data'!$E$3,Transações!C:C,'Graph Data'!A922))","v":{"$error":"#N/A"}}]
[null,{"$f":"IF(SUMIFS(Transações!D:D,Transações!A:A,\">=\"&'Graph Data'!$E$2,Transações!A:A,\"<=\"&'Graph Data'!$E$3,Transações!C:C,'Graph Data'!A923)=0,NA(),SUMIFS(Transações!D:D,Transações!A:A,\">=\"&'Graph Data'!$E$2,Transações!A:A,\"<=\"&'Graph Data'!$E$3,Transações!C:C,'Graph Data'!A923))","v":{"$error":"#N/A"}}]
[null,{"$f":"IF(SUMIFS(Transações!D:D,Transações!A:A,\">=\"&'Graph Data'!$E$2,Transações!A:A,\"<=\"&'Graph Data'!$E$3,Transações!C:C,'Graph Data'!A924)=0,NA(),SUMIFS(Transações!D:D,Transações!A:A,\">=\"&'Graph Data'!$E$2,Transações!A:A,\"<=\"&'Graph Data'!$E$3,Transações!C:C,'Graph Data'!A924))","v":{"$error":"#N/A"}}]
[null,{"$f":"IF(SUMIFS(Transações!D:D,Transações!A:A,\">=\"&'Graph Data'!$E$2,Transações!A:A,\"<=\"&'Graph Data'!$E$3,Transações!C:C,'Graph Data'!A925)=0,NA(),SUMIFS(Transações!D:D,Transações!A:A,\">=\"&'Graph Data'!$E$2,Transações!A:A,\"<=\"&'Graph Data'!$E$3,Transações!C:C,'Graph Data'!A925))","v":{"$error":"#N/A"}}]
[null,{"$f":"IF(SUMIFS(Transações!D:D,Transações!A:A,\">=\"&'Graph Data'!$E$2,Transações!A:A,\"<=\"&'Graph Data'!$E$3,Transações!C:C,'Graph Data'!A926)=0,NA(),SUMIFS(Transações!D:D,Transações!A:A,\">=\"&'Graph Data'!$E$2,Transações!A:A,\"<=\"&'Graph Data'!$E$3,Transações!C:C,'Graph Data'!A926))","v":{"$error":"#N/A"}}]
[null,{"$f":"IF(SUMIFS(Transações!D:D,Transações!A:A,\">=\"&'Graph Data'!$E$2,Transações!A:A,\"<=\"&'Graph Data'!$E$3,Transações!C:C,'Graph Data'!A927)=0,NA(),SUMIFS(Transações!D:D,Transações!A:A,\">=\"&'Graph Data'!$E$2,Transações!A:A,\"<=\"&'Graph Data'!$E$3,Transações!C:C,'Graph Data'!A927))","v":{"$error":"#N/A"}}]
[null,{"$f":"IF(SUMIFS(Transações!D:D,Transações!A:A,\">=\"&'Graph Data'!$E$2,Transações!A:A,\"<=\"&'Graph Data'!$E$3,Transações!C:C,'Graph Data'!A928)=0,NA(),SUMIFS(Transações!D:D,Transações!A:A,\">=\"&'Graph Data'!$E$2,Transações!A:A,\"<=\"&'Graph Data'!$E$3,Transações!C:C,'Graph Data'!A928))","v":{"$error":"#N/A"}}]
[null,{"$f":"IF(SUMIFS(Transações!D:D,Transações!A:A,\">=\"&'Graph Data'!$E$2,Transações!A:A,\"<=\"&'Graph Data'!$E$3,Transações!C:C,'Graph Data'!A929)=0,NA(),SUMIFS(Transações!D:D,Transações!A:A,\">=\"&'Graph Data'!$E$2,Transações!A:A,\"<=\"&'Graph Data'!$E$3,Transações!C:C,'Graph Data'!A929))","v":{"$error":"#N/A"}}]
[null,{"$f":"IF(SUMIFS(Transações!D:D,Transações!A:A,\">=\"&'Graph Data'!$E$2,Transações!A:A,\"<=\"&'Graph Data'!$E$3,Transações!C:C,'Graph Data'!A930)=0,NA(),SUMIFS(Transações!D:D,Transações!A:A,\">=\"&'Graph Data'!$E$2,Transações!A:A,\"<=\"&'Graph Data'!$E$3,Transações!C:C,'Graph Data'!A930))","v":{"$error":"#N/A"}}]
[null,{"$f":"IF(SUMIFS(Transações!D:D,Transações!A:A,\">=\"&'Graph Data'!$E$2,Transações!A:A,\"<=\"&'Graph Data'!$E$3,Transações!C:C,'Graph Data'!A931)=0,NA(),SUMIFS(Transações!D:D,Transações!A:A,\">=\"&'Graph Data'!$E$2,Transações!A:A,\"<=\"&'Graph Data'!$E$3,Transações!C:C,'Graph Data'!A931))","v":{"$error":"#N/A"}}]
[null,{"$f":"IF(SUMIFS(Transações!D:D,Transações!A:A,\">=\"&'Graph Data'!$E$2,Transações!A:A,\"<=\"&'Graph Data'!$E$3,Transações!C:C,'Graph Data'!A932)=0,NA(),SUMIFS(Transações!D:D,Transações!A:A,\">=\"&'Graph Data'!$E$2,Transações!A:A,\"<=\"&'Graph Data'!$E$3,Transações!C:C,'Graph Data'!A932))","v":{"$error":"#N/A"}}]
[null,{"$f":"IF(SUMIFS(Transações!D:D,Transações!A:A,\">=\"&'Graph Data'!$E$2,Transações!A:A,\"<=\"&'Graph Data'!$E$3,Transações!C:C,'Graph Data'!A933)=0,NA(),SUMIFS(Transações!D:D,Transações!A:A,\">=\"&'Graph Data'!$E$2,Transações!A:A,\"<=\"&'Graph Data'!$E$3,Transações!C:C,'Graph Data'!A933))","v":{"$error":"#N/A"}}]
[null,{"$f":"IF(SUMIFS(Transações!D:D,Transações!A:A,\">=\"&'Graph Data'!$E$2,Transações!A:A,\"<=\"&'Graph Data'!$E$3,Transações!C:C,'Graph Data'!A934)=0,NA(),SUMIFS(Transações!D:D,Transações!A:A,\">=\"&'Graph Data'!$E$2,Transações!A:A,\"<=\"&'Graph Data'!$E$3,Transações!C:C,'Graph Data'!A934))","v":{"$error":"#N/A"}}]
[null,{"$f":"IF(SUMIFS(Transações!D:D,Transações!A:A,\">=\"&'Graph Data'!$E$2,Transações!A:A,\"<=\"&'Graph Data'!$E$3,Transações!C:C,'Graph Data'!A935)=0,NA(),SUMIFS(Transações!D:D,Transações!A:A,\">=\"&'Graph Data'!$E$2,Transações!A:A,\"<=\"&'Graph Data'!$E$3,Transações!C:C,'Graph Data'!A935))","v":{"$error":"#N/A"}}]
[null,{"$f":"IF(SUMIFS(Transações!D:D,Transações!A:A,\">=\"&'Graph Data'!$E$2,Transações!A:A,\"<=\"&'Graph Data'!$E$3,Transações!C:C,'Graph Data'!A936)=0,NA(),SUMIFS(Transações!D:D,Transações!A:A,\">=\"&'Graph Data'!$E$2,Transações!A:A,\"<=\"&'Graph Data'!$E$3,Transações!C:C,'Graph Data'!A936))","v":{"$error":"#N/A"}}]
[null,{"$f":"IF(SUMIFS(Transações!D:D,Transações!A:A,\">=\"&'Graph Data'!$E$2,Transações!A:A,\"<=\"&'Graph Data'!$E$3,Transações!C:C,'Graph Data'!A937)=0,NA(),SUMIFS(Transações!D:D,Transações!A:A,\">=\"&'Graph Data'!$E$2,Transações!A:A,\"<=\"&'Graph Data'!$E$3,Transações!C:C,'Graph Data'!A937))","v":{"$error":"#N/A"}}]
[null,{"$f":"IF(SUMIFS(Transações!D:D,Transações!A:A,\">=\"&'Graph Data'!$E$2,Transações!A:A,\"<=\"&'Graph Data'!$E$3,Transações!C:C,'Graph Data'!A938)=0,NA(),SUMIFS(Transações!D:D,Transações!A:A,\">=\"&'Graph Data'!$E$2,Transações!A:A,\"<=\"&'Graph Data'!$E$3,Transações!C:C,'Graph Data'!A938))","v":{"$error":"#N/A"}}]
[null,{"$f":"IF(SUMIFS(Transações!D:D,Transações!A:A,\">=\"&'Graph Data'!$E$2,Transações!A:A,\"<=\"&'Graph Data'!$E$3,Transações!C:C,'Graph Data'!A939)=0,NA(),SUMIFS(Transações!D:D,Transações!A:A,\">=\"&'Graph Data'!$E$2,Transações!A:A,\"<=\"&'Graph Data'!$E$3,Transações!C:C,'Graph Data'!A939))","v":{"$error":"#N/A"}}]
[null,{"$f":"IF(SUMIFS(Transações!D:D,Transações!A:A,\">=\"&'Graph Data'!$E$2,Transações!A:A,\"<=\"&'Graph Data'!$E$3,Transações!C:C,'Graph Data'!A940)=0,NA(),SUMIFS(Transações!D:D,Transações!A:A,\">=\"&'Graph Data'!$E$2,Transações!A:A,\"<=\"&'Graph Data'!$E$3,Transações!C:C,'Graph Data'!A940))","v":{"$error":"#N/A"}}]
[null,{"$f":"IF(SUMIFS(Transações!D:D,Transações!A:A,\">=\"&'Graph Data'!$E$2,Transações!A:A,\"<=\"&'Graph Data'!$E$3,Transações!C:C,'Graph Data'!A941)=0,NA(),SUMIFS(Transações!D:D,Transações!A:A,\">=\"&'Graph Data'!$E$2,Transações!A:A,\"<=\"&'Graph Data'!$E$3,Transações!C:C,'Graph Data'!A941))","v":{"$error":"#N/A"}}]
[null,{"$f":"IF(SUMIFS(Transações!D:D,Transações!A:A,\">=\"&'Graph Data'!$E$2,Transações!A:A,\"<=\"&'Graph Data'!$E$3,Transações!C:C,'Graph Data'!A942)=0,NA(),SUMIFS(Transações!D:D,Transações!A:A,\">=\"&'Graph Data'!$E$2,Transações!A:A,\"<=\"&'Graph Data'!$E$3,Transações!C:C,'Graph Data'!A942))","v":{"$error":"#N/A"}}]
[null,{"$f":"IF(SUMIFS(Transações!D:D,Transações!A:A,\">=\"&'Graph Data'!$E$2,Transações!A:A,\"<=\"&'Graph Data'!$E$3,Transações!C:C,'Graph Data'!A943)=0,NA(),SUMIFS(Transações!D:D,Transações!A:A,\">=\"&'Graph Data'!$E$2,Transações!A:A,\"<=\"&'Graph Data'!$E$3,Transações!C:C,'Graph Data'!A943))","v":{"$error":"#N/A"}}]
[null,{"$f":"IF(SUMIFS(Transações!D:D,Transações!A:A,\">=\"&'Graph Data'!$E$2,Transações!A:A,\"<=\"&'Graph Data'!$E$3,Transações!C:C,'Graph Data'!A944)=0,NA(),SUMIFS(Transações!D:D,Transações!A:A,\">=\"&'Graph Data'!$E$2,Transações!A:A,\"<=\"&'Graph Data'!$E$3,Transações!C:C,'Graph Data'!A944))","v":{"$error":"#N/A"}}]
[null,{"$f":"IF(SUMIFS(Transações!D:D,Transações!A:A,\">=\"&'Graph Data'!$E$2,Transações!A:A,\"<=\"&'Graph Data'!$E$3,Transações!C:C,'Graph Data'!A945)=0,NA(),SUMIFS(Transações!D:D,Transações!A:A,\">=\"&'Graph Data'!$E$2,Transações!A:A,\"<=\"&'Graph Data'!$E$3,Transações!C:C,'Graph Data'!A945))","v":{"$error":"#N/A"}}]
[null,{"$f":"IF(SUMIFS(Transações!D:D,Transações!A:A,\">=\"&'Graph Data'!$E$2,Transações!A:A,\"<=\"&'Graph Data'!$E$3,Transações!C:C,'Graph Data'!A946)=0,NA(),SUMIFS(Transações!D:D,Transações!A:A,\">=\"&'Graph Data'!$E$2,Transações!A:A,\"<=\"&'Graph Data'!$E$3,Transações!C:C,'Graph Data'!A946))","v":{"$error":"#N/A"}}]
[null,{"$f":"IF(SUMIFS(Transações!D:D,Transações!A:A,\">=\"&'Graph Data'!$E$2,Transações!A:A,\"<=\"&'Graph Data'!$E$3,Transações!C:C,'Graph Data'!A947)=0,NA(),SUMIFS(Transações!D:D,Transações!A:A,\">=\"&'Graph Data'!$E$2,Transações!A:A,\"<=\"&'Graph Data'!$E$3,Transações!C:C,'Graph Data'!A947))","v":{"$error":"#N/A"}}]
[null,{"$f":"IF(SUMIFS(Transações!D:D,Transações!A:A,\">=\"&'Graph Data'!$E$2,Transações!A:A,\"<=\"&'Graph Data'!$E$3,Transações!C:C,'Graph Data'!A948)=0,NA(),SUMIFS(Transações!D:D,Transações!A:A,\">=\"&'Graph Data'!$E$2,Transações!A:A,\"<=\"&'Graph Data'!$E$3,Transações!C:C,'Graph Data'!A948))","v":{"$error":"#N/A"}}]
[null,{"$f":"IF(SUMIFS(Transações!D:D,Transações!A:A,\">=\"&'Graph Data'!$E$2,Transações!A:A,\"<=\"&'Graph Data'!$E$3,Transações!C:C,'Graph Data'!A949)=0,NA(),SUMIFS(Transações!D:D,Transações!A:A,\">=\"&'Graph Data'!$E$2,Transações!A:A,\"<=\"&'Graph Data'!$E$3,Transações!C:C,'Graph Data'!A949))","v":{"$error":"#N/A"}}]
[null,{"$f":"IF(SUMIFS(Transações!D:D,Transações!A:A,\">=\"&'Graph Data'!$E$2,Transações!A:A,\"<=\"&'Graph Data'!$E$3,Transações!C:C,'Graph Data'!A950)=0,NA(),SUMIFS(Transações!D:D,Transações!A:A,\">=\"&'Graph Data'!$E$2,Transações!A:A,\"<=\"&'Graph Data'!$E$3,Transações!C:C,'Graph Data'!A950))","v":{"$error":"#N/A"}}]
[null,{"$f":"IF(SUMIFS(Transações!D:D,Transações!A:A,\">=\"&'Graph Data'!$E$2,Transações!A:A,\"<=\"&'Graph Data'!$E$3,Transações!C:C,'Graph Data'!A951)=0,NA(),SUMIFS(Transações!D:D,Transações!A:A,\">=\"&'Graph Data'!$E$2,Transações!A:A,\"<=\"&'Graph Data'!$E$3,Transações!C:C,'Graph Data'!A951))","v":{"$error":"#N/A"}}]
[null,{"$f":"IF(SUMIFS(Transações!D:D,Transações!A:A,\">=\"&'Graph Data'!$E$2,Transações!A:A,\"<=\"&'Graph Data'!$E$3,Transações!C:C,'Graph Data'!A952)=0,NA(),SUMIFS(Transações!D:D,Transações!A:A,\">=\"&'Graph Data'!$E$2,Transações!A:A,\"<=\"&'Graph Data'!$E$3,Transações!C:C,'Graph Data'!A952))","v":{"$error":"#N/A"}}]
[null,{"$f":"IF(SUMIFS(Transações!D:D,Transações!A:A,\">=\"&'Graph Data'!$E$2,Transações!A:A,\"<=\"&'Graph Data'!$E$3,Transações!C:C,'Graph Data'!A953)=0,NA(),SUMIFS(Transações!D:D,Transações!A:A,\">=\"&'Graph Data'!$E$2,Transações!A:A,\"<=\"&'Graph Data'!$E$3,Transações!C:C,'Graph Data'!A953))","v":{"$error":"#N/A"}}]
[null,{"$f":"IF(SUMIFS(Transações!D:D,Transações!A:A,\">=\"&'Graph Data'!$E$2,Transações!A:A,\"<=\"&'Graph Data'!$E$3,Transações!C:C,'Graph Data'!A954)=0,NA(),SUMIFS(Transações!D:D,Transações!A:A,\">=\"&'Graph Data'!$E$2,Transações!A:A,\"<=\"&'Graph Data'!$E$3,Transações!C:C,'Graph Data'!A954))","v":{"$error":"#N/A"}}]
[null,{"$f":"IF(SUMIFS(Transações!D:D,Transações!A:A,\">=\"&'Graph Data'!$E$2,Transações!A:A,\"<=\"&'Graph Data'!$E$3,Transações!C:C,'Graph Data'!A955)=0,NA(),SUMIFS(Transações!D:D,Transações!A:A,\">=\"&'Graph Data'!$E$2,Transações!A:A,\"<=\"&'Graph Data'!$E$3,Transações!C:C,'Graph Data'!A955))","v":{"$error":"#N/A"}}]
[null,{"$f":"IF(SUMIFS(Transações!D:D,Transações!A:A,\">=\"&'Graph Data'!$E$2,Transações!A:A,\"<=\"&'Graph Data'!$E$3,Transações!C:C,'Graph Data'!A956)=0,NA(),SUMIFS(Transações!D:D,Transações!A:A,\">=\"&'Graph Data'!$E$2,Transações!A:A,\"<=\"&'Graph Data'!$E$3,Transações!C:C,'Graph Data'!A956))","v":{"$error":"#N/A"}}]
[null,{"$f":"IF(SUMIFS(Transações!D:D,Transações!A:A,\">=\"&'Graph Data'!$E$2,Transações!A:A,\"<=\"&'Graph Data'!$E$3,Transações!C:C,'Graph Data'!A957)=0,NA(),SUMIFS(Transações!D:D,Transações!A:A,\">=\"&'Graph Data'!$E$2,Transações!A:A,\"<=\"&'Graph Data'!$E$3,Transações!C:C,'Graph Data'!A957))","v":{"$error":"#N/A"}}]
[null,{"$f":"IF(SUMIFS(Transações!D:D,Transações!A:A,\">=\"&'Graph Data'!$E$2,Transações!A:A,\"<=\"&'Graph Data'!$E$3,Transações!C:C,'Graph Data'!A958)=0,NA(),SUMIFS(Transações!D:D,Transações!A:A,\">=\"&'Graph Data'!$E$2,Transações!A:A,\"<=\"&'Graph Data'!$E$3,Transações!C:C,'Graph Data'!A958))","v":{"$error":"#N/A"}}]
[null,{"$f":"IF(SUMIFS(Transações!D:D,Transações!A:A,\">=\"&'Graph Data'!$E$2,Transações!A:A,\"<=\"&'Graph Data'!$E$3,Transações!C:C,'Graph Data'!A959)=0,NA(),SUMIFS(Transações!D:D,Transações!A:A,\">=\"&'Graph Data'!$E$2,Transações!A:A,\"<=\"&'Graph Data'!$E$3,Transações!C:C,'Graph Data'!A959))","v":{"$error":"#N/A"}}]
[null,{"$f":"IF(SUMIFS(Transações!D:D,Transações!A:A,\">=\"&'Graph Data'!$E$2,Transações!A:A,\"<=\"&'Graph Data'!$E$3,Transações!C:C,'Graph Data'!A960)=0,NA(),SUMIFS(Transações!D:D,Transações!A:A,\">=\"&'Graph Data'!$E$2,Transações!A:A,\"<=\"&'Graph Data'!$E$3,Transações!C:C,'Graph Data'!A960))","v":{"$error":"#N/A"}}]
[null,{"$f":"IF(SUMIFS(Transações!D:D,Transações!A:A,\">=\"&'Graph Data'!$E$2,Transações!A:A,\"<=\"&'Graph Data'!$E$3,Transações!C:C,'Graph Data'!A961)=0,NA(),SUMIFS(Transações!D:D,Transações!A:A,\">=\"&'Graph Data'!$E$2,Transações!A:A,\"<=\"&'Graph Data'!$E$3,Transações!C:C,'Graph Data'!A961))","v":{"$error":"#N/A"}}]
[null,{"$f":"IF(SUMIFS(Transações!D:D,Transações!A:A,\">=\"&'Graph Data'!$E$2,Transações!A:A,\"<=\"&'Graph Data'!$E$3,Transações!C:C,'Graph Data'!A962)=0,NA(),SUMIFS(Transações!D:D,Transações!A:A,\">=\"&'Graph Data'!$E$2,Transações!A:A,\"<=\"&'Graph Data'!$E$3,Transações!C:C,'Graph Data'!A962))","v":{"$error":"#N/A"}}]
[null,{"$f":"IF(SUMIFS(Transações!D:D,Transações!A:A,\">=\"&'Graph Data'!$E$2,Transações!A:A,\"<=\"&'Graph Data'!$E$3,Transações!C:C,'Graph Data'!A963)=0,NA(),SUMIFS(Transações!D:D,Transações!A:A,\">=\"&'Graph Data'!$E$2,Transações!A:A,\"<=\"&'Graph Data'!$E$3,Transações!C:C,'Graph Data'!A963))","v":{"$error":"#N/A"}}]
[null,{"$f":"IF(SUMIFS(Transações!D:D,Transações!A:A,\">=\"&'Graph Data'!$E$2,Transações!A:A,\"<=\"&'Graph Data'!$E$3,Transações!C:C,'Graph Data'!A964)=0,NA(),SUMIFS(Transações!D:D,Transações!A:A,\">=\"&'Graph Data'!$E$2,Transações!A:A,\"<=\"&'Graph Data'!$E$3,Transações!C:C,'Graph Data'!A964))","v":{"$error":"#N/A"}}]
[null,{"$f":"IF(SUMIFS(Transações!D:D,Transações!A:A,\">=\"&'Graph Data'!$E$2,Transações!A:A,\"<=\"&'Graph Data'!$E$3,Transações!C:C,'Graph Data'!A965)=0,NA(),SUMIFS(Transações!D:D,Transações!A:A,\">=\"&'Graph Data'!$E$2,Transações!A:A,\"<=\"&'Graph Data'!$E$3,Transações!C:C,'Graph Data'!A965))","v":{"$error":"#N/A"}}]
[null,{"$f":"IF(SUMIFS(Transações!D:D,Transações!A:A,\">=\"&'Graph Data'!$E$2,Transações!A:A,\"<=\"&'Graph Data'!$E$3,Transações!C:C,'Graph Data'!A966)=0,NA(),SUMIFS(Transações!D:D,Transações!A:A,\">=\"&'Graph Data'!$E$2,Transações!A:A,\"<=\"&'Graph Data'!$E$3,Transações!C:C,'Graph Data'!A966))","v":{"$error":"#N/A"}}]
[null,{"$f":"IF(SUMIFS(Transações!D:D,Transações!A:A,\">=\"&'Graph Data'!$E$2,Transações!A:A,\"<=\"&'Graph Data'!$E$3,Transações!C:C,'Graph Data'!A967)=0,NA(),SUMIFS(Transações!D:D,Transações!A:A,\">=\"&'Graph Data'!$E$2,Transações!A:A,\"<=\"&'Graph Data'!$E$3,Transações!C:C,'Graph Data'!A967))","v":{"$error":"#N/A"}}]
[null,{"$f":"IF(SUMIFS(Transações!D:D,Transações!A:A,\">=\"&'Graph Data'!$E$2,Transações!A:A,\"<=\"&'Graph Data'!$E$3,Transações!C:C,'Graph Data'!A968)=0,NA(),SUMIFS(Transações!D:D,Transações!A:A,\">=\"&'Graph Data'!$E$2,Transações!A:A,\"<=\"&'Graph Data'!$E$3,Transações!C:C,'Graph Data'!A968))","v":{"$error":"#N/A"}}]
[null,{"$f":"IF(SUMIFS(Transações!D:D,Transações!A:A,\">=\"&'Graph Data'!$E$2,Transações!A:A,\"<=\"&'Graph Data'!$E$3,Transações!C:C,'Graph Data'!A969)=0,NA(),SUMIFS(Transações!D:D,Transações!A:A,\">=\"&'Graph Data'!$E$2,Transações!A:A,\"<=\"&'Graph Data'!$E$3,Transações!C:C,'Graph Data'!A969))","v":{"$error":"#N/A"}}]
[null,{"$f":"IF(SUMIFS(Transações!D:D,Transações!A:A,\">=\"&'Graph Data'!$E$2,Transações!A:A,\"<=\"&'Graph Data'!$E$3,Transações!C:C,'Graph Data'!A970)=0,NA(),SUMIFS(Transações!D:D,Transações!A:A,\">=\"&'Graph Data'!$E$2,Transações!A:A,\"<=\"&'Graph Data'!$E$3,Transações!C:C,'Graph Data'!A970))","v":{"$error":"#N/A"}}]
[null,{"$f":"IF(SUMIFS(Transações!D:D,Transações!A:A,\">=\"&'Graph Data'!$E$2,Transações!A:A,\"<=\"&'Graph Data'!$E$3,Transações!C:C,'Graph Data'!A971)=0,NA(),SUMIFS(Transações!D:D,Transações!A:A,\">=\"&'Graph Data'!$E$2,Transações!A:A,\"<=\"&'Graph Data'!$E$3,Transações!C:C,'Graph Data'!A971))","v":{"$error":"#N/A"}}]
[null,{"$f":"IF(SUMIFS(Transações!D:D,Transações!A:A,\">=\"&'Graph Data'!$E$2,Transações!A:A,\"<=\"&'Graph Data'!$E$3,Transações!C:C,'Graph Data'!A972)=0,NA(),SUMIFS(Transações!D:D,Transações!A:A,\">=\"&'Graph Data'!$E$2,Transações!A:A,\"<=\"&'Graph Data'!$E$3,Transações!C:C,'Graph Data'!A972))","v":{"$error":"#N/A"}}]
[null,{"$f":"IF(SUMIFS(Transações!D:D,Transações!A:A,\">=\"&'Graph Data'!$E$2,Transações!A:A,\"<=\"&'Graph Data'!$E$3,Transações!C:C,'Graph Data'!A973)=0,NA(),SUMIFS(Transações!D:D,Transações!A:A,\">=\"&'Graph Data'!$E$2,Transações!A:A,\"<=\"&'Graph Data'!$E$3,Transações!C:C,'Graph Data'!A973))","v":{"$error":"#N/A"}}]
[null,{"$f":"IF(SUMIFS(Transações!D:D,Transações!A:A,\">=\"&'Graph Data'!$E$2,Transações!A:A,\"<=\"&'Graph Data'!$E$3,Transações!C:C,'Graph Data'!A974)=0,NA(),SUMIFS(Transações!D:D,Transações!A:A,\">=\"&'Graph Data'!$E$2,Transações!A:A,\"<=\"&'Graph Data'!$E$3,Transações!C:C,'Graph Data'!A974))","v":{"$error":"#N/A"}}]
[null,{"$f":"IF(SUMIFS(Transações!D:D,Transações!A:A,\">=\"&'Graph Data'!$E$2,Transações!A:A,\"<=\"&'Graph Data'!$E$3,Transações!C:C,'Graph Data'!A975)=0,NA(),SUMIFS(Transações!D:D,Transações!A:A,\">=\"&'Graph Data'!$E$2,Transações!A:A,\"<=\"&'Graph Data'!$E$3,Transações!C:C,'Graph Data'!A975))","v":{"$error":"#N/A"}}]
[null,{"$f":"IF(SUMIFS(Transações!D:D,Transações!A:A,\">=\"&'Graph Data'!$E$2,Transações!A:A,\"<=\"&'Graph Data'!$E$3,Transações!C:C,'Graph Data'!A976)=0,NA(),SUMIFS(Transações!D:D,Transações!A:A,\">=\"&'Graph Data'!$E$2,Transações!A:A,\"<=\"&'Graph Data'!$E$3,Transações!C:C,'Graph Data'!A976))","v":{"$error":"#N/A"}}]
[null,{"$f":"IF(SUMIFS(Transações!D:D,Transações!A:A,\">=\"&'Graph Data'!$E$2,Transações!A:A,\"<=\"&'Graph Data'!$E$3,Transações!C:C,'Graph Data'!A977)=0,NA(),SUMIFS(Transações!D:D,Transações!A:A,\">=\"&'Graph Data'!$E$2,Transações!A:A,\"<=\"&'Graph Data'!$E$3,Transações!C:C,'Graph Data'!A977))","v":{"$error":"#N/A"}}]
[null,{"$f":"IF(SUMIFS(Transações!D:D,Transações!A:A,\">=\"&'Graph Data'!$E$2,Transações!A:A,\"<=\"&'Graph Data'!$E$3,Transações!C:C,'Graph Data'!A978)=0,NA(),SUMIFS(Transações!D:D,Transações!A:A,\">=\"&'Graph Data'!$E$2,Transações!A:A,\"<=\"&'Graph Data'!$E$3,Transações!C:C,'Graph Data'!A978))","v":{"$error":"#N/A"}}]
[null,{"$f":"IF(SUMIFS(Transações!D:D,Transações!A:A,\">=\"&'Graph Data'!$E$2,Transações!A:A,\"<=\"&'Graph Data'!$E$3,Transações!C:C,'Graph Data'!A979)=0,NA(),SUMIFS(Transações!D:D,Transações!A:A,\">=\"&'Graph Data'!$E$2,Transações!A:A,\"<=\"&'Graph Data'!$E$3,Transações!C:C,'Graph Data'!A979))","v":{"$error":"#N/A"}}]
[null,{"$f":"IF(SUMIFS(Transações!D:D,Transações!A:A,\">=\"&'Graph Data'!$E$2,Transações!A:A,\"<=\"&'Graph Data'!$E$3,Transações!C:C,'Graph Data'!A980)=0,NA(),SUMIFS(Transações!D:D,Transações!A:A,\">=\"&'Graph Data'!$E$2,Transações!A:A,\"<=\"&'Graph Data'!$E$3,Transações!C:C,'Graph Data'!A980))","v":{"$error":"#N/A"}}]
[null,{"$f":"IF(SUMIFS(Transações!D:D,Transações!A:A,\">=\"&'Graph Data'!$E$2,Transações!A:A,\"<=\"&'Graph Data'!$E$3,Transações!C:C,'Graph Data'!A981)=0,NA(),SUMIFS(Transações!D:D,Transações!A:A,\">=\"&'Graph Data'!$E$2,Transações!A:A,\"<=\"&'Graph Data'!$E$3,Transações!C:C,'Graph Data'!A981))","v":{"$error":"#N/A"}}]
[null,{"$f":"IF(SUMIFS(Transações!D:D,Transações!A:A,\">=\"&'Graph Data'!$E$2,Transações!A:A,\"<=\"&'Graph Data'!$E$3,Transações!C:C,'Graph Data'!A982)=0,NA(),SUMIFS(Transações!D:D,Transações!A:A,\">=\"&'Graph Data'!$E$2,Transações!A:A,\"<=\"&'Graph Data'!$E$3,Transações!C:C,'Graph Data'!A982))","v":{"$error":"#N/A"}}]
[null,{"$f":"IF(SUMIFS(Transações!D:D,Transações!A:A,\">=\"&'Graph Data'!$E$2,Transações!A:A,\"<=\"&'Graph Data'!$E$3,Transações!C:C,'Graph Data'!A983)=0,NA(),SUMIFS(Transações!D:D,Transações!A:A,\">=\"&'Graph Data'!$E$2,Transações!A:A,\"<=\"&'Graph Data'!$E$3,Transações!C:C,'Graph Data'!A983))","v":{"$error":"#N/A"}}]
[null,{"$f":"IF(SUMIFS(Transações!D:D,Transações!A:A,\">=\"&'Graph Data'!$E$2,Transações!A:A,\"<=\"&'Graph Data'!$E$3,Transações!C:C,'Graph Data'!A984)=0,NA(),SUMIFS(Transações!D:D,Transações!A:A,\">=\"&'Graph Data'!$E$2,Transações!A:A,\"<=\"&'Graph Data'!$E$3,Transações!C:C,'Graph Data'!A984))","v":{"$error":"#N/A"}}]
[null,{"$f":"IF(SUMIFS(Transações!D:D,Transações!A:A,\">=\"&'Graph Data'!$E$2,Transações!A:A,\"<=\"&'Graph Data'!$E$3,Transações!C:C,'Graph Data'!A985)=0,NA(),SUMIFS(Transações!D:D,Transações!A:A,\">=\"&'Graph Data'!$E$2,Transações!A:A,\"<=\"&'Graph Data'!$E$3,Transações!C:C,'Graph Data'!A985))","v":{"$error":"#N/A"}}]
[null,{"$f":"IF(SUMIFS(Transações!D:D,Transações!A:A,\">=\"&'Graph Data'!$E$2,Transações!A:A,\"<=\"&'Graph Data'!$E$3,Transações!C:C,'Graph Data'!A986)=0,NA(),SUMIFS(Transações!D:D,Transações!A:A,\">=\"&'Graph Data'!$E$2,Transações!A:A,\"<=\"&'Graph Data'!$E$3,Transações!C:C,'Graph Data'!A986))","v":{"$error":"#N/A"}}]
[null,{"$f":"IF(SUMIFS(Transações!D:D,Transações!A:A,\">=\"&'Graph Data'!$E$2,Transações!A:A,\"<=\"&'Graph Data'!$E$3,Transações!C:C,'Graph Data'!A987)=0,NA(),SUMIFS(Transações!D:D,Transações!A:A,\">=\"&'Graph Data'!$E$2,Transações!A:A,\"<=\"&'Graph Data'!$E$3,Transações!C:C,'Graph Data'!A987))","v":{"$error":"#N/A"}}]
[null,{"$f":"IF(SUMIFS(Transações!D:D,Transações!A:A,\">=\"&'Graph Data'!$E$2,Transações!A:A,\"<=\"&'Graph Data'!$E$3,Transações!C:C,'Graph Data'!A988)=0,NA(),SUMIFS(Transações!D:D,Transações!A:A,\">=\"&'Graph Data'!$E$2,Transações!A:A,\"<=\"&'Graph Data'!$E$3,Transações!C:C,'Graph Data'!A988))","v":{"$error":"#N/A"}}]
[null,{"$f":"IF(SUMIFS(Transações!D:D,Transações!A:A,\">=\"&'Graph Data'!$E$2,Transações!A:A,\"<=\"&'Graph Data'!$E$3,Transações!C:C,'Graph Data'!A989)=0,NA(),SUMIFS(Transações!D:D,Transações!A:A,\">=\"&'Graph Data'!$E$2,Transações!A:A,\"<=\"&'Graph Data'!$E$3,Transações!C:C,'Graph Data'!A989))","v":{"$error":"#N/A"}}]
[null,{"$f":"IF(SUMIFS(Transações!D:D,Transações!A:A,\">=\"&'Graph Data'!$E$2,Transações!A:A,\"<=\"&'Graph Data'!$E$3,Transações!C:C,'Graph Data'!A990)=0,NA(),SUMIFS(Transações!D:D,Transações!A:A,\">=\"&'Graph Data'!$E$2,Transações!A:A,\"<=\"&'Graph Data'!$E$3,Transações!C:C,'Graph Data'!A990))","v":{"$error":"#N/A"}}]
[null,{"$f":"IF(SUMIFS(Transações!D:D,Transações!A:A,\">=\"&'Graph Data'!$E$2,Transações!A:A,\"<=\"&'Graph Data'!$E$3,Transações!C:C,'Graph Data'!A991)=0,NA(),SUMIFS(Transações!D:D,Transações!A:A,\">=\"&'Graph Data'!$E$2,Transações!A:A,\"<=\"&'Graph Data'!$E$3,Transações!C:C,'Graph Data'!A991))","v":{"$error":"#N/A"}}]
[null,{"$f":"IF(SUMIFS(Transações!D:D,Transações!A:A,\">=\"&'Graph Data'!$E$2,Transações!A:A,\"<=\"&'Graph Data'!$E$3,Transações!C:C,'Graph Data'!A992)=0,NA(),SUMIFS(Transações!D:D,Transações!A:A,\">=\"&'Graph Data'!$E$2,Transações!A:A,\"<=\"&'Graph Data'!$E$3,Transações!C:C,'Graph Data'!A992))","v":{"$error":"#N/A"}}]
[null,{"$f":"IF(SUMIFS(Transações!D:D,Transações!A:A,\">=\"&'Graph Data'!$E$2,Transações!A:A,\"<=\"&'Graph Data'!$E$3,Transações!C:C,'Graph Data'!A993)=0,NA(),SUMIFS(Transações!D:D,Transações!A:A,\">=\"&'Graph Data'!$E$2,Transações!A:A,\"<=\"&'Graph Data'!$E$3,Transações!C:C,'Graph Data'!A993))","v":{"$error":"#N/A"}}]
[null,{"$f":"IF(SUMIFS(Transações!D:D,Transações!A:A,\">=\"&'Graph Data'!$E$2,Transações!A:A,\"<=\"&'Graph Data'!$E$3,Transações!C:C,'Graph Data'!A994)=0,NA(),SUMIFS(Transações!D:D,Transações!A:A,\">=\"&'Graph Data'!$E$2,Transações!A:A,\"<=\"&'Graph Data'!$E$3,Transações!C:C,'Graph Data'!A994))","v":{"$error":"#N/A"}}]
[null,{"$f":"IF(SUMIFS(Transações!D:D,Transações!A:A,\">=\"&'Graph Data'!$E$2,Transações!A:A,\"<=\"&'Graph Data'!$E$3,Transações!C:C,'Graph Data'!A995)=0,NA(),SUMIFS(Transações!D:D,Transações!A:A,\">=\"&'Graph Data'!$E$2,Transações!A:A,\"<=\"&'Graph Data'!$E$3,Transações!C:C,'Graph Data'!A995))","v":{"$error":"#N/A"}}]
[null,{"$f":"IF(SUMIFS(Transações!D:D,Transações!A:A,\">=\"&'Graph Data'!$E$2,Transações!A:A,\"<=\"&'Graph Data'!$E$3,Transações!C:C,'Graph Data'!A996)=0,NA(),SUMIFS(Transações!D:D,Transações!A:A,\">=\"&'Graph Data'!$E$2,Transações!A:A,\"<=\"&'Graph Data'!$E$3,Transações!C:C,'Graph Data'!A996))","v":{"$error":"#N/A"}}]
[null,{"$f":"IF(SUMIFS(Transações!D:D,Transações!A:A,\">=\"&'Graph Data'!$E$2,Transações!A:A,\"<=\"&'Graph Data'!$E$3,Transações!C:C,'Graph Data'!A997)=0,NA(),SUMIFS(Transações!D:D,Transações!A:A,\">=\"&'Graph Data'!$E$2,Transações!A:A,\"<=\"&'Graph Data'!$E$3,Transações!C:C,'Graph Data'!A997))","v":{"$error":"#N/A"}}]
[null,{"$f":"IF(SUMIFS(Transações!D:D,Transações!A:A,\">=\"&'Graph Data'!$E$2,Transações!A:A,\"<=\"&'Graph Data'!$E$3,Transações!C:C,'Graph Data'!A998)=0,NA(),SUMIFS(Transações!D:D,Transações!A:A,\">=\"&'Graph Data'!$E$2,Transações!A:A,\"<=\"&'Graph Data'!$E$3,Transações!C:C,'Graph Data'!A998))","v":{"$error":"#N/A"}}]
[null,{"$f":"IF(SUMIFS(Transações!D:D,Transações!A:A,\">=\"&'Graph Data'!$E$2,Transações!A:A,\"<=\"&'Graph Data'!$E$3,Transações!C:C,'Graph Data'!A999)=0,NA(),SUMIFS(Transações!D:D,Transações!A:A,\">=\"&'Graph Data'!$E$2,Transações!A:A,\"<=\"&'Graph Data'!$E$3,Transações!C:C,'Graph Data'!A999))","v":{"$error":"#N/A"}}]
[null,{"$f":"IF(SUMIFS(Transações!D:D,Transações!A:A,\">=\"&'Graph Data'!$E$2,Transações!A:A,\"<=\"&'Graph Data'!$E$3,Transações!C:C,'Graph Data'!A1000)=0,NA(),SUMIFS(Transações!D:D,Transações!A:A,\">=\"&'Graph Data'!$E$2,Transações!A:A,\"<=\"&'Graph Data'!$E$3,Transações!C:C,'Graph Data'!A1000))","v":{"$error":"#N/A"}}]

{"sheet":"Tags","index":3,"n_rows":7,"n_cols":1,"rows_kept":7,"cut":false,"hidden":true,"merged":[]}
["Tags"]
["Mercado"]
["Aluguel"]
["Salário"]
["Viagem"]
["Lazer"]
["Transporte"]

{"sheet":"Transações","index":4,"n_rows":12,"n_cols":7,"rows_kept":12,"cut":false,"hidden":false,"merged":[]}
["Data","Tipo","Transação","Saída","Entrada","Observações","Ano"]
["2022-01-12","Entrada","Aluguel",null,12000,null,2022]
["2022-01-22","Saída","Viagem",6500.25,null,null,2022]
["2022-01-30","Saída","Transporte",250.5,null,null,2022]
["2022-02-02","Saída","Transporte",200,null,null,2022]
["2022-02-05","Entrada","Salário",null,2500,null,2022]
["2022-02-10","Saída","Aluguel",1000,null,null,2022]
["2022-02-10","Saída","Transporte",250,null,null,2022]
["2022-02-12","Saída","Aluguel",150.5,null,null,2022]
["2022-04-14","Saída","Aluguel",200,null,null,2022]
["2021-04-26","Entrada","Salário",null,1000,null,2021]
["2022-04-12","Entrada","Salário",null,1000,null,2022]